Workbook

Sheet Intro
F2: Exploratory Software for Confidence Intervals
F3: ESCI Chapters 10-13 | L3: www.thenewstatistics.com
G5: Geoff Cumming | N5: Copyright © Geoff Cumming 2011
H6: School of Psychological Science | N6: ESCI is free software: you can redistribute it and/or modify it under the terms of the GNU General Public License
H7: La Trobe University, Melbourne | N7: as published by the Free Software Foundation, either version 3 of the License, or (at your option) any later version.
H8: Australia 3086 | N8: This program is distributed in the hope that it will be useful, but WITHOUT ANY WARRANTY; without even the implied warranty of
H9: esci@latrobe.edu.au | N9: MERCHANTABILITY or FITNESS FOR A PARTICULAR PURPOSE. Scroll down to see the GNU General Public License for more details.
B12: ► ESCI Chapters 10-13 accompanies the book Understanding The New Statistics: Effect Sizes, Confidence Intervals, and Meta-analysis (Routledge, 2012)
B13: ► For help, see the book's Appendix A.
B14: ► Use the tabs below to go to your page of choice.
B15: ► At any page, explore--with guidance from the relevant chapters of the book.
B19: Click the tabs at the bottom of the screen to go to these pages:
C21: Sampling See Chapter 10. Take samples from the H0 or H1 population, see the s pile, the rubber ruler, and normal, central t, and noncentral t distributions.
C23: Noncentral t See Chapter 10. Explore noncentral t distributions, and compare with central t. Find areas under the noncentral t curve.
C25: d picture See Chapter 11. See how two populations relate for a chosen value of d.
C27: d heap See Chapter 11. Take samples, see distributions of sample means and SDs, the s pile, the rubber ruler, and the noncentral t distribution of d.
C29: CI for d See Chapter 11. Enter a chosen value of d for the two independent groups design, then use noncentral t to find the CI for d.
C31: Power picture See Chapter 12. Explore statistical power for a single group experiment, using z for normal distributions, or t for central and noncentral t distributions.
C33: Power two See Chapter 12. See power curves, and values of power, for two independent groups, using z or t.
C35: Power paired See Chapter 12. See power curves, and values of power, for paired data, using z or t.
C37: Precision one See Chapter 13. See precision curves for the single sample design, using z or t. Calculate N for original units, and for d.
C39: Precision two See Chapter 13. See precision curves for two independent groups, using z or t. Calculate N for original units, and for d.
C41: Precision paired See Chapter 13. See precision curves for paired data, using z or t. Calculate N for original units, and for d.
B45: Please scroll down to see the GNU General Public License below
B62: GNU GENERAL PUBLIC LICENSE
B63: Version 3, 29 June 2007
B65: Copyright (C) 2007 Free Software Foundation, Inc. <http://fsf.org/>
B66: Everyone is permitted to copy and distribute verbatim copies
B67: of this license document, but changing it is not allowed.
B69: Preamble
B71: The GNU General Public License is a free, copyleft license for
B72: software and other kinds of works.
B74: The licenses for most software and other practical works are designed
B75: to take away your freedom to share and change the works. By contrast,
B76: the GNU General Public License is intended to guarantee your freedom to
B77: share and change all versions of a program--to make sure it remains free
B78: software for all its users. We, the Free Software Foundation, use the
B79: GNU General Public License for most of our software; it applies also to
B80: any other work released this way by its authors. You can apply it to
B81: your programs, too.
B83: When we speak of free software, we are referring to freedom, not
B84: price. Our General Public Licenses are designed to make sure that you
B85: have the freedom to distribute copies of free software (and charge for
B86: them if you wish), that you receive source code or can get it if you
B87: want it, that you can change the software or use pieces of it in new
B88: free programs, and that you know you can do these things.
B90: To protect your rights, we need to prevent others from denying you
B91: these rights or asking you to surrender the rights. Therefore, you have
B92: certain responsibilities if you distribute copies of the software, or if
B93: you modify it: responsibilities to respect the freedom of others.
B95: For example, if you distribute copies of such a program, whether
B96: gratis or for a fee, you must pass on to the recipients the same
B97: freedoms that you received. You must make sure that they, too, receive
B98: or can get the source code. And you must show them these terms so they
B99: know their rights.
B101: Developers that use the GNU GPL protect your rights with two steps:
B102: (1) assert copyright on the software, and (2) offer you this License
B103: giving you legal permission to copy, distribute and/or modify it.
B105: For the developers' and authors' protection, the GPL clearly explains
B106: that there is no warranty for this free software. For both users' and
B107: authors' sake, the GPL requires that modified versions be marked as
B108: changed, so that their problems will not be attributed erroneously to
B109: authors of previous versions.
B111: Some devices are designed to deny users access to install or run
B112: modified versions of the software inside them, although the manufacturer
B113: can do so. This is fundamentally incompatible with the aim of
B114: protecting users' freedom to change the software. The systematic
B115: pattern of such abuse occurs in the area of products for individuals to
B116: use, which is precisely where it is most unacceptable. Therefore, we
B117: have designed this version of the GPL to prohibit the practice for those
B118: products. If such problems arise substantially in other domains, we
B119: stand ready to extend this provision to those domains in future versions
B120: of the GPL, as needed to protect the freedom of users.
B122: Finally, every program is threatened constantly by software patents.
B123: States should not allow patents to restrict development and use of
B124: software on general-purpose computers, but in those that do, we wish to
B125: avoid the special danger that patents applied to a free program could
B126: make it effectively proprietary. To prevent this, the GPL assures that
B127: patents cannot be used to render the program non-free.
B129: The precise terms and conditions for copying, distribution and
B130: modification follow.
B132: TERMS AND CONDITIONS
B134: 0. Definitions.
B136: "This License" refers to version 3 of the GNU General Public License.
B138: "Copyright" also means copyright-like laws that apply to other kinds of
B139: works, such as semiconductor masks.
B141: "The Program" refers to any copyrightable work licensed under this
B142: License. Each licensee is addressed as "you". "Licensees" and
B143: "recipients" may be individuals or organizations.
B145: To "modify" a work means to copy from or adapt all or part of the work
B146: in a fashion requiring copyright permission, other than the making of an
B147: exact copy. The resulting work is called a "modified version" of the
B148: earlier work or a work "based on" the earlier work.
B150: A "covered work" means either the unmodified Program or a work based
B151: on the Program.
B153: To "propagate" a work means to do anything with it that, without
B154: permission, would make you directly or secondarily liable for
B155: infringement under applicable copyright law, except executing it on a
B156: computer or modifying a private copy. Propagation includes copying,
B157: distribution (with or without modification), making available to the
B158: public, and in some countries other activities as well.
B160: To "convey" a work means any kind of propagation that enables other
B161: parties to make or receive copies. Mere interaction with a user through
B162: a computer network, with no transfer of a copy, is not conveying.
B164: An interactive user interface displays "Appropriate Legal Notices"
B165: to the extent that it includes a convenient and prominently visible
B166: feature that (1) displays an appropriate copyright notice, and (2)
B167: tells the user that there is no warranty for the work (except to the
B168: extent that warranties are provided), that licensees may convey the
B169: work under this License, and how to view a copy of this License. If
B170: the interface presents a list of user commands or options, such as a
B171: menu, a prominent item in the list meets this criterion.
B173: 1. Source Code.
B175: The "source code" for a work means the preferred form of the work
B176: for making modifications to it. "Object code" means any non-source
B177: form of a work.
B179: A "Standard Interface" means an interface that either is an official
B180: standard defined by a recognized standards body, or, in the case of
B181: interfaces specified for a particular programming language, one that
B182: is widely used among developers working in that language.
B184: The "System Libraries" of an executable work include anything, other
B185: than the work as a whole, that (a) is included in the normal form of
B186: packaging a Major Component, but which is not part of that Major
B187: Component, and (b) serves only to enable use of the work with that
B188: Major Component, or to implement a Standard Interface for which an
B189: implementation is available to the public in source code form. A
B190: "Major Component", in this context, means a major essential component
B191: (kernel, window system, and so on) of the specific operating system
B192: (if any) on which the executable work runs, or a compiler used to
B193: produce the work, or an object code interpreter used to run it.
B195: The "Corresponding Source" for a work in object code form means all
B196: the source code needed to generate, install, and (for an executable
B197: work) run the object code and to modify the work, including scripts to
B198: control those activities. However, it does not include the work's
B199: System Libraries, or general-purpose tools or generally available free
B200: programs which are used unmodified in performing those activities but
B201: which are not part of the work. For example, Corresponding Source
B202: includes interface definition files associated with source files for
B203: the work, and the source code for shared libraries and dynamically
B204: linked subprograms that the work is specifically designed to require,
B205: such as by intimate data communication or control flow between those
B206: subprograms and other parts of the work.
B208: The Corresponding Source need not include anything that users
B209: can regenerate automatically from other parts of the Corresponding
B210: Source.
B212: The Corresponding Source for a work in source code form is that
B213: same work.
B215: 2. Basic Permissions.
B217: All rights granted under this License are granted for the term of
B218: copyright on the Program, and are irrevocable provided the stated
B219: conditions are met. This License explicitly affirms your unlimited
B220: permission to run the unmodified Program. The output from running a
B221: covered work is covered by this License only if the output, given its
B222: content, constitutes a covered work. This License acknowledges your
B223: rights of fair use or other equivalent, as provided by copyright law.
B225: You may make, run and propagate covered works that you do not
B226: convey, without conditions so long as your license otherwise remains
B227: in force. You may convey covered works to others for the sole purpose
B228: of having them make modifications exclusively for you, or provide you
B229: with facilities for running those works, provided that you comply with
B230: the terms of this License in conveying all material for which you do
B231: not control copyright. Those thus making or running the covered works
B232: for you must do so exclusively on your behalf, under your direction
B233: and control, on terms that prohibit them from making any copies of
B234: your copyrighted material outside their relationship with you.
B236: Conveying under any other circumstances is permitted solely under
B237: the conditions stated below. Sublicensing is not allowed; section 10
B238: makes it unnecessary.
B240: 3. Protecting Users' Legal Rights From Anti-Circumvention Law.
B242: No covered work shall be deemed part of an effective technological
B243: measure under any applicable law fulfilling obligations under article
B244: 11 of the WIPO copyright treaty adopted on 20 December 1996, or
B245: similar laws prohibiting or restricting circumvention of such
B246: measures.
B248: When you convey a covered work, you waive any legal power to forbid
B249: circumvention of technological measures to the extent such circumvention
B250: is effected by exercising rights under this License with respect to
B251: the covered work, and you disclaim any intention to limit operation or
B252: modification of the work as a means of enforcing, against the work's
B253: users, your or third parties' legal rights to forbid circumvention of
B254: technological measures.
B256: 4. Conveying Verbatim Copies.
B258: You may convey verbatim copies of the Program's source code as you
B259: receive it, in any medium, provided that you conspicuously and
B260: appropriately publish on each copy an appropriate copyright notice;
B261: keep intact all notices stating that this License and any
B262: non-permissive terms added in accord with section 7 apply to the code;
B263: keep intact all notices of the absence of any warranty; and give all
B264: recipients a copy of this License along with the Program.
B266: You may charge any price or no price for each copy that you convey,
B267: and you may offer support or warranty protection for a fee.
B269: 5. Conveying Modified Source Versions.
B271: You may convey a work based on the Program, or the modifications to
B272: produce it from the Program, in the form of source code under the
B273: terms of section 4, provided that you also meet all of these conditions:
B275: a) The work must carry prominent notices stating that you modified
B276: it, and giving a relevant date.
B278: b) The work must carry prominent notices stating that it is
B279: released under this License and any conditions added under section
B280: 7. This requirement modifies the requirement in section 4 to
... 377 more rows

Sheet Sampling
L1: Distributions from sampling | W1: =($O$9+$R$11+$K$14+$V$9+$BA$33+$BA$34+$BB$8+$BA$36+$BA$37)/1000000 -> 0.0001554285 | X1: =$W$1 -> 0.0001554285 | Y1: 0.0001554285 | Z1: 0.0001554285 | AA1: 0.0001554285 | AB1: 0.0001554285 | AC1: 0.0001554285 | AD1: 0.0001554285 | AE1: 0.0001554285 | AF1: 0.0001554285 | AG1: 0.0001554285 | AH1: 0.0001554285 | AI1: 0.0001554285 | AJ1: 0.0001554285 | AX1: low | AY1: high | AZ1: majXunit | BA1: X step size | BB1: 0.5 | BC1: DispRubberRuler | BD1: FALSE | BF1: H0 sample | BJ1: 0.3
A2: means | B2: SDs | C2: t or z | D2: means | E2: SDs | F2: t or z | G2: calcswitch | H2: FALSE | M2: Take samples, see normal and (central) t distributions | W2: =$W$1 -> 0.0001554285 | AJ2: =$W$1 -> 0.0001554285 | AW2: Y axis | AX2: =AX15-AX16 -> -52 | AY2: =AX6+AX5+AX4 -> 45 | BA2: Max no samps | BB2: 300 | BC2: Show data pts | BD2: TRUE | BE2: 1 | BF2: rand no. | BG2: data point z | BH2: data point | BJ2: New Sample, for display | BK2: Grey | BL2: Display mean heap 0 | BN2: =BN4 -> 40.2825 | BO2: =IF(AND(NOT($BB$12),$BD$3,$BD$2),$AX$9-$BA$33/2+BM4*$BA$33,NA()) -> 4.83975 | BP2: =IF(AND($BB$12,$BD$3,$BD$2),$AX$9-$BA$33/2+BM4*$BA$33,NA()) ->  | BQ2: Display t-z heap 0 | BS2: =BS4 -> 40.2825 | BT2: =IF(AND(NOT($BB$12),$BD$3,$BD$2,BD10),$AX$15-$BA$33/2+BR4*$BA$33,NA()) -> -45.16025 | BU2: =IF(AND($BB$12,$BD$3,$BD$2,BD10),$AX$15-$BA$33/2+BR4*$BA$33,NA()) ->  | BV2: Display mean heap 1 | BX2: =BX4 -> 67.7925 | BY2: =IF(AND(NOT($BB$13),$BD$4,$BD$2),$AX$9-$BA$33/2+BW4*$BA$33,NA()) ->  | BZ2: =IF(AND($BB$4,$BB$13,$BD$4,$BD$2),$AX$9-$BA$33/2+BW4*$BA$33,NA()) ->  | CA2: Display t-z heap 1 | CC2: =CC4 -> 67.7925 | CD2: =IF(AND(NOT($BB$13),$BD$4,$BD$2,BD10),$AX$15-$BA$33/2+CB4*$BA$33,NA()) ->  | CE2: =IF(AND($BB$4,$BB$13,$BD$4,$BD$2,BD10),$AX$15-$BA$33/2+CB4*$BA$33,NA()) ->  | CF2: Display s pile | CJ2: =CJ4 ->  | CK2: =IF(AND(NOT($BD$12),$BD$5,$BD$4,$BD$2),$AX$12-$BA$36/2+IF($BB$5=1,CG4,CI4)*$BA$36,NA()) ->  | CL2: =IF(AND($BD$12,$BD$5,$BD$4,$BD$2),$AX$12-$BA$36/2+IF($BB$5=1,CG4,CI4)*$BA$36,NA()) -> 
A3: =BB30 -> 0.02078797455 | B3: =BC30 -> 1.843068047 | D3: =BB31 -> 0.1820704237 | E3: =BC31 -> 1.184249588 | M3: See the rubber ruler, and the noncentral t distribution | W3: 0.0001554285 | AJ3: 0.0001554285 | AW3: X axis | AX3: 0 | AY3: 100 | AZ3: 10 | BA3: Max height | BB3: =MAX(L65:L265,Q65:Q265)*1.1 -> 47.07792573 | BC3: Don'tClearDisp | BD3: =($G$11=$H$11) -> TRUE | BE3: 2 | BF3: =$G$9 -> 0.0106741587 | BG3: =IF(AND($BD$3,$BE2<=$K$14),NORMSINV(BF3),"") -> -2.301766966 | BH3: =IF(BG3="","",$O$9+$R$11*BG3) -> 5.473495508 | BI3: =IF(AND(NOT($BB$12),$BD$2,BH3<>"",$A$4<>""),BH3,-999) -> 5.473495508 | BJ3: =$AX$8+$BJ$1 -> 25.3 | BK3: =IF(AND($BB$12,$BD$2,BH3<>"",$A$4<>""),BH3,-999) -> -999 | BL3: xticks | BM3: yticks | BN3: x for display | BO3: y for display | BP3: Grey | BQ3: xticks | BR3: yticks | BS3: x for display | BT3: y for display | BU3: Grey | BV3: xticks | BW3: yticks | BX3: x for display | BY3: y for display | BZ3: Grey | CA3: xticks | CB3: yticks | CC3: x for display | CD3: y for display | CE3: Grey | CF3: xticks 0 | CG3: yticks 0 | CH3: xticks 1 | CI3: yticks 1 | CJ3: x for display | CK3: y for display | CL3: y grey
A4: 0.02078797455 | B4: 1.843068047 | C4: =IF(AND(A4<>"",$K$14>1),(($O$9+$R$11*A4)-$O$9)/IF($BD$12,$BB$9,$R$11*B4/SQRT($K$14)),"") -> 0.05091993043 | D4: 0.1820704237 | E4: 1.184249588 | F4: =IF(AND(D4<>"",$K$14>1),(($V$9+$R$11*D4)-$O$9)/IF($BD$12,$BB$9,$R$11*E4/SQRT($K$14)),"") -> 4.52846254 | W4: 0.0001554285 | AJ4: 0.0001554285 | AW4: top gap | AX4: 0 | AZ4: minXunit | BA4: Show m1 also | BB4: FALSE | BC4: Don'tClearDisp1 | BD4: =($G$11=$H$11) -> TRUE | BE4: 3 | BF4: =MOD(BF3*10000013,1) -> 0.7257869525 | BG4: =IF(AND($BD$3,$BE3<=$K$14),NORMSINV(BF4),"") -> 0.6001202544 | BH4: =IF(BG4="","",$O$9+$R$11*BG4) -> 49.00180382 | BI4: =IF(AND(NOT($BB$12),$BD$2,BH4<>"",$A$4<>""),BH4,-999) -> 49.00180382 | BJ4: =$AX$8+$BJ$1 -> 25.3 | BK4: =IF(AND($BB$12,$BD$2,BH4<>"",$A$4<>""),BH4,-999) -> -999 | BL4: =IF(A4="","",ROUND(($O$9+$R$11*A4)/$BA$34,0)) -> 41 | BM4: =IF(BL4="",NA(),COUNTIF(BL4:$BL$303,BL4)) -> 5 | BN4: =BL4*$BA$34 -> 40.2825 | BO4: =IF(AND(NOT($BB$12),$BB$6,$BD$3,$BD$8),$AX$9-$BA$33/2+BM4*$BA$33,NA()) -> 4.83975 | BP4: =IF(AND($BB$12,$BB$6,$BD$3,$BD$8),$AX$9-$BA$33/2+BM4*$BA$33,NA()) ->  | BQ4: =IF(C4="","",ROUND(($O$9+C4*$BB$9)/$BA$34,0)) -> 41 | BR4: =IF(BQ4="",NA(),COUNTIF(BQ4:$BQ$303,BQ4)) -> 5 | BS4: =BQ4*$BA$34 -> 40.2825 | BT4: =IF(AND(NOT($BB$12),$BD$10,$BD$3,$BD$8),$AX$15-$BA$33/2+BR4*$BA$33,NA()) -> -45.16025 | BU4: =IF(AND($BB$12,$BD$10,$BD$3,$BD$8),$AX$15-$BA$33/2+BR4*$BA$33,NA()) ->  | BV4: =IF(D4="","",ROUND(($V$9+$R$11*D4)/$BA$34,0)) -> 69 | BW4: =IF(BV4="",NA(),COUNTIF(BV4:$BV$303,BV4)) -> 2 | BX4: =BV4*$BA$34 -> 67.7925 | BY4: =IF(AND(NOT($BB$13),$BD$6,$BD$4,$BD$8),$AX$9-$BA$33/2+BW4*$BA$33,NA()) ->  | BZ4: =IF(AND($BB$4,$BD$6,$BB$13,$BD$4,$BD$8),$AX$9-$BA$33/2+BW4*$BA$33,NA()) ->  | CA4: =IF(F4="","",ROUND(($O$9+F4*$BB$9)/$BA$34,0)) -> 69 | CB4: =IF(CA4="",NA(),COUNTIF(CA4:$CA$303,CA4)) -> 2 | CC4: =CA4*$BA$34 -> 67.7925 | CD4: =IF(AND(NOT($BB$13),$BD$10,$BD$4,$BD$8),$AX$15-$BA$33/2+CB4*$BA$33,NA()) ->  | CE4: =IF(AND($BB$4,$BD$10,$BB$13,$BD$4,$BD$8),$AX$15-$BA$33/2+CB4*$BA$33,NA()) ->  | CF4: =IF(B4="","",ROUND(($R$11*B4)/$BA$37,0)) -> 42 | CG4: =IF(CF4="",NA(),COUNTIF($CF4:CF$303,CF4)) -> 2 | CH4: =IF(E4="","",ROUND(($R$11*E4)/$BA$37,0)) -> 27 | CI4: =IF(CH4="",NA(),COUNTIF($CH4:CH$303,CH4)) -> 2 | CJ4: =$AX$35+IF($BB$5=1,CF4,CH4)*$BA$37 ->  | CK4: =IF(AND(NOT($BD$12),$BD$5,$BD$4,$BD$8),$AX$12-$BA$36/2+IF($BB$5=1,CG4,CI4)*$BA$36,NA()) ->  | CL4: =IF(AND($BD$12,$BD$5,$BD$4,$BD$8),$AX$12-$BA$36/2+IF($BB$5=1,CG4,CI4)*$BA$36,NA()) -> 
A5: 0.2803681385 | B5: 0.9769286569 | C5: =IF(AND(A5<>"",$K$14>1),(($O$9+$R$11*A5)-$O$9)/IF($BD$12,$BB$9,$R$11*B5/SQRT($K$14)),"") -> 0.6867588795 | D5: 0.3669107526 | E5: 0.865693998 | F5: =IF(AND(D5<>"",$K$14>1),(($V$9+$R$11*D5)-$O$9)/IF($BD$12,$BB$9,$R$11*E5/SQRT($K$14)),"") -> 4.98122703 | J5: 1 | K5: Populations | Q5: 2.. | R5: Hypotheses | W5: 0.0001554285 | AJ5: 0.0001554285 | AW5: panel 1 height | AX5: 18 | AZ5: 2 | BA5: m0 or m1 true | BB5: 1 | BC5: Disp s pile | BD5: FALSE | BE5: 4 | BF5: 0.9604317686 | BG5: =IF(AND($BD$3,$BE4<=$K$14),NORMSINV(BF5),"") -> 1.755718637 | BH5: 66.33577956 | BI5: 66.33577956 | BJ5: 25.3 | BK5: -999 | BL5: 45 | BM5: =IF(BL5="",NA(),COUNTIF(BL5:$BL$303,BL5)) -> 9 | BN5: 44.2125 | BO5: 9.14175 | BQ5: 45 | BR5: =IF(BQ5="",NA(),COUNTIF(BQ5:$BQ$303,BQ5)) -> 9 | BS5: 44.2125 | BT5: =IF(AND(NOT($BB$12),$BD$10,$BD$3,$BD$8),$AX$15-$BA$33/2+BR5*$BA$33,NA()) -> -40.85825 | BU5: =IF(AND($BB$12,$BD$10,$BD$3,$BD$8),$AX$15-$BA$33/2+BR5*$BA$33,NA()) ->  | BV5: 72 | BW5: =IF(BV5="",NA(),COUNTIF(BV5:$BV$303,BV5)) -> 1 | BX5: 70.74 | CA5: 72 | CB5: =IF(CA5="",NA(),COUNTIF(CA5:$CA$303,CA5)) -> 1 | CC5: 70.74 | CD5: =IF(AND(NOT($BB$13),$BD$10,$BD$4,$BD$8),$AX$15-$BA$33/2+CB5*$BA$33,NA()) ->  | CE5: =IF(AND($BB$4,$BD$10,$BB$13,$BD$4,$BD$8),$AX$15-$BA$33/2+CB5*$BA$33,NA()) ->  | CF5: =IF(B5="","",ROUND(($R$11*B5)/$BA$37,0)) -> 22 | CG5: =IF(CF5="",NA(),COUNTIF($CF5:CF$303,CF5)) -> 6 | CH5: =IF(E5="","",ROUND(($R$11*E5)/$BA$37,0)) -> 20 | CI5: =IF(CH5="",NA(),COUNTIF($CH5:CH$303,CH5)) -> 4 | CJ5: =$AX$35+IF($BB$5=1,CF5,CH5)*$BA$37 ->  | CK5: =IF(AND(NOT($BD$12),$BD$5,$BD$4,$BD$8),$AX$12-$BA$36/2+IF($BB$5=1,CG5,CI5)*$BA$36,NA()) ->  | CL5: =IF(AND($BD$12,$BD$5,$BD$4,$BD$8),$AX$12-$BA$36/2+IF($BB$5=1,CG5,CI5)*$BA$36,NA()) -> 
A6: -0.3093506671 | B6: 1.022355162 | C6: -0.7577512861 | D6: 0.2774036568 | E6: 1.275938387 | F6: 4.761980317 | G6: Copy here | H6: Copy from | L6: Display both populations | S6: Assume true | W6: 0.0001554285 | AJ6: 0.0001554285 | AW6: panel 1 bottom | AX6: =AX9+AX8+AX7 -> 27 | AZ6: stepXsize | BA6: Disp H0 Middle | BB6: TRUE | BC6: Disp H1 Middle | BD6: TRUE | BE6: 5 | BF6: 0.1712021865 | BG6: -0.9494252505 | BH6: 25.75862124 | BI6: 25.75862124 | BJ6: 25.3 | BK6: -999 | BL6: 36 | BM6: =IF(BL6="",NA(),COUNTIF(BL6:$BL$303,BL6)) -> 10 | BN6: 35.37 | BO6: 10.21725 | BQ6: 36 | BR6: =IF(BQ6="",NA(),COUNTIF(BQ6:$BQ$303,BQ6)) -> 10 | BS6: 35.37 | BT6: -39.78275 | BV6: 70 | BW6: =IF(BV6="",NA(),COUNTIF(BV6:$BV$303,BV6)) -> 3 | BX6: 68.775 | CA6: 70 | CB6: =IF(CA6="",NA(),COUNTIF(CA6:$CA$303,CA6)) -> 3 | CC6: 68.775 | CF6: 23 | CG6: =IF(CF6="",NA(),COUNTIF($CF6:CF$303,CF6)) -> 5 | CH6: 29 | CI6: =IF(CH6="",NA(),COUNTIF($CH6:CH$303,CH6)) -> 2
A7: 0.8865367474 | B7: 1.116015089 | C7: 2.171562669 | D7: 0.2156857726 | E7: 0.8712959888 | F7: 4.610802992 | G7: from right | H7: red 2, 3 | R7: H0 | S7: H1 | W7: 0.0001554285 | AJ7: 0.0001554285 | AW7: 1 to 2 gap | AX7: 2 | AZ7: 0.5 | BA7: Disp H0 Lower | BB7: TRUE | BC7: Disp H1 Lower | BD7: TRUE | BE7: 6 | BF7: 0.09057908133 | BG7: -1.337197546 | BH7: 19.94203681 | BI7: 19.94203681 | BJ7: 25.3 | BK7: -999 | BL7: 54 | BM7: =IF(BL7="",NA(),COUNTIF(BL7:$BL$303,BL7)) -> 1 | BN7: 53.055 | BO7: 0.53775 | BQ7: 54 | BR7: =IF(BQ7="",NA(),COUNTIF(BQ7:$BQ$303,BQ7)) -> 1 | BS7: 53.055 | BT7: -49.46225 | BV7: 69 | BW7: =IF(BV7="",NA(),COUNTIF(BV7:$BV$303,BV7)) -> 1 | BX7: 67.7925 | CA7: 69 | CB7: =IF(CA7="",NA(),COUNTIF(CA7:$CA$303,CA7)) -> 1 | CC7: 67.7925 | CF7: 26 | CG7: =IF(CF7="",NA(),COUNTIF($CF7:CF$303,CF7)) -> 4 | CH7: 20 | CI7: =IF(CH7="",NA(),COUNTIF($CH7:CH$303,CH7)) -> 3
A8: 0.3908558101 | B8: 0.9922357191 | C8: 0.9573972977 | D8: -0.1128658385 | E8: 0.4178102066 | F8: 3.806019191 | G8: 40 | H8: =O9 -> 40 | O8: For H0 | V8: For H1 | W8: 0.0001554285 | AJ8: 0.0001554285 | AW8: panel 2 height | AX8: 25 | BA8: For a | BB8: 26 | BC8: Disp Heaps | BD8: TRUE | BE8: 7 | BF8: 0.9907952882 | BG8: 2.357278718 | BH8: 75.35918078 | BI8: 75.35918078 | BJ8: 25.3 | BK8: -999 | BL8: 47 | BM8: =IF(BL8="",NA(),COUNTIF(BL8:$BL$303,BL8)) -> 6 | BN8: 46.1775 | BO8: 5.91525 | BQ8: 47 | BR8: =IF(BQ8="",NA(),COUNTIF(BQ8:$BQ$303,BQ8)) -> 6 | BS8: 46.1775 | BT8: -44.08475 | BV8: 64 | BW8: =IF(BV8="",NA(),COUNTIF(BV8:$BV$303,BV8)) -> 1 | BX8: 62.88 | CA8: 64 | CB8: =IF(CA8="",NA(),COUNTIF(CA8:$CA$303,CA8)) -> 1 | CC8: 62.88 | CF8: 23 | CG8: =IF(CF8="",NA(),COUNTIF($CF8:CF$303,CF8)) -> 4 | CH8: 10 | CI8: =IF(CH8="",NA(),COUNTIF($CH8:CH$303,CH8)) -> 3
A9: 0.2933445637 | B9: 1.270508288 | C9: 0.7185445 | D9: -0.7380651197 | E9: 0.8659356141 | F9: 2.274599964 | G9: 0.0106741587 | H9: =RAND() -> 0.804702105 | N9: m0 | O9: 40 | U9: m1 | V9: 65 | W9: 0.0001554285 | AJ9: 0.0001554285 | AO9: Mean heap & (z or t) heap | AW9: panel 2 bottom | AX9: 0 | BA9: Population SE | BB9: =$R$11/SQRT($K$14) -> 6.123724357 | BC9: DispSampDist | BD9: TRUE | BE9: 8 | BF9: 0.7626882382 | BI9: -999 | BJ9: 25.3 | BK9: -999 | BL9: 45 | BM9: =IF(BL9="",NA(),COUNTIF(BL9:$BL$303,BL9)) -> 8 | BN9: 44.2125 | BO9: 8.06625 | BQ9: 45 | BR9: =IF(BQ9="",NA(),COUNTIF(BQ9:$BQ$303,BQ9)) -> 8 | BS9: 44.2125 | BT9: -41.93375 | BV9: 55 | BW9: =IF(BV9="",NA(),COUNTIF(BV9:$BV$303,BV9)) -> 2 | BX9: 54.0375 | CA9: 55 | CB9: =IF(CA9="",NA(),COUNTIF(CA9:$CA$303,CA9)) -> 2 | CC9: 54.0375 | CF9: 29 | CG9: =IF(CF9="",NA(),COUNTIF($CF9:CF$303,CF9)) -> 2 | CH9: 20 | CI9: =IF(CH9="",NA(),COUNTIF($CH9:CH$303,CH9)) -> 2
A10: -0.4779406184 | B10: 1.074372418 | C10: -1.170710642 | D10: -0.4280807987 | E10: 0.3495604345 | F10: 3.033903379 | G10: 15 | H10: =R11 -> 15 | W10: 0.0001554285 | AJ10: 0.0001554285 | AO10: appearance | AW10: 2 to 3 gap | AX10: 2 | BA10: format M SD values | BB10: =IF(BB5=2,-999999999,999999999) -> 999999999 | BC10: Disp z t panel | BD10: TRUE | BE10: 9 | BF10: 0.2966843285 | BI10: -999 | BJ10: 25.3 | BK10: -999 | BL10: 33 | BM10: =IF(BL10="",NA(),COUNTIF(BL10:$BL$303,BL10)) -> 7 | BN10: 32.4225 | BO10: 6.99075 | BQ10: 33 | BR10: =IF(BQ10="",NA(),COUNTIF(BQ10:$BQ$303,BQ10)) -> 7 | BS10: 32.4225 | BT10: -43.00925 | BV10: 60 | BW10: =IF(BV10="",NA(),COUNTIF(BV10:$BV$303,BV10)) -> 2 | BX10: 58.95 | CA10: 60 | CB10: =IF(CA10="",NA(),COUNTIF(CA10:$CA$303,CA10)) -> 2 | CC10: 58.95 | CF10: 25 | CG10: =IF(CF10="",NA(),COUNTIF($CF10:CF$303,CF10)) -> 4 | CH10: 8 | CI10: =IF(CH10="",NA(),COUNTIF($CH10:CH$303,CH10)) -> 1
A11: 0.2215163885 | B11: 1.442383658 | C11: 0.5426021215 | D11: -0.01217840734 | E11: 0.4433987234 | F11: 4.052652021 | G11: 6 | H11: =K14 -> 6 | K11: Population SD | Q11: s | R11: 15 | U11: d | V11: =(V9-O9)/R11 -> 1.666666667 | W11: 0.0001554285 | AJ11: 0.0001554285 | AO11: y | AW11: panel 3 height | AX11: 17 | BA11: SD of nct dist | BB11: =SQRT(($K$14-1)*(1+$AW$136*$AW$136)/(($K$14-1)-2)-BD11*BD11) -> 2.421969107 | BC11: mean of nct dist | BD11: =SQRT(($K$14-1)/2)*(EXP(GAMMALN(($K$14-1)/2-0.5))/EXP(GAMMALN(($K$14-1)/2)))*$AW$136 -> 4.855770803 | BE11: 10 | BF11: 0.1415628083 | BI11: -999 | BJ11: 25.3 | BK11: -999 | BL11: 44 | BM11: =IF(BL11="",NA(),COUNTIF(BL11:$BL$303,BL11)) -> 6 | BN11: 43.23 | BO11: 5.91525 | BQ11: 44 | BR11: =IF(BQ11="",NA(),COUNTIF(BQ11:$BQ$303,BQ11)) -> 6 | BS11: 43.23 | BT11: -44.08475 | BV11: 66 | BW11: =IF(BV11="",NA(),COUNTIF(BV11:$BV$303,BV11)) -> 1 | BX11: 64.845 | CA11: 66 | CB11: =IF(CA11="",NA(),COUNTIF(CA11:$CA$303,CA11)) -> 1 | CC11: 64.845 | CF11: 33 | CG11: =IF(CF11="",NA(),COUNTIF($CF11:CF$303,CF11)) -> 5 | CH11: 10 | CI11: =IF(CH11="",NA(),COUNTIF($CH11:CH$303,CH11)) -> 2
A12: -0.4874946127 | B12: 0.8812184898 | C12: -1.194113053 | D12: 0.9260571527 | E12: 0.932078472 | F12: 6.350850401 | G12: 0.1477786644 | H12: =RAND() -> 0.2380323403 | W12: 0.0001554285 | AJ12: 0.0001554285 | AO12: 2151 | AW12: panel 3 bottom | AX12: =AX9-AX10-AX11 -> -19 | BA12: m0 grey | BB12: =AND(BB5=2) -> FALSE | BC12: Assume s known | BD12: TRUE | BE12: 11 | BF12: 0.923366759 | BI12: -999 | BJ12: 25.3 | BK12: -999 | BL12: 33 | BM12: =IF(BL12="",NA(),COUNTIF(BL12:$BL$303,BL12)) -> 6 | BN12: 32.4225 | BO12: 5.91525 | BQ12: 33 | BR12: =IF(BQ12="",NA(),COUNTIF(BQ12:$BQ$303,BQ12)) -> 6 | BS12: 32.4225 | BT12: -44.08475 | BV12: 80 | BW12: =IF(BV12="",NA(),COUNTIF(BV12:$BV$303,BV12)) -> 1 | BX12: 78.6 | CA12: 80 | CB12: =IF(CA12="",NA(),COUNTIF(CA12:$CA$303,CA12)) -> 1 | CC12: 78.6 | CF12: 20 | CG12: =IF(CF12="",NA(),COUNTIF($CF12:CF$303,CF12)) -> 11 | CH12: 21 | CI12: =IF(CH12="",NA(),COUNTIF($CH12:CH$303,CH12)) -> 1
A13: -1.038858804 | B13: 0.8109493254 | C13: -2.544673986 | D13: -0.06992314159 | E13: 1.457298064 | F13: 3.911206887 | G13: 65 | H13: =V9 -> 65 | J13: 3 | M13: 4 | W13: 0.0001554285 | AJ13: 0.0001554285 | AW13: 3 to 4 gap | AX13: 7 | BA13: m1 grey | BB13: =AND(BB5=1) -> TRUE | BC13: Show rej region | BD13: FALSE | BE13: 12 | BF13: 0.5934919305 | BI13: -999 | BJ13: 25.3 | BK13: -999 | BL13: 25 | BM13: =IF(BL13="",NA(),COUNTIF(BL13:$BL$303,BL13)) -> 1 | BN13: 24.5625 | BO13: 0.53775 | BQ13: 25 | BR13: =IF(BQ13="",NA(),COUNTIF(BQ13:$BQ$303,BQ13)) -> 1 | BS13: 24.5625 | BT13: -49.46225 | BV13: 65 | BW13: =IF(BV13="",NA(),COUNTIF(BV13:$BV$303,BV13)) -> 1 | BX13: 63.8625 | CA13: 65 | CB13: =IF(CA13="",NA(),COUNTIF(CA13:$CA$303,CA13)) -> 1 | CC13: 63.8625 | CF13: 19 | CG13: =IF(CF13="",NA(),COUNTIF($CF13:CF$303,CF13)) -> 7 | CH13: 33 | CI13: =IF(CH13="",NA(),COUNTIF($CH13:CH$303,CH13)) -> 1
A14: -0.05432180805 | B14: 1.054666857 | C14: -0.1330607116 | D14: -0.8650642177 | E14: 0.7706703296 | F14: 1.963516977 | H14: In order | J14: N | K14: 6 | W14: 0.0001554285 | AJ14: 0.0001554285 | AO14: x | AW14: panel 4 height | AX14: 24 | BA14: For top m0 line | BB14: =IF(NOT(BB12),O9,NA()) -> 40 | BC14: =AX6 -> 27 | BE14: 13 | BF14: 0.0205408372 | BI14: -999 | BJ14: 25.3 | BK14: -999 | BL14: 40 | BM14: =IF(BL14="",NA(),COUNTIF(BL14:$BL$303,BL14)) -> 8 | BN14: 39.3 | BO14: 8.06625 | BQ14: 40 | BR14: =IF(BQ14="",NA(),COUNTIF(BQ14:$BQ$303,BQ14)) -> 8 | BS14: 39.3 | BT14: -41.93375 | BV14: 53 | BW14: =IF(BV14="",NA(),COUNTIF(BV14:$BV$303,BV14)) -> 1 | BX14: 52.0725 | CA14: 53 | CB14: =IF(CA14="",NA(),COUNTIF(CA14:$CA$303,CA14)) -> 1 | CC14: 52.0725 | CF14: 24 | CG14: =IF(CF14="",NA(),COUNTIF($CF14:CF$303,CF14)) -> 6 | CH14: 18 | CI14: =IF(CH14="",NA(),COUNTIF($CH14:CH$303,CH14)) -> 2
A15: 0.2773496093 | B15: 1.14746622 | C15: 0.6793650232 | D15: 0.3207693984 | E15: 0.8332833333 | F15: 4.868204256 | H15: from top | W15: 0.0001554285 | AJ15: 0.0001554285 | AO15: 1965 | AW15: panel 4 bottom | AX15: =AX12-AX13-AX14 -> -50 | BA15: grey | BB15: =IF($BB$12,O9,NA()) ->  | BC15: =BC14 -> 27 | BE15: 14 | BF15: 0.6390158422 | BI15: -999 | BJ15: 25.3 | BK15: -999 | BL15: 45 | BM15: =IF(BL15="",NA(),COUNTIF(BL15:$BL$303,BL15)) -> 7 | BN15: 44.2125 | BO15: 6.99075 | BQ15: 45 | BR15: =IF(BQ15="",NA(),COUNTIF(BQ15:$BQ$303,BQ15)) -> 7 | BS15: 44.2125 | BT15: -43.00925 | BV15: 71 | BW15: =IF(BV15="",NA(),COUNTIF(BV15:$BV$303,BV15)) -> 2 | BX15: 69.7575 | CA15: 71 | CB15: =IF(CA15="",NA(),COUNTIF(CA15:$CA$303,CA15)) -> 2 | CC15: 69.7575 | CF15: 26 | CG15: =IF(CF15="",NA(),COUNTIF($CF15:CF$303,CF15)) -> 3 | CH15: 19 | CI15: =IF(CH15="",NA(),COUNTIF($CH15:CH$303,CH15)) -> 1
A16: -0.07148941001 | B16: 1.230761063 | C16: -0.1751125765 | D16: -0.3821722383 | E16: 0.8612978985 | F16: 3.146355927 | H16: H0 m0 | J16: df | K16: =K14-1 -> 5 | T16: Number of samples | W16: 0.0001554285 | AJ16: 0.0001554285 | AW16: bottom gap | AX16: 2 | BA16: Middle m0 line | BB16: =IF(NOT(BB12),O9,NA()) -> 40 | BC16: =AX9 -> 0 | BE16: 15 | BF16: 0.7294972278 | BI16: -999 | BJ16: 25.3 | BK16: -999 | BL16: 40 | BM16: =IF(BL16="",NA(),COUNTIF(BL16:$BL$303,BL16)) -> 7 | BN16: 39.3 | BO16: 6.99075 | BQ16: 40 | BR16: =IF(BQ16="",NA(),COUNTIF(BQ16:$BQ$303,BQ16)) -> 7 | BS16: 39.3 | BT16: -43.00925 | BV16: 60 | BW16: =IF(BV16="",NA(),COUNTIF(BV16:$BV$303,BV16)) -> 1 | BX16: 58.95 | CA16: 60 | CB16: =IF(CA16="",NA(),COUNTIF(CA16:$CA$303,CA16)) -> 1 | CC16: 58.95 | CF16: 28 | CG16: =IF(CF16="",NA(),COUNTIF($CF16:CF$303,CF16)) -> 5 | CH16: 20 | CI16: =IF(CH16="",NA(),COUNTIF($CH16:CH$303,CH16)) -> 1
A17: -0.3326325861 | B17: 1.313021007 | C17: -0.8147801079 | D17: 0.2203138867 | E17: 0.9854893167 | F17: 4.62213951 | H17: rand H0 | L17: SE | M17: =R11/SQRT(K14) -> 6.123724357 | Q17: H0 | R17: =IF($BD$3,COUNT(A4:A303),0) -> 124 | S17: H1 | T17: =IF($BD$4,COUNT(D4:D303),0) -> 22 | W17: 0.0001554285 | AJ17: 0.0001554285 | AV17: Panel 1 | AW17: Label pop | AX17: =AX3 -> 0 | AY17: =AX6+AX5-5 -> 40 | BA17: grey | BB17: =IF($BB$12,O9,NA()) ->  | BC17: =BC16 -> 0 | BE17: 16 | BF17: 0.7616416998 | BI17: -999 | BJ17: 25.3 | BK17: -999 | BL17: 36 | BM17: =IF(BL17="",NA(),COUNTIF(BL17:$BL$303,BL17)) -> 9 | BN17: 35.37 | BO17: 9.14175 | BQ17: 36 | BR17: =IF(BQ17="",NA(),COUNTIF(BQ17:$BQ$303,BQ17)) -> 9 | BS17: 35.37 | BT17: -40.85825 | BV17: 70 | BW17: =IF(BV17="",NA(),COUNTIF(BV17:$BV$303,BV17)) -> 2 | BX17: 68.775 | CA17: 70 | CB17: =IF(CA17="",NA(),COUNTIF(CA17:$CA$303,CA17)) -> 2 | CC17: 68.775 | CF17: 30 | CG17: =IF(CF17="",NA(),COUNTIF($CF17:CF$303,CF17)) -> 3 | CH17: 23 | CI17: =IF(CH17="",NA(),COUNTIF($CH17:CH$303,CH17)) -> 1
A18: 0.3897595284 | B18: 0.7660864492 | C18: 0.954711967 | D18: 0.3481357888 | E18: 0.4392255384 | F18: 4.935237948 | H18: sigma | W18: 0.0001554285 | AJ18: 0.0001554285 | AO18: s pile | AW18: Label H0 true | AX18: =IF(BB5=1,O9-AZ18,NA()) -> 28 | AY18: =AY2-AZ19 -> 45 | AZ18: 12 | BA18: Lower m0 line | BB18: =IF($BD$10,$AX$15,NA()) -> -50 | BC18: =IF(AND($BB$7,NOT($BB$12)),$O$9,NA()) -> 40 | BD18: =IF(AND($BB$7,$BB$12),$O$9,NA()) ->  | BE18: 17 | BF18: 0.8995496668 | BI18: -999 | BJ18: 25.3 | BK18: -999 | BL18: 47 | BM18: =IF(BL18="",NA(),COUNTIF(BL18:$BL$303,BL18)) -> 5 | BN18: 46.1775 | BO18: 4.83975 | BQ18: 47 | BR18: =IF(BQ18="",NA(),COUNTIF(BQ18:$BQ$303,BQ18)) -> 5 | BS18: 46.1775 | BT18: -45.16025 | BV18: 71 | BW18: =IF(BV18="",NA(),COUNTIF(BV18:$BV$303,BV18)) -> 1 | BX18: 69.7575 | CA18: 71 | CB18: =IF(CA18="",NA(),COUNTIF(CA18:$CA$303,CA18)) -> 1 | CC18: 69.7575 | CF18: 18 | CG18: =IF(CF18="",NA(),COUNTIF($CF18:CF$303,CF18)) -> 7 | CH18: 10 | CI18: =IF(CH18="",NA(),COUNTIF($CH18:CH$303,CH18)) -> 1
A19: -0.1170484758 | B19: 0.7756739847 | C19: -0.2867090409 | D19: -0.7421083193 | E19: 1.160173911 | F19: 2.264696188 | H19: N | J19: 5 | K19: Latest sample | N19: Mean | O19: =IF(AND(BD3,BB5=1,nsamps>0),O9+R11*BB30,IF(AND(BD4,BB5=2,nsampso>0),V9+R11*BB31,"")) -> 40.31181962 | R19: Display data points | W19: 0.0001554285 | AJ19: 0.0001554285 | AO19: appearance | AW19: Label H1 true | AX19: =IF(BB5=2,V9+AZ18,NA()) ->  | AY19: =AY18 -> 45 | AZ19: 0 | BA19: m0, m1 line bar | BB19: =AX14-1 -> 23 | BE19: 18 | BF19: 0.3620672114 | BI19: -999 | BJ19: 25.3 | BK19: -999 | BL19: 39 | BM19: =IF(BL19="",NA(),COUNTIF(BL19:$BL$303,BL19)) -> 6 | BN19: 38.3175 | BO19: 5.91525 | BQ19: 39 | BR19: =IF(BQ19="",NA(),COUNTIF(BQ19:$BQ$303,BQ19)) -> 6 | BS19: 38.3175 | BT19: -44.08475 | BV19: 55 | BW19: =IF(BV19="",NA(),COUNTIF(BV19:$BV$303,BV19)) -> 1 | BX19: 54.0375 | CA19: 55 | CB19: =IF(CA19="",NA(),COUNTIF(CA19:$CA$303,CA19)) -> 1 | CC19: 54.0375 | CF19: 18 | CG19: =IF(CF19="",NA(),COUNTIF($CF19:CF$303,CF19)) -> 6 | CH19: 27 | CI19: =IF(CH19="",NA(),COUNTIF($CH19:CH$303,CH19)) -> 1
A20: -0.1588230684 | B20: 1.578751322 | C20: -0.389035477 | D20: 0.1464940603 | E20: 1.048432071 | F20: 4.441318603 | H20: rand H1 | N20: SD | O20: =IF(AND(BD3,BB5=1,$K$14>1,nsamps>0),R11*BC30,IF(AND(BD4,BB5=2,$K$14>1,nsampso>0),R11*BC31,"")) -> 27.6460207 | S20: Display heaps | W20: 0.0001554285 | AJ20: 0.0001554285 | AO20: y | AW20: for Y axis line | AX20: =AX3 -> 0 | AY20: =AX6 -> 27 | BA20: For top m1 line | BB20: =IF(NOT(BB13),V9,NA()) ->  | BC20: =AX6 -> 27 | BE20: 19 | BF20: 0.8210671879 | BI20: -999 | BJ20: 25.3 | BK20: -999 | BL20: 38 | BM20: =IF(BL20="",NA(),COUNTIF(BL20:$BL$303,BL20)) -> 6 | BN20: 37.335 | BO20: 5.91525 | BQ20: 38 | BR20: =IF(BQ20="",NA(),COUNTIF(BQ20:$BQ$303,BQ20)) -> 6 | BS20: 37.335 | BT20: -44.08475 | BV20: 68 | BW20: =IF(BV20="",NA(),COUNTIF(BV20:$BV$303,BV20)) -> 2 | BX20: 66.81 | CA20: 68 | CB20: =IF(CA20="",NA(),COUNTIF(CA20:$CA$303,CA20)) -> 2 | CC20: 66.81 | CF20: 36 | CG20: =IF(CF20="",NA(),COUNTIF($CF20:CF$303,CF20)) -> 3 | CH20: 24 | CI20: =IF(CH20="",NA(),COUNTIF($CH20:CH$303,CH20)) -> 1
A21: -0.3343604682 | B21: 0.5281454361 | C21: -0.8190125373 | D21: 0.6281925274 | E21: 1.257799912 | F21: 5.621234057 | H21: H1 m1 | N21: SE | O21: =IF(AND(BD3,BB5=1,nsamps>0),R11*BD30,IF(AND(BD4,BB5=2,nsampso>0),R11*BD31,"")) -> 11.28644069 | R21: Display sampling distributions | W21: 0.0001554285 | AJ21: 0.0001554285 | AO21: 1431 | AW21: label val mu0 | AX21: =IF(BB5=1,O9-1.4,NA()) -> 38.6 | AY21: =AX6+12 -> 39 | BA21: grey | BB21: =IF(AND($BB$4,$BB$13),V9,NA()) ->  | BC21: =BC20 -> 27 | BE21: 20 | BF21: 0.5532245822 | BI21: -999 | BJ21: 25.3 | BK21: -999 | BL21: 36 | BM21: =IF(BL21="",NA(),COUNTIF(BL21:$BL$303,BL21)) -> 8 | BN21: 35.37 | BO21: 8.06625 | BQ21: 36 | BR21: =IF(BQ21="",NA(),COUNTIF(BQ21:$BQ$303,BQ21)) -> 8 | BS21: 35.37 | BT21: -41.93375 | BV21: 76 | BW21: =IF(BV21="",NA(),COUNTIF(BV21:$BV$303,BV21)) -> 1 | BX21: 74.67 | CA21: 76 | CB21: =IF(CA21="",NA(),COUNTIF(CA21:$CA$303,CA21)) -> 1 | CC21: 74.67 | CF21: 12 | CG21: =IF(CF21="",NA(),COUNTIF($CF21:CF$303,CF21)) -> 5 | CH21: 29 | CI21: =IF(CH21="",NA(),COUNTIF($CH21:CH$303,CH21)) -> 1
A22: -0.235417016 | B22: 1.817587531 | C22: -0.5766515659 | D22: -0.2117799906 | E22: 0.776934608 | F22: 3.56372999 | N22: =IF($BD$12,"z","t") -> z | O22: =IF(AND(BD3,BB5=1,nsamps>0),(O9+R11*BB30-O9)/IF($BD$12,$BB$9,R11*BD30),IF(AND(BD4,BB5=2,nsampso>0),(V9+R11*BB31-O9)/IF($BD$12,$BB$9,R11*BD31),"")) -> 0.05091993043 | W22: 0.0001554285 | AJ22: 0.0001554285 | AW22: grey | AX22: =IF(BB5=2,O9-1.4,NA()) ->  | AY22: =AY21 -> 39 | AZ22: =AX5 -> 18 | BA22: Middle m1 line | BB22: =IF(NOT(BB13),V9,NA()) ->  | BC22: =BC16 -> 0 | BE22: 21 | BF22: 0.01417041197 | BI22: -999 | BJ22: 25.3 | BK22: -999 | BL22: 37 | BM22: =IF(BL22="",NA(),COUNTIF(BL22:$BL$303,BL22)) -> 9 | BN22: 36.3525 | BO22: 9.14175 | BQ22: 37 | BR22: =IF(BQ22="",NA(),COUNTIF(BQ22:$BQ$303,BQ22)) -> 9 | BS22: 36.3525 | BT22: -40.85825 | BV22: 63 | BW22: =IF(BV22="",NA(),COUNTIF(BV22:$BV$303,BV22)) -> 2 | BX22: 61.8975 | CA22: 63 | CB22: =IF(CA22="",NA(),COUNTIF(CA22:$CA$303,CA22)) -> 2 | CC22: 61.8975 | CF22: 42 | CG22: =IF(CF22="",NA(),COUNTIF($CF22:CF$303,CF22)) -> 1 | CH22: 18 | CI22: =IF(CH22="",NA(),COUNTIF($CH22:CH$303,CH22)) -> 1
A23: 0.2266985762 | B23: 1.049179672 | C23: 0.555295837 | D23: 0.1222850317 | E23: 0.6914104464 | F23: 4.382018835 | K23: Assume s known | N23: p | O23: =IF(O22<>"",IF($BD$12,2*(1-NORMSDIST(ABS(O22))),TDIST(ABS(O22),K14-1,2)),"") -> 0.9593893239 | S23: Display s pile | W23: =$W$1 -> 0.0001554285 | AJ23: 0.0001554285 | AO23: x | AW23: label val mu1 | AX23: =IF(BB5=2,V9-1.4,NA()) ->  | AY23: =AY24 -> 39 | BA23: grey | BB23: =IF(AND($BB$4,$BB$13),V9,NA()) ->  | BC23: =BC22 -> 0 | BE23: 22 | BF23: 0.3039572723 | BI23: -999 | BJ23: 25.3 | BK23: -999 | BL23: 44 | BM23: =IF(BL23="",NA(),COUNTIF(BL23:$BL$303,BL23)) -> 5 | BN23: 43.23 | BO23: 4.83975 | BQ23: 44 | BR23: =IF(BQ23="",NA(),COUNTIF(BQ23:$BQ$303,BQ23)) -> 5 | BS23: 43.23 | BT23: -45.16025 | BV23: 68 | BW23: =IF(BV23="",NA(),COUNTIF(BV23:$BV$303,BV23)) -> 1 | BX23: 66.81 | CA23: 68 | CB23: =IF(CA23="",NA(),COUNTIF(CA23:$CA$303,CA23)) -> 1 | CC23: 66.81 | CF23: 24 | CG23: =IF(CF23="",NA(),COUNTIF($CF23:CF$303,CF23)) -> 5 | CH23: 16 | CI23: =IF(CH23="",NA(),COUNTIF($CH23:CH$303,CH23)) -> 1
A24: 0.006706593887 | B24: 1.236736828 | C24: 0.01642773294 | D24: -0.2334304898 | E24: 1.130335699 | F24: 3.510697314 | W24: 0.0001554285 | AJ24: 0.0001554285 | AO24: 1310 | AW24: grey | AX24: =IF(AND(BB5=1,BB4),V9-1.4,NA()) ->  | AY24: =AX6+12 -> 39 | AZ24: 6 | BA24: Lower m1 line | BB24: =IF($BD$10,$AX$15,NA()) -> -50 | BC24: =IF(AND($BD$7,NOT($BB$13)),$V$9,NA()) ->  | BD24: =IF(AND($BD$7,$BB$4,$BB$13),$V$9,NA()) ->  | BE24: 23 | BF24: 0.6746543981 | BI24: -999 | BJ24: 25.3 | BK24: -999 | BL24: 41 | BM24: =IF(BL24="",NA(),COUNTIF(BL24:$BL$303,BL24)) -> 4 | BN24: 40.2825 | BO24: 3.76425 | BQ24: 41 | BR24: =IF(BQ24="",NA(),COUNTIF(BQ24:$BQ$303,BQ24)) -> 4 | BS24: 40.2825 | BT24: -46.23575 | BV24: 63 | BW24: =IF(BV24="",NA(),COUNTIF(BV24:$BV$303,BV24)) -> 1 | BX24: 61.8975 | CA24: 63 | CB24: =IF(CA24="",NA(),COUNTIF(CA24:$CA$303,CA24)) -> 1 | CC24: 61.8975 | CF24: 28 | CG24: =IF(CF24="",NA(),COUNTIF($CF24:CF$303,CF24)) -> 4 | CH24: 26 | CI24: =IF(CH24="",NA(),COUNTIF($CH24:CH$303,CH24)) -> 1
A25: 0.09526979187 | B25: 0.4750709081 | C25: 0.233362378 | D25: 0.2592829811 | E25: 1.57918983 | F25: 4.717593907 | J25: 6 | K25: Bottom panel | W25: 0.0001554285 | AJ25: 0.0001554285 | AW25: X axis label | AX25: =AX3+5 -> 5 | AY25: =AX6-2 -> 25 | BA25: Disp nct curve? | BB25: =OR(AND(K16>5,AW136<=20),AND(K16>2,AW136<=14),AW136<=10) -> TRUE | BE25: 24 | BF25: 0.751642067 | BI25: -999 | BJ25: 25.3 | BK25: -999 | BL25: 42 | BM25: =IF(BL25="",NA(),COUNTIF(BL25:$BL$303,BL25)) -> 7 | BN25: 41.265 | BO25: 6.99075 | BQ25: 42 | BR25: =IF(BQ25="",NA(),COUNTIF(BQ25:$BQ$303,BQ25)) -> 7 | BS25: 41.265 | BT25: -43.00925 | BV25: 70 | BW25: =IF(BV25="",NA(),COUNTIF(BV25:$BV$303,BV25)) -> 1 | BX25: 68.775 | CA25: 70 | CB25: =IF(CA25="",NA(),COUNTIF(CA25:$CA$303,CA25)) -> 1 | CC25: 68.775 | CF25: 11 | CG25: =IF(CF25="",NA(),COUNTIF($CF25:CF$303,CF25)) -> 4 | CH25: 36 | CI25: =IF(CH25="",NA(),COUNTIF($CH25:CH$303,CH25)) -> 1
A26: -0.5607014547 | B26: 0.569255914 | C26: -1.373432462 | K26: Display rubber ruler | S26: Noncentrality parameter D. | T26: =IF(AND(BD10,NOT(BD12)),AW136,"") ->  | W26: 0.0001554285 | AJ26: 0.0001554285 | AV26: Panel 2 | AW26: Lbl Samp Ms | AX26: =AX3 -> 0 | AY26: 15 | AZ26: =AX5 -> 18 | BE26: 25 | BF26: 0.4412005581 | BI26: -999 | BJ26: 25.3 | BK26: -999 | BL26: 32 | BM26: =IF(BL26="",NA(),COUNTIF(BL26:$BL$303,BL26)) -> 4 | BN26: 31.44 | BO26: 3.76425 | BQ26: 32 | BR26: =IF(BQ26="",NA(),COUNTIF(BQ26:$BQ$303,BQ26)) -> 4 | BS26: 31.44 | BT26: -46.23575 | BW26: =IF(BV26="",NA(),COUNTIF(BV26:$BV$303,BV26)) ->  | CB26: =IF(CA26="",NA(),COUNTIF(CA26:$CA$303,CA26)) ->  | CF26: 13 | CG26: =IF(CF26="",NA(),COUNTIF($CF26:CF$303,CF26)) -> 4 | CI26: =IF(CH26="",NA(),COUNTIF($CH26:CH$303,CH26)) -> 
A27: -0.08118387519 | B27: 1.569977538 | C27: -0.1988590696 | L27: Display z or t heap | U27: Display noncentral t curve? | V27: =IF(BD10,IF(OR(NOT(BD7),BD12),"",IF(BB25,"Yes","No")),"") ->  | W27: 0.0001554285 | AJ27: 0.0001554285 | AW27: for Y axis line | AX27: =AX3 -> 0 | AY27: =AX9 -> 0 | AZ27: =AX8 -> 25 | BB27: format | BC27: popSE | BD27: sampSE | BE27: 26 | BF27: 0.3165689595 | BI27: -999 | BJ27: 25.3 | BK27: -999 | BL27: 39 | BM27: =IF(BL27="",NA(),COUNTIF(BL27:$BL$303,BL27)) -> 5 | BN27: 38.3175 | BO27: 4.83975 | BQ27: 39 | BR27: =IF(BQ27="",NA(),COUNTIF(BQ27:$BQ$303,BQ27)) -> 5 | BS27: 38.3175 | BT27: -45.16025 | BW27: =IF(BV27="",NA(),COUNTIF(BV27:$BV$303,BV27)) ->  | CB27: =IF(CA27="",NA(),COUNTIF(CA27:$CA$303,CA27)) ->  | CF27: 36 | CG27: =IF(CF27="",NA(),COUNTIF($CF27:CF$303,CF27)) -> 2 | CI27: =IF(CH27="",NA(),COUNTIF($CH27:CH$303,CH27)) -> 
A28: 0.01066161397 | B28: 1.329895 | C28: 0.02611551405 | W28: 0.0001554285 | AJ28: 0.0001554285 | AW28: label val mu0 | AX28: =L8 -> 0 | AY28: 10 | BB28: red | BC28: =IF(AND(AR70,BD12),-1,99) -> 99 | BD28: =IF(AND(BD1,NOT(BD12)),99,-1) -> -1 | BE28: 27 | BF28: 0.7104401328 | BI28: -999 | BJ28: 25.3 | BK28: -999 | BL28: 41 | BM28: =IF(BL28="",NA(),COUNTIF(BL28:$BL$303,BL28)) -> 3 | BN28: 40.2825 | BO28: 2.68875 | BQ28: 41 | BR28: =IF(BQ28="",NA(),COUNTIF(BQ28:$BQ$303,BQ28)) -> 3 | BS28: 40.2825 | BT28: -47.31125 | BW28: =IF(BV28="",NA(),COUNTIF(BV28:$BV$303,BV28)) ->  | CB28: =IF(CA28="",NA(),COUNTIF(CA28:$CA$303,CA28)) ->  | CF28: 30 | CG28: =IF(CF28="",NA(),COUNTIF($CF28:CF$303,CF28)) -> 2 | CI28: =IF(CH28="",NA(),COUNTIF($CH28:CH$303,CH28)) -> 
A29: 0.3422961621 | B29: 1.089512929 | C29: 0.838450938 | J29: 7 | K29: Sampling distributions | Q29: H0 | V29: H1 | W29: 0.0001554285 | AJ29: 0.0001554285 | AW29: mu0 line | AX29: =L8 -> 0 | AY29: =AX9 -> 0 | BB29: Samp means | BC29: SD | BD29: SE | BE29: 28 | BF29: 0.5633913465 | BI29: -999 | BJ29: 25.3 | BK29: -999 | BL29: 46 | BM29: =IF(BL29="",NA(),COUNTIF(BL29:$BL$303,BL29)) -> 4 | BN29: 45.195 | BO29: 3.76425 | BQ29: 46 | BR29: =IF(BQ29="",NA(),COUNTIF(BQ29:$BQ$303,BQ29)) -> 4 | BS29: 45.195 | BT29: -46.23575 | BW29: =IF(BV29="",NA(),COUNTIF(BV29:$BV$303,BV29)) ->  | CB29: =IF(CA29="",NA(),COUNTIF(CA29:$CA$303,CA29)) ->  | CF29: 25 | CG29: =IF(CF29="",NA(),COUNTIF($CF29:CF$303,CF29)) -> 3 | CI29: =IF(CH29="",NA(),COUNTIF($CH29:CH$303,CH29)) -> 
A30: 0.2409273686 | B30: 0.814578263 | C30: 0.5901491182 | M30: Sample means | O30: Mean of | P30: M | Q30: =IF(AND(BB6,BD9),O9,"") -> 40 | T30: Mean of | U30: M | V30: =IF(AND(BD6,BD9,BB4),V9,"") ->  | W30: =$W$1 -> 0.0001554285 | AJ30: 0.0001554285 | AW30: mu1 line | AX30: =O10 -> 0 | AY30: =AX9 -> 0 | AZ30: 8 | BA30: 0 | BB30: =IF($BD$3,AVERAGE(BG3:BG102),-999) -> 0.02078797455 | BC30: =IF(AND($BD$3,$K$14>1),STDEV(BG3:BG102),-999) -> 1.843068047 | BD30: =IF(AND($BD$3,$K$14>1,BC30>-999),BC30/SQRT($K$14),"") -> 0.7524293792 | BE30: 29 | BF30: 0.7889317311 | BI30: -999 | BJ30: 25.3 | BK30: -999 | BL30: 44 | BM30: =IF(BL30="",NA(),COUNTIF(BL30:$BL$303,BL30)) -> 4 | BN30: 43.23 | BO30: 3.76425 | BQ30: 44 | BR30: =IF(BQ30="",NA(),COUNTIF(BQ30:$BQ$303,BQ30)) -> 4 | BS30: 43.23 | BT30: -46.23575 | BW30: =IF(BV30="",NA(),COUNTIF(BV30:$BV$303,BV30)) ->  | CB30: =IF(CA30="",NA(),COUNTIF(CA30:$CA$303,CA30)) ->  | CF30: 19 | CG30: =IF(CF30="",NA(),COUNTIF($CF30:CF$303,CF30)) -> 6 | CI30: =IF(CH30="",NA(),COUNTIF($CH30:CH$303,CH30)) -> 
A31: 0.1365270294 | B31: 1.187588404 | C31: 0.3344215582 | M31: panel | O31: SD of | P31: M | Q31: =IF(AND(BB6,BD9),M17,"") -> 6.123724357 | T31: SD of | U31: M | V31: =IF(AND(BD6,BD9,BB4),M17,"") ->  | W31: 0.0001554285 | AJ31: 0.0001554285 | AW31: highlighted point | AX31: =AX62 ->  | AY31: =AX9-BA33/2 -> -0.53775 | AZ31: =AX8-1 -> 24 | BA31: 1 | BB31: =IF($BD$4,AVERAGE(BG107:BG206),-999) -> 0.1820704237 | BC31: =IF(AND($BD$4,$K$14>1),STDEV(BG107:BG206),-999) -> 1.184249588 | BD31: =IF(AND($BD$4,$K$14>1,BC31>-999),BC31/SQRT($K$14),"") -> 0.4834678699 | BE31: 30 | BF31: 0.5674590357 | BI31: -999 | BJ31: 25.3 | BK31: -999 | BL31: 43 | BM31: =IF(BL31="",NA(),COUNTIF(BL31:$BL$303,BL31)) -> 9 | BN31: 42.2475 | BO31: 9.14175 | BQ31: 43 | BR31: =IF(BQ31="",NA(),COUNTIF(BQ31:$BQ$303,BQ31)) -> 9 | BS31: 42.2475 | BT31: -40.85825 | BW31: =IF(BV31="",NA(),COUNTIF(BV31:$BV$303,BV31)) ->  | CB31: =IF(CA31="",NA(),COUNTIF(CA31:$CA$303,CA31)) ->  | CF31: 27 | CG31: =IF(CF31="",NA(),COUNTIF($CF31:CF$303,CF31)) -> 3 | CI31: =IF(CH31="",NA(),COUNTIF($CH31:CH$303,CH31)) -> 
A32: -0.5805777995 | B32: 0.5258198588 | C32: -1.422119365 | W32: 0.0001554285 | AJ32: 0.0001554285 | AW32: X axis label | AX32: =AX3+17 -> 17 | AY32: -4 | BA32: increments, z or t | BE32: 31 | BF32: 0.7336154319 | BI32: -999 | BJ32: 25.3 | BK32: -999 | BL32: 32 | BM32: =IF(BL32="",NA(),COUNTIF(BL32:$BL$303,BL32)) -> 3 | BN32: 31.44 | BO32: 2.68875 | BQ32: 32 | BR32: =IF(BQ32="",NA(),COUNTIF(BQ32:$BQ$303,BQ32)) -> 3 | BS32: 31.44 | BT32: -47.31125 | BW32: =IF(BV32="",NA(),COUNTIF(BV32:$BV$303,BV32)) ->  | CB32: =IF(CA32="",NA(),COUNTIF(CA32:$CA$303,CA32)) ->  | CF32: 12 | CG32: =IF(CF32="",NA(),COUNTIF($CF32:CF$303,CF32)) -> 4 | CI32: =IF(CH32="",NA(),COUNTIF($CH32:CH$303,CH32)) -> 
A33: 0.9523483853 | B33: 0.6181552401 | C33: 2.332767601 | M33: Bottom | O33: Mean of | P33: =IF($BD$12,"z ","t ") -> z | Q33: =IF(AND(BB7,BD9,BD10),0,"") -> 0 | T33: Mean of | U33: =IF($BD$12,"z ","t ") -> z | V33: =IF(AND(BD7,BD9,BB4,BD10),IF(BD12,(V9-O9)/M17,IF(K14>2,BD11,"")),"") ->  | W33: =$W$1 -> 0.0001554285 | AJ33: 0.0001554285 | AV33: Panel 3 | BA33: =AO12/2000 -> 1.0755 | BB33: y | BE33: 32 | BF33: 0.8563465662 | BI33: -999 | BJ33: 25.3 | BK33: -999 | BL33: 55 | BM33: =IF(BL33="",NA(),COUNTIF(BL33:$BL$303,BL33)) -> 1 | BN33: 54.0375 | BO33: 0.53775 | BQ33: 55 | BR33: =IF(BQ33="",NA(),COUNTIF(BQ33:$BQ$303,BQ33)) -> 1 | BS33: 54.0375 | BT33: -49.46225 | BW33: =IF(BV33="",NA(),COUNTIF(BV33:$BV$303,BV33)) ->  | CB33: =IF(CA33="",NA(),COUNTIF(CA33:$CA$303,CA33)) ->  | CF33: 14 | CG33: =IF(CF33="",NA(),COUNTIF($CF33:CF$303,CF33)) -> 7 | CI33: =IF(CH33="",NA(),COUNTIF($CH33:CH$303,CH33)) -> 
A34: 0.2647485741 | B34: 1.062054768 | C34: 0.6484989166 | M34: panel | O34: SD of | P34: =IF($BD$12,"z ","t ") -> z | Q34: =IF(AND(BB7,BD9,BD10),IF(BD12,1,IF(K14>2,SQRT(K14/(K14-2)),"")),"") -> 1 | T34: SD of | U34: =IF($BD$12,"z ","t ") -> z | V34: =IF(AND(BD7,BD9,BB4,BD10),IF(BD12,1,IF(K14>3,BB11,"")),"") ->  | W34: 0.0001554285 | AJ34: 0.0001554285 | AW34: Lbl Samp SDs | AX34: =IF(BD5,AX3,NA()) ->  | AY34: =AX12+8 -> -11 | BA34: =AO15/2000 -> 0.9825 | BB34: x | BE34: 33 | BF34: 0.7948059477 | BI34: -999 | BJ34: 25.3 | BK34: -999 | BL34: 45 | BM34: =IF(BL34="",NA(),COUNTIF(BL34:$BL$303,BL34)) -> 6 | BN34: 44.2125 | BO34: 5.91525 | BQ34: 45 | BR34: =IF(BQ34="",NA(),COUNTIF(BQ34:$BQ$303,BQ34)) -> 6 | BS34: 44.2125 | BT34: -44.08475 | BW34: =IF(BV34="",NA(),COUNTIF(BV34:$BV$303,BV34)) ->  | CB34: =IF(CA34="",NA(),COUNTIF(CA34:$CA$303,CA34)) ->  | CF34: 24 | CG34: =IF(CF34="",NA(),COUNTIF($CF34:CF$303,CF34)) -> 4 | CI34: =IF(CH34="",NA(),COUNTIF($CH34:CH$303,CH34)) -> 
A35: 0.1696042763 | B35: 0.9244317128 | C35: 0.4154439351 | J35: 8 | K35: Rejection region | W35: 0.0001554285 | AW35: L end X axis | AX35: =IF(OR(NOT(BD5),OR(NOT(BD3)),IF(BB5=1,A4="",D4="")),NA(),ROUND((IF(BB5=1,O9,V9)+$R$11*IF(BB5=1,A4,D4))/$BA$34,0)*$BA$34) ->  | AY35: =AX12 -> -19 | AZ35: =AX11-3 -> 14 | BA35: increments, s pile | BE35: 34 | BF35: 0.8093893416 | BI35: -999 | BJ35: 25.3 | BK35: -999 | BL35: 43 | BM35: =IF(BL35="",NA(),COUNTIF(BL35:$BL$303,BL35)) -> 8 | BN35: 42.2475 | BO35: 8.06625 | BQ35: 43 | BR35: =IF(BQ35="",NA(),COUNTIF(BQ35:$BQ$303,BQ35)) -> 8 | BS35: 42.2475 | BT35: -41.93375 | BW35: =IF(BV35="",NA(),COUNTIF(BV35:$BV$303,BV35)) ->  | CB35: =IF(CA35="",NA(),COUNTIF(CA35:$CA$303,CA35)) ->  | CF35: 21 | CG35: =IF(CF35="",NA(),COUNTIF($CF35:CF$303,CF35)) -> 6 | CI35: =IF(CH35="",NA(),COUNTIF($CH35:CH$303,CH35)) -> 
A36: 0.005164352845 | B36: 1.067023023 | C36: 0.01265002932 | K36: Display rejection region | T36: Critical value of | U36: =IF($BD$12,"z ","t ") -> z | V36: =AR116 -> 1.959963985 | W36: =$W$1 -> 0.0001554285 | AW36: L end X axis | AX36: =IF(BD5,AX35,NA()) ->  | AY36: =AY35 -> -19 | AZ36: 101 | BA36: =AO21/2000 -> 0.7155 | BB36: y | BE36: 35 | BF36: =MOD(BF35*10000013,1) -> 0.9382873513 | BI36: -999 | BJ36: 25.3 | BK36: -999 | BL36: 41 | BM36: =IF(BL36="",NA(),COUNTIF(BL36:$BL$303,BL36)) -> 2 | BN36: 40.2825 | BO36: 1.61325 | BQ36: 41 | BR36: =IF(BQ36="",NA(),COUNTIF(BQ36:$BQ$303,BQ36)) -> 2 | BS36: 40.2825 | BT36: -48.38675 | BW36: =IF(BV36="",NA(),COUNTIF(BV36:$BV$303,BV36)) ->  | CB36: =IF(CA36="",NA(),COUNTIF(CA36:$CA$303,CA36)) ->  | CF36: 24 | CG36: =IF(CF36="",NA(),COUNTIF($CF36:CF$303,CF36)) -> 3 | CI36: =IF(CH36="",NA(),COUNTIF($CH36:CH$303,CH36)) -> 
A37: -0.1837428531 | B37: 0.7780776328 | C37: -0.4500762339 | W37: 0.0001554285 | AW37: for Y axis line | AX37: =IF(BD10,AX3,NA()) -> 0 | AY37: =AX12-5 -> -24 | AZ37: 18 | BA37: =AO24/2000 -> 0.655 | BB37: x | BE37: 36 | BF37: 0.7105400749 | BI37: -999 | BJ37: 25.3 | BK37: -999 | BL37: 38 | BM37: =IF(BL37="",NA(),COUNTIF(BL37:$BL$303,BL37)) -> 5 | BN37: 37.335 | BO37: 4.83975 | BQ37: 38 | BR37: =IF(BQ37="",NA(),COUNTIF(BQ37:$BQ$303,BQ37)) -> 5 | BS37: 37.335 | BT37: -45.16025 | BW37: =IF(BV37="",NA(),COUNTIF(BV37:$BV$303,BV37)) ->  | CB37: =IF(CA37="",NA(),COUNTIF(CA37:$CA$303,CA37)) ->  | CF37: 18 | CG37: =IF(CF37="",NA(),COUNTIF($CF37:CF$303,CF37)) -> 5 | CI37: =IF(CH37="",NA(),COUNTIF($CH37:CH$303,CH37)) -> 
A38: -0.2601682002 | B38: 0.9336194134 | C38: -0.6372793379 | L38: a | M38: =IF(BB8<21,BB8/1000,IF(BB8<37,(BB8-16)/200,(BB8-26)/100)) -> 0.05 | Q38: Rejection region, units of X | W38: 0.0001554285 | AW38: X axis values | AX38: =AX35 ->  | AY38: =AY35+0.5 -> -18.5 | BE38: 37 | BF38: 0.985571865 | BI38: -999 | BJ38: 25.3 | BK38: -999 | BL38: 37 | BM38: =IF(BL38="",NA(),COUNTIF(BL38:$BL$303,BL38)) -> 8 | BN38: 36.3525 | BO38: 8.06625 | BQ38: 37 | BR38: =IF(BQ38="",NA(),COUNTIF(BQ38:$BQ$303,BQ38)) -> 8 | BS38: 36.3525 | BT38: -41.93375 | BW38: =IF(BV38="",NA(),COUNTIF(BV38:$BV$303,BV38)) ->  | CB38: =IF(CA38="",NA(),COUNTIF(CA38:$CA$303,CA38)) ->  | CF38: 21 | CG38: =IF(CF38="",NA(),COUNTIF($CF38:CF$303,CF38)) -> 5 | CI38: =IF(CH38="",NA(),COUNTIF($CH38:CH$303,CH38)) -> 
A39: 0.1588443109 | B39: 0.9579600986 | C39: 0.3890875102 | P39: L cutoff | Q39: =IF(ISNUMBER(AR117),AR117,"") ->  | S39: R cutoff | T39: =IF(ISNUMBER(AR118),AR118,"") ->  | W39: 0.0001554285 | AW39: X axis values | AX39: =AX35+R11 ->  | AY39: =AY38+1 -> -17.5 | AZ39: 1.3 | BE39: 38 | BF39: 0.4623580463 | BI39: -999 | BJ39: 25.3 | BK39: -999 | BL39: 43 | BM39: =IF(BL39="",NA(),COUNTIF(BL39:$BL$303,BL39)) -> 7 | BN39: 42.2475 | BO39: 6.99075 | BQ39: 43 | BR39: =IF(BQ39="",NA(),COUNTIF(BQ39:$BQ$303,BQ39)) -> 7 | BS39: 42.2475 | BT39: -43.00925 | BW39: =IF(BV39="",NA(),COUNTIF(BV39:$BV$303,BV39)) ->  | CB39: =IF(CA39="",NA(),COUNTIF(CA39:$CA$303,CA39)) ->  | CF39: 22 | CG39: =IF(CF39="",NA(),COUNTIF($CF39:CF$303,CF39)) -> 5 | CI39: =IF(CH39="",NA(),COUNTIF($CH39:CH$303,CH39)) -> 
A40: 0.1252661985 | B40: 1.166545262 | C40: 0.3068382683 | AW40: X axis values | AX40: =AX39 ->  | AY40: =AY35 -> -19 | AZ40: =AX11-2 -> 15 | BE40: 39 | BF40: 0.4738852121 | BI40: -999 | BJ40: 25.3 | BK40: -999 | BL40: 43 | BM40: =IF(BL40="",NA(),COUNTIF(BL40:$BL$303,BL40)) -> 6 | BN40: 42.2475 | BO40: 5.91525 | BQ40: 43 | BR40: =IF(BQ40="",NA(),COUNTIF(BQ40:$BQ$303,BQ40)) -> 6 | BS40: 42.2475 | BT40: -44.08475 | BW40: =IF(BV40="",NA(),COUNTIF(BV40:$BV$303,BV40)) ->  | CB40: =IF(CA40="",NA(),COUNTIF(CA40:$CA$303,CA40)) ->  | CF40: 27 | CG40: =IF(CF40="",NA(),COUNTIF($CF40:CF$303,CF40)) -> 2 | CI40: =IF(CH40="",NA(),COUNTIF($CH40:CH$303,CH40)) -> 
A41: -0.303501301 | B41: 0.5723913024 | C41: -0.7434233236 | AX41: =BU1 -> 0 | AY41: =BV1 -> 0 | BE41: 40 | BF41: 0.2814436741 | BI41: -999 | BJ41: 25.3 | BK41: -999 | BL41: 36 | BM41: =IF(BL41="",NA(),COUNTIF(BL41:$BL$303,BL41)) -> 7 | BN41: 35.37 | BO41: 6.99075 | BQ41: 36 | BR41: =IF(BQ41="",NA(),COUNTIF(BQ41:$BQ$303,BQ41)) -> 7 | BS41: 35.37 | BT41: -43.00925 | BW41: =IF(BV41="",NA(),COUNTIF(BV41:$BV$303,BV41)) ->  | CB41: =IF(CA41="",NA(),COUNTIF(CA41:$CA$303,CA41)) ->  | CF41: 13 | CG41: =IF(CF41="",NA(),COUNTIF($CF41:CF$303,CF41)) -> 3 | CI41: =IF(CH41="",NA(),COUNTIF($CH41:CH$303,CH41)) -> 
A42: 0.2629200837 | B42: 1.050714712 | C42: 0.6440200481 | AW42: grey highlight point | AX42: =IF(ISNA(AX41),NA(),IF(AND(BD2,$BD$12),AX41,NA())) -> 0 | AY42: =IF(ISNA(AY41),NA(),IF($BD$12,AY41,NA())) -> 0 | BE42: 41 | BF42: 0.3999410309 | BI42: -999 | BJ42: 25.3 | BK42: -999 | BL42: 45 | BM42: =IF(BL42="",NA(),COUNTIF(BL42:$BL$303,BL42)) -> 5 | BN42: 44.2125 | BO42: 4.83975 | BQ42: 45 | BR42: =IF(BQ42="",NA(),COUNTIF(BQ42:$BQ$303,BQ42)) -> 5 | BS42: 44.2125 | BT42: -45.16025 | BW42: =IF(BV42="",NA(),COUNTIF(BV42:$BV$303,BV42)) ->  | CB42: =IF(CA42="",NA(),COUNTIF(CA42:$CA$303,CA42)) ->  | CF42: 24 | CG42: =IF(CF42="",NA(),COUNTIF($CF42:CF$303,CF42)) -> 2 | CI42: =IF(CH42="",NA(),COUNTIF($CH42:CH$303,CH42)) -> 
A43: 0.4435940911 | B43: 1.076717785 | C43: 1.086579176 | AW43: s extent line | AX43: =IF(BD12,NA(),AX35) ->  | AY43: =IF(ISNA(AY41),NA(),IF(BD12,NA(),AY41+AZ43)) ->  | AZ43: 1.5 | BE43: 42 | BF43: 0.5081308968 | BI43: -999 | BJ43: 25.3 | BK43: -999 | BL43: 47 | BM43: =IF(BL43="",NA(),COUNTIF(BL43:$BL$303,BL43)) -> 4 | BN43: 46.1775 | BO43: 3.76425 | BQ43: 47 | BR43: =IF(BQ43="",NA(),COUNTIF(BQ43:$BQ$303,BQ43)) -> 4 | BS43: 46.1775 | BT43: -46.23575 | BW43: =IF(BV43="",NA(),COUNTIF(BV43:$BV$303,BV43)) ->  | CB43: =IF(CA43="",NA(),COUNTIF(CA43:$CA$303,CA43)) ->  | CF43: 25 | CG43: =IF(CF43="",NA(),COUNTIF($CF43:CF$303,CF43)) -> 2 | CI43: =IF(CH43="",NA(),COUNTIF($CH43:CH$303,CH43)) -> 
A44: -0.2592233776 | B44: 0.9051293825 | C44: -0.6349650046 | AX44: =BU2 ->  | AY44: =BV2+AZ43 ->  | AZ44: 1 | BE44: 43 | BF44: 0.5740668513 | BI44: -999 | BJ44: 25.3 | BK44: -999 | BL44: 37 | BM44: =IF(BL44="",NA(),COUNTIF(BL44:$BL$303,BL44)) -> 7 | BN44: 36.3525 | BO44: 6.99075 | BQ44: 37 | BR44: =IF(BQ44="",NA(),COUNTIF(BQ44:$BQ$303,BQ44)) -> 7 | BS44: 36.3525 | BT44: -43.00925 | BW44: =IF(BV44="",NA(),COUNTIF(BV44:$BV$303,BV44)) ->  | CB44: =IF(CA44="",NA(),COUNTIF(CA44:$CA$303,CA44)) ->  | CF44: 21 | CG44: =IF(CF44="",NA(),COUNTIF($CF44:CF$303,CF44)) -> 4 | CI44: =IF(CH44="",NA(),COUNTIF($CH44:CH$303,CH44)) -> 
A45: -0.7575075363 | B45: 1.130121343 | C45: -1.85550694 | AW45: s label | AX45: =IF(OR(NOT(BD2),BD12),NA(),AX35+3) ->  | AY45: =IF(BD12,NA(),AY41+1.5+AZ43) ->  | BE45: 44 | BF45: 0.9757498689 | BI45: -999 | BJ45: 25.3 | BK45: -999 | BL45: 29 | BM45: =IF(BL45="",NA(),COUNTIF(BL45:$BL$303,BL45)) -> 2 | BN45: 28.4925 | BO45: 1.61325 | BQ45: 29 | BR45: =IF(BQ45="",NA(),COUNTIF(BQ45:$BQ$303,BQ45)) -> 2 | BS45: 28.4925 | BT45: -48.38675 | BW45: =IF(BV45="",NA(),COUNTIF(BV45:$BV$303,BV45)) ->  | CB45: =IF(CA45="",NA(),COUNTIF(CA45:$CA$303,CA45)) ->  | CF45: 26 | CG45: =IF(CF45="",NA(),COUNTIF($CF45:CF$303,CF45)) -> 2 | CI45: =IF(CH45="",NA(),COUNTIF($CH45:CH$303,CH45)) -> 
A46: 0.072287377 | B46: 0.7084627369 | C46: 0.1770671885 | AW46: s extent line | AX46: =IF(BD12,AX35,NA()) ->  | AY46: =IF(ISNA(AY35),NA(),IF(BD12,AY35-0.7,NA())) -> -19.7 | BE46: 45 | BF46: 0.3737441339 | BI46: -999 | BJ46: 25.3 | BK46: -999 | BL46: 42 | BM46: =IF(BL46="",NA(),COUNTIF(BL46:$BL$303,BL46)) -> 6 | BN46: 41.265 | BO46: 5.91525 | BQ46: 42 | BR46: =IF(BQ46="",NA(),COUNTIF(BQ46:$BQ$303,BQ46)) -> 6 | BS46: 41.265 | BT46: -44.08475 | BW46: =IF(BV46="",NA(),COUNTIF(BV46:$BV$303,BV46)) ->  | CB46: =IF(CA46="",NA(),COUNTIF(CA46:$CA$303,CA46)) ->  | CF46: 16 | CG46: =IF(CF46="",NA(),COUNTIF($CF46:CF$303,CF46)) -> 3 | CI46: =IF(CH46="",NA(),COUNTIF($CH46:CH$303,CH46)) -> 
A47: 0.5336844781 | B47: 0.7451815163 | C47: 1.307254655 | AX47: =IF(ISNA(AX46),NA(),AX46+O12) ->  | AY47: =AY46 -> -19.7 | BE47: 46 | BF47: 0.1972724684 | BI47: -999 | BJ47: 25.3 | BK47: -999 | BL47: 49 | BM47: =IF(BL47="",NA(),COUNTIF(BL47:$BL$303,BL47)) -> 3 | BN47: 48.1425 | BO47: 2.68875 | BQ47: 49 | BR47: =IF(BQ47="",NA(),COUNTIF(BQ47:$BQ$303,BQ47)) -> 3 | BS47: 48.1425 | BT47: -47.31125 | BW47: =IF(BV47="",NA(),COUNTIF(BV47:$BV$303,BV47)) ->  | CB47: =IF(CA47="",NA(),COUNTIF(CA47:$CA$303,CA47)) ->  | CF47: 17 | CG47: =IF(CF47="",NA(),COUNTIF($CF47:CF$303,CF47)) -> 5 | CI47: =IF(CH47="",NA(),COUNTIF($CH47:CH$303,CH47)) -> 
A48: 0.1851067943 | B48: 1.142359936 | C48: 0.4534171938 | AX48: =IF(BD12,AX40,NA()) ->  | AY48: =IF(BD12,AY39,NA()) -> -17.5 | BE48: 47 | BF48: 0.2481248714 | BI48: -999 | BJ48: 25.3 | BK48: -999 | BL48: 44 | BM48: =IF(BL48="",NA(),COUNTIF(BL48:$BL$303,BL48)) -> 3 | BN48: 43.23 | BO48: 2.68875 | BQ48: 44 | BR48: =IF(BQ48="",NA(),COUNTIF(BQ48:$BQ$303,BQ48)) -> 3 | BS48: 43.23 | BT48: -47.31125 | BW48: =IF(BV48="",NA(),COUNTIF(BV48:$BV$303,BV48)) ->  | CB48: =IF(CA48="",NA(),COUNTIF(CA48:$CA$303,CA48)) ->  | CF48: 26 | CG48: =IF(CF48="",NA(),COUNTIF($CF48:CF$303,CF48)) -> 1 | CI48: =IF(CH48="",NA(),COUNTIF($CH48:CH$303,CH48)) -> 
A49: 0.2508752358 | B49: 1.423827047 | C49: 0.6145163168 | AW49: s label | AX49: =IF(BD2,AX35+3,NA()) ->  | AY49: =IF(BD12,AY39+0.9,NA()) -> -16.6 | BE49: 48 | BF49: 0.9396531172 | BI49: -999 | BJ49: 25.3 | BK49: -999 | BL49: 45 | BM49: =IF(BL49="",NA(),COUNTIF(BL49:$BL$303,BL49)) -> 4 | BN49: 44.2125 | BO49: 3.76425 | BQ49: 45 | BR49: =IF(BQ49="",NA(),COUNTIF(BQ49:$BQ$303,BQ49)) -> 4 | BS49: 44.2125 | BT49: -46.23575 | BW49: =IF(BV49="",NA(),COUNTIF(BV49:$BV$303,BV49)) ->  | CB49: =IF(CA49="",NA(),COUNTIF(CA49:$CA$303,CA49)) ->  | CF49: 33 | CG49: =IF(CF49="",NA(),COUNTIF($CF49:CF$303,CF49)) -> 4 | CI49: =IF(CH49="",NA(),COUNTIF($CH49:CH$303,CH49)) -> 
A50: 0.7275772319 | B50: 0.5973647552 | C50: 1.782192967 | AW50: dotted vertical | AX50: =AX35 ->  | AY50: =BN2 -> 40.2825 | BE50: 49 | BF50: 0.387587253 | BI50: -999 | BJ50: 25.3 | BK50: -999 | BL50: 52 | BM50: =IF(BL50="",NA(),COUNTIF(BL50:$BL$303,BL50)) -> 3 | BN50: 51.09 | BO50: 2.68875 | BQ50: 52 | BR50: =IF(BQ50="",NA(),COUNTIF(BQ50:$BQ$303,BQ50)) -> 3 | BS50: 51.09 | BT50: -47.31125 | BW50: =IF(BV50="",NA(),COUNTIF(BV50:$BV$303,BV50)) ->  | CB50: =IF(CA50="",NA(),COUNTIF(CA50:$CA$303,CA50)) ->  | CF50: 14 | CG50: =IF(CF50="",NA(),COUNTIF($CF50:CF$303,CF50)) -> 6 | CI50: =IF(CH50="",NA(),COUNTIF($CH50:CH$303,CH50)) -> 
A51: -0.214493808 | B51: 0.8928917663 | C51: -0.5254003825 | AW51: to latest mean | AX51: =AX50 ->  | AY51: =AY35 -> -19 | BE51: 50 | BF51: 0.5686774142 | BI51: -999 | BJ51: 25.3 | BK51: -999 | BL51: 37 | BM51: =IF(BL51="",NA(),COUNTIF(BL51:$BL$303,BL51)) -> 6 | BN51: 36.3525 | BO51: 5.91525 | BQ51: 37 | BR51: =IF(BQ51="",NA(),COUNTIF(BQ51:$BQ$303,BQ51)) -> 6 | BS51: 36.3525 | BT51: -44.08475 | BW51: =IF(BV51="",NA(),COUNTIF(BV51:$BV$303,BV51)) ->  | CB51: =IF(CA51="",NA(),COUNTIF(CA51:$CA$303,CA51)) ->  | CF51: 20 | CG51: =IF(CF51="",NA(),COUNTIF($CF51:CF$303,CF51)) -> 10 | CI51: =IF(CH51="",NA(),COUNTIF($CH51:CH$303,CH51)) -> 
A52: 0.1553078131 | B52: 0.7881568316 | C52: 0.3804248951 | AV52: Panel 4 | BE52: 51 | BF52: 0.5348928906 | BI52: -999 | BJ52: 25.3 | BK52: -999 | BL52: 43 | BM52: =IF(BL52="",NA(),COUNTIF(BL52:$BL$303,BL52)) -> 5 | BN52: 42.2475 | BO52: 4.83975 | BQ52: 43 | BR52: =IF(BQ52="",NA(),COUNTIF(BQ52:$BQ$303,BQ52)) -> 5 | BS52: 42.2475 | BT52: -45.16025 | BW52: =IF(BV52="",NA(),COUNTIF(BV52:$BV$303,BV52)) ->  | CB52: =IF(CA52="",NA(),COUNTIF(CA52:$CA$303,CA52)) ->  | CF52: 18 | CG52: =IF(CF52="",NA(),COUNTIF($CF52:CF$303,CF52)) -> 4 | CI52: =IF(CH52="",NA(),COUNTIF($CH52:CH$303,CH52)) -> 
A53: -0.08326612944 | B53: 0.9960317089 | C53: -0.20395953 | AW53: Label d | AX53: =IF(BD10,AX3,NA()) -> 0 | AY53: =AX15+14 -> -36 | BE53: 52 | BF53: 0.8596310802 | BI53: -999 | BJ53: 25.3 | BK53: -999 | BL53: 39 | BM53: =IF(BL53="",NA(),COUNTIF(BL53:$BL$303,BL53)) -> 4 | BN53: 38.3175 | BO53: 3.76425 | BQ53: 39 | BR53: =IF(BQ53="",NA(),COUNTIF(BQ53:$BQ$303,BQ53)) -> 4 | BS53: 38.3175 | BT53: -46.23575 | BW53: =IF(BV53="",NA(),COUNTIF(BV53:$BV$303,BV53)) ->  | CB53: =IF(CA53="",NA(),COUNTIF(CA53:$CA$303,CA53)) ->  | CF53: 23 | CG53: =IF(CF53="",NA(),COUNTIF($CF53:CF$303,CF53)) -> 3 | CI53: =IF(CH53="",NA(),COUNTIF($CH53:CH$303,CH53)) -> 
A54: 0.09790174994 | B54: 1.350823909 | C54: 0.2398093323 | AW54: Label values | AX54: =IF(BD10,AX3,NA()) -> 0 | AY54: =AY53 -> -36 | BE54: 53 | BF54: 0.977008108 | BI54: -999 | BJ54: 25.3 | BK54: -999 | BL54: 42 | BM54: =IF(BL54="",NA(),COUNTIF(BL54:$BL$303,BL54)) -> 5 | BN54: 41.265 | BO54: 4.83975 | BQ54: 42 | BR54: =IF(BQ54="",NA(),COUNTIF(BQ54:$BQ$303,BQ54)) -> 5 | BS54: 41.265 | BT54: -45.16025 | BW54: =IF(BV54="",NA(),COUNTIF(BV54:$BV$303,BV54)) ->  | CB54: =IF(CA54="",NA(),COUNTIF(CA54:$CA$303,CA54)) ->  | CF54: 31 | CG54: =IF(CF54="",NA(),COUNTIF($CF54:CF$303,CF54)) -> 3 | CI54: =IF(CH54="",NA(),COUNTIF($CH54:CH$303,CH54)) -> 
A55: 0.2804541555 | B55: 0.4118886329 | C55: 0.6869695771 | AW55: for Y axis line | AX55: =IF(BD10,AX3,NA()) -> 0 | AY55: =AX15 -> -50 | AZ55: =AX14-2 -> 22 | BE55: 54 | BF55: 0.7816017158 | BI55: -999 | BJ55: 25.3 | BK55: -999 | BL55: 45 | BM55: =IF(BL55="",NA(),COUNTIF(BL55:$BL$303,BL55)) -> 3 | BN55: 44.2125 | BO55: 2.68875 | BQ55: 45 | BR55: =IF(BQ55="",NA(),COUNTIF(BQ55:$BQ$303,BQ55)) -> 3 | BS55: 44.2125 | BT55: -47.31125 | BW55: =IF(BV55="",NA(),COUNTIF(BV55:$BV$303,BV55)) ->  | CB55: =IF(CA55="",NA(),COUNTIF(CA55:$CA$303,CA55)) ->  | CF55: 9 | CG55: =IF(CF55="",NA(),COUNTIF($CF55:CF$303,CF55)) -> 1 | CI55: =IF(CH55="",NA(),COUNTIF($CH55:CH$303,CH55)) -> 
A56: -0.5531626761 | B56: 0.8053609941 | C56: -1.354966301 | AW56: for d axis line | AX56: =IF(BD10,AX3,NA()) -> 0 | AY56: =AX15 -> -50 | AZ56: 100 | BE56: 55 | BF56: 0.3191517927 | BI56: -999 | BJ56: 25.3 | BK56: -999 | BL56: 32 | BM56: =IF(BL56="",NA(),COUNTIF(BL56:$BL$303,BL56)) -> 2 | BN56: 31.44 | BO56: 1.61325 | BQ56: 32 | BR56: =IF(BQ56="",NA(),COUNTIF(BQ56:$BQ$303,BQ56)) -> 2 | BS56: 31.44 | BT56: -48.38675 | BW56: =IF(BV56="",NA(),COUNTIF(BV56:$BV$303,BV56)) ->  | CB56: =IF(CA56="",NA(),COUNTIF(CA56:$CA$303,CA56)) ->  | CF56: 18 | CG56: =IF(CF56="",NA(),COUNTIF($CF56:CF$303,CF56)) -> 3 | CI56: =IF(CH56="",NA(),COUNTIF($CH56:CH$303,CH56)) -> 
A57: 0.6228229498 | B57: 0.8831453905 | C57: 1.525598427 | AW57: label val mu0 | AX57: =IF(BD10,L8,NA()) -> 0 | AY57: =AX15+10 -> -40 | BE57: 56 | BF57: 0.07572587207 | BI57: -999 | BJ57: 25.3 | BK57: -999 | BL57: 50 | BM57: =IF(BL57="",NA(),COUNTIF(BL57:$BL$303,BL57)) -> 2 | BN57: 49.125 | BO57: 1.61325 | BQ57: 50 | BR57: =IF(BQ57="",NA(),COUNTIF(BQ57:$BQ$303,BQ57)) -> 2 | BS57: 49.125 | BT57: -48.38675 | BW57: =IF(BV57="",NA(),COUNTIF(BV57:$BV$303,BV57)) ->  | CB57: =IF(CA57="",NA(),COUNTIF(CA57:$CA$303,CA57)) ->  | CF57: 20 | CG57: =IF(CF57="",NA(),COUNTIF($CF57:CF$303,CF57)) -> 9 | CI57: =IF(CH57="",NA(),COUNTIF($CH57:CH$303,CH57)) -> 
A58: -0.3261120209 | B58: 0.4616077937 | C58: -0.7988080502 | AW58: mu0 line | AX58: =IF(BD10,L8,NA()) -> 0 | AY58: =AX15 -> -50 | AZ58: 8 | BE58: 57 | BF58: 0.7051323093 | BI58: -999 | BJ58: 25.3 | BK58: -999 | BL58: 36 | BM58: =IF(BL58="",NA(),COUNTIF(BL58:$BL$303,BL58)) -> 6 | BN58: 35.37 | BO58: 5.91525 | BQ58: 36 | BR58: =IF(BQ58="",NA(),COUNTIF(BQ58:$BQ$303,BQ58)) -> 6 | BS58: 35.37 | BT58: -44.08475 | BW58: =IF(BV58="",NA(),COUNTIF(BV58:$BV$303,BV58)) ->  | CB58: =IF(CA58="",NA(),COUNTIF(CA58:$CA$303,CA58)) ->  | CF58: 11 | CG58: =IF(CF58="",NA(),COUNTIF($CF58:CF$303,CF58)) -> 3 | CI58: =IF(CH58="",NA(),COUNTIF($CH58:CH$303,CH58)) -> 
A59: -0.2014315502 | B59: 0.999727625 | C59: -0.4934045162 | AW59: mu1 line | AX59: =IF(BD10,O10,NA()) -> 0 | AY59: =AX15 -> -50 | AZ59: =AX14 -> 24 | BE59: 58 | BF59: 0.2601939328 | BI59: -999 | BJ59: 25.3 | BK59: -999 | BL59: 38 | BM59: =IF(BL59="",NA(),COUNTIF(BL59:$BL$303,BL59)) -> 4 | BN59: 37.335 | BO59: 3.76425 | BQ59: 38 | BR59: =IF(BQ59="",NA(),COUNTIF(BQ59:$BQ$303,BQ59)) -> 4 | BS59: 37.335 | BT59: -46.23575 | BW59: =IF(BV59="",NA(),COUNTIF(BV59:$BV$303,BV59)) ->  | CB59: =IF(CA59="",NA(),COUNTIF(CA59:$CA$303,CA59)) ->  | CF59: 23 | CG59: =IF(CF59="",NA(),COUNTIF($CF59:CF$303,CF59)) -> 2 | CI59: =IF(CH59="",NA(),COUNTIF($CH59:CH$303,CH59)) -> 
A60: 0.2987532111 | B60: 0.7219637276 | C60: 0.7317929262 | AW60: z or t axis label | AX60: =IF(BD10,AX3+18,NA()) -> 18 | AY60: =AX15-AX16 -> -52 | AZ60: =IF(BD12,"z","t") -> z | BE60: 59 | BF60: 0.710535977 | BI60: -999 | BJ60: 25.3 | BK60: -999 | BL60: 45 | BM60: =IF(BL60="",NA(),COUNTIF(BL60:$BL$303,BL60)) -> 2 | BN60: 44.2125 | BO60: 1.61325 | BQ60: 45 | BR60: =IF(BQ60="",NA(),COUNTIF(BQ60:$BQ$303,BQ60)) -> 2 | BS60: 44.2125 | BT60: -48.38675 | BW60: =IF(BV60="",NA(),COUNTIF(BV60:$BV$303,BV60)) ->  | CB60: =IF(CA60="",NA(),COUNTIF(CA60:$CA$303,CA60)) ->  | CF60: 17 | CG60: =IF(CF60="",NA(),COUNTIF($CF60:CF$303,CF60)) -> 4 | CI60: =IF(CH60="",NA(),COUNTIF($CH60:CH$303,CH60)) -> 
A61: -0.01071781766 | B61: 1.551991028 | C61: -0.02625318442 | AW61: highlighted point | AX61: =IF(AND(BD1,BD2,BD10), IF(BB5=1,BS2,CC2),NA()) ->  | AY61: =AX15 -> -50 | BE61: 60 | BF61: 0.00732531026 | BI61: -999 | BJ61: 25.3 | BK61: -999 | BL61: 41 | BM61: =IF(BL61="",NA(),COUNTIF(BL61:$BL$303,BL61)) -> 1 | BN61: 40.2825 | BO61: 0.53775 | BQ61: 41 | BR61: =IF(BQ61="",NA(),COUNTIF(BQ61:$BQ$303,BQ61)) -> 1 | BS61: 40.2825 | BT61: -49.46225 | BW61: =IF(BV61="",NA(),COUNTIF(BV61:$BV$303,BV61)) ->  | CB61: =IF(CA61="",NA(),COUNTIF(CA61:$CA$303,CA61)) ->  | CF61: 36 | CG61: =IF(CF61="",NA(),COUNTIF($CF61:CF$303,CF61)) -> 1 | CI61: =IF(CH61="",NA(),COUNTIF($CH61:CH$303,CH61)) -> 
A62: 0.4338839996 | B62: 0.6013903782 | C62: 1.062794407 | N62: SampDistMult | O62: =COUNT(A4:A303)*$BA$33*$BA$34 -> 131.028165 | Q62: grey | R62: grey | S62: grey | W62: Panel 1 scale | X62: 33 | AB62: For s pile curve | AL62: SampDistMult | AM62: =COUNT(D4:D303)*$BA$33*$BA$34 -> 23.2469325 | AN62: grey | AO62: grey | AP62: grey | AR62: Label rubber ruler | AT62: -2.5 | AU62: 0 | AW62: mean on r ruler | AX62: =IF(AND(BD1,AR70), IF(BB5=1,BN2,BX2),NA()) ->  | AY62: =AX15+AX14+1 -> -25 | BE62: 61 | BF62: 0.1978296079 | BI62: -999 | BJ62: 25.3 | BK62: -999 | BL62: 47 | BM62: =IF(BL62="",NA(),COUNTIF(BL62:$BL$303,BL62)) -> 3 | BN62: 46.1775 | BO62: 2.68875 | BQ62: 47 | BR62: =IF(BQ62="",NA(),COUNTIF(BQ62:$BQ$303,BQ62)) -> 3 | BS62: 46.1775 | BT62: -47.31125 | BW62: =IF(BV62="",NA(),COUNTIF(BV62:$BV$303,BV62)) ->  | CB62: =IF(CA62="",NA(),COUNTIF(CA62:$CA$303,CA62)) ->  | CF62: 14 | CG62: =IF(CF62="",NA(),COUNTIF($CF62:CF$303,CF62)) -> 5 | CI62: =IF(CH62="",NA(),COUNTIF($CH62:CH$303,CH62)) -> 
A63: 0.6322665467 | B63: 1.489413107 | C63: 1.548730421 | K63: x | L63: H0Pop | M63: SampDist | N63: cum t | O63: t or z | Q63: H0 | R63: sampdist | S63: t or z | V63: SampDist | X63: t | Y63: nct | Z63: L end | AA63: =ROUND((IF(BB5=1,O9,V9)+$R$11*IF(BB5=1,A4,D4))/$BA$34,0)*$BA$34 -> 40.2825 | AB63: X | AC63: s | AD63: s2/( ) | AE63: Rcum | AF63: ord | AG63: grey | AI63: H1Pop | AJ63: SampDist | AK63: SampDist | AL63: cum t | AM63: t or z | AN63: H1 | AO63: sampdist | AP63: t or z | AR63: Unit: | AS63: =IF(AR70,AU62,NA()) ->  | AT63: =AX15+AX14-AU63 -> -27 | AU63: 1 | AW63: for vert dotted line | AX63: =AX62 ->  | AY63: =IF(BB5=1,BO2,BY2) -> 4.83975 | BE63: 62 | BF63: 0.6505264528 | BI63: -999 | BJ63: 25.3 | BK63: -999 | BL63: 50 | BM63: =IF(BL63="",NA(),COUNTIF(BL63:$BL$303,BL63)) -> 1 | BN63: 49.125 | BO63: 0.53775 | BQ63: 50 | BR63: =IF(BQ63="",NA(),COUNTIF(BQ63:$BQ$303,BQ63)) -> 1 | BS63: 49.125 | BT63: -49.46225 | BW63: =IF(BV63="",NA(),COUNTIF(BV63:$BV$303,BV63)) ->  | CB63: =IF(CA63="",NA(),COUNTIF(CA63:$CA$303,CA63)) ->  | CF63: 34 | CG63: =IF(CF63="",NA(),COUNTIF($CF63:CF$303,CF63)) -> 4 | CI63: =IF(CH63="",NA(),COUNTIF($CH63:CH$303,CH63)) -> 
A64: 0.2377181808 | B64: 0.8455015392 | C64: 0.5822882455 | K64: =K65-$BB$1 -> -0.5 | N64: =IF(K64>$O$9,1-TDIST((K64-$O$9)/$BB$9,$K$14-1,1),TDIST(($O$9-K64)/$BB$9,$K$14-1,1)) -> 0.0005945302155 | X64: =AW138-$AW$140 -> -6.613622306 | Y64: =nct(X64,$AW$136,$AW$137) -> 2.175935453e-10 | Z64: R end | AA64: =AY3 -> 100 | AL64: =Y64 -> 2.175935453e-10 | AR64: s | AS64: =IF(AND(AR70,BD12),AS63+4,NA()) ->  | AT64: =AT63 -> -27 | AW64: black dotted | AX64: =AX35 ->  | AY64: =AY63 -> 4.83975 | BE64: 63 | BF64: 0.9849396087 | BI64: -999 | BJ64: 25.3 | BK64: -999 | BL64: 44 | BM64: =IF(BL64="",NA(),COUNTIF(BL64:$BL$303,BL64)) -> 2 | BN64: 43.23 | BO64: 1.61325 | BQ64: 44 | BR64: =IF(BQ64="",NA(),COUNTIF(BQ64:$BQ$303,BQ64)) -> 2 | BS64: 43.23 | BT64: -48.38675 | BW64: =IF(BV64="",NA(),COUNTIF(BV64:$BV$303,BV64)) ->  | CB64: =IF(CA64="",NA(),COUNTIF(CA64:$CA$303,CA64)) ->  | CF64: 19 | CG64: =IF(CF64="",NA(),COUNTIF($CF64:CF$303,CF64)) -> 5 | CI64: =IF(CH64="",NA(),COUNTIF($CH64:CH$303,CH64)) -> 
A65: -0.1861710882 | B65: 0.5585034248 | C65: -0.4560241709 | K65: 0 | L65: =IF(NOT($BB$12),$AX$6+$AX$5*$X$62*NORMDIST(K65,$O$9,$R$11,FALSE),-999) -> 27.45128105 | M65: =IF(AND(NOT($BB$12),$BB$6,$BD$3,$BD$9),$AX$9+$O$62*NORMDIST(K65,$O$9,$R$11/SQRT($K$14),FALSE),NA()) -> 4.637780003e-09 | N65: =IF(K65>$O$9,1-TDIST((K65-$O$9)/$BB$9,$K$14-1,1),TDIST(($O$9-K65)/$BB$9,$K$14-1,1)) -> 0.0006291324966 | O65: =IF(AND(NOT($BB$12),$BD$10,$BD$3,$BD$9),IF($BD$12,V65,$AX$15+$O$62*(N66-N64)/(2*$BB$1)),NA()) -> -50 | Q65: =IF($BB$12,$AX$6+$AX$5*$X$62*NORMDIST(K65,$O$9,$R$11,FALSE),-999) -> -999 | R65: =IF(AND($BB$12,$BB$6,$BD$3,$BD$9),$AX$9+$O$62*NORMDIST(K65,$O$9,$R$11/SQRT($K$14),FALSE),NA()) ->  | S65: =IF(AND($BB$12,$BD$10,$BD$3,$BD$9),IF($BD$12,$AX$15+$O$62*NORMDIST(K65,$O$9,$R$11/SQRT($K$14),FALSE),$AX$15+$O$62*(N66-N64)/(2*$BB$1)),NA()) ->  | V65: =IF(AND(NOT($BB$12),$BD$3,$BD$9),$AX$15+$O$62*NORMDIST(K65,$O$9,$R$11/SQRT($K$14),FALSE),NA()) -> -50 | X65: =X64+$AW$140 -> -6.531972647 | Y65: 2.312782736e-10 | Z65: inc | AA65: =(AA64-AA63)/200 -> 0.2985875 | AB65: =AA63 -> 40.2825 | AC65: =AB65-$AA$63 -> 0 | AD65: =AC65^2/$AA$66 -> 0 | AE65: =CHIDIST(AD65,$K$16) -> 1 | AI65: =IF(NOT($BB$13),$AX$6+$AX$5*$X$62*NORMDIST(K65,$V$9,$R$11,FALSE),-999) -> -999 | AJ65: =IF(AND(NOT($BB$13),$BD$4,$BD$9),$AX$9+$AM$62*NORMDIST(K65,$V$9,$R$11/SQRT($K$14),FALSE),NA()) ->  | AK65: =IF($BD$6,AJ65,NA()) ->  | AL65: 2.312782736e-10 | AM65: =IF(AND(NOT($BB$13),$BD$10,$BD$4,$BD$9,$BB$25),IF($BD$12,$AX$15+$AM$62*NORMDIST(K65,$V$9,$R$11/SQRT($K$14),FALSE),$AX$15+$AM$62*(AL66-AL64)/(2*$BB$1)),NA()) ->  | AN65: =IF(AND($BB$4,$BB$13),$AX$6+$AX$5*$X$62*NORMDIST(K65,$V$9,$R$11,FALSE),-999) -> -999 | AO65: =IF(AND($BB$4,$BD$6,$BB$13,$BD$4,$BD$9),$AX$9+$AM$62*NORMDIST(K65,$V$9,$R$11/SQRT($K$14),FALSE),NA()) ->  | AP65: =IF(AND($BB$4,$BD$10,$BB$13,$BD$4,$BD$9,$BB$25),IF($BD$12,$AX$15+$AM$62*NORMDIST(K65,$V$9,$R$11/SQRT($K$14),FALSE),$AX$15+$AM$62*(AL66-AL64)/(2*$BB$1)),NA()) ->  | AR65: s | AS65: =IF(AND(AR70,NOT(BD12)),AS63+4,NA()) ->  | AT65: =AT64 -> -27 | AW65: line | AX65: =AX64 ->  | AY65: =AX12+AZ35 -> -5 | BE65: 64 | BF65: 0.8914441653 | BI65: -999 | BJ65: 25.3 | BK65: -999 | BL65: 38 | BM65: =IF(BL65="",NA(),COUNTIF(BL65:$BL$303,BL65)) -> 3 | BN65: 37.335 | BO65: 2.68875 | BQ65: 38 | BR65: =IF(BQ65="",NA(),COUNTIF(BQ65:$BQ$303,BQ65)) -> 3 | BS65: 37.335 | BT65: -47.31125 | BW65: =IF(BV65="",NA(),COUNTIF(BV65:$BV$303,BV65)) ->  | CB65: =IF(CA65="",NA(),COUNTIF(CA65:$CA$303,CA65)) ->  | CF65: 13 | CG65: =IF(CF65="",NA(),COUNTIF($CF65:CF$303,CF65)) -> 2 | CI65: =IF(CH65="",NA(),COUNTIF($CH65:CH$303,CH65)) -> 
A66: 0.09435018111 | B66: 1.2438186 | C66: 0.2311098009 | K66: =K65+$BB$1 -> 0.5 | L66: 27.49295783 | M66: =IF(AND(NOT($BB$12),$BB$6,$BD$3,$BD$9),$AX$9+$O$62*NORMDIST(K66,$O$9,$R$11/SQRT($K$14),FALSE),NA()) -> 7.879274287e-09 | N66: 0.0006661376466 | O66: =IF(AND(NOT($BB$12),$BD$10,$BD$3,$BD$9),IF($BD$12,V66,$AX$15+$O$62*(N67-N65)/(2*$BB$1)),NA()) -> -49.99999999 | Q66: -999 | R66: =IF(AND($BB$12,$BB$6,$BD$3,$BD$9),$AX$9+$O$62*NORMDIST(K66,$O$9,$R$11/SQRT($K$14),FALSE),NA()) ->  | S66: =IF(AND($BB$12,$BD$10,$BD$3,$BD$9),IF($BD$12,$AX$15+$O$62*NORMDIST(K66,$O$9,$R$11/SQRT($K$14),FALSE),$AX$15+$O$62*(N67-N65)/(2*$BB$1)),NA()) ->  | V66: =IF(AND(NOT($BB$12),$BD$3,$BD$9),$AX$15+$O$62*NORMDIST(K66,$O$9,$R$11/SQRT($K$14),FALSE),NA()) -> -49.99999999 | X66: -6.450322989 | Y66: 2.460018586e-10 | Z66: s2/(N-1) | AA66: =R11^2/K16 -> 45 | AB66: =AB65+$AA$65 -> 40.5810875 | AC66: =AB66-$AA$63 -> 0.2985875 | AD66: =AC66^2/$AA$66 -> 0.001981211003 | AE66: =CHIDIST(AD66,$K$16) -> 0.9999999907 | AF66: =IF(AND(IF($BB$5=1,$A$4<>"",$D$4<>""),NOT($BD$12),$BD$5,$BD$4,$BD$9),$AX$12+$AA$67*(AE65-AE67)/(2*$AA$65),NA()) ->  | AG66: =IF(AND(IF($BB$5=1,$A$4<>"",$D$4<>""),$BD$12,$BD$5,$BD$4,$BD$9),$AX$12+$AA$67*(AE65-AE67)/(2*$AA$65),NA()) ->  | AI66: -999 | AK66: =IF($BD$6,AJ66,NA()) ->  | AL66: 2.460018586e-10 | AN66: -999 | AR66: /√ N | AS66: =IF(AR70,AS63+7.3,NA()) ->  | AT66: =AT65 -> -27 | AW66: vert down | AX66: =IF(OR(BD10,AR70),O9,NA()) -> 40 | AY66: =AX12+AX11-3 -> -5 | BE66: 65 | BF66: 0.2413701452 | BI66: -999 | BJ66: 25.3 | BK66: -999 | BL66: 42 | BM66: =IF(BL66="",NA(),COUNTIF(BL66:$BL$303,BL66)) -> 4 | BN66: 41.265 | BO66: 3.76425 | BQ66: 42 | BR66: =IF(BQ66="",NA(),COUNTIF(BQ66:$BQ$303,BQ66)) -> 4 | BS66: 41.265 | BT66: -46.23575 | BW66: =IF(BV66="",NA(),COUNTIF(BV66:$BV$303,BV66)) ->  | CB66: =IF(CA66="",NA(),COUNTIF(CA66:$CA$303,CA66)) ->  | CF66: 28 | CG66: =IF(CF66="",NA(),COUNTIF($CF66:CF$303,CF66)) -> 3 | CI66: =IF(CH66="",NA(),COUNTIF($CH66:CH$303,CH66)) -> 
A67: 0.3438196847 | B67: 0.8177119438 | C67: 0.842182791 | K67: 1 | L67: 27.53788558 | M67: 1.329740811e-08 | N67: 0.0007057389995 | O67: -49.99999999 | Q67: -999 | V67: -49.99999999 | X67: -6.368673331 | Y67: 2.618568122e-10 | Z67: multiplier | AA67: =IF(BB5=1,COUNT(A4:A303),COUNT(D4:D303))*$BA$36*$BA$37 -> 58.11291 | AB67: =AB66+$AA$65 -> 40.879675 | AC67: 0.597175 | AD67: 0.007924844014 | AE67: 0.9999997035 | AF67: =IF(AND(IF($BB$5=1,$A$4<>"",$D$4<>""),NOT($BD$12),$BD$5,$BD$4,$BD$9),$AX$12+$AA$67*(AE66-AE68)/(2*$AA$65),NA()) ->  | AG67: =IF(AND(IF($BB$5=1,$A$4<>"",$D$4<>""),$BD$12,$BD$5,$BD$4,$BD$9),$AX$12+$AA$67*(AE66-AE68)/(2*$AA$65),NA()) ->  | AI67: -999 | AL67: 2.618568122e-10 | AN67: -999 | AR67: r r label | AS67: =IF(AR70,0,NA()) ->  | AT67: =AT63+AU67 -> -24 | AU67: 3 | AW67: to zero | AX67: =AX66 -> 40 | AY67: =AX12-AX13+5 -> -21 | BE67: 66 | BF67: 0.5901267417 | BI67: -999 | BJ67: 25.3 | BK67: -999 | BL67: 46 | BM67: =IF(BL67="",NA(),COUNTIF(BL67:$BL$303,BL67)) -> 3 | BN67: 45.195 | BO67: 2.68875 | BQ67: 46 | BR67: =IF(BQ67="",NA(),COUNTIF(BQ67:$BQ$303,BQ67)) -> 3 | BS67: 45.195 | BT67: -47.31125 | BW67: =IF(BV67="",NA(),COUNTIF(BV67:$BV$303,BV67)) ->  | CB67: =IF(CA67="",NA(),COUNTIF(CA67:$CA$303,CA67)) ->  | CF67: 19 | CG67: =IF(CF67="",NA(),COUNTIF($CF67:CF$303,CF67)) -> 4 | CI67: =IF(CH67="",NA(),COUNTIF($CH67:CH$303,CH67)) -> 
A68: -0.134554361 | B68: 1.276181184 | C68: -0.3295895271 | K68: 1.5 | L68: 27.58625625 | M68: 2.229217687e-08 | N68: 0.0007481475182 | O68: -49.99999998 | Q68: -999 | V68: -49.99999998 | X68: -6.287023673 | Y68: 2.789452145e-10 | AB68: 41.1782625 | AC68: 0.8957625 | AD68: 0.01783089903 | AE68: 0.999997756 | AI68: -999 | AL68: 2.789452145e-10 | AN68: -999 | BE68: 67 | BF68: =MOD(BF67*10000013,1) -> 0.0884228684 | BH68: =IF(BG68="","",$O$9+$R$11*BG68) ->  | BI68: =IF(AND(NOT($BB$12),$BD$2,BH68<>"",$A$4<>""),BH68,-999) -> -999 | BJ68: =$AX$8+$BJ$1 -> 25.3 | BK68: =IF(AND($BB$12,$BD$2,BH68<>"",$A$4<>""),BH68,-999) -> -999 | BL68: =IF(A68="","",ROUND(($O$9+$R$11*A68)/$BA$34,0)) -> 39 | BM68: =IF(BL68="",NA(),COUNTIF(BL68:$BL$303,BL68)) -> 3 | BN68: =BL68*$BA$34 -> 38.3175 | BO68: =IF(AND(NOT($BB$12),$BB$6,$BD$3,$BD$8),$AX$9-$BA$33/2+BM68*$BA$33,NA()) -> 2.68875 | BP68: =IF(AND($BB$12,$BB$6,$BD$3,$BD$8),$AX$9-$BA$33/2+BM68*$BA$33,NA()) ->  | BQ68: =IF(C68="","",ROUND(($O$9+C68*$BB$9)/$BA$34,0)) -> 39 | BR68: =IF(BQ68="",NA(),COUNTIF(BQ68:$BQ$303,BQ68)) -> 3 | BS68: =BQ68*$BA$34 -> 38.3175 | BT68: -47.31125 | BV68: =IF(D68="","",ROUND(($V$9+$R$11*D68)/$BA$34,0)) ->  | BW68: =IF(BV68="",NA(),COUNTIF(BV68:$BV$303,BV68)) ->  | BX68: =BV68*$BA$34 ->  | BY68: =IF(AND(NOT($BB$13),$BD$6,$BD$4,$BD$8),$AX$9-$BA$33/2+BW68*$BA$33,NA()) ->  | BZ68: =IF(AND($BB$4,$BD$6,$BB$13,$BD$4,$BD$8),$AX$9-$BA$33/2+BW68*$BA$33,NA()) ->  | CA68: =IF(F68="","",ROUND(($O$9+F68*$BB$9)/$BA$34,0)) ->  | CB68: =IF(CA68="",NA(),COUNTIF(CA68:$CA$303,CA68)) ->  | CC68: =CA68*$BA$34 ->  | CF68: 29 | CG68: =IF(CF68="",NA(),COUNTIF($CF68:CF$303,CF68)) -> 1 | CI68: =IF(CH68="",NA(),COUNTIF($CH68:CH$303,CH68)) -> 
A69: -0.319048046 | B69: 0.8694204033 | C69: =IF(AND(A69<>"",$K$14>1),(($O$9+$R$11*A69)-$O$9)/IF($BD$12,$BB$9,$R$11*B69/SQRT($K$14)),"") -> -0.7815049162 | F69: =IF(AND(D69<>"",$K$14>1),(($V$9+$R$11*D69)-$O$9)/IF($BD$12,$BB$9,$R$11*E69/SQRT($K$14)),"") ->  | K69: 2 | L69: 27.63826718 | M69: 3.712296586e-08 | N69: 0.000793593584 | O69: -49.99999996 | Q69: -999 | V69: -49.99999996 | X69: -6.205374015 | Y69: 2.97379652e-10 | AB69: 41.47685 | AC69: 1.19435 | AD69: 0.03169937606 | AE69: 0.9999905906 | AI69: -999 | AL69: 2.97379652e-10 | AN69: -999 | AQ69: Rubber ruler | AS69: L end | AT69: 11 | AV69: For slants | BE69: 68 | BF69: 0.8335054107 | BG69: =IF(AND($BD$3,$BE68<=$K$14),NORMSINV(BF69),"") ->  | BI69: -999 | BJ69: 25.3 | BK69: -999 | BL69: 36 | BM69: =IF(BL69="",NA(),COUNTIF(BL69:$BL$303,BL69)) -> 5 | BN69: 35.37 | BO69: 4.83975 | BQ69: 36 | BR69: =IF(BQ69="",NA(),COUNTIF(BQ69:$BQ$303,BQ69)) -> 5 | BS69: 35.37 | BT69: =IF(AND(NOT($BB$12),$BD$10,$BD$3,$BD$8),$AX$15-$BA$33/2+BR69*$BA$33,NA()) -> -45.16025 | BU69: =IF(AND($BB$12,$BD$10,$BD$3,$BD$8),$AX$15-$BA$33/2+BR69*$BA$33,NA()) ->  | BW69: =IF(BV69="",NA(),COUNTIF(BV69:$BV$303,BV69)) ->  | CB69: =IF(CA69="",NA(),COUNTIF(CA69:$CA$303,CA69)) ->  | CD69: =IF(AND(NOT($BB$13),$BD$10,$BD$4,$BD$8),$AX$15-$BA$33/2+CB69*$BA$33,NA()) ->  | CE69: =IF(AND($BB$4,$BD$10,$BB$13,$BD$4,$BD$8),$AX$15-$BA$33/2+CB69*$BA$33,NA()) ->  | CF69: =IF(B69="","",ROUND(($R$11*B69)/$BA$37,0)) -> 20 | CG69: =IF(CF69="",NA(),COUNTIF($CF69:CF$303,CF69)) -> 8 | CH69: =IF(E69="","",ROUND(($R$11*E69)/$BA$37,0)) ->  | CI69: =IF(CH69="",NA(),COUNTIF($CH69:CH$303,CH69)) ->  | CJ69: =$AX$35+IF($BB$5=1,CF69,CH69)*$BA$37 ->  | CK69: =IF(AND(NOT($BD$12),$BD$5,$BD$4,$BD$8),$AX$12-$BA$36/2+IF($BB$5=1,CG69,CI69)*$BA$36,NA()) ->  | CL69: =IF(AND($BD$12,$BD$5,$BD$4,$BD$8),$AX$12-$BA$36/2+IF($BB$5=1,CG69,CI69)*$BA$36,NA()) -> 
A70: 0.09701734802 | B70: 0.5184397595 | C70: 0.2376429988 | K70: 2.5 | L70: 27.6941207 | M70: 6.140978193e-08 | N70: 0.0008423289851 | O70: -49.99999994 | Q70: -999 | V70: -49.99999994 | X70: -6.123724357 | Y70: 3.172846823e-10 | AB70: 41.7754375 | AC70: 1.4929375 | AD70: 0.04953027509 | AE70: 0.9999714669 | AI70: -999 | AL70: 3.172846823e-10 | AN70: -999 | AQ70: Display? | AR70: =AND(BD1,OR(AND(BB5=1,nsamps>0),AND(BB5=2,nsampso>0))) -> FALSE | AS70: SE | AT70: =IF(BD12,M17,IF(O21<>"",O21,NA())) -> 6.123724357 | AV70: 12 | AW70: =AS72 ->  | AX70: =$AT$72 -> -26 | BE70: 69 | BF70: 0.9425807036 | BI70: -999 | BJ70: 25.3 | BK70: -999 | BL70: 42 | BM70: =IF(BL70="",NA(),COUNTIF(BL70:$BL$303,BL70)) -> 3 | BN70: 41.265 | BO70: 2.68875 | BQ70: 42 | BR70: =IF(BQ70="",NA(),COUNTIF(BQ70:$BQ$303,BQ70)) -> 3 | BS70: 41.265 | BT70: -47.31125 | BW70: =IF(BV70="",NA(),COUNTIF(BV70:$BV$303,BV70)) ->  | CB70: =IF(CA70="",NA(),COUNTIF(CA70:$CA$303,CA70)) ->  | CF70: 12 | CG70: =IF(CF70="",NA(),COUNTIF($CF70:CF$303,CF70)) -> 3 | CI70: =IF(CH70="",NA(),COUNTIF($CH70:CH$303,CH70)) -> 
A71: -0.3492171877 | B71: 0.9941284072 | C71: -0.8554039192 | K71: 3 | L71: 27.75402358 | M71: 1.009106835e-07 | N71: 0.0008946291296 | O71: -49.9999999 | Q71: -999 | V71: -49.9999999 | X71: -6.042074699 | Y71: 3.387981315e-10 | AB71: 42.074025 | AC71: 1.791525 | AD71: 0.07132359612 | AE71: 0.9999295499 | AI71: -999 | AL71: 3.387981315e-10 | AN71: -999 | AQ71: z or t | AR71: For axis | AS71: x | AT71: y | AU71: y numbers | AW71: =BB86 ->  | AX71: =$BC$86 -> -50 | BE71: 70 | BF71: 0.2900085934 | BI71: -999 | BJ71: 25.3 | BK71: -999 | BL71: 35 | BM71: =IF(BL71="",NA(),COUNTIF(BL71:$BL$303,BL71)) -> 6 | BN71: 34.3875 | BO71: 5.91525 | BQ71: 35 | BR71: =IF(BQ71="",NA(),COUNTIF(BQ71:$BQ$303,BQ71)) -> 6 | BS71: 34.3875 | BT71: -44.08475 | BW71: =IF(BV71="",NA(),COUNTIF(BV71:$BV$303,BV71)) ->  | CB71: =IF(CA71="",NA(),COUNTIF(CA71:$CA$303,CA71)) ->  | CF71: 23 | CG71: =IF(CF71="",NA(),COUNTIF($CF71:CF$303,CF71)) -> 1 | CI71: =IF(CH71="",NA(),COUNTIF($CH71:CH$303,CH71)) -> 
A72: 0.1870139553 | B72: 1.439963774 | C72: 0.4580887654 | K72: 3.5 | L72: 27.8181865 | M72: 1.647181455e-07 | N72: 0.0009507955073 | O72: -49.99999984 | Q72: -999 | V72: -49.99999984 | X72: -5.960425041 | Y72: 3.620726861e-10 | AB72: 42.3726125 | AC72: 2.0901125 | AD72: 0.09707933917 | AE72: 0.99984912 | AI72: -999 | AL72: 3.620726861e-10 | AN72: -999 | AQ72: 12 | AR72: =$O$9+AQ72*$AT$70 -> 113.4846923 | AS72: =IF(AND($AR$70,100>=AR72,$AT$69<=AR72),AR72,NA()) ->  | AT72: =AX15+AX14 -> -26 | AU72: =AT72 -> -26 | AV72: 11 | AW72: =AS73 ->  | AX72: =$AT$72 -> -26 | BE72: 71 | BF72: 0.7036182024 | BI72: -999 | BJ72: 25.3 | BK72: -999 | BL72: 44 | BM72: =IF(BL72="",NA(),COUNTIF(BL72:$BL$303,BL72)) -> 1 | BN72: 43.23 | BO72: 0.53775 | BQ72: 44 | BR72: =IF(BQ72="",NA(),COUNTIF(BQ72:$BQ$303,BQ72)) -> 1 | BS72: 43.23 | BT72: -49.46225 | BW72: =IF(BV72="",NA(),COUNTIF(BV72:$BV$303,BV72)) ->  | CB72: =IF(CA72="",NA(),COUNTIF(CA72:$CA$303,CA72)) ->  | CF72: 33 | CG72: =IF(CF72="",NA(),COUNTIF($CF72:CF$303,CF72)) -> 3 | CI72: =IF(CH72="",NA(),COUNTIF($CH72:CH$303,CH72)) -> 
A73: -0.2893614994 | B73: 0.7550060412 | C73: -0.7087880248 | K73: 4 | L73: 27.8868234 | M73: 2.670855816e-07 | N73: 0.001011158433 | O73: -49.99999973 | Q73: -999 | V73: -49.99999973 | X73: -5.878775383 | Y73: 3.87277702e-10 | AB73: 42.6712 | AC73: 2.3887 | AD73: 0.1267975042 | AE73: 0.9997089294 | AI73: -999 | AL73: 3.87277702e-10 | AN73: -999 | AQ73: 11 | AR73: 107.3609679 | AS73: =IF(AND($AR$70,100>=AR73,$AT$69<=AR73),AR73,NA()) ->  | AT73: =AT72 -> -26 | AU73: =AT73 -> -26 | AW73: =BB87 ->  | AX73: =$BC$86 -> -50 | BE73: 72 | BF73: 0.1706214733 | BI73: -999 | BJ73: 25.3 | BK73: -999 | BL73: 36 | BM73: =IF(BL73="",NA(),COUNTIF(BL73:$BL$303,BL73)) -> 4 | BN73: 35.37 | BO73: 3.76425 | BQ73: 36 | BR73: =IF(BQ73="",NA(),COUNTIF(BQ73:$BQ$303,BQ73)) -> 4 | BS73: 35.37 | BT73: -46.23575 | BW73: =IF(BV73="",NA(),COUNTIF(BV73:$BV$303,BV73)) ->  | CB73: =IF(CA73="",NA(),COUNTIF(CA73:$CA$303,CA73)) ->  | CF73: 17 | CG73: =IF(CF73="",NA(),COUNTIF($CF73:CF$303,CF73)) -> 3 | CI73: =IF(CH73="",NA(),COUNTIF($CH73:CH$303,CH73)) -> 
A74: 0.4584910013 | B74: 1.380972453 | C74: 1.123069005 | K74: 4.5 | L74: 27.96015075 | M74: 4.301937996e-07 | N74: 0.001076080106 | O74: -49.99999957 | Q74: -999 | V74: -49.99999957 | X74: -5.797125725 | Y74: 4.146013596e-10 | AB74: 42.9697875 | AC74: 2.6872875 | AD74: 0.1604780913 | AE74: 0.9994817243 | AI74: -999 | AL74: 4.146013596e-10 | AN74: -999 | AQ74: 10 | AR74: 101.2372436 | AT74: =AT73 -> -26 | AU74: -26 | AV74: 10 | AW74: =AS74 ->  | AX74: =$AT$72 -> -26 | BE74: 73 | BF74: 0.951500956 | BI74: -999 | BJ74: 25.3 | BK74: -999 | BL74: 48 | BM74: =IF(BL74="",NA(),COUNTIF(BL74:$BL$303,BL74)) -> 2 | BN74: 47.16 | BO74: 1.61325 | BQ74: 48 | BR74: =IF(BQ74="",NA(),COUNTIF(BQ74:$BQ$303,BQ74)) -> 2 | BS74: 47.16 | BT74: -48.38675 | BW74: =IF(BV74="",NA(),COUNTIF(BV74:$BV$303,BV74)) ->  | CB74: =IF(CA74="",NA(),COUNTIF(CA74:$CA$303,CA74)) ->  | CF74: 32 | CG74: =IF(CF74="",NA(),COUNTIF($CF74:CF$303,CF74)) -> 2 | CI74: =IF(CH74="",NA(),COUNTIF($CH74:CH$303,CH74)) -> 
A75: 0.3618816893 | B75: 0.7720813241 | C75: 0.8864254861 | K75: 5 | L75: 28.03838681 | M75: 6.883075814e-07 | N75: 0.001145958022 | O75: -49.99999931 | Q75: -999 | V75: -49.99999931 | X75: -5.715476066 | Y75: 4.44252983e-10 | AB75: 43.268375 | AC75: 2.985875 | AD75: 0.1981211003 | AE75: 0.9991339496 | AI75: -999 | AL75: 4.44252983e-10 | AN75: -999 | AQ75: 9 | AR75: 95.11351921 | AT75: -26 | AU75: -26 | AW75: =BB88 ->  | AX75: =$BC$86 -> -50 | BE75: 74 | BF75: 0.9292033799 | BI75: -999 | BJ75: 25.3 | BK75: -999 | BL75: 46 | BM75: =IF(BL75="",NA(),COUNTIF(BL75:$BL$303,BL75)) -> 2 | BN75: 45.195 | BO75: 1.61325 | BQ75: 46 | BR75: =IF(BQ75="",NA(),COUNTIF(BQ75:$BQ$303,BQ75)) -> 2 | BS75: 45.195 | BT75: -48.38675 | BW75: =IF(BV75="",NA(),COUNTIF(BV75:$BV$303,BV75)) ->  | CB75: =IF(CA75="",NA(),COUNTIF(CA75:$CA$303,CA75)) ->  | CF75: 18 | CG75: =IF(CF75="",NA(),COUNTIF($CF75:CF$303,CF75)) -> 2 | CI75: =IF(CH75="",NA(),COUNTIF($CH75:CH$303,CH75)) -> 
A76: 0.1433742017 | B76: 1.113132933 | C76: 0.3511936366 | K76: 5.5 | L76: 28.12175069 | M76: 1.093970631e-06 | N76: 0.001221228786 | O76: -49.99999891 | Q76: -999 | V76: -49.99999891 | X76: -5.633826408 | Y76: 4.764658312e-10 | AB76: 43.5669625 | AC76: 3.2844625 | AD76: 0.2397265314 | AE76: 0.998625646 | AI76: -999 | AL76: 4.764658312e-10 | AN76: -999 | AQ76: 8 | AR76: 88.98979486 | AT76: -26 | AU76: -26 | AV76: 9 | AW76: =AS75 ->  | AX76: =$AT$72 -> -26 | BE76: 75 | BF76: 0.8786365725 | BI76: -999 | BJ76: 25.3 | BK76: -999 | BL76: 43 | BM76: =IF(BL76="",NA(),COUNTIF(BL76:$BL$303,BL76)) -> 4 | BN76: 42.2475 | BO76: 3.76425 | BQ76: 43 | BR76: =IF(BQ76="",NA(),COUNTIF(BQ76:$BQ$303,BQ76)) -> 4 | BS76: 42.2475 | BT76: -46.23575 | BW76: =IF(BV76="",NA(),COUNTIF(BV76:$BV$303,BV76)) ->  | CB76: =IF(CA76="",NA(),COUNTIF(CA76:$CA$303,CA76)) ->  | CF76: 25 | CG76: =IF(CF76="",NA(),COUNTIF($CF76:CF$303,CF76)) -> 1 | CI76: =IF(CH76="",NA(),COUNTIF($CH76:CH$303,CH76)) -> 
A77: -0.1675187853 | B77: 0.5967427305 | C77: -0.4103355464 | K77: 6 | L77: 28.21046151 | M77: 1.727163599e-06 | N77: 0.001302372374 | O77: -49.99999827 | Q77: -999 | V77: -49.99999827 | X77: -5.55217675 | Y77: 5.115000786e-10 | AB77: 43.86555 | AC77: 3.58305 | AD77: 0.2852943845 | AE77: 0.9979105446 | AI77: -999 | AL77: 5.115000786e-10 | AN77: -999 | AQ77: 7 | AR77: 82.8660705 | AT77: -26 | AU77: -26 | AW77: =BB89 -> 95.11351921 | AX77: =$BC$86 -> -50 | BE77: 76 | BF77: 0.1473754831 | BI77: -999 | BJ77: 25.3 | BK77: -999 | BL77: 38 | BM77: =IF(BL77="",NA(),COUNTIF(BL77:$BL$303,BL77)) -> 2 | BN77: 37.335 | BO77: 1.61325 | BQ77: 38 | BR77: =IF(BQ77="",NA(),COUNTIF(BQ77:$BQ$303,BQ77)) -> 2 | BS77: 37.335 | BT77: -48.38675 | BW77: =IF(BV77="",NA(),COUNTIF(BV77:$BV$303,BV77)) ->  | CB77: =IF(CA77="",NA(),COUNTIF(CA77:$CA$303,CA77)) ->  | CF77: 14 | CG77: =IF(CF77="",NA(),COUNTIF($CF77:CF$303,CF77)) -> 4 | CI77: =IF(CH77="",NA(),COUNTIF($CH77:CH$303,CH77)) -> 
A78: 0.1726124633 | B78: 0.5298408492 | C78: 0.4228124583 | K78: 6.5 | L78: 28.30473727 | M78: 2.708731719e-06 | N78: 0.001389916898 | O78: -49.99999729 | Q78: -999 | V78: -49.99999729 | X78: -5.470527092 | Y78: 5.49645993e-10 | AB78: 44.1641375 | AC78: 3.8816375 | AD78: 0.3348246596 | AE78: 0.9969363598 | AI78: -999 | AL78: 5.49645993e-10 | AN78: -999 | AQ78: 6 | AR78: 76.74234614 | AT78: -26 | AU78: -26 | AV78: 8 | AW78: =AS76 ->  | AX78: =$AT$72 -> -26 | BE78: 77 | BF78: 0.7465397157 | BI78: -999 | BJ78: 25.3 | BK78: -999 | BL78: 43 | BM78: =IF(BL78="",NA(),COUNTIF(BL78:$BL$303,BL78)) -> 3 | BN78: 42.2475 | BO78: 2.68875 | BQ78: 43 | BR78: =IF(BQ78="",NA(),COUNTIF(BQ78:$BQ$303,BQ78)) -> 3 | BS78: 42.2475 | BT78: -47.31125 | BW78: =IF(BV78="",NA(),COUNTIF(BV78:$BV$303,BV78)) ->  | CB78: =IF(CA78="",NA(),COUNTIF(CA78:$CA$303,CA78)) ->  | CF78: 12 | CG78: =IF(CF78="",NA(),COUNTIF($CF78:CF$303,CF78)) -> 2 | CI78: =IF(CH78="",NA(),COUNTIF($CH78:CH$303,CH78)) -> 
A79: 0.2963141022 | B79: 0.9752804406 | C79: 0.725818354 | K79: 7 | L79: 28.40479388 | M79: 4.219910243e-06 | N79: 0.001484443944 | O79: -49.99999578 | Q79: -999 | V79: -49.99999578 | X79: -5.388877434 | Y79: 5.9122924e-10 | AB79: 44.462725 | AC79: 4.180225 | AD79: 0.3883173567 | AE79: 0.9956452748 | AI79: -999 | AL79: 5.9122924e-10 | AN79: -999 | AQ79: 5 | AR79: 70.61862178 | AT79: -26 | AU79: -26 | AW79: =BB90 -> 88.98979486 | AX79: =$BC$86 -> -50 | BE79: 78 | BF79: 0.8617913015 | BI79: -999 | BJ79: 25.3 | BK79: -999 | BL79: 45 | BM79: =IF(BL79="",NA(),COUNTIF(BL79:$BL$303,BL79)) -> 1 | BN79: 44.2125 | BO79: 0.53775 | BQ79: 45 | BR79: =IF(BQ79="",NA(),COUNTIF(BQ79:$BQ$303,BQ79)) -> 1 | BS79: 44.2125 | BT79: -49.46225 | BW79: =IF(BV79="",NA(),COUNTIF(BV79:$BV$303,BV79)) ->  | CB79: =IF(CA79="",NA(),COUNTIF(CA79:$CA$303,CA79)) ->  | CF79: 22 | CG79: =IF(CF79="",NA(),COUNTIF($CF79:CF$303,CF79)) -> 4 | CI79: =IF(CH79="",NA(),COUNTIF($CH79:CH$303,CH79)) -> 
A80: 0.5467431198 | B80: 1.401540471 | C80: 1.339241664 | K80: 7.5 | L80: 28.51084389 | M80: 6.530480506e-06 | N80: 0.001586594545 | O80: -49.99999347 | Q80: -999 | V80: -49.99999347 | X80: -5.307227776 | Y80: 6.366136836e-10 | AB80: 44.7613125 | AC80: 4.4788125 | AD80: 0.4457724758 | AE80: 0.9939746098 | AI80: -999 | AL80: 6.366136836e-10 | AN80: -999 | AQ80: 4 | AR80: 64.49489743 | AT80: -26 | AU80: -26 | AV80: 7 | AW80: =AS77 ->  | AX80: =$AT$72 -> -26 | BE80: 79 | BF80: 0.2184737064 | BI80: -999 | BJ80: 25.3 | BK80: -999 | BL80: 49 | BM80: =IF(BL80="",NA(),COUNTIF(BL80:$BL$303,BL80)) -> 2 | BN80: 48.1425 | BO80: 1.61325 | BQ80: 49 | BR80: =IF(BQ80="",NA(),COUNTIF(BQ80:$BQ$303,BQ80)) -> 2 | BS80: 48.1425 | BT80: -48.38675 | BW80: =IF(BV80="",NA(),COUNTIF(BV80:$BV$303,BV80)) ->  | CB80: =IF(CA80="",NA(),COUNTIF(CA80:$CA$303,CA80)) ->  | CF80: 32 | CG80: =IF(CF80="",NA(),COUNTIF($CF80:CF$303,CF80)) -> 1 | CI80: =IF(CH80="",NA(),COUNTIF($CH80:CH$303,CH80)) -> 
A81: -0.2926637651 | B81: 0.5137920489 | C81: -0.7168768907 | K81: 8 | L81: 28.62309534 | M81: 1.003903029e-05 | N81: 0.001697075893 | O81: -49.99998996 | Q81: -999 | V81: -49.99998996 | X81: -5.225578118 | Y81: 6.862083466e-10 | AB81: 45.0599 | AC81: 4.7774 | AD81: 0.5071900169 | AE81: 0.9918576574 | AI81: -999 | AL81: 6.862083466e-10 | AN81: -999 | AQ81: 3 | AR81: 58.37117307 | AT81: -26 | AU81: -26 | AW81: =BB91 -> 82.8660705 | AX81: =$BC$86 -> -50 | BE81: 80 | BF81: 0.9041025229 | BI81: -999 | BJ81: 25.3 | BK81: -999 | BL81: 36 | BM81: =IF(BL81="",NA(),COUNTIF(BL81:$BL$303,BL81)) -> 3 | BN81: 35.37 | BO81: 2.68875 | BQ81: 36 | BR81: =IF(BQ81="",NA(),COUNTIF(BQ81:$BQ$303,BQ81)) -> 3 | BS81: 35.37 | BT81: -47.31125 | BW81: =IF(BV81="",NA(),COUNTIF(BV81:$BV$303,BV81)) ->  | CB81: =IF(CA81="",NA(),COUNTIF(CA81:$CA$303,CA81)) ->  | CF81: 12 | CG81: =IF(CF81="",NA(),COUNTIF($CF81:CF$303,CF81)) -> 1 | CI81: =IF(CH81="",NA(),COUNTIF($CH81:CH$303,CH81)) -> 
A82: 0.7303785722 | B82: 0.6219860608 | C82: 1.789054821 | K82: 8.5 | L82: 28.7417504 | M82: 1.53300332e-05 | N82: 0.001816668857 | O82: -49.99998467 | Q82: -999 | V82: -49.99998467 | X82: -5.14392846 | Y82: 7.404728894e-10 | AB82: 45.3584875 | AC82: 5.0759875 | AD82: 0.57256998 | AE82: 0.9892246661 | AI82: -999 | AL82: 7.404728894e-10 | AN82: -999 | AQ82: 2 | AR82: 52.24744871 | AT82: -26 | AU82: -26 | AV82: 6 | AW82: =AS78 ->  | AX82: =$AT$72 -> -26 | BE82: 81 | BF82: 0.9821311869 | BI82: -999 | BJ82: 25.3 | BK82: -999 | BL82: 52 | BM82: =IF(BL82="",NA(),COUNTIF(BL82:$BL$303,BL82)) -> 2 | BN82: 51.09 | BO82: 1.61325 | BQ82: 52 | BR82: =IF(BQ82="",NA(),COUNTIF(BQ82:$BQ$303,BQ82)) -> 2 | BS82: 51.09 | BT82: -48.38675 | BW82: =IF(BV82="",NA(),COUNTIF(BV82:$BV$303,BV82)) ->  | CB82: =IF(CA82="",NA(),COUNTIF(CA82:$CA$303,CA82)) ->  | CF82: 14 | CG82: =IF(CF82="",NA(),COUNTIF($CF82:CF$303,CF82)) -> 3 | CI82: =IF(CH82="",NA(),COUNTIF($CH82:CH$303,CH82)) -> 
A83: -0.07475816837 | B83: 0.8743987108 | C83: -0.1831193666 | K83: 9 | L83: 28.86700404 | M83: 2.325407824e-05 | N83: 0.00194623643 | O83: -49.99997675 | Q83: -999 | V83: -49.99997675 | X83: -5.062278802 | Y83: 7.999247306e-10 | AB83: 45.657075 | AC83: 5.374575 | AD83: 0.6419123651 | AE83: 0.9860039496 | AI83: -999 | AL83: 7.999247306e-10 | AN83: -999 | AQ83: 1 | AR83: 46.12372436 | AT83: -26 | AU83: -26 | AW83: =BB92 -> 76.74234614 | AX83: =$BC$86 -> -50 | BE83: 82 | BF83: 0.6364326365 | BI83: -999 | BJ83: 25.3 | BK83: -999 | BL83: 40 | BM83: =IF(BL83="",NA(),COUNTIF(BL83:$BL$303,BL83)) -> 6 | BN83: 39.3 | BO83: 5.91525 | BQ83: 40 | BR83: =IF(BQ83="",NA(),COUNTIF(BQ83:$BQ$303,BQ83)) -> 6 | BS83: 39.3 | BT83: -44.08475 | BW83: =IF(BV83="",NA(),COUNTIF(BV83:$BV$303,BV83)) ->  | CB83: =IF(CA83="",NA(),COUNTIF(CA83:$CA$303,CA83)) ->  | CF83: 20 | CG83: =IF(CF83="",NA(),COUNTIF($CF83:CF$303,CF83)) -> 7 | CI83: =IF(CH83="",NA(),COUNTIF($CH83:CH$303,CH83)) -> 
A84: -0.3894001754 | B84: 0.8949653562 | C84: -0.9538317354 | K84: 9.5 | L84: 28.99904259 | M84: 3.503965868e-05 | N84: 0.002086733226 | O84: -49.99996496 | Q84: -999 | V84: -49.99996496 | X84: -4.980629144 | Y84: 8.651473272e-10 | AB84: 45.9556625 | AC84: 5.6731625 | AD84: 0.7152171723 | AE84: 0.9821230935 | AI84: -999 | AL84: 8.651473272e-10 | AN84: -999 | AQ84: 0 | AR84: 40 | AT84: -26 | AU84: -26 | AV84: 5 | AW84: =AS79 ->  | AX84: =$AT$72 -> -26 | BD84: 1 | BE84: 83 | BF84: 0.6389163472 | BI84: -999 | BJ84: 25.3 | BK84: -999 | BL84: 35 | BM84: =IF(BL84="",NA(),COUNTIF(BL84:$BL$303,BL84)) -> 5 | BN84: 34.3875 | BO84: 4.83975 | BQ84: 35 | BR84: =IF(BQ84="",NA(),COUNTIF(BQ84:$BQ$303,BQ84)) -> 5 | BS84: 34.3875 | BT84: -45.16025 | BW84: =IF(BV84="",NA(),COUNTIF(BV84:$BV$303,BV84)) ->  | CB84: =IF(CA84="",NA(),COUNTIF(CA84:$CA$303,CA84)) ->  | CF84: 20 | CG84: =IF(CF84="",NA(),COUNTIF($CF84:CF$303,CF84)) -> 6 | CI84: =IF(CH84="",NA(),COUNTIF($CH84:CH$303,CH84)) -> 
A85: 0.3676212904 | B85: 0.7648327289 | C85: 0.9004845801 | K85: 10 | L85: 29.13804227 | M85: 5.244756237e-05 | N85: 0.002239216155 | O85: -49.99994755 | Q85: -999 | V85: -49.99994755 | X85: -4.898979486 | Y85: 9.36800052e-10 | AB85: 46.25425 | AC85: 5.97175 | AD85: 0.7924844014 | AE85: 0.9775102335 | AI85: -999 | AL85: 9.36800052e-10 | AN85: -999 | AQ85: -1 | AR85: 33.87627564 | AT85: -26 | AU85: -26 | AW85: =BB93 -> 70.61862178 | AX85: =$BC$86 -> -50 | AZ85: t | BA85: For t axis | BB85: x | BC85: y | BD85: y nos | BE85: 84 | BF85: 0.7776708789 | BI85: -999 | BJ85: 25.3 | BK85: -999 | BL85: 46 | BM85: =IF(BL85="",NA(),COUNTIF(BL85:$BL$303,BL85)) -> 1 | BN85: 45.195 | BO85: 0.53775 | BQ85: 46 | BR85: =IF(BQ85="",NA(),COUNTIF(BQ85:$BQ$303,BQ85)) -> 1 | BS85: 45.195 | BT85: -49.46225 | BW85: =IF(BV85="",NA(),COUNTIF(BV85:$BV$303,BV85)) ->  | CB85: =IF(CA85="",NA(),COUNTIF(CA85:$CA$303,CA85)) ->  | CF85: 18 | CG85: =IF(CF85="",NA(),COUNTIF($CF85:CF$303,CF85)) -> 1 | CI85: =IF(CH85="",NA(),COUNTIF($CH85:CH$303,CH85)) -> 
A86: -0.2678412971 | B86: 0.4754540281 | C86: -0.6560745099 | K86: 10.5 | L86: 29.28416766 | M86: 7.79821945e-05 | N86: 0.002404856441 | O86: -49.99992202 | Q86: -999 | V86: -49.99992202 | X86: -4.817329827 | Y86: 1.015629287e-09 | AB86: 46.5528375 | AC86: 6.2703375 | AD86: 0.8737140525 | AE86: 0.9720953738 | AI86: -999 | AL86: 1.015629287e-09 | AN86: -999 | AQ86: -2 | AR86: 27.75255129 | AT86: -26 | AU86: -26 | AV86: 4 | AW86: =AS80 ->  | AX86: =$AT$72 -> -26 | AZ86: 12 | BA86: =IF($BD$10,$O$9+AZ86*$BB$9,NA()) -> 113.4846923 | BB86: =IF(AND(100>=BA86,0<=BA86),BA86,NA()) ->  | BC86: =AX15 -> -50 | BD86: =BC86-$BD$84 -> -51 | BE86: 85 | BF86: 0.8988912143 | BI86: -999 | BJ86: 25.3 | BK86: -999 | BL86: 37 | BM86: =IF(BL86="",NA(),COUNTIF(BL86:$BL$303,BL86)) -> 5 | BN86: 36.3525 | BO86: 4.83975 | BQ86: 37 | BR86: =IF(BQ86="",NA(),COUNTIF(BQ86:$BQ$303,BQ86)) -> 5 | BS86: 36.3525 | BT86: -45.16025 | BW86: =IF(BV86="",NA(),COUNTIF(BV86:$BV$303,BV86)) ->  | CB86: =IF(CA86="",NA(),COUNTIF(CA86:$CA$303,CA86)) ->  | CF86: 11 | CG86: =IF(CF86="",NA(),COUNTIF($CF86:CF$303,CF86)) -> 2 | CI86: =IF(CH86="",NA(),COUNTIF($CH86:CH$303,CH86)) -> 
A87: -0.05568952453 | B87: 1.05615771 | C87: -0.1364109191 | K87: 11 | L87: 29.43757013 | M87: 0.0001151782035 | N87: 0.002584953153 | O87: -49.99988482 | Q87: -999 | V87: -49.99988482 | X87: -4.735680169 | Y87: 1.102481199e-09 | AB87: 46.851425 | AC87: 6.568925 | AD87: 0.9589061257 | AE87: 0.9658117142 | AI87: -999 | AL87: 1.102481199e-09 | AN87: -999 | AQ87: -3 | AR87: 21.62882693 | AT87: -26 | AU87: -26 | AW87: =BB94 -> 64.49489743 | AX87: =$BC$86 -> -50 | AZ87: 11 | BA87: =IF($BD$10,$O$9+AZ87*$BB$9,NA()) -> 107.3609679 | BC87: =BC86 -> -50 | BD87: =BC87-$BD$84 -> -51 | BE87: 86 | BF87: 0.8283989914 | BI87: -999 | BJ87: 25.3 | BK87: -999 | BL87: 40 | BM87: =IF(BL87="",NA(),COUNTIF(BL87:$BL$303,BL87)) -> 5 | BN87: 39.3 | BO87: 4.83975 | BQ87: 40 | BR87: =IF(BQ87="",NA(),COUNTIF(BQ87:$BQ$303,BQ87)) -> 5 | BS87: 39.3 | BT87: -45.16025 | BW87: =IF(BV87="",NA(),COUNTIF(BV87:$BV$303,BV87)) ->  | CB87: =IF(CA87="",NA(),COUNTIF(CA87:$CA$303,CA87)) ->  | CF87: 24 | CG87: =IF(CF87="",NA(),COUNTIF($CF87:CF$303,CF87)) -> 1 | CI87: =IF(CH87="",NA(),COUNTIF($CH87:CH$303,CH87)) -> 
A88: -0.3803664571 | B88: 0.8409173546 | C88: -0.9317037352 | K88: 11.5 | L88: 29.59838627 | M88: 0.0001689856598 | N88: 0.002780948449 | O88: -49.99983101 | Q88: -999 | V88: -49.99983101 | X88: -4.654030511 | Y88: 1.198316981e-09 | AB88: 47.1500125 | AC88: 6.8675125 | AD88: 1.048060621 | AE88: 0.9585969554 | AI88: -999 | AL88: 1.198316981e-09 | AN88: -999 | AQ88: -4 | AR88: 15.50510257 | AT88: -26 | AU88: -26 | AV88: 3 | AW88: =AS81 ->  | AX88: =$AT$72 -> -26 | AZ88: 10 | BA88: 101.2372436 | BC88: =BC87 -> -50 | BD88: -51 | BE88: 87 | BF88: 0.6829485036 | BI88: -999 | BJ88: 25.3 | BK88: -999 | BL88: 35 | BM88: =IF(BL88="",NA(),COUNTIF(BL88:$BL$303,BL88)) -> 4 | BN88: 34.3875 | BO88: 3.76425 | BQ88: 35 | BR88: =IF(BQ88="",NA(),COUNTIF(BQ88:$BQ$303,BQ88)) -> 4 | BS88: 34.3875 | BT88: -46.23575 | BW88: =IF(BV88="",NA(),COUNTIF(BV88:$BV$303,BV88)) ->  | CB88: =IF(CA88="",NA(),COUNTIF(CA88:$CA$303,CA88)) ->  | CF88: 19 | CG88: =IF(CF88="",NA(),COUNTIF($CF88:CF$303,CF88)) -> 3 | CI88: =IF(CH88="",NA(),COUNTIF($CH88:CH$303,CH88)) -> 
A89: 0.6550726162 | B89: 0.6639156347 | C89: 1.604593654 | K89: 12 | L89: 29.76673621 | M89: 0.0002462828138 | N89: 0.002994444772 | O89: -49.99975372 | Q89: -999 | V89: -49.99975372 | X89: -4.572380853 | Y89: 1.304230759e-09 | AB89: 47.4486 | AC89: 7.1661 | AD89: 1.141177538 | AE89: 0.9503945573 | AI89: -999 | AL89: 1.304230759e-09 | AN89: -999 | AQ89: -5 | AR89: 9.381378215 | AT89: -26 | AU89: -26 | AW89: =BB95 -> 58.37117307 | AX89: =$BC$86 -> -50 | AZ89: 9 | BA89: 95.11351921 | BB89: 95.11351921 | BC89: -50 | BD89: -51 | BE89: 88 | BF89: 0.9147632904 | BI89: -999 | BJ89: 25.3 | BK89: -999 | BL89: 51 | BM89: =IF(BL89="",NA(),COUNTIF(BL89:$BL$303,BL89)) -> 2 | BN89: 50.1075 | BO89: 1.61325 | BQ89: 51 | BR89: =IF(BQ89="",NA(),COUNTIF(BQ89:$BQ$303,BQ89)) -> 2 | BS89: 50.1075 | BT89: -48.38675 | BW89: =IF(BV89="",NA(),COUNTIF(BV89:$BV$303,BV89)) ->  | CB89: =IF(CA89="",NA(),COUNTIF(CA89:$CA$303,CA89)) ->  | CF89: 15 | CG89: =IF(CF89="",NA(),COUNTIF($CF89:CF$303,CF89)) -> 2 | CI89: =IF(CH89="",NA(),COUNTIF($CH89:CH$303,CH89)) -> 
A90: 0.05193436848 | B90: 1.310176966 | C90: 0.1272127029 | K90: 12.5 | L90: 29.94272208 | M90: 0.0003565521545 | N90: 0.00322722424 | O90: -49.99964345 | Q90: -999 | V90: -49.99964345 | X90: -4.490731195 | Y90: 1.421470362e-09 | AB90: 47.7471875 | AC90: 7.4646875 | AD90: 1.238256877 | AE90: 0.9411549096 | AI90: -999 | AL90: 1.421470362e-09 | AN90: -999 | AQ90: -6 | AR90: 3.257653858 | AT90: -26 | AU90: -26 | AV90: 2 | AW90: =AS82 ->  | AX90: =$AT$72 -> -26 | AZ90: 8 | BA90: 88.98979486 | BB90: 88.98979486 | BC90: -50 | BD90: -51 | BE90: 89 | BF90: 0.7962735333 | BI90: -999 | BJ90: 25.3 | BK90: -999 | BL90: 42 | BM90: =IF(BL90="",NA(),COUNTIF(BL90:$BL$303,BL90)) -> 2 | BN90: 41.265 | BO90: 1.61325 | BQ90: 42 | BR90: =IF(BQ90="",NA(),COUNTIF(BQ90:$BQ$303,BQ90)) -> 2 | BS90: 41.265 | BT90: -48.38675 | BW90: =IF(BV90="",NA(),COUNTIF(BV90:$BV$303,BV90)) ->  | CB90: =IF(CA90="",NA(),COUNTIF(CA90:$CA$303,CA90)) ->  | CF90: 30 | CG90: =IF(CF90="",NA(),COUNTIF($CF90:CF$303,CF90)) -> 1 | CI90: =IF(CH90="",NA(),COUNTIF($CH90:CH$303,CH90)) -> 
A91: 0.07547326406 | B91: 1.513529173 | C91: 0.1848709862 | K91: 13 | L91: 30.12642627 | M91: 0.0005127630555 | N91: 0.003481270532 | O91: -49.99948724 | Q91: -999 | V91: -49.99948724 | X91: -4.409081537 | Y91: 1.551462373e-09 | AB91: 48.045775 | AC91: 7.763275 | AD91: 1.339298638 | AE91: 0.9308364038 | AI91: -999 | AL91: 1.551462373e-09 | AN91: -999 | AQ91: -7 | AR91: -2.866070499 | AT91: -26 | AU91: -26 | AW91: =BB96 -> 52.24744871 | AX91: =$BC$86 -> -50 | AZ91: 7 | BA91: 82.8660705 | BB91: 82.8660705 | BC91: -50 | BD91: -51 | BE91: 90 | BF91: 0.6841045506 | BI91: -999 | BJ91: 25.3 | BK91: -999 | BL91: 42 | BM91: =IF(BL91="",NA(),COUNTIF(BL91:$BL$303,BL91)) -> 1 | BN91: 41.265 | BO91: 0.53775 | BQ91: 42 | BR91: =IF(BQ91="",NA(),COUNTIF(BQ91:$BQ$303,BQ91)) -> 1 | BS91: 41.265 | BT91: -49.46225 | BW91: =IF(BV91="",NA(),COUNTIF(BV91:$BV$303,BV91)) ->  | CB91: =IF(CA91="",NA(),COUNTIF(CA91:$CA$303,CA91)) ->  | CF91: 35 | CG91: =IF(CF91="",NA(),COUNTIF($CF91:CF$303,CF91)) -> 3 | CI91: =IF(CH91="",NA(),COUNTIF($CH91:CH$303,CH91)) -> 
A92: -0.4737981873 | B92: 1.440037641 | C92: -1.1605638 | K92: 13.5 | L92: 30.31790988 | M92: 0.0007325125875 | N92: 0.003758793601 | O92: -49.99926749 | Q92: -999 | V92: -49.99926749 | X92: -4.327431879 | Y92: 1.69583925e-09 | AB92: 48.3443625 | AC92: 8.0618625 | AD92: 1.444302822 | AE92: 0.9194063733 | AI92: -999 | AL92: 1.69583925e-09 | AN92: -999 | AQ92: -8 | AR92: -8.989794856 | AT92: -26 | AU92: -26 | AV92: 1 | AW92: =AS83 ->  | AX92: =$AT$72 -> -26 | AZ92: 6 | BA92: 76.74234614 | BB92: 76.74234614 | BC92: -50 | BD92: -51 | BE92: 91 | BF92: 0.3996577002 | BI92: -999 | BJ92: 25.3 | BK92: -999 | BL92: 33 | BM92: =IF(BL92="",NA(),COUNTIF(BL92:$BL$303,BL92)) -> 5 | BN92: 32.4225 | BO92: 4.83975 | BQ92: 33 | BR92: =IF(BQ92="",NA(),COUNTIF(BQ92:$BQ$303,BQ92)) -> 5 | BS92: 32.4225 | BT92: -45.16025 | BW92: =IF(BV92="",NA(),COUNTIF(BV92:$BV$303,BV92)) ->  | CB92: =IF(CA92="",NA(),COUNTIF(CA92:$CA$303,CA92)) ->  | CF92: 33 | CG92: =IF(CF92="",NA(),COUNTIF($CF92:CF$303,CF92)) -> 2 | CI92: =IF(CH92="",NA(),COUNTIF($CH92:CH$303,CH92)) -> 
A93: -0.2584946426 | B93: 0.6275840409 | C93: -0.6331799757 | K93: 14 | L93: 30.51721106 | M93: 0.001039484842 | N93: 0.00406225758 | O93: -49.99896052 | Q93: -999 | V93: -49.99896052 | X93: -4.245782221 | Y93: 1.856476884e-09 | AB93: 48.64295 | AC93: 8.36045 | AD93: 1.553269427 | AE93: 0.9068418818 | AI93: -999 | AL93: 1.856476884e-09 | AN93: -999 | AQ93: -9 | AR93: -15.11351921 | AT93: -26 | AU93: -26 | AW93: =BB97 -> 46.12372436 | AX93: =$BC$86 -> -50 | AZ93: 5 | BA93: 70.61862178 | BB93: 70.61862178 | BC93: -50 | BD93: -51 | BE93: 92 | BF93: 0.1976581998 | BI93: -999 | BJ93: 25.3 | BK93: -999 | BL93: 37 | BM93: =IF(BL93="",NA(),COUNTIF(BL93:$BL$303,BL93)) -> 4 | BN93: 36.3525 | BO93: 3.76425 | BQ93: 37 | BR93: =IF(BQ93="",NA(),COUNTIF(BQ93:$BQ$303,BQ93)) -> 4 | BS93: 36.3525 | BT93: -46.23575 | BW93: =IF(BV93="",NA(),COUNTIF(BV93:$BV$303,BV93)) ->  | CB93: =IF(CA93="",NA(),COUNTIF(CA93:$CA$303,CA93)) ->  | CF93: 14 | CG93: =IF(CF93="",NA(),COUNTIF($CF93:CF$303,CF93)) -> 2 | CI93: =IF(CH93="",NA(),COUNTIF($CH93:CH$303,CH93)) -> 
A94: 0.5453041426 | B94: 0.8951280954 | C94: 1.335716904 | K94: 14.5 | L94: 30.72434346 | M94: 0.001465297919 | N94: 0.004394412318 | O94: -49.9985347 | Q94: -999 | V94: -49.9985347 | X94: -4.164132563 | Y94: 2.035531219e-09 | AB94: 48.9415375 | AC94: 8.6590375 | AD94: 1.666198454 | AE94: 0.8931303585 | AI94: -999 | AL94: 2.035531219e-09 | AN94: -999 | AQ94: -10 | AR94: -21.23724357 | AT94: -26 | AU94: -26 | AV94: 0 | AW94: =AS84 ->  | AX94: =$AT$72 -> -26 | AZ94: 4 | BA94: 64.49489743 | BB94: 64.49489743 | BC94: -50 | BD94: -51 | BE94: 93 | BF94: 0.5677260198 | BI94: -999 | BJ94: 25.3 | BK94: -999 | BL94: 49 | BM94: =IF(BL94="",NA(),COUNTIF(BL94:$BL$303,BL94)) -> 1 | BN94: 48.1425 | BO94: 0.53775 | BQ94: 49 | BR94: =IF(BQ94="",NA(),COUNTIF(BQ94:$BQ$303,BQ94)) -> 1 | BS94: 48.1425 | BT94: -49.46225 | BW94: =IF(BV94="",NA(),COUNTIF(BV94:$BV$303,BV94)) ->  | CB94: =IF(CA94="",NA(),COUNTIF(CA94:$CA$303,CA94)) ->  | CF94: 20 | CG94: =IF(CF94="",NA(),COUNTIF($CF94:CF$303,CF94)) -> 5 | CI94: =IF(CH94="",NA(),COUNTIF($CH94:CH$303,CH94)) -> 
A95: -0.660619443 | B95: 1.238175666 | C95: -1.618180549 | K95: 15 | L95: 30.9392947 | M95: 0.002051815982 | N95: 0.004758329007 | O95: -49.99794818 | Q95: -999 | V95: -49.99794818 | X95: -4.082482905 | Y95: 2.235488191e-09 | AB95: 49.240125 | AC95: 8.957625 | AD95: 1.783089903 | AE95: 0.8782700376 | AI95: -999 | AL95: 2.235488191e-09 | AN95: -999 | AQ95: -11 | AR95: -27.36096793 | AT95: -26 | AU95: -26 | AW95: =BB98 -> 40 | AX95: =$BC$86 -> -50 | AZ95: 3 | BA95: 58.37117307 | BB95: 58.37117307 | BC95: -50 | BD95: -51 | BE95: 94 | BF95: 0.578137327 | BI95: -999 | BJ95: 25.3 | BK95: -999 | BL95: 31 | BM95: =IF(BL95="",NA(),COUNTIF(BL95:$BL$303,BL95)) -> 1 | BN95: 30.4575 | BO95: 0.53775 | BQ95: 31 | BR95: =IF(BQ95="",NA(),COUNTIF(BQ95:$BQ$303,BQ95)) -> 1 | BS95: 30.4575 | BT95: -49.46225 | BW95: =IF(BV95="",NA(),COUNTIF(BV95:$BV$303,BV95)) ->  | CB95: =IF(CA95="",NA(),COUNTIF(CA95:$CA$303,CA95)) ->  | CF95: 28 | CG95: =IF(CF95="",NA(),COUNTIF($CF95:CF$303,CF95)) -> 2 | CI95: =IF(CH95="",NA(),COUNTIF($CH95:CH$303,CH95)) -> 
A96: -0.3980795929 | B96: 0.6550943652 | C96: -0.9750918796 | K96: 15.5 | L96: 31.16202484 | M96: 0.002854010637 | N96: 0.005157440443 | O96: -49.99714599 | Q96: -999 | V96: -49.99714599 | X96: -4.000833247 | Y96: 2.459222394e-09 | AB96: 49.5387125 | AC96: 9.2562125 | AD96: 1.903943774 | AE96: 0.8622702296 | AI96: -999 | AL96: 2.459222394e-09 | AN96: -999 | AQ96: -12 | AR96: -33.48469228 | AT96: -26 | AU96: -26 | AV96: -1 | AW96: =AS85 ->  | AX96: =$AT$72 -> -26 | AZ96: 2 | BA96: 52.24744871 | BB96: 52.24744871 | BC96: -50 | BD96: -51 | BE96: 95 | BF96: 0.7856412269 | BI96: -999 | BJ96: 25.3 | BK96: -999 | BL96: 35 | BM96: =IF(BL96="",NA(),COUNTIF(BL96:$BL$303,BL96)) -> 3 | BN96: 34.3875 | BO96: 2.68875 | BQ96: 35 | BR96: =IF(BQ96="",NA(),COUNTIF(BQ96:$BQ$303,BQ96)) -> 3 | BS96: 34.3875 | BT96: -47.31125 | BW96: =IF(BV96="",NA(),COUNTIF(BV96:$BV$303,BV96)) ->  | CB96: =IF(CA96="",NA(),COUNTIF(CA96:$CA$303,CA96)) ->  | CF96: 15 | CG96: =IF(CF96="",NA(),COUNTIF($CF96:CF$303,CF96)) -> 1 | CI96: =IF(CH96="",NA(),COUNTIF($CH96:CH$303,CH96)) -> 
A97: -0.3940104278 | B97: 1.427613705 | C97: -0.9651245015 | K97: 16 | L97: 31.39246505 | M97: 0.003943460272 | N97: 0.005595586523 | O97: -49.99605654 | Q97: -999 | V97: -49.99605654 | X97: -3.919183588 | Y97: 2.710063119e-09 | AB97: 49.8373 | AC97: 9.5548 | AD97: 2.028760068 | AE97: 0.8451513976 | AI97: -999 | AL97: 2.710063119e-09 | AN97: -999 | AW97: =BB99 -> 33.87627564 | AX97: =$BC$86 -> -50 | AZ97: 1 | BA97: 46.12372436 | BB97: 46.12372436 | BC97: -50 | BD97: -51 | BE97: 96 | BF97: 0.4825110026 | BI97: -999 | BJ97: 25.3 | BK97: -999 | BL97: 35 | BM97: =IF(BL97="",NA(),COUNTIF(BL97:$BL$303,BL97)) -> 2 | BN97: 34.3875 | BO97: 1.61325 | BQ97: 35 | BR97: =IF(BQ97="",NA(),COUNTIF(BQ97:$BQ$303,BQ97)) -> 2 | BS97: 34.3875 | BT97: -48.38675 | BW97: =IF(BV97="",NA(),COUNTIF(BV97:$BV$303,BV97)) ->  | CB97: =IF(CA97="",NA(),COUNTIF(CA97:$CA$303,CA97)) ->  | CF97: 33 | CG97: =IF(CF97="",NA(),COUNTIF($CF97:CF$303,CF97)) -> 1 | CI97: =IF(CH97="",NA(),COUNTIF($CH97:CH$303,CH97)) -> 
A98: -0.5068208337 | B98: 1.351253004 | C98: -1.241452434 | K98: 16.5 | L98: 31.63051625 | M98: 0.005412576602 | N98: 0.006077065645 | O98: -49.99458742 | Q98: -999 | V98: -49.99458742 | X98: -3.83753393 | Y98: 2.991877882e-09 | AB98: 50.1358875 | AC98: 9.8533875 | AD98: 2.157538783 | AE98: 0.8269450417 | AI98: -999 | AL98: 2.991877882e-09 | AN98: -999 | AR98: Label s pile X axis | AU98: 1.4 | AV98: -2 | AW98: =AS86 ->  | AX98: =$AT$72 -> -26 | AZ98: 0 | BA98: 40 | BB98: 40 | BC98: -50 | BD98: -51 | BE98: 97 | BF98: 0.2983469404 | BI98: -999 | BJ98: 25.3 | BK98: -999 | BL98: 33 | BM98: =IF(BL98="",NA(),COUNTIF(BL98:$BL$303,BL98)) -> 4 | BN98: 32.4225 | BO98: 3.76425 | BQ98: 33 | BR98: =IF(BQ98="",NA(),COUNTIF(BQ98:$BQ$303,BQ98)) -> 4 | BS98: 32.4225 | BT98: -46.23575 | BW98: =IF(BV98="",NA(),COUNTIF(BV98:$BV$303,BV98)) ->  | CB98: =IF(CA98="",NA(),COUNTIF(CA98:$CA$303,CA98)) ->  | CF98: 31 | CG98: =IF(CF98="",NA(),COUNTIF($CF98:CF$303,CF98)) -> 2 | CI98: =IF(CH98="",NA(),COUNTIF($CH98:CH$303,CH98)) -> 
A99: 0.6999513025 | B99: 0.9279781811 | C99: 1.714523536 | K99: 17 | L99: 31.87604787 | M99: 0.007379642872 | N99: 0.006606692758 | O99: -49.99262036 | Q99: -999 | V99: -49.99262036 | X99: -3.755884272 | Y99: 3.309171288e-09 | AB99: 50.434475 | AC99: 10.151975 | AD99: 2.29027992 | AE99: 0.8076934264 | AI99: -999 | AL99: 3.309171288e-09 | AN99: -999 | AR99: 0 | AS99: =$AX$35+AR99*$AZ$3 ->  | AT99: =$AY$35 -> -19 | AU99: =AT99+$AU$98 -> -17.6 | AW99: =BB100 -> 27.75255129 | AX99: =$BC$86 -> -50 | AZ99: -1 | BA99: 33.87627564 | BB99: 33.87627564 | BC99: -50 | BD99: -51 | BE99: 98 | BF99: 0.2827904113 | BI99: -999 | BJ99: 25.3 | BK99: -999 | BL99: 51 | BM99: =IF(BL99="",NA(),COUNTIF(BL99:$BL$303,BL99)) -> 1 | BN99: 50.1075 | BO99: 0.53775 | BQ99: 51 | BR99: =IF(BQ99="",NA(),COUNTIF(BQ99:$BQ$303,BQ99)) -> 1 | BS99: 50.1075 | BT99: -49.46225 | BW99: =IF(BV99="",NA(),COUNTIF(BV99:$BV$303,BV99)) ->  | CB99: =IF(CA99="",NA(),COUNTIF(CA99:$CA$303,CA99)) ->  | CF99: 21 | CG99: =IF(CF99="",NA(),COUNTIF($CF99:CF$303,CF99)) -> 3 | CI99: =IF(CH99="",NA(),COUNTIF($CH99:CH$303,CH99)) -> 
A100: 0.1303080541 | B100: 0.8156475604 | C100: 0.319188242 | K100: 17.5 | L100: 32.12889679 | M100: 0.00999473625 | N100: 0.007189864897 | O100: -49.99000526 | Q100: -999 | V100: -49.99000526 | X100: -3.674234614 | Y100: 3.667201635e-09 | AB100: 50.7330625 | AC100: 10.4505625 | AD100: 2.426983479 | AE100: 0.7874490919 | AI100: -999 | AL100: 3.667201635e-09 | AN100: -999 | AQ100: =AR100*$AZ$3 -> 10 | AR100: 1 | AT100: -19 | AU100: =AT100+$AU$98 -> -17.6 | AV100: -3 | AW100: =AS87 ->  | AX100: =$AT$72 -> -26 | AZ100: -2 | BA100: 27.75255129 | BB100: 27.75255129 | BC100: -50 | BD100: -51 | BE100: 99 | BF100: 0.7889123894 | BI100: -999 | BJ100: 25.3 | BK100: -999 | BL100: 43 | BM100: =IF(BL100="",NA(),COUNTIF(BL100:$BL$303,BL100)) -> 2 | BN100: 42.2475 | BO100: 1.61325 | BQ100: 43 | BR100: =IF(BQ100="",NA(),COUNTIF(BQ100:$BQ$303,BQ100)) -> 2 | BS100: 42.2475 | BT100: -48.38675 | BW100: =IF(BV100="",NA(),COUNTIF(BV100:$BV$303,BV100)) ->  | CB100: =IF(CA100="",NA(),COUNTIF(CA100:$CA$303,CA100)) ->  | CF100: 19 | CG100: =IF(CF100="",NA(),COUNTIF($CF100:CF$303,CF100)) -> 2 | CI100: =IF(CH100="",NA(),COUNTIF($CH100:CH$303,CH100)) -> 
A101: -0.04368606775 | B101: 0.6171817393 | C101: -0.1070085749 | K101: 18 | L101: 32.3888663 | M101: 0.01344658602 | N101: 0.007832635102 | O101: -49.98655341 | Q101: -999 | V101: -49.98655341 | X101: -3.592584956 | Y101: 4.072126943e-09 | AB101: 51.03165 | AC101: 10.74915 | AD101: 2.56764946 | AE101: 0.7662742418 | AI101: -999 | AL101: 4.072126943e-09 | AN101: -999 | AQ101: =AR101*$AZ$3 -> 20 | AR101: 2 | AT101: -19 | AU101: -17.6 | AW101: =BB101 -> 21.62882693 | AX101: =$BC$86 -> -50 | AZ101: -3 | BA101: 21.62882693 | BB101: 21.62882693 | BC101: -50 | BD101: -51 | BE101: 100 | BF101: 0.1501352973 | BI101: -999 | BJ101: 25.3 | BK101: -999 | BL101: 40 | BM101: =IF(BL101="",NA(),COUNTIF(BL101:$BL$303,BL101)) -> 4 | BN101: 39.3 | BO101: 3.76425 | BQ101: 40 | BR101: =IF(BQ101="",NA(),COUNTIF(BQ101:$BQ$303,BQ101)) -> 4 | BS101: 39.3 | BT101: -46.23575 | BW101: =IF(BV101="",NA(),COUNTIF(BV101:$BV$303,BV101)) ->  | CB101: =IF(CA101="",NA(),COUNTIF(CA101:$CA$303,CA101)) ->  | CF101: 14 | CG101: =IF(CF101="",NA(),COUNTIF($CF101:CF$303,CF101)) -> 1 | CI101: =IF(CH101="",NA(),COUNTIF($CH101:CH$303,CH101)) -> 
A102: -0.06412152439 | B102: 0.7188424534 | C102: -0.1570650163 | K102: 18.5 | L102: 32.65572532 | M102: 0.01797038717 | N102: 0.00854179573 | O102: -49.98202961 | Q102: -999 | V102: -49.98202961 | X102: -3.510935298 | Y102: 4.531181302e-09 | AB102: 51.3302375 | AC102: 11.0477375 | AD102: 2.712277864 | AE102: 0.7442399692 | AI102: -999 | AL102: 4.531181302e-09 | AN102: -999 | AQ102: 30 | AR102: 3 | AT102: -19 | AU102: -17.6 | AV102: -4 | AW102: =AS88 ->  | AX102: =$AT$72 -> -26 | AZ102: -4 | BA102: 15.50510257 | BB102: 15.50510257 | BC102: -50 | BD102: -51 | BF102: 0.9250412025 | BI102: -999 | BJ102: 25.3 | BK102: -999 | BL102: 40 | BM102: =IF(BL102="",NA(),COUNTIF(BL102:$BL$303,BL102)) -> 3 | BN102: 39.3 | BO102: 2.68875 | BQ102: 40 | BR102: =IF(BQ102="",NA(),COUNTIF(BQ102:$BQ$303,BQ102)) -> 3 | BS102: 39.3 | BT102: -47.31125 | BW102: =IF(BV102="",NA(),COUNTIF(BV102:$BV$303,BV102)) ->  | CB102: =IF(CA102="",NA(),COUNTIF(CA102:$CA$303,CA102)) ->  | CF102: 16 | CG102: =IF(CF102="",NA(),COUNTIF($CF102:CF$303,CF102)) -> 2 | CI102: =IF(CH102="",NA(),COUNTIF($CH102:CH$303,CH102)) -> 
A103: 0.4328921637 | B103: 0.6851070476 | C103: 1.060364915 | K103: 19 | L103: 32.92920764 | M103: 0.02385654443 | N103: 0.009324972237 | O103: -49.97614346 | Q103: -999 | V103: -49.97614346 | X103: -3.42928564 | Y103: 5.052881789e-09 | AB103: 51.628825 | AC103: 11.346325 | AD103: 2.860868689 | AE103: 0.7214253449 | AI103: -999 | AL103: 5.052881789e-09 | AN103: -999 | AQ103: 40 | AR103: 4 | AT103: -19 | AU103: -17.6 | AW103: =BB102 -> 15.50510257 | AX103: =$BC$86 -> -50 | AZ103: -5 | BA103: 9.381378215 | BB103: 9.381378215 | BC103: -50 | BD103: -51 | BL103: 47 | BM103: =IF(BL103="",NA(),COUNTIF(BL103:$BL$303,BL103)) -> 2 | BN103: 46.1775 | BO103: 1.61325 | BQ103: 47 | BR103: =IF(BQ103="",NA(),COUNTIF(BQ103:$BQ$303,BQ103)) -> 2 | BS103: 46.1775 | BT103: -48.38675 | BW103: =IF(BV103="",NA(),COUNTIF(BV103:$BV$303,BV103)) ->  | CB103: =IF(CA103="",NA(),COUNTIF(CA103:$CA$303,CA103)) ->  | CF103: 16 | CG103: =IF(CF103="",NA(),COUNTIF($CF103:CF$303,CF103)) -> 1 | CI103: =IF(CH103="",NA(),COUNTIF($CH103:CH$303,CH103)) -> 
A104: -0.7695811626 | B104: 0.8386000595 | C104: -1.885081164 | K104: 19.5 | L104: 33.20901145 | M104: 0.03146026264 | N104: 0.01019072858 | O104: -49.96853974 | Q104: -999 | V104: -49.96853974 | X104: -3.347635982 | Y104: 5.647290388e-09 | AB104: 51.9274125 | AC104: 11.6449125 | AD104: 3.013421936 | AE104: 0.6979164503 | AI104: -999 | AL104: 5.647290388e-09 | AN104: -999 | AQ104: 50 | AR104: 5 | AT104: -19 | AU104: -17.6 | AV104: -5 | AW104: =AS89 ->  | AX104: =$AT$72 -> -26 | AZ104: -6 | BA104: 3.257653858 | BB104: 3.257653858 | BC104: -50 | BD104: -51 | BL104: 29 | BM104: =IF(BL104="",NA(),COUNTIF(BL104:$BL$303,BL104)) -> 1 | BN104: 28.4925 | BO104: 0.53775 | BQ104: 29 | BR104: =IF(BQ104="",NA(),COUNTIF(BQ104:$BQ$303,BQ104)) -> 1 | BS104: 28.4925 | BT104: -49.46225 | BW104: =IF(BV104="",NA(),COUNTIF(BV104:$BV$303,BV104)) ->  | CB104: =IF(CA104="",NA(),COUNTIF(CA104:$CA$303,CA104)) ->  | CF104: 19 | CG104: =IF(CF104="",NA(),COUNTIF($CF104:CF$303,CF104)) -> 1 | CI104: =IF(CH104="",NA(),COUNTIF($CH104:CH$303,CH104)) -> 
A105: -0.2381580151 | B105: 0.1759696637 | C105: -0.583365615 | K105: 20 | L105: 33.49479896 | M105: 0.04121182567 | N105: 0.01114868546 | O105: -49.95878817 | Q105: -999 | V105: -49.95878817 | X105: -3.265986324 | Y105: 6.326337013e-09 | AB105: 52.226 | AC105: 11.9435 | AD105: 3.169937606 | AE105: 0.6738052329 | AI105: -999 | AL105: 6.326337013e-09 | AN105: -999 | AQ105: 60 | AR105: 6 | AT105: -19 | AU105: -17.6 | AW105: =BB103 -> 9.381378215 | AX105: =$BC$86 -> -50 | AZ105: -7 | BA105: -2.866070499 | BC105: -50 | BD105: -51 | BF105: H1 sample | BJ105: 0.8 | BL105: 37 | BM105: =IF(BL105="",NA(),COUNTIF(BL105:$BL$303,BL105)) -> 3 | BN105: 36.3525 | BO105: 2.68875 | BQ105: 37 | BR105: =IF(BQ105="",NA(),COUNTIF(BQ105:$BQ$303,BQ105)) -> 3 | BS105: 36.3525 | BT105: -47.31125 | BW105: =IF(BV105="",NA(),COUNTIF(BV105:$BV$303,BV105)) ->  | CB105: =IF(CA105="",NA(),COUNTIF(CA105:$CA$303,CA105)) ->  | CF105: 4 | CG105: =IF(CF105="",NA(),COUNTIF($CF105:CF$303,CF105)) -> 1 | CI105: =IF(CH105="",NA(),COUNTIF($CH105:CH$303,CH105)) -> 
A106: -0.5725609214 | B106: 0.4836880761 | C106: -1.402482104 | K106: 20.5 | L106: 33.78619625 | M106: 0.05362731676 | N106: 0.01220965276 | O106: -49.94637268 | Q106: -999 | V106: -49.94637268 | X106: -3.184336666 | Y106: 7.1042025e-09 | AB106: 52.5245875 | AC106: 12.2420875 | AD106: 3.330415697 | AE106: 0.6491883787 | AI106: -999 | AL106: 7.1042025e-09 | AN106: -999 | AQ106: 70 | AR106: 7 | AT106: -19 | AU106: -17.6 | AV106: -6 | AW106: =AS90 ->  | AX106: =$AT$72 -> -26 | AZ106: -8 | BA106: -8.989794856 | BC106: -50 | BD106: -51 | BE106: 1 | BF106: rand no. | BG106: data point z | BH106: data point | BI106: Grey | BK106: New Sample, for display | BL106: 32 | BM106: =IF(BL106="",NA(),COUNTIF(BL106:$BL$303,BL106)) -> 1 | BN106: 31.44 | BO106: 0.53775 | BQ106: 32 | BR106: =IF(BQ106="",NA(),COUNTIF(BQ106:$BQ$303,BQ106)) -> 1 | BS106: 31.44 | BT106: -49.46225 | BW106: =IF(BV106="",NA(),COUNTIF(BV106:$BV$303,BV106)) ->  | CB106: =IF(CA106="",NA(),COUNTIF(CA106:$CA$303,CA106)) ->  | CF106: 11 | CG106: =IF(CF106="",NA(),COUNTIF($CF106:CF$303,CF106)) -> 1 | CI106: =IF(CH106="",NA(),COUNTIF($CH106:CH$303,CH106)) -> 
A107: 0.1493872238 | B107: 0.8800701472 | C107: 0.3659224725 | K107: 21 | L107: 34.08279329 | M107: 0.06931943028 | N107: 0.01338577712 | O107: -49.93068057 | Q107: -999 | V107: -49.93068057 | X107: -3.102687008 | Y107: 7.997807883e-09 | AB107: 52.823175 | AC107: 12.540675 | AD107: 3.49485621 | AE107: 0.6241661073 | AI107: -999 | AL107: 7.997807883e-09 | AN107: -999 | AQ107: 80 | AR107: 8 | AT107: -19 | AU107: -17.6 | AW107: =BB104 -> 3.257653858 | AX107: =$BC$86 -> -50 | AZ107: -9 | BA107: -15.11351921 | BC107: -50 | BD107: -51 | BE107: 2 | BF107: =$G$12 -> 0.1477786644 | BG107: =IF(AND($BD$4,$BE106<=$K$14),NORMSINV(BF107),"") -> -1.046008022 | BH107: =IF(BG107="","",$V$9+$R$11*BG107) -> 49.30987967 | BI107: =IF(AND(NOT($BB$12),$BB$4,$BD$2,BH107<>"",$D$4<>""),BH107,-999) -> -999 | BJ107: =$AX$8-$BJ$105 -> 24.2 | BK107: =IF(AND($BB$12,$BD$2,BH107<>"",$D$4<>""),BH107,-999) -> -999 | BL107: 43 | BM107: =IF(BL107="",NA(),COUNTIF(BL107:$BL$303,BL107)) -> 1 | BN107: 42.2475 | BO107: 0.53775 | BQ107: 43 | BR107: =IF(BQ107="",NA(),COUNTIF(BQ107:$BQ$303,BQ107)) -> 1 | BS107: 42.2475 | BT107: -49.46225 | BW107: =IF(BV107="",NA(),COUNTIF(BV107:$BV$303,BV107)) ->  | CB107: =IF(CA107="",NA(),COUNTIF(CA107:$CA$303,CA107)) ->  | CF107: 20 | CG107: =IF(CF107="",NA(),COUNTIF($CF107:CF$303,CF107)) -> 4 | CI107: =IF(CH107="",NA(),COUNTIF($CH107:CH$303,CH107)) -> 
A108: 1.071731186 | B108: 1.373518374 | C108: 2.625194548 | K108: 21.5 | L108: 34.38414423 | M108: 0.08900791034 | N108: 0.01469070653 | O108: -49.91099209 | Q108: -999 | V108: -49.91099209 | X108: -3.021037349 | Y108: 9.027414372e-09 | AB108: 53.1217625 | AC108: 12.8392625 | AD108: 3.663259145 | AE108: 0.5988409307 | AI108: -999 | AL108: 9.027414372e-09 | AN108: -999 | AQ108: 90 | AR108: 9 | AT108: -19 | AU108: -17.6 | AV108: -7 | AW108: =AS91 ->  | AX108: =$AT$72 -> -26 | AZ108: -10 | BA108: -21.23724357 | BC108: -50 | BD108: -51 | BE108: 3 | BF108: =MOD(BF107*10000013,1) -> 0.5652791264 | BG108: =IF(AND($BD$4,$BE107<=$K$14),NORMSINV(BF108),"") -> 0.1643676266 | BH108: =IF(BG108="","",$V$9+$R$11*BG108) -> 67.4655144 | BI108: =IF(AND(NOT($BB$12),$BB$4,$BD$2,BH108<>"",$D$4<>""),BH108,-999) -> -999 | BJ108: =$AX$8-$BJ$105 -> 24.2 | BK108: =IF(AND($BB$12,$BD$2,BH108<>"",$D$4<>""),BH108,-999) -> -999 | BL108: 57 | BM108: =IF(BL108="",NA(),COUNTIF(BL108:$BL$303,BL108)) -> 1 | BN108: 56.0025 | BO108: 0.53775 | BQ108: 57 | BR108: =IF(BQ108="",NA(),COUNTIF(BQ108:$BQ$303,BQ108)) -> 1 | BS108: 56.0025 | BT108: -49.46225 | BW108: =IF(BV108="",NA(),COUNTIF(BV108:$BV$303,BV108)) ->  | CB108: =IF(CA108="",NA(),COUNTIF(CA108:$CA$303,CA108)) ->  | CF108: 31 | CG108: =IF(CF108="",NA(),COUNTIF($CF108:CF$303,CF108)) -> 1 | CI108: =IF(CH108="",NA(),COUNTIF($CH108:CH$303,CH108)) -> 
A109: -0.09041874881 | B109: 0.9593288271 | C109: -0.2214797978 | K109: 22 | L109: 34.68976778 | M109: 0.1135290305 | N109: 0.01613977243 | O109: -49.88647097 | Q109: -999 | V109: -49.88647097 | X109: -2.939387691 | Y109: 1.021736121e-08 | AB109: 53.42035 | AC109: 13.13785 | AD109: 3.835624503 | AE109: 0.5733165199 | AI109: -999 | AL109: 1.021736121e-08 | AN109: -999 | AQ109: 100 | AR109: 10 | AT109: -19 | AU109: -17.6 | AW109: =BB105 ->  | AX109: =$BC$86 -> -50 | AZ109: -11 | BA109: -27.36096793 | BC109: -50 | BD109: -51 | BE109: 4 | BF109: 0.612629923 | BG109: 0.28618014 | BH109: 69.2927021 | BI109: -999 | BJ109: 24.2 | BK109: -999 | BL109: 39 | BM109: =IF(BL109="",NA(),COUNTIF(BL109:$BL$303,BL109)) -> 2 | BN109: 38.3175 | BO109: 1.61325 | BQ109: 39 | BR109: =IF(BQ109="",NA(),COUNTIF(BQ109:$BQ$303,BQ109)) -> 2 | BS109: 38.3175 | BT109: -48.38675 | BW109: =IF(BV109="",NA(),COUNTIF(BV109:$BV$303,BV109)) ->  | CB109: =IF(CA109="",NA(),COUNTIF(CA109:$CA$303,CA109)) ->  | CF109: 22 | CG109: =IF(CF109="",NA(),COUNTIF($CF109:CF$303,CF109)) -> 3 | CI109: =IF(CH109="",NA(),COUNTIF($CH109:CH$303,CH109)) -> 
A110: -0.4877991191 | B110: 0.5498823001 | C110: -1.194858939 | K110: 22.5 | L110: 34.99914795 | M110: 0.1438434055 | N110: 0.01775019056 | O110: -49.85615659 | Q110: -999 | V110: -49.85615659 | X110: -2.857738033 | Y110: 1.159701296e-08 | AB110: 53.7189375 | AC110: 13.4364375 | AD110: 4.011952282 | AE110: 0.5476964105 | AI110: -999 | AL110: 1.159701296e-08 | AN110: -999 | AQ110: 110 | AR110: 11 | AT110: -19 | AU110: -17.6 | AV110: -8 | AW110: =AS92 ->  | AX110: =$AT$72 -> -26 | AZ110: -12 | BA110: -33.48469228 | BC110: -50 | BD110: -51 | BE110: 5 | BF110: 0.1945708459 | BG110: -0.8611749547 | BH110: 52.08237568 | BI110: -999 | BJ110: 24.2 | BK110: -999 | BL110: 33 | BM110: =IF(BL110="",NA(),COUNTIF(BL110:$BL$303,BL110)) -> 3 | BN110: 32.4225 | BO110: 2.68875 | BQ110: 33 | BR110: =IF(BQ110="",NA(),COUNTIF(BQ110:$BQ$303,BQ110)) -> 3 | BS110: 32.4225 | BT110: -47.31125 | BW110: =IF(BV110="",NA(),COUNTIF(BV110:$BV$303,BV110)) ->  | CB110: =IF(CA110="",NA(),COUNTIF(CA110:$CA$303,CA110)) ->  | CF110: 13 | CG110: =IF(CF110="",NA(),COUNTIF($CF110:CF$303,CF110)) -> 1 | CI110: =IF(CH110="",NA(),COUNTIF($CH110:CH$303,CH110)) -> 
A111: -0.02504457644 | B111: 1.510181163 | C111: -0.0613464331 | K111: 23 | L111: 35.31173493 | M111: 0.1810413116 | N111: 0.01954128128 | O111: -49.81895869 | Q111: -999 | V111: -49.81895869 | X111: -2.776088375 | Y111: 1.320192107e-08 | AB111: 54.017525 | AC111: 13.735025 | AD111: 4.192242483 | AE111: 0.5220829188 | AI111: -999 | AL111: 1.320192107e-08 | AN111: -999 | AQ111: 120 | AR111: 12 | AT111: -19 | AU111: -17.6 | AW111: =BB106 ->  | AX111: =$BC$86 -> -50 | BE111: 6 | BF111: 0.9886641754 | BG111: 2.278922894 | BH111: 99.18384341 | BI111: -999 | BJ111: 24.2 | BK111: -999 | BL111: 40 | BM111: =IF(BL111="",NA(),COUNTIF(BL111:$BL$303,BL111)) -> 2 | BN111: 39.3 | BO111: 1.61325 | BQ111: 40 | BR111: =IF(BQ111="",NA(),COUNTIF(BQ111:$BQ$303,BQ111)) -> 2 | BS111: 39.3 | BT111: -48.38675 | BW111: =IF(BV111="",NA(),COUNTIF(BV111:$BV$303,BV111)) ->  | CB111: =IF(CA111="",NA(),COUNTIF(CA111:$CA$303,CA111)) ->  | CF111: 35 | CG111: =IF(CF111="",NA(),COUNTIF($CF111:CF$303,CF111)) -> 2 | CI111: =IF(CH111="",NA(),COUNTIF($CH111:CH$303,CH111)) -> 
A112: -0.5137204904 | B112: 0.9075751595 | C112: -1.258353072 | K112: 23.5 | L112: 35.62694621 | M112: 0.2263445915 | N112: 0.02153470934 | O112: -49.77365541 | Q112: -999 | V112: -49.77365541 | X112: -2.694438717 | Y112: 1.507530282e-08 | AB112: 54.3161125 | AC112: 14.0336125 | AD112: 4.376495107 | AE112: 0.4965760153 | AI112: -999 | AL112: 1.507530282e-08 | AN112: -999 | AV112: -9 | AW112: =AS93 ->  | AX112: =$AT$72 -> -26 | BE112: 7 | BF112: 0.6064717472 | BG112: 0.2701348582 | BH112: 69.05202287 | BI112: -999 | BJ112: 24.2 | BK112: -999 | BL112: 33 | BM112: =IF(BL112="",NA(),COUNTIF(BL112:$BL$303,BL112)) -> 2 | BN112: 32.4225 | BO112: 1.61325 | BQ112: 33 | BR112: =IF(BQ112="",NA(),COUNTIF(BQ112:$BQ$303,BQ112)) -> 2 | BS112: 32.4225 | BT112: -48.38675 | BW112: =IF(BV112="",NA(),COUNTIF(BV112:$BV$303,BV112)) ->  | CB112: =IF(CA112="",NA(),COUNTIF(CA112:$CA$303,CA112)) ->  | CF112: 21 | CG112: =IF(CF112="",NA(),COUNTIF($CF112:CF$303,CF112)) -> 2 | CI112: =IF(CH112="",NA(),COUNTIF($CH112:CH$303,CH112)) -> 
A113: -0.6830914871 | B113: 0.883022047 | C113: -1.673225591 | K113: 24 | L113: 35.94416797 | M113: 0.2811041514 | N113: 0.02375474273 | O113: -49.71889585 | Q113: -999 | V113: -49.71889585 | X113: -2.612789059 | Y113: 1.726991702e-08 | AB113: 54.6147 | AC113: 14.3322 | AD113: 4.564710152 | AE113: 0.4712724113 | AI113: -999 | AL113: 1.726991702e-08 | AN113: -999 | AQ113: Rejection region | AS113: *se | AT113: x- | AU113: x+ | AW113: =BB107 ->  | AX113: =$BC$86 -> -50 | BE113: 8 | BF113: 0.3557322919 | BI113: -999 | BJ113: 24.2 | BK113: -999 | BL113: 30 | BM113: =IF(BL113="",NA(),COUNTIF(BL113:$BL$303,BL113)) -> 1 | BN113: 29.475 | BO113: 0.53775 | BQ113: 30 | BR113: =IF(BQ113="",NA(),COUNTIF(BQ113:$BQ$303,BQ113)) -> 1 | BS113: 29.475 | BT113: -49.46225 | BW113: =IF(BV113="",NA(),COUNTIF(BV113:$BV$303,BV113)) ->  | CB113: =IF(CA113="",NA(),COUNTIF(CA113:$CA$303,CA113)) ->  | CF113: 20 | CG113: =IF(CF113="",NA(),COUNTIF($CF113:CF$303,CF113)) -> 3 | CI113: =IF(CH113="",NA(),COUNTIF($CH113:CH$303,CH113)) -> 
A114: -0.3752809278 | B114: 0.980215209 | C114: -0.9192467834 | K114: 24.5 | L114: 36.26275663 | M114: 0.3467920241 | N114: 0.02622852903 | O114: -49.65320798 | Q114: -999 | V114: -49.65320798 | X114: -2.531139401 | Y114: 1.985043856e-08 | AB114: 54.9132875 | AC114: 14.6307875 | AD114: 4.756887619 | AE114: 0.4462645153 | AI114: -999 | AL114: 1.985043856e-08 | AN114: -999 | AQ114: crit z | AR114: =ABS(NORMSINV(M38/2)) -> 1.959963985 | AS114: =AR114*M17 -> 12.00227919 | AT114: =O9-AS114 -> 27.99772081 | AU114: =O9+AS114 -> 52.00227919 | AV114: -10 | AW114: =AS94 ->  | AX114: =$AT$72 -> -26 | BE114: 9 | BF114: 0.5438885391 | BI114: -999 | BJ114: 24.2 | BK114: -999 | BL114: 35 | BM114: =IF(BL114="",NA(),COUNTIF(BL114:$BL$303,BL114)) -> 1 | BN114: 34.3875 | BO114: 0.53775 | BQ114: 35 | BR114: =IF(BQ114="",NA(),COUNTIF(BQ114:$BQ$303,BQ114)) -> 1 | BS114: 34.3875 | BT114: -49.46225 | BW114: =IF(BV114="",NA(),COUNTIF(BV114:$BV$303,BV114)) ->  | CB114: =IF(CA114="",NA(),COUNTIF(CA114:$CA$303,CA114)) ->  | CF114: 22 | CG114: =IF(CF114="",NA(),COUNTIF($CF114:CF$303,CF114)) -> 2 | CI114: =IF(CH114="",NA(),COUNTIF($CH114:CH$303,CH114)) -> 
A115: -0.226710282 | B115: 1.964077163 | C115: -0.5553245104 | K115: 25 | L115: 36.58204069 | M115: 0.4249869996 | N115: 0.02898638671 | O115: -49.575013 | Q115: -999 | V115: -49.575013 | X115: -2.449489743 | Y115: 2.289651145e-08 | AB115: 55.211875 | AC115: 14.929375 | AD115: 4.953027509 | AE115: 0.4216396894 | AI115: -999 | AL115: 2.289651145e-08 | AN115: -999 | AQ115: crit t | AR115: =TINV(M38,K16) -> 2.570581835 | AS115: =AR115*O21 -> 29.01271941 | AT115: =O9-AS115 -> 10.98728059 | AU115: =O9+AS115 -> 69.01271941 | AW115: =BB108 ->  | AX115: =$BC$86 -> -50 | BE115: 10 | BF115: 0.4613095224 | BI115: -999 | BJ115: 24.2 | BK115: -999 | BL115: 37 | BM115: =IF(BL115="",NA(),COUNTIF(BL115:$BL$303,BL115)) -> 2 | BN115: 36.3525 | BO115: 1.61325 | BQ115: 37 | BR115: =IF(BQ115="",NA(),COUNTIF(BQ115:$BQ$303,BQ115)) -> 2 | BS115: 36.3525 | BT115: -48.38675 | BW115: =IF(BV115="",NA(),COUNTIF(BV115:$BV$303,BV115)) ->  | CB115: =IF(CA115="",NA(),COUNTIF(CA115:$CA$303,CA115)) ->  | CF115: 45 | CG115: =IF(CF115="",NA(),COUNTIF($CF115:CF$303,CF115)) -> 1 | CI115: =IF(CH115="",NA(),COUNTIF($CH115:CH$303,CH115)) -> 
A116: -0.4437594507 | B116: 1.49753441 | C116: -1.086984223 | K116: 25.5 | L116: 36.90132278 | M116: 0.5173529065 | N116: 0.03206210681 | O116: -49.48264709 | Q116: -999 | V116: -49.48264709 | X116: -2.367840085 | Y116: 2.650666748e-08 | AB116: 55.5104625 | AC116: 15.2279625 | AD116: 5.15312982 | AE116: 0.3974795152 | AI116: -999 | AL116: 2.650666748e-08 | AN116: -999 | AQ116: use for crit | AR116: =IF($BD$12,AR114,AR115) -> 1.959963985 | AV116: -11 | AW116: =AS95 ->  | AX116: =$AT$72 -> -26 | BE116: 11 | BF116: 0.2209274471 | BI116: -999 | BJ116: 24.2 | BK116: -999 | BL116: 34 | BM116: =IF(BL116="",NA(),COUNTIF(BL116:$BL$303,BL116)) -> 2 | BN116: 33.405 | BO116: 1.61325 | BQ116: 34 | BR116: =IF(BQ116="",NA(),COUNTIF(BQ116:$BQ$303,BQ116)) -> 2 | BS116: 33.405 | BT116: -48.38675 | BW116: =IF(BV116="",NA(),COUNTIF(BV116:$BV$303,BV116)) ->  | CB116: =IF(CA116="",NA(),COUNTIF(CA116:$CA$303,CA116)) ->  | CF116: 34 | CG116: =IF(CF116="",NA(),COUNTIF($CF116:CF$303,CF116)) -> 3 | CI116: =IF(CH116="",NA(),COUNTIF($CH116:CH$303,CH116)) -> 
A117: 0.473072652 | B117: 1.532719945 | C117: 1.158786609 | K117: 26 | L117: 37.21988191 | M117: 0.625608794 | N117: 0.03549325867 | O117: -49.37439121 | Q117: -999 | V117: -49.37439121 | X117: -2.286190427 | Y117: 3.080335988e-08 | AB117: 55.80905 | AC117: 15.52655 | AD117: 5.357194553 | AE117: 0.3738591871 | AI117: -999 | AL117: 3.080335988e-08 | AN117: -999 | AQ117: use | AR117: =IF(AND($BD$9,$AR$70,$BD$13,NOT($BD$5),NOT($BD$10)),IF($BD$12,AT114,AT115),NA()) ->  | AS117: =AX12+AX11+AU117 -> -5.5 | AT117: =-(AR117-AU120) ->  | AU117: -3.5 | AW117: =BB109 ->  | AX117: =$BC$86 -> -50 | BE117: 12 | BF117: 0.3428629339 | BI117: -999 | BJ117: 24.2 | BK117: -999 | BL117: 48 | BM117: =IF(BL117="",NA(),COUNTIF(BL117:$BL$303,BL117)) -> 1 | BN117: 47.16 | BO117: 0.53775 | BQ117: 48 | BR117: =IF(BQ117="",NA(),COUNTIF(BQ117:$BQ$303,BQ117)) -> 1 | BS117: 47.16 | BT117: -49.46225 | BW117: =IF(BV117="",NA(),COUNTIF(BV117:$BV$303,BV117)) ->  | CB117: =IF(CA117="",NA(),COUNTIF(CA117:$CA$303,CA117)) ->  | CF117: 35 | CG117: =IF(CF117="",NA(),COUNTIF($CF117:CF$303,CF117)) -> 1 | CI117: =IF(CH117="",NA(),COUNTIF($CH117:CH$303,CH117)) -> 
A118: 0.3936174808 | B118: 1.491619379 | C118: 0.9641619818 | K118: 26.5 | L118: 37.5369759 | M118: 0.7514905088 | N118: 0.03932149081 | O118: -49.24850949 | Q118: -999 | V118: -49.24850949 | X118: -2.204540769 | Y118: 3.593954762e-08 | AB118: 56.1076375 | AC118: 15.8251375 | AD118: 5.565221709 | AE118: 0.3508470921 | AI118: -999 | AL118: 3.593954762e-08 | AN118: -999 | AQ118: for points | AR118: =IF(AND($BD$9,$AR$70,$BD$13,NOT($BD$5),NOT($BD$10)),IF($BD$12,AU114,AU115),NA()) ->  | AS118: =AS117 -> -5.5 | AT118: 100 | AU118: =AX10-AU117 -> 5.5 | AV118: -12 | AW118: =AS96 ->  | AX118: =$AT$72 -> -26 | BE118: 13 | BF118: 0.7959594429 | BI118: -999 | BJ118: 24.2 | BK118: -999 | BL118: 47 | BM118: =IF(BL118="",NA(),COUNTIF(BL118:$BL$303,BL118)) -> 1 | BN118: 46.1775 | BO118: 0.53775 | BQ118: 47 | BR118: =IF(BQ118="",NA(),COUNTIF(BQ118:$BQ$303,BQ118)) -> 1 | BS118: 46.1775 | BT118: -49.46225 | BW118: =IF(BV118="",NA(),COUNTIF(BV118:$BV$303,BV118)) ->  | CB118: =IF(CA118="",NA(),COUNTIF(CA118:$CA$303,CA118)) ->  | CF118: 34 | CG118: =IF(CF118="",NA(),COUNTIF($CF118:CF$303,CF118)) -> 2 | CI118: =IF(CH118="",NA(),COUNTIF($CH118:CH$303,CH118)) -> 
A119: -0.3128277705 | B119: 0.7209633717 | C119: -0.766268415 | K119: 27 | L119: 37.85184411 | M119: 0.8967034865 | N119: 0.04359281242 | O119: -49.10329651 | Q119: -999 | V119: -49.10329651 | X119: -2.12289111 | Y119: 4.210726113e-08 | AB119: 56.406225 | AC119: 16.123725 | AD119: 5.777211286 | AE119: 0.3285043792 | AI119: -999 | AL119: 4.210726113e-08 | AN119: -999 | AQ119: labels | AR119: =IF(AND($BD$9,$AR$70,$BD$13,NOT($BD$5),NOT($BD$10)),AVERAGE(AX3+AU120,AR117),NA()) ->  | AS119: =AS117-AQ120 -> -6.9 | AU119: =AX11+AX13+AU117 -> 20.5 | AW119: =BB110 ->  | AX119: =$BC$86 -> -50 | BE119: 14 | BF119: 0.7760120332 | BI119: -999 | BJ119: 24.2 | BK119: -999 | BL119: 36 | BM119: =IF(BL119="",NA(),COUNTIF(BL119:$BL$303,BL119)) -> 2 | BN119: 35.37 | BO119: 1.61325 | BQ119: 36 | BR119: =IF(BQ119="",NA(),COUNTIF(BQ119:$BQ$303,BQ119)) -> 2 | BS119: 35.37 | BT119: -48.38675 | BW119: =IF(BV119="",NA(),COUNTIF(BV119:$BV$303,BV119)) ->  | CB119: =IF(CA119="",NA(),COUNTIF(CA119:$CA$303,CA119)) ->  | CF119: 17 | CG119: =IF(CF119="",NA(),COUNTIF($CF119:CF$303,CF119)) -> 2 | CI119: =IF(CH119="",NA(),COUNTIF($CH119:CH$303,CH119)) -> 
A120: -0.242435952 | B120: 1.240466991 | C120: -0.5938443777 | K120: 27.5 | L120: 38.16371027 | M120: 1.062866993 | N120: 0.04835784361 | O120: -48.93713301 | Q120: -999 | V120: -48.93713301 | X120: -2.041241452 | Y120: 4.954883784e-08 | AB120: 56.7048125 | AC120: 16.4223125 | AD120: 5.993163286 | AE120: 0.306884757 | AI120: -999 | AL120: 4.954883784e-08 | AN120: -999 | AQ120: 1.4 | AR120: =IF(AND($BD$9,$AR$70,$BD$13,NOT($BD$5),NOT($BD$10)),AR118+(AY3-AR118)/3,NA()) ->  | AS120: =AS119 -> -6.9 | AU120: 0 | BE120: 15 | BF120: 0.4203974903 | BI120: -999 | BJ120: 24.2 | BK120: -999 | BL120: 37 | BM120: =IF(BL120="",NA(),COUNTIF(BL120:$BL$303,BL120)) -> 1 | BN120: 36.3525 | BO120: 0.53775 | BQ120: 37 | BR120: =IF(BQ120="",NA(),COUNTIF(BQ120:$BQ$303,BQ120)) -> 1 | BS120: 36.3525 | BT120: -49.46225 | BW120: =IF(BV120="",NA(),COUNTIF(BV120:$BV$303,BV120)) ->  | CB120: =IF(CA120="",NA(),COUNTIF(CA120:$CA$303,CA120)) ->  | CF120: 28 | CG120: =IF(CF120="",NA(),COUNTIF($CF120:CF$303,CF120)) -> 1 | CI120: =IF(CH120="",NA(),COUNTIF($CH120:CH$303,CH120)) -> 
A121: -0.2759760231 | B121: 0.7292432552 | C121: -0.6760004378 | K121: 28 | L121: 38.47178549 | M121: 1.251450527 | N121: 0.05367200775 | O121: -48.74854947 | Q121: -999 | V121: -48.74854947 | X121: -1.959591794 | Y121: 5.857173455e-08 | AB121: 57.0034 | AC121: 16.7209 | AD121: 6.213077707 | AE121: 0.2860342732 | AI121: -999 | AL121: 5.857173455e-08 | AN121: -999 | BE121: 16 | BF121: 0.3677972257 | BI121: -999 | BJ121: 24.2 | BK121: -999 | BL121: 36 | BM121: =IF(BL121="",NA(),COUNTIF(BL121:$BL$303,BL121)) -> 1 | BN121: 35.37 | BO121: 0.53775 | BQ121: 36 | BR121: =IF(BQ121="",NA(),COUNTIF(BQ121:$BQ$303,BQ121)) -> 1 | BS121: 35.37 | BT121: -49.46225 | BW121: =IF(BV121="",NA(),COUNTIF(BV121:$BV$303,BV121)) ->  | CB121: =IF(CA121="",NA(),COUNTIF(CA121:$CA$303,CA121)) ->  | CF121: 17 | CG121: =IF(CF121="",NA(),COUNTIF($CF121:CF$303,CF121)) -> 1 | CI121: =IF(CH121="",NA(),COUNTIF($CH121:CH$303,CH121)) -> 
A122: -0.4727748261 | B122: 1.187127325 | C122: -1.158057087 | K122: 28.5 | L122: 38.77527149 | M122: 1.463703645 | N122: 0.05959564337 | O122: -48.53629635 | Q122: -999 | V122: -48.53629635 | X122: -1.877942136 | Y122: 6.956824785e-08 | AB122: 57.3019875 | AC122: 17.0194875 | AD122: 6.43695455 | AE122: 0.2659914265 | AI122: -999 | AL122: 6.956824785e-08 | AN122: -999 | AR122: Panel 1 y axis | AT122: Highlighted points | BE122: 17 | BF122: 0.03850123286 | BI122: -999 | BJ122: 24.2 | BK122: -999 | BL122: 33 | BM122: =IF(BL122="",NA(),COUNTIF(BL122:$BL$303,BL122)) -> 1 | BN122: 32.4225 | BO122: 0.53775 | BQ122: 33 | BR122: =IF(BQ122="",NA(),COUNTIF(BQ122:$BQ$303,BQ122)) -> 1 | BS122: 32.4225 | BT122: -49.46225 | BW122: =IF(BV122="",NA(),COUNTIF(BV122:$BV$303,BV122)) ->  | CB122: =IF(CA122="",NA(),COUNTIF(CA122:$CA$303,CA122)) ->  | CF122: 27 | CG122: =IF(CF122="",NA(),COUNTIF($CF122:CF$303,CF122)) -> 1 | CI122: =IF(CH122="",NA(),COUNTIF($CH122:CH$303,CH122)) -> 
A123: 0.742792816 | B123: 0.9812966869 | C123: 1.819463384 | K123: 29 | L123: 39.07336391 | M123: 1.700581016 | N123: 0.06619400204 | O123: -48.29941898 | Q123: -999 | V123: -48.29941898 | X123: -1.796292478 | Y123: 8.304178802e-08 | AB123: 57.600575 | AC123: 17.318075 | AD123: 6.664793816 | AE123: 0.2467871364 | AI123: -999 | AL123: 8.304178802e-08 | AN123: -999 | AQ123: 0 | AR123: =$AX$3+$AZ$3*AQ123 -> 0 | AS123: =$AX$6 -> 27 | AT123: axis H0 | AU123: =AU125 ->  | AV123: 26 | BE123: 18 | BF123: 0.8291407526 | BI123: -999 | BJ123: 24.2 | BK123: -999 | BL123: 52 | BM123: =IF(BL123="",NA(),COUNTIF(BL123:$BL$303,BL123)) -> 1 | BN123: 51.09 | BO123: 0.53775 | BQ123: 52 | BR123: =IF(BQ123="",NA(),COUNTIF(BQ123:$BQ$303,BQ123)) -> 1 | BS123: 51.09 | BT123: -49.46225 | BW123: =IF(BV123="",NA(),COUNTIF(BV123:$BV$303,BV123)) ->  | CB123: =IF(CA123="",NA(),COUNTIF(CA123:$CA$303,CA123)) ->  | CF123: 22 | CG123: =IF(CF123="",NA(),COUNTIF($CF123:CF$303,CF123)) -> 1 | CI123: =IF(CH123="",NA(),COUNTIF($CH123:CH$303,CH123)) -> 
A124: -0.1774881364 | B124: 0.8567243279 | C124: -0.4347553696 | K124: 29.5 | L124: 39.36525576 | M124: 1.962665112 | N124: 0.07353709572 | O124: -48.03733489 | Q124: -999 | V124: -48.03733489 | X124: -1.71464282 | Y124: 9.964211889e-08 | AB124: 57.8991625 | AC124: 17.6166625 | AD124: 6.896595503 | AE124: 0.2284449353 | AI124: -999 | AL124: 9.964211889e-08 | AN124: -999 | AQ124: 1 | AR124: 10 | AS124: 27 | AT124: axis H1 | AU124: =AU126 ->  | AV124: =AV123 -> 26 | BE124: 19 | BF124: 0.3043691814 | BI124: -999 | BJ124: 24.2 | BK124: -999 | BL124: 38 | BM124: =IF(BL124="",NA(),COUNTIF(BL124:$BL$303,BL124)) -> 1 | BN124: 37.335 | BO124: 0.53775 | BQ124: 38 | BR124: =IF(BQ124="",NA(),COUNTIF(BQ124:$BQ$303,BQ124)) -> 1 | BS124: 37.335 | BT124: -49.46225 | BW124: =IF(BV124="",NA(),COUNTIF(BV124:$BV$303,BV124)) ->  | CB124: =IF(CA124="",NA(),COUNTIF(CA124:$CA$303,CA124)) ->  | CF124: 20 | CG124: =IF(CF124="",NA(),COUNTIF($CF124:CF$303,CF124)) -> 2 | CI124: =IF(CH124="",NA(),COUNTIF($CH124:CH$303,CH124)) -> 
A125: -0.4375769549 | B125: 0.8836349785 | C125: -1.071840263 | K125: 30 | L125: 39.65014102 | M125: 2.250089441 | N125: 0.08169934333 | O125: -47.74991056 | Q125: -999 | V125: -47.74991056 | X125: -1.632993162 | Y125: 1.202130477e-07 | AB125: 58.19775 | AC125: 17.91525 | AD125: 7.132359612 | AE125: 0.2109812143 | AI125: -999 | AL125: 1.202130477e-07 | AN125: -999 | AQ125: 2 | AR125: 20 | AS125: 27 | AT125: mid H0 | AU125: =IF(AND(NOT($BB$12),$BD$3,$BD$2,AR70),BN2,NA()) ->  | AV125: =AX15+AX14+1 -> -25 | BE125: 20 | BF125: 0.7707451284 | BI125: -999 | BJ125: 24.2 | BK125: -999 | BL125: 34 | BM125: =IF(BL125="",NA(),COUNTIF(BL125:$BL$303,BL125)) -> 1 | BN125: 33.405 | BO125: 0.53775 | BQ125: 34 | BR125: =IF(BQ125="",NA(),COUNTIF(BQ125:$BQ$303,BQ125)) -> 1 | BS125: 33.405 | BT125: -49.46225 | BW125: =IF(BV125="",NA(),COUNTIF(BV125:$BV$303,BV125)) ->  | CB125: =IF(CA125="",NA(),COUNTIF(CA125:$CA$303,CA125)) ->  | CF125: 20 | CG125: =IF(CF125="",NA(),COUNTIF($CF125:CF$303,CF125)) -> 1 | CI125: =IF(CH125="",NA(),COUNTIF($CH125:CH$303,CH125)) -> 
A126: -0.04748252595 | B126: 0.9248393633 | C126: -0.1163079603 | K126: 30.5 | L126: 39.92721824 | M126: 2.562465721 | N126: 0.09075898195 | O126: -47.43753428 | Q126: -999 | V126: -47.43753428 | X126: -1.551343504 | Y126: 1.458571698e-07 | AB126: 58.4963375 | AC126: 18.2138375 | AD126: 7.372086144 | AE126: 0.194405541 | AI126: -999 | AL126: 1.458571698e-07 | AN126: -999 | AQ126: 3 | AR126: 30 | AS126: 27 | AT126: mid H! | AU126: =IF(AND(NOT($BB$13),$BD$4,$BD$2,AR70),BX2,NA()) ->  | AV126: =AV125 -> -25 | BE126: 21 | BF126: 0.3036184013 | BI126: -999 | BJ126: 24.2 | BK126: -999 | BL126: 40 | BM126: =IF(BL126="",NA(),COUNTIF(BL126:$BL$303,BL126)) -> 1 | BN126: 39.3 | BO126: 0.53775 | BQ126: 40 | BR126: =IF(BQ126="",NA(),COUNTIF(BQ126:$BQ$303,BQ126)) -> 1 | BS126: 39.3 | BT126: -49.46225 | BW126: =IF(BV126="",NA(),COUNTIF(BV126:$BV$303,BV126)) ->  | CB126: =IF(CA126="",NA(),COUNTIF(CA126:$CA$303,CA126)) ->  | CF126: 21 | CG126: =IF(CF126="",NA(),COUNTIF($CF126:CF$303,CF126)) -> 1 | CI126: =IF(CH126="",NA(),COUNTIF($CH126:CH$303,CH126)) -> 
A127: -0.08087790099 | B127: 1.49954274 | C127: -0.1981095889 | K127: 31 | L127: 40.19569427 | M127: 2.898818675 | N127: 0.1007971746 | O127: -47.10118133 | Q127: -999 | V127: -47.10118133 | X127: -1.469693846 | Y127: 1.780243407e-07 | AB127: 58.794925 | AC127: 18.512425 | AD127: 7.615775097 | AE127: 0.1787210485 | AI127: -999 | AL127: 1.780243407e-07 | AN127: -999 | AQ127: 4 | AR127: 40 | AS127: 27 | AT127: low H0 | AU127: =IF(AND(NOT($BB$12),$BD$3,$BD$2,AR70,BD10),BS2,NA()) ->  | AV127: =$AX$15 -> -50 | BE127: 22 | BF127: 0.9599290788 | BI127: -999 | BJ127: 24.2 | BK127: -999 | BL127: 39 | BM127: =IF(BL127="",NA(),COUNTIF(BL127:$BL$303,BL127)) -> 1 | BN127: 38.3175 | BO127: 0.53775 | BQ127: 39 | BR127: =IF(BQ127="",NA(),COUNTIF(BQ127:$BQ$303,BQ127)) -> 1 | BS127: 38.3175 | BT127: -49.46225 | BW127: =IF(BV127="",NA(),COUNTIF(BV127:$BV$303,BV127)) ->  | CB127: =IF(CA127="",NA(),COUNTIF(CA127:$CA$303,CA127)) ->  | CF127: 34 | CG127: =IF(CF127="",NA(),COUNTIF($CF127:CF$303,CF127)) -> 1 | CI127: =IF(CH127="",NA(),COUNTIF($CH127:CH$303,CH127)) -> 
K128: 31.5 | L128: 40.45478802 | M128: 3.25753237 | N128: =IF(K128>$O$9,1-TDIST((K128-$O$9)/$BB$9,$K$14-1,1),TDIST(($O$9-K128)/$BB$9,$K$14-1,1)) -> 0.1118967788 | O128: -46.74246763 | Q128: -999 | V128: -46.74246763 | X128: -1.388044188 | Y128: =nct(X128,$AW$136,$AW$137) -> 2.186334559e-07 | AB128: 59.0935125 | AC128: 18.8110125 | AD128: 7.863426473 | AE128: 0.1639248288 | AI128: -999 | AL128: =Y128 -> 2.186334559e-07 | AN128: -999 | AQ128: 5 | AR128: 50 | AS128: 27 | AT128: low H1 | AU128: =IF(AND(NOT($BB$13),$BD$4,$BD$2,AR70,BD10),CC2,NA()) ->  | AV128: =AV127 -> -50 | BE128: 23 | BF128: 0.2672517002 | BI128: -999 | BJ128: 24.2 | BK128: -999 | BM128: =IF(BL128="",NA(),COUNTIF(BL128:$BL$303,BL128)) ->  | BR128: =IF(BQ128="",NA(),COUNTIF(BQ128:$BQ$303,BQ128)) ->  | BW128: =IF(BV128="",NA(),COUNTIF(BV128:$BV$303,BV128)) ->  | CB128: =IF(CA128="",NA(),COUNTIF(CA128:$CA$303,CA128)) ->  | CG128: =IF(CF128="",NA(),COUNTIF($CF128:CF$303,CF128)) ->  | CI128: =IF(CH128="",NA(),COUNTIF($CH128:CH$303,CH128)) -> 
K129: 32 | L129: =IF(NOT($BB$12),$AX$6+$AX$5*$X$62*NORMDIST(K129,$O$9,$R$11,FALSE),-999) -> 40.70373417 | M129: 3.636311949 | N129: 0.1241407043 | O129: -46.36368805 | Q129: =IF($BB$12,$AX$6+$AX$5*$X$62*NORMDIST(K129,$O$9,$R$11,FALSE),-999) -> -999 | V129: -46.36368805 | X129: =X128+$AW$140 -> -1.306394529 | Y129: 2.702408294e-07 | AB129: 59.3921 | AC129: 19.1096 | AD129: 8.11504027 | AE129: 0.1500084653 | AI129: =IF(NOT($BB$13),$AX$6+$AX$5*$X$62*NORMDIST(K129,$V$9,$R$11,FALSE),-999) -> -999 | AJ129: =IF(AND(NOT($BB$13),$BD$4,$BD$9),$AX$9+$AM$62*NORMDIST(K129,$V$9,$R$11/SQRT($K$14),FALSE),NA()) ->  | AL129: 2.702408294e-07 | AM129: =IF(AND(NOT($BB$13),$BD$10,$BD$4,$BD$9,$BB$25),IF($BD$12,$AX$15+$AM$62*NORMDIST(K129,$V$9,$R$11/SQRT($K$14),FALSE),$AX$15+$AM$62*(AL130-AL128)/(2*$BB$1)),NA()) ->  | AN129: =IF(AND($BB$4,$BB$13),$AX$6+$AX$5*$X$62*NORMDIST(K129,$V$9,$R$11,FALSE),-999) -> -999 | AO129: =IF(AND($BB$4,$BD$6,$BB$13,$BD$4,$BD$9),$AX$9+$AM$62*NORMDIST(K129,$V$9,$R$11/SQRT($K$14),FALSE),NA()) ->  | AP129: =IF(AND($BB$4,$BD$10,$BB$13,$BD$4,$BD$9,$BB$25),IF($BD$12,$AX$15+$AM$62*NORMDIST(K129,$V$9,$R$11/SQRT($K$14),FALSE),$AX$15+$AM$62*(AL130-AL128)/(2*$BB$1)),NA()) ->  | AQ129: 6 | AR129: 60 | AS129: 27 | BE129: 24 | BF129: 0.4759009778 | BI129: -999 | BJ129: 24.2 | BK129: -999 | BM129: =IF(BL129="",NA(),COUNTIF(BL129:$BL$303,BL129)) ->  | BR129: =IF(BQ129="",NA(),COUNTIF(BQ129:$BQ$303,BQ129)) ->  | BW129: =IF(BV129="",NA(),COUNTIF(BV129:$BV$303,BV129)) ->  | CB129: =IF(CA129="",NA(),COUNTIF(CA129:$CA$303,CA129)) ->  | CG129: =IF(CF129="",NA(),COUNTIF($CF129:CF$303,CF129)) ->  | CI129: =IF(CH129="",NA(),COUNTIF($CH129:CH$303,CH129)) -> 
K130: =K129+$BB$1 -> 32.5 | L130: 40.94178694 | M130: =IF(AND(NOT($BB$12),$BB$6,$BD$3,$BD$9),$AX$9+$O$62*NORMDIST(K130,$O$9,$R$11/SQRT($K$14),FALSE),NA()) -> 4.032164386 | N130: 0.137609866 | O130: =IF(AND(NOT($BB$12),$BD$10,$BD$3,$BD$9),IF($BD$12,V130,$AX$15+$O$62*(N131-N129)/(2*$BB$1)),NA()) -> -45.96783561 | Q130: -999 | R130: =IF(AND($BB$12,$BB$6,$BD$3,$BD$9),$AX$9+$O$62*NORMDIST(K130,$O$9,$R$11/SQRT($K$14),FALSE),NA()) ->  | S130: =IF(AND($BB$12,$BD$10,$BD$3,$BD$9),IF($BD$12,$AX$15+$O$62*NORMDIST(K130,$O$9,$R$11/SQRT($K$14),FALSE),$AX$15+$O$62*(N131-N129)/(2*$BB$1)),NA()) ->  | V130: =IF(AND(NOT($BB$12),$BD$3,$BD$9),$AX$15+$O$62*NORMDIST(K130,$O$9,$R$11/SQRT($K$14),FALSE),NA()) -> -45.96783561 | X130: -1.224744871 | Y130: 3.362746211e-07 | AB130: 59.6906875 | AC130: =AB130-$AA$63 -> 19.4081875 | AD130: =AC130^2/$AA$66 -> 8.37061649 | AE130: =CHIDIST(AD130,$K$16) -> 0.1369584902 | AI130: -999 | AK130: =IF($BD$6,AJ130,NA()) ->  | AL130: 3.362746211e-07 | AN130: -999 | AQ130: 7 | AR130: 70 | AS130: 27 | AU130: Panel labels | BE130: 25 | BF130: 0.9652123153 | BI130: -999 | BJ130: 24.2 | BK130: -999 | BM130: =IF(BL130="",NA(),COUNTIF(BL130:$BL$303,BL130)) ->  | BR130: =IF(BQ130="",NA(),COUNTIF(BQ130:$BQ$303,BQ130)) ->  | BW130: =IF(BV130="",NA(),COUNTIF(BV130:$BV$303,BV130)) ->  | CB130: =IF(CA130="",NA(),COUNTIF(CA130:$CA$303,CA130)) ->  | CG130: =IF(CF130="",NA(),COUNTIF($CF130:CF$303,CF130)) ->  | CI130: =IF(CH130="",NA(),COUNTIF($CH130:CH$303,CH130)) -> 
K131: 33 | L131: 41.1682238 | M131: 4.441401443 | N131: 0.1523806654 | O131: -45.55859856 | Q131: -999 | V131: -45.55859856 | X131: -1.143095213 | Y131: 4.213629567e-07 | AB131: =AB130+$AA$65 -> 59.989275 | AC131: 19.706775 | AD131: 8.630155131 | AE131: 0.1247569184 | AF131: =IF(AND(IF($BB$5=1,$A$4<>"",$D$4<>""),NOT($BD$12),$BD$5,$BD$4,$BD$9),$AX$12+$AA$67*(AE130-AE132)/(2*$AA$65),NA()) ->  | AG131: =IF(AND(IF($BB$5=1,$A$4<>"",$D$4<>""),$BD$12,$BD$5,$BD$4,$BD$9),$AX$12+$AA$67*(AE130-AE132)/(2*$AA$65),NA()) ->  | AI131: -999 | AL131: 4.213629567e-07 | AN131: -999 | AQ131: 8 | AR131: 80 | AS131: 27 | AU131: 8 | AV131: 0.0266 | BE131: 26 | BF131: 0.7009697855 | BI131: -999 | BJ131: 24.2 | BK131: -999 | BM131: =IF(BL131="",NA(),COUNTIF(BL131:$BL$303,BL131)) ->  | BR131: =IF(BQ131="",NA(),COUNTIF(BQ131:$BQ$303,BQ131)) ->  | BW131: =IF(BV131="",NA(),COUNTIF(BV131:$BV$303,BV131)) ->  | CB131: =IF(CA131="",NA(),COUNTIF(CA131:$CA$303,CA131)) ->  | CG131: =IF(CF131="",NA(),COUNTIF($CF131:CF$303,CF131)) ->  | CI131: =IF(CH131="",NA(),COUNTIF($CH131:CH$303,CH131)) -> 
K132: 33.5 | L132: 41.38234908 | M132: 4.859667243 | N132: 0.168522038 | O132: -45.14033276 | Q132: -999 | V132: -45.14033276 | X132: -1.061445555 | Y132: 5.317958184e-07 | AB132: 60.2878625 | AC132: 20.0053625 | AD132: 8.893656195 | AE132: 0.1133817797 | AI132: -999 | AL132: 5.317958184e-07 | AN132: -999 | AQ132: 9 | AR132: 90 | AS132: 27 | AU132: 8 | AV132: 12 | AW132: 0.3 | BE132: 27 | BF132: 0.9671261013 | BI132: -999 | BJ132: 24.2 | BK132: -999 | BL132: =IF(A132="","",ROUND(($O$9+$R$11*A132)/$BA$34,0)) ->  | BM132: =IF(BL132="",NA(),COUNTIF(BL132:$BL$303,BL132)) ->  | BN132: =BL132*$BA$34 ->  | BO132: =IF(AND(NOT($BB$12),$BB$6,$BD$3,$BD$8),$AX$9-$BA$33/2+BM132*$BA$33,NA()) ->  | BP132: =IF(AND($BB$12,$BB$6,$BD$3,$BD$8),$AX$9-$BA$33/2+BM132*$BA$33,NA()) ->  | BQ132: =IF(C132="","",ROUND(($O$9+C132*$BB$9)/$BA$34,0)) ->  | BR132: =IF(BQ132="",NA(),COUNTIF(BQ132:$BQ$303,BQ132)) ->  | BS132: =BQ132*$BA$34 ->  | BV132: =IF(D132="","",ROUND(($V$9+$R$11*D132)/$BA$34,0)) ->  | BW132: =IF(BV132="",NA(),COUNTIF(BV132:$BV$303,BV132)) ->  | BX132: =BV132*$BA$34 ->  | BY132: =IF(AND(NOT($BB$13),$BD$6,$BD$4,$BD$8),$AX$9-$BA$33/2+BW132*$BA$33,NA()) ->  | BZ132: =IF(AND($BB$4,$BD$6,$BB$13,$BD$4,$BD$8),$AX$9-$BA$33/2+BW132*$BA$33,NA()) ->  | CA132: =IF(F132="","",ROUND(($O$9+F132*$BB$9)/$BA$34,0)) ->  | CB132: =IF(CA132="",NA(),COUNTIF(CA132:$CA$303,CA132)) ->  | CC132: =CA132*$BA$34 ->  | CG132: =IF(CF132="",NA(),COUNTIF($CF132:CF$303,CF132)) ->  | CI132: =IF(CH132="",NA(),COUNTIF($CH132:CH$303,CH132)) -> 
C133: =IF(AND(A133<>"",$K$14>1),(($O$9+$R$11*A133)-$O$9)/IF($BD$12,$BB$9,$R$11*B133/SQRT($K$14)),"") ->  | F133: =IF(AND(D133<>"",$K$14>1),(($V$9+$R$11*D133)-$O$9)/IF($BD$12,$BB$9,$R$11*E133/SQRT($K$14)),"") ->  | K133: 34 | L133: 41.58349756 | M133: 5.281992006 | N133: 0.1860921023 | O133: -44.71800799 | Q133: -999 | V133: -44.71800799 | X133: -0.9797958971 | Y133: 6.761789692e-07 | AB133: 60.58645 | AC133: 20.30395 | AD133: 9.16111968 | AE133: 0.1028076525 | AI133: -999 | AL133: 6.761789692e-07 | AN133: -999 | AQ133: 10 | AR133: 100 | AS133: 27 | AT133: z or t | AU133: 0 | AV133: =IF($BD$10, $AX$15+$AW$133+AW132,NA()) -> -39.7 | AW133: 10 | BE133: 28 | BF133: 0.585193485 | BI133: -999 | BJ133: 24.2 | BK133: -999 | BM133: =IF(BL133="",NA(),COUNTIF(BL133:$BL$303,BL133)) ->  | BR133: =IF(BQ133="",NA(),COUNTIF(BQ133:$BQ$303,BQ133)) ->  | BT133: =IF(AND(NOT($BB$12),$BD$10,$BD$3,$BD$8),$AX$15-$BA$33/2+BR133*$BA$33,NA()) ->  | BU133: =IF(AND($BB$12,$BD$10,$BD$3,$BD$8),$AX$15-$BA$33/2+BR133*$BA$33,NA()) ->  | BW133: =IF(BV133="",NA(),COUNTIF(BV133:$BV$303,BV133)) ->  | CB133: =IF(CA133="",NA(),COUNTIF(CA133:$CA$303,CA133)) ->  | CD133: =IF(AND(NOT($BB$13),$BD$10,$BD$4,$BD$8),$AX$15-$BA$33/2+CB133*$BA$33,NA()) ->  | CE133: =IF(AND($BB$4,$BD$10,$BB$13,$BD$4,$BD$8),$AX$15-$BA$33/2+CB133*$BA$33,NA()) ->  | CF133: =IF(B133="","",ROUND(($R$11*B133)/$BA$37,0)) ->  | CG133: =IF(CF133="",NA(),COUNTIF($CF133:CF$303,CF133)) ->  | CH133: =IF(E133="","",ROUND(($R$11*E133)/$BA$37,0)) ->  | CI133: =IF(CH133="",NA(),COUNTIF($CH133:CH$303,CH133)) ->  | CJ133: =$AX$35+IF($BB$5=1,CF133,CH133)*$BA$37 ->  | CK133: =IF(AND(NOT($BD$12),$BD$5,$BD$4,$BD$8),$AX$12-$BA$36/2+IF($BB$5=1,CG133,CI133)*$BA$36,NA()) ->  | CL133: =IF(AND($BD$12,$BD$5,$BD$4,$BD$8),$AX$12-$BA$36/2+IF($BB$5=1,CG133,CI133)*$BA$36,NA()) -> 
K134: 34.5 | L134: 41.77103787 | M134: 5.702872339 | N134: 0.2051344936 | O134: -44.29712766 | Q134: -999 | V134: -44.29712766 | X134: -0.898146239 | Y134: 8.663637662e-07 | AB134: 60.8850375 | AC134: 20.6025375 | AD134: 9.432545588 | AE134: 0.09300619132 | AI134: -999 | AL134: 8.663637662e-07 | AN134: -999 | AT134: labels | AU134: 3.2 | AV134: =IF($BD$10, $AX$15+$AW$133,NA()) -> -40 | AW134: =IF(BD12,"z","t") -> z | BE134: 29 | BF134: 0.4577312171 | BI134: -999 | BJ134: 24.2 | BK134: -999 | BM134: =IF(BL134="",NA(),COUNTIF(BL134:$BL$303,BL134)) ->  | BR134: =IF(BQ134="",NA(),COUNTIF(BQ134:$BQ$303,BQ134)) ->  | BW134: =IF(BV134="",NA(),COUNTIF(BV134:$BV$303,BV134)) ->  | CB134: =IF(CA134="",NA(),COUNTIF(CA134:$CA$303,CA134)) ->  | CG134: =IF(CF134="",NA(),COUNTIF($CF134:CF$303,CF134)) ->  | CI134: =IF(CH134="",NA(),COUNTIF($CH134:CH$303,CH134)) -> 
K135: 35 | L135: 41.94437582 | M135: 6.11637724 | N135: 0.225674526 | O135: -43.88362276 | Q135: -999 | V135: -43.88362276 | X135: -0.8164965809 | Y135: 1.118776221e-06 | AB135: 61.183625 | AC135: 20.901125 | AD135: 9.707933917 | AE135: 0.08394664124 | AI135: -999 | AL135: 1.118776221e-06 | AN135: -999 | AQ135: Labels on pop means | BE135: 30 | BF135: 0.1219650209 | BI135: -999 | BJ135: 24.2 | BK135: -999 | BM135: =IF(BL135="",NA(),COUNTIF(BL135:$BL$303,BL135)) ->  | BR135: =IF(BQ135="",NA(),COUNTIF(BQ135:$BQ$303,BQ135)) ->  | BW135: =IF(BV135="",NA(),COUNTIF(BV135:$BV$303,BV135)) ->  | CB135: =IF(CA135="",NA(),COUNTIF(CA135:$CA$303,CA135)) ->  | CG135: =IF(CF135="",NA(),COUNTIF($CF135:CF$303,CF135)) ->  | CI135: =IF(CH135="",NA(),COUNTIF($CH135:CH$303,CH135)) -> 
K136: 35.5 | L136: 42.10295749 | M136: 6.51627765 | N136: 0.2477153709 | O136: -43.48372235 | Q136: -999 | V136: -43.48372235 | X136: -0.7348469228 | Y136: 1.45632367e-06 | AB136: 61.4822125 | AC136: 21.1997125 | AD136: 9.987284669 | AE136: 0.07559633272 | AI136: -999 | AL136: 1.45632367e-06 | AN136: -999 | AR136: 1.4 | AV136: NCP | AW136: =(V9-O9)/BB9 -> 4.082482905 | BE136: 31 | BF136: 0.7944953144 | BI136: -999 | BJ136: 24.2 | BK136: -999 | BM136: =IF(BL136="",NA(),COUNTIF(BL136:$BL$303,BL136)) ->  | BR136: =IF(BQ136="",NA(),COUNTIF(BQ136:$BQ$303,BQ136)) ->  | BW136: =IF(BV136="",NA(),COUNTIF(BV136:$BV$303,BV136)) ->  | CB136: =IF(CA136="",NA(),COUNTIF(CA136:$CA$303,CA136)) ->  | CG136: =IF(CF136="",NA(),COUNTIF($CF136:CF$303,CF136)) ->  | CI136: =IF(CH136="",NA(),COUNTIF($CH136:CH$303,CH136)) -> 
K137: 36 | L137: 42.24627223 | M137: 6.896196082 | N137: 0.2712344939 | O137: -43.10380392 | Q137: -999 | V137: -43.10380392 | X137: -0.6531972647 | Y137: 1.911140458e-06 | AB137: 61.7808 | AC137: 21.4983 | AD137: 10.27059784 | AE137: 0.06792115166 | AI137: -999 | AL137: 1.911140458e-06 | AN137: -999 | AQ137: H0 pop | AR137: =O9-$AR$136 -> 38.6 | AS137: =MAX(L65:L265) -> 42.7981143 | AV137: Degrees of freedom | AW137: =$K$14-1 -> 5 | BE137: 32 | BF137: 0.4720357358 | BI137: -999 | BJ137: 24.2 | BK137: -999 | BM137: =IF(BL137="",NA(),COUNTIF(BL137:$BL$303,BL137)) ->  | BR137: =IF(BQ137="",NA(),COUNTIF(BQ137:$BQ$303,BQ137)) ->  | BW137: =IF(BV137="",NA(),COUNTIF(BV137:$BV$303,BV137)) ->  | CB137: =IF(CA137="",NA(),COUNTIF(CA137:$CA$303,CA137)) ->  | CG137: =IF(CF137="",NA(),COUNTIF($CF137:CF$303,CF137)) ->  | CI137: =IF(CH137="",NA(),COUNTIF($CH137:CH$303,CH137)) -> 
K138: 36.5 | L138: 42.37385536 | M138: 7.249771616 | N138: 0.2961806318 | O138: -42.75022838 | Q138: -999 | V138: -42.75022838 | X138: -0.5715476066 | Y138: 2.528550931e-06 | AB138: 62.0793875 | AC138: 21.7968875 | AD138: 10.55787344 | AE138: 0.06088598235 | AI138: -999 | AL138: 2.528550931e-06 | AN138: -999 | AQ138: Ho grey | AR138: =O9-$AR$136 -> 38.6 | AS138: =MAX(Q65:Q265) -> -999 | AV138: LH end t axis | AW138: =(0-O9)/BB9 -> -6.531972647 | BE138: 33 | BF138: 0.494920224 | BI138: -999 | BJ138: 24.2 | BK138: -999 | BM138: =IF(BL138="",NA(),COUNTIF(BL138:$BL$303,BL138)) ->  | BR138: =IF(BQ138="",NA(),COUNTIF(BQ138:$BQ$303,BQ138)) ->  | BW138: =IF(BV138="",NA(),COUNTIF(BV138:$BV$303,BV138)) ->  | CB138: =IF(CA138="",NA(),COUNTIF(CA138:$CA$303,CA138)) ->  | CG138: =IF(CF138="",NA(),COUNTIF($CF138:CF$303,CF138)) ->  | CI138: =IF(CH138="",NA(),COUNTIF($CH138:CH$303,CH138)) -> 
K139: 37 | L139: 42.48529068 | M139: 7.570834509 | N139: 0.3224716068 | O139: -42.42916549 | Q139: -999 | V139: -42.42916549 | X139: -0.4898979486 | Y139: 3.372801062e-06 | AB139: 62.377975 | AC139: 22.095475 | AD139: 10.84911146 | AE139: 0.05445510902 | AI139: -999 | AL139: 3.372801062e-06 | AN139: -999 | AQ139: H1 pop | AR139: =V9-$AR$136 -> 63.6 | AS139: =MAX(AI65:AI265) -> -999 | AV139: RH end t axis | AW139: =(100-O9)/BB9 -> 9.797958971 | BE139: 34 | BF139: 0.6734763086 | BI139: -999 | BJ139: 24.2 | BK139: -999 | BM139: =IF(BL139="",NA(),COUNTIF(BL139:$BL$303,BL139)) ->  | BR139: =IF(BQ139="",NA(),COUNTIF(BQ139:$BQ$303,BQ139)) ->  | BW139: =IF(BV139="",NA(),COUNTIF(BV139:$BV$303,BV139)) ->  | CB139: =IF(CA139="",NA(),COUNTIF(CA139:$CA$303,CA139)) ->  | CG139: =IF(CF139="",NA(),COUNTIF($CF139:CF$303,CF139)) ->  | CI139: =IF(CH139="",NA(),COUNTIF($CH139:CH$303,CH139)) -> 
K140: 37.5 | L140: 42.58021276 | M140: 7.853583835 | N140: 0.3499932714 | O140: -42.14641617 | Q140: -999 | V140: -42.14641617 | X140: -0.4082482905 | Y140: 4.535353864e-06 | AB140: 62.6765625 | AC140: 22.3940625 | AD140: 11.14431189 | AE140: 0.04859260202 | AI140: -999 | AL140: 4.535353864e-06 | AN140: -999 | AQ140: H1 grey | AR140: =V9-$AR$136 -> 63.6 | AS140: =MAX(AN65:AN265) -> -999 | AV140: t increment | AW140: =(AW139-AW138)/200 -> 0.08164965809 | BE140: 35 | BF140: =MOD(BF139*10000013,1) -> 0.8410341442 | BI140: -999 | BJ140: 24.2 | BK140: -999 | BM140: =IF(BL140="",NA(),COUNTIF(BL140:$BL$303,BL140)) ->  | BR140: =IF(BQ140="",NA(),COUNTIF(BQ140:$BQ$303,BQ140)) ->  | BW140: =IF(BV140="",NA(),COUNTIF(BV140:$BV$303,BV140)) ->  | CB140: =IF(CA140="",NA(),COUNTIF(CA140:$CA$303,CA140)) ->  | CG140: =IF(CF140="",NA(),COUNTIF($CF140:CF$303,CF140)) ->  | CI140: =IF(CH140="",NA(),COUNTIF($CH140:CH$303,CH140)) -> 
K141: 38 | L141: 42.6583089 | M141: 8.09276107 | N141: 0.3785998289 | O141: -41.90723893 | Q141: -999 | V141: -41.90723893 | X141: -0.3265986324 | Y141: 6.146888061e-06 | AB141: 62.97515 | AC141: 22.69265 | AD141: 11.44347476 | AE141: 0.04326264715 | AI141: -999 | AL141: 6.146888061e-06 | AN141: -999 | BE141: 36 | BF141: 0.3750751913 | BI141: -999 | BJ141: 24.2 | BK141: -999 | BM141: =IF(BL141="",NA(),COUNTIF(BL141:$BL$303,BL141)) ->  | BR141: =IF(BQ141="",NA(),COUNTIF(BQ141:$BQ$303,BQ141)) ->  | BW141: =IF(BV141="",NA(),COUNTIF(BV141:$BV$303,BV141)) ->  | CB141: =IF(CA141="",NA(),COUNTIF(CA141:$CA$303,CA141)) ->  | CG141: =IF(CF141="",NA(),COUNTIF($CF141:CF$303,CF141)) ->  | CI141: =IF(CH141="",NA(),COUNTIF($CH141:CH$303,CH141)) -> 
K142: 38.5 | L142: 42.71932088 | M142: 8.283812426 | N142: 0.4081157006 | O142: -41.71618757 | Q142: -999 | V142: -41.71618757 | X142: -0.2449489743 | Y142: 8.394623537e-06 | AB142: 63.2737375 | AC142: 22.9912375 | AD142: 11.74660004 | AE142: 0.03842984894 | AI142: -999 | AL142: 8.394623537e-06 | AN142: -999 | BE142: 37 | BF142: 0.7885713279 | BI142: -999 | BJ142: 24.2 | BK142: -999 | BM142: =IF(BL142="",NA(),COUNTIF(BL142:$BL$303,BL142)) ->  | BR142: =IF(BQ142="",NA(),COUNTIF(BQ142:$BQ$303,BQ142)) ->  | BW142: =IF(BV142="",NA(),COUNTIF(BV142:$BV$303,BV142)) ->  | CB142: =IF(CA142="",NA(),COUNTIF(CA142:$CA$303,CA142)) ->  | CG142: =IF(CF142="",NA(),COUNTIF($CF142:CF$303,CF142)) ->  | CI142: =IF(CH142="",NA(),COUNTIF($CH142:CH$303,CH142)) -> 
K143: 39 | L143: 42.76304636 | M143: 8.423032915 | N143: 0.4383389953 | O143: -41.57696709 | Q143: -999 | V143: -41.57696709 | X143: -0.1632993162 | Y143: 1.154725249e-05 | AB143: 63.572325 | AC143: 23.289825 | AD143: 12.05368775 | AE143: 0.03405949432 | AI143: -999 | AL143: 1.154725249e-05 | AN143: -999 | BE143: 38 | BF143: 0.530674547 | BI143: -999 | BJ143: 24.2 | BK143: -999 | BM143: =IF(BL143="",NA(),COUNTIF(BL143:$BL$303,BL143)) ->  | BR143: =IF(BQ143="",NA(),COUNTIF(BQ143:$BQ$303,BQ143)) ->  | BW143: =IF(BV143="",NA(),COUNTIF(BV143:$BV$303,BV143)) ->  | CB143: =IF(CA143="",NA(),COUNTIF(CA143:$CA$303,CA143)) ->  | CG143: =IF(CF143="",NA(),COUNTIF($CF143:CF$303,CF143)) ->  | CI143: =IF(CH143="",NA(),COUNTIF($CH143:CH$303,CH143)) -> 
K144: 39.5 | L144: 42.78934001 | M144: 8.507685803 | N144: 0.4690465039 | O144: -41.4923142 | Q144: -999 | V144: -41.4923142 | X144: -0.08164965809 | Y144: 1.599063409e-05 | AB144: 63.8709125 | AC144: 23.5884125 | AD144: 12.36473787 | AE144: 0.03011777957 | AI144: -999 | AL144: 1.599063409e-05 | AN144: -999 | BE144: 39 | BF144: 0.3683392704 | BI144: -999 | BJ144: 24.2 | BK144: -999 | BM144: =IF(BL144="",NA(),COUNTIF(BL144:$BL$303,BL144)) ->  | BR144: =IF(BQ144="",NA(),COUNTIF(BQ144:$BQ$303,BQ144)) ->  | BW144: =IF(BV144="",NA(),COUNTIF(BV144:$BV$303,BV144)) ->  | CB144: =IF(CA144="",NA(),COUNTIF(CA144:$CA$303,CA144)) ->  | CG144: =IF(CF144="",NA(),COUNTIF($CF144:CF$303,CF144)) ->  | CI144: =IF(CH144="",NA(),COUNTIF($CH144:CH$303,CH144)) -> 
K145: 40 | L145: 42.7981143 | M145: 8.536092073 | N145: 0.5 | O145: -41.46390793 | Q145: -999 | V145: -41.46390793 | X145: 1.135203043e-14 | Y145: 2.22785453e-05 | AB145: 64.1695 | AC145: 23.887 | AD145: 12.67975042 | AE145: 0.0265720017 | AI145: -999 | AL145: 2.22785453e-05 | AN145: -999 | BE145: 40 | BF145: 0.4919436872 | BI145: -999 | BJ145: 24.2 | BK145: -999 | BM145: =IF(BL145="",NA(),COUNTIF(BL145:$BL$303,BL145)) ->  | BR145: =IF(BQ145="",NA(),COUNTIF(BQ145:$BQ$303,BQ145)) ->  | BW145: =IF(BV145="",NA(),COUNTIF(BV145:$BV$303,BV145)) ->  | CB145: =IF(CA145="",NA(),COUNTIF(CA145:$CA$303,CA145)) ->  | CG145: =IF(CF145="",NA(),COUNTIF($CF145:CF$303,CF145)) ->  | CI145: =IF(CH145="",NA(),COUNTIF($CH145:CH$303,CH145)) -> 
K146: 40.5 | L146: 42.78934001 | M146: 8.507685803 | N146: 0.5309534961 | O146: -41.4923142 | Q146: -999 | V146: -41.4923142 | X146: 0.08164965809 | Y146: 3.120419298e-05 | AB146: 64.4680875 | AC146: 24.1855875 | AD146: 12.99872539 | AE146: 0.02339071563 | AI146: -999 | AL146: 3.120419298e-05 | AN146: -999 | BE146: 41 | BF146: 0.2672733963 | BI146: -999 | BJ146: 24.2 | BK146: -999 | BM146: =IF(BL146="",NA(),COUNTIF(BL146:$BL$303,BL146)) ->  | BR146: =IF(BQ146="",NA(),COUNTIF(BQ146:$BQ$303,BQ146)) ->  | BW146: =IF(BV146="",NA(),COUNTIF(BV146:$BV$303,BV146)) ->  | CB146: =IF(CA146="",NA(),COUNTIF(CA146:$CA$303,CA146)) ->  | CG146: =IF(CF146="",NA(),COUNTIF($CF146:CF$303,CF146)) ->  | CI146: =IF(CH146="",NA(),COUNTIF($CH146:CH$303,CH146)) -> 
K147: 41 | L147: 42.76304636 | M147: 8.423032915 | N147: 0.5616610047 | O147: -41.57696709 | Q147: -999 | V147: -41.57696709 | X147: 0.1632993162 | Y147: 4.389985746e-05 | AB147: 64.766675 | AC147: 24.484175 | AD147: 13.32166279 | AE147: 0.02054385916 | AI147: -999 | AL147: 4.389985746e-05 | AN147: -999 | BE147: 42 | BF147: 0.4370900095 | BI147: -999 | BJ147: 24.2 | BK147: -999 | BM147: =IF(BL147="",NA(),COUNTIF(BL147:$BL$303,BL147)) ->  | BR147: =IF(BQ147="",NA(),COUNTIF(BQ147:$BQ$303,BQ147)) ->  | BW147: =IF(BV147="",NA(),COUNTIF(BV147:$BV$303,BV147)) ->  | CB147: =IF(CA147="",NA(),COUNTIF(CA147:$CA$303,CA147)) ->  | CG147: =IF(CF147="",NA(),COUNTIF($CF147:CF$303,CF147)) ->  | CI147: =IF(CH147="",NA(),COUNTIF($CH147:CH$303,CH147)) -> 
K148: 41.5 | L148: 42.71932088 | M148: 8.283812426 | N148: 0.5918842994 | O148: -41.71618757 | Q148: -999 | V148: -41.71618757 | X148: 0.2449489743 | Y148: 6.197386264e-05 | AB148: 65.0652625 | AC148: 24.7827625 | AD148: 13.6485626 | AE148: 0.01800284779 | AI148: -999 | AL148: 6.197386264e-05 | AN148: -999 | BE148: 43 | BF148: 0.7766792476 | BI148: -999 | BJ148: 24.2 | BK148: -999 | BM148: =IF(BL148="",NA(),COUNTIF(BL148:$BL$303,BL148)) ->  | BR148: =IF(BQ148="",NA(),COUNTIF(BQ148:$BQ$303,BQ148)) ->  | BW148: =IF(BV148="",NA(),COUNTIF(BV148:$BV$303,BV148)) ->  | CB148: =IF(CA148="",NA(),COUNTIF(CA148:$CA$303,CA148)) ->  | CG148: =IF(CF148="",NA(),COUNTIF($CF148:CF$303,CF148)) ->  | CI148: =IF(CH148="",NA(),COUNTIF($CH148:CH$303,CH148)) -> 
K149: 42 | L149: 42.6583089 | M149: 8.09276107 | N149: 0.6214001711 | O149: -41.90723893 | Q149: -999 | V149: -41.90723893 | X149: 0.3265986324 | Y149: 8.769584423e-05 | AB149: 65.36385 | AC149: 25.08135 | AD149: 13.97942484 | AE149: 0.01574064186 | AI149: -999 | AL149: 8.769584423e-05 | AN149: -999 | BE149: 44 | BF149: 0.5730074346 | BI149: -999 | BJ149: 24.2 | BK149: -999 | BM149: =IF(BL149="",NA(),COUNTIF(BL149:$BL$303,BL149)) ->  | BR149: =IF(BQ149="",NA(),COUNTIF(BQ149:$BQ$303,BQ149)) ->  | BW149: =IF(BV149="",NA(),COUNTIF(BV149:$BV$303,BV149)) ->  | CB149: =IF(CA149="",NA(),COUNTIF(CA149:$CA$303,CA149)) ->  | CG149: =IF(CF149="",NA(),COUNTIF($CF149:CF$303,CF149)) ->  | CI149: =IF(CH149="",NA(),COUNTIF($CH149:CH$303,CH149)) -> 
K150: 42.5 | L150: 42.58021276 | M150: 7.853583835 | N150: 0.6500067286 | O150: -42.14641617 | Q150: -999 | V150: -42.14641617 | X150: 0.4082482905 | Y150: 0.0001242426688 | AB150: 65.6624375 | AC150: 25.3799375 | AD150: 14.3142495 | AE150: 0.01373178852 | AI150: -999 | AL150: 0.0001242426688 | AN150: -999 | BE150: 45 | BF150: 0.7951621711 | BI150: -999 | BJ150: 24.2 | BK150: -999 | BM150: =IF(BL150="",NA(),COUNTIF(BL150:$BL$303,BL150)) ->  | BR150: =IF(BQ150="",NA(),COUNTIF(BQ150:$BQ$303,BQ150)) ->  | BW150: =IF(BV150="",NA(),COUNTIF(BV150:$BV$303,BV150)) ->  | CB150: =IF(CA150="",NA(),COUNTIF(CA150:$CA$303,CA150)) ->  | CG150: =IF(CF150="",NA(),COUNTIF($CF150:CF$303,CF150)) ->  | CI150: =IF(CH150="",NA(),COUNTIF($CH150:CH$303,CH150)) -> 
K151: 43 | L151: 42.48529068 | M151: 7.570834509 | N151: 0.6775283932 | O151: -42.42916549 | Q151: -999 | V151: -42.42916549 | X151: 0.4898979486 | Y151: 0.000176017823 | AB151: 65.961025 | AC151: 25.678525 | AD151: 14.65303658 | AE151: 0.01195244111 | AI151: -999 | AL151: 0.000176017823 | AN151: -999 | BE151: 46 | BF151: 0.0483623445 | BI151: -999 | BJ151: 24.2 | BK151: -999 | BM151: =IF(BL151="",NA(),COUNTIF(BL151:$BL$303,BL151)) ->  | BR151: =IF(BQ151="",NA(),COUNTIF(BQ151:$BQ$303,BQ151)) ->  | BW151: =IF(BV151="",NA(),COUNTIF(BV151:$BV$303,BV151)) ->  | CB151: =IF(CA151="",NA(),COUNTIF(CA151:$CA$303,CA151)) ->  | CG151: =IF(CF151="",NA(),COUNTIF($CF151:CF$303,CF151)) ->  | CI151: =IF(CH151="",NA(),COUNTIF($CH151:CH$303,CH151)) -> 
K152: 43.5 | L152: 42.37385536 | M152: 7.249771616 | N152: 0.7038193682 | O152: -42.75022838 | Q152: -999 | V152: -42.75022838 | X152: 0.5715476066 | Y152: 0.0002490559756 | AB152: 66.2596125 | AC152: 25.9771125 | AD152: 14.99578609 | AE152: 0.01038035853 | AI152: -999 | AL152: 0.0002490559756 | AN152: -999 | BE152: 47 | BF152: 0.07374450564 | BI152: -999 | BJ152: 24.2 | BK152: -999 | BM152: =IF(BL152="",NA(),COUNTIF(BL152:$BL$303,BL152)) ->  | BR152: =IF(BQ152="",NA(),COUNTIF(BQ152:$BQ$303,BQ152)) ->  | BW152: =IF(BV152="",NA(),COUNTIF(BV152:$BV$303,BV152)) ->  | CB152: =IF(CA152="",NA(),COUNTIF(CA152:$CA$303,CA152)) ->  | CG152: =IF(CF152="",NA(),COUNTIF($CF152:CF$303,CF152)) ->  | CI152: =IF(CH152="",NA(),COUNTIF($CH152:CH$303,CH152)) -> 
K153: 44 | L153: 42.24627223 | M153: 6.896196082 | N153: 0.7287655061 | O153: -43.10380392 | Q153: -999 | V153: -43.10380392 | X153: 0.6531972647 | Y153: 0.00035152096 | AB153: 66.5582 | AC153: 26.2757 | AD153: 15.34249801 | AE153: 0.008994887298 | AI153: -999 | AL153: 0.00035152096 | AN153: -999 | BE153: 48 | BF153: 0.01511701941 | BI153: -999 | BJ153: 24.2 | BK153: -999 | BM153: =IF(BL153="",NA(),COUNTIF(BL153:$BL$303,BL153)) ->  | BR153: =IF(BQ153="",NA(),COUNTIF(BQ153:$BQ$303,BQ153)) ->  | BW153: =IF(BV153="",NA(),COUNTIF(BV153:$BV$303,BV153)) ->  | CB153: =IF(CA153="",NA(),COUNTIF(CA153:$CA$303,CA153)) ->  | CG153: =IF(CF153="",NA(),COUNTIF($CF153:CF$303,CF153)) ->  | CI153: =IF(CH153="",NA(),COUNTIF($CH153:CH$303,CH153)) -> 
K154: 44.5 | L154: 42.10295749 | M154: 6.51627765 | N154: 0.7522846291 | O154: -43.48372235 | Q154: -999 | V154: -43.48372235 | X154: 0.7348469228 | Y154: 0.0004942989371 | AB154: 66.8567875 | AC154: 26.5742875 | AD154: 15.69317236 | AE154: 0.007776928805 | AI154: -999 | AL154: 0.0004942989371 | AN154: -999 | BE154: 49 | BF154: 0.3906702697 | BI154: -999 | BJ154: 24.2 | BK154: -999 | BM154: =IF(BL154="",NA(),COUNTIF(BL154:$BL$303,BL154)) ->  | BR154: =IF(BQ154="",NA(),COUNTIF(BQ154:$BQ$303,BQ154)) ->  | BW154: =IF(BV154="",NA(),COUNTIF(BV154:$BV$303,BV154)) ->  | CB154: =IF(CA154="",NA(),COUNTIF(CA154:$CA$303,CA154)) ->  | CG154: =IF(CF154="",NA(),COUNTIF($CF154:CF$303,CF154)) ->  | CI154: =IF(CH154="",NA(),COUNTIF($CH154:CH$303,CH154)) -> 
K155: 45 | L155: 41.94437582 | M155: 6.11637724 | N155: 0.774325474 | O155: -43.88362276 | Q155: -999 | V155: -43.88362276 | X155: 0.8164965809 | Y155: 0.0006916785366 | AB155: 67.155375 | AC155: 26.872875 | AD155: 16.04780913 | AE155: 0.006708894044 | AI155: -999 | AL155: 0.0006916785366 | AN155: -999 | BE155: 50 | BF155: 0.7759905756 | BI155: -999 | BJ155: 24.2 | BK155: -999 | BM155: =IF(BL155="",NA(),COUNTIF(BL155:$BL$303,BL155)) ->  | BR155: =IF(BQ155="",NA(),COUNTIF(BQ155:$BQ$303,BQ155)) ->  | BW155: =IF(BV155="",NA(),COUNTIF(BV155:$BV$303,BV155)) ->  | CB155: =IF(CA155="",NA(),COUNTIF(CA155:$CA$303,CA155)) ->  | CG155: =IF(CF155="",NA(),COUNTIF($CF155:CF$303,CF155)) ->  | CI155: =IF(CH155="",NA(),COUNTIF($CH155:CH$303,CH155)) -> 
K156: 45.5 | L156: 41.77103787 | M156: 5.702872339 | N156: 0.7948655064 | O156: -44.29712766 | Q156: -999 | V156: -44.29712766 | X156: 0.898146239 | Y156: 0.0009620964383 | AB156: 67.4539625 | AC156: 27.1714625 | AD156: 16.40640832 | AE156: 0.00577464836 | AI156: -999 | AL156: 0.0009620964383 | AN156: -999 | BE156: 51 | BF156: 0.8433973491 | BI156: -999 | BJ156: 24.2 | BK156: -999 | BM156: =IF(BL156="",NA(),COUNTIF(BL156:$BL$303,BL156)) ->  | BR156: =IF(BQ156="",NA(),COUNTIF(BQ156:$BQ$303,BQ156)) ->  | BW156: =IF(BV156="",NA(),COUNTIF(BV156:$BV$303,BV156)) ->  | CB156: =IF(CA156="",NA(),COUNTIF(CA156:$CA$303,CA156)) ->  | CG156: =IF(CF156="",NA(),COUNTIF($CF156:CF$303,CF156)) ->  | CI156: =IF(CH156="",NA(),COUNTIF($CH156:CH$303,CH156)) -> 
K157: 46 | L157: 41.58349756 | M157: 5.281992006 | N157: 0.8139078977 | O157: -44.71800799 | Q157: -999 | V157: -44.71800799 | X157: 0.9797958971 | Y157: 0.001328910952 | AB157: 67.75255 | AC157: 27.47005 | AD157: 16.76896993 | AE157: 0.004959447715 | AI157: -999 | AL157: 0.001328910952 | AN157: -999 | BE157: 52 | BF157: 0.4553574026 | BI157: -999 | BJ157: 24.2 | BK157: -999 | BM157: =IF(BL157="",NA(),COUNTIF(BL157:$BL$303,BL157)) ->  | BR157: =IF(BQ157="",NA(),COUNTIF(BQ157:$BQ$303,BQ157)) ->  | BW157: =IF(BV157="",NA(),COUNTIF(BV157:$BV$303,BV157)) ->  | CB157: =IF(CA157="",NA(),COUNTIF(CA157:$CA$303,CA157)) ->  | CG157: =IF(CF157="",NA(),COUNTIF($CF157:CF$303,CF157)) ->  | CI157: =IF(CH157="",NA(),COUNTIF($CH157:CH$303,CH157)) -> 
K158: 46.5 | L158: 41.38234908 | M158: 4.859667243 | N158: 0.831477962 | O158: -45.14033276 | Q158: -999 | V158: -45.14033276 | X158: 1.061445555 | Y158: 0.001821149389 | AB158: 68.0511375 | AC158: 27.7686375 | AD158: 17.13549397 | AE158: 0.004249869774 | AI158: -999 | AL158: 0.001821149389 | AN158: -999 | BE158: 53 | BF158: 0.9452771842 | BI158: -999 | BJ158: 24.2 | BK158: -999 | BM158: =IF(BL158="",NA(),COUNTIF(BL158:$BL$303,BL158)) ->  | BR158: =IF(BQ158="",NA(),COUNTIF(BQ158:$BQ$303,BQ158)) ->  | BW158: =IF(BV158="",NA(),COUNTIF(BV158:$BV$303,BV158)) ->  | CB158: =IF(CA158="",NA(),COUNTIF(CA158:$CA$303,CA158)) ->  | CG158: =IF(CF158="",NA(),COUNTIF($CF158:CF$303,CF158)) ->  | CI158: =IF(CH158="",NA(),COUNTIF($CH158:CH$303,CH158)) -> 
K159: 47 | L159: 41.1682238 | M159: 4.441401443 | N159: 0.8476193346 | O159: -45.55859856 | Q159: -999 | V159: -45.55859856 | X159: 1.143095213 | Y159: 0.002474159849 | AB159: 68.349725 | AC159: 28.067225 | AD159: 17.50598043 | AE159: 0.003633739732 | AI159: -999 | AL159: 0.002474159849 | AN159: -999 | BE159: 54 | BF159: 0.131083101 | BI159: -999 | BJ159: 24.2 | BK159: -999 | BM159: =IF(BL159="",NA(),COUNTIF(BL159:$BL$303,BL159)) ->  | BR159: =IF(BQ159="",NA(),COUNTIF(BQ159:$BQ$303,BQ159)) ->  | BW159: =IF(BV159="",NA(),COUNTIF(BV159:$BV$303,BV159)) ->  | CB159: =IF(CA159="",NA(),COUNTIF(CA159:$CA$303,CA159)) ->  | CG159: =IF(CF159="",NA(),COUNTIF($CF159:CF$303,CF159)) ->  | CI159: =IF(CH159="",NA(),COUNTIF($CH159:CH$303,CH159)) -> 
K160: 47.5 | L160: 40.94178694 | M160: 4.032164386 | N160: 0.862390134 | O160: -45.96783561 | Q160: -999 | V160: -45.96783561 | X160: 1.224744871 | Y160: 0.003330087453 | AB160: 68.6483125 | AC160: 28.3658125 | AD160: 17.88042931 | AE160: 0.0031000539 | AI160: -999 | AL160: 0.003330087453 | AN160: -999 | BE160: 55 | BF160: 0.7144219577 | BI160: -999 | BJ160: 24.2 | BK160: -999 | BM160: =IF(BL160="",NA(),COUNTIF(BL160:$BL$303,BL160)) ->  | BR160: =IF(BQ160="",NA(),COUNTIF(BQ160:$BQ$303,BQ160)) ->  | BW160: =IF(BV160="",NA(),COUNTIF(BV160:$BV$303,BV160)) ->  | CB160: =IF(CA160="",NA(),COUNTIF(CA160:$CA$303,CA160)) ->  | CG160: =IF(CF160="",NA(),COUNTIF($CF160:CF$303,CF160)) ->  | CI160: =IF(CH160="",NA(),COUNTIF($CH160:CH$303,CH160)) -> 
K161: 48 | L161: 40.70373417 | M161: 3.636311949 | N161: 0.8758592957 | O161: -46.36368805 | Q161: -999 | V161: -46.36368805 | X161: 1.306394529 | Y161: 0.004438091901 | AB161: 68.9469 | AC161: 28.6644 | AD161: 18.25884061 | AE161: 0.002638901841 | AI161: -999 | AL161: 0.004438091901 | AN161: -999 | BE161: 56 | BF161: 0.86479792 | BI161: -999 | BJ161: 24.2 | BK161: -999 | BM161: =IF(BL161="",NA(),COUNTIF(BL161:$BL$303,BL161)) ->  | BR161: =IF(BQ161="",NA(),COUNTIF(BQ161:$BQ$303,BQ161)) ->  | BW161: =IF(BV161="",NA(),COUNTIF(BV161:$BV$303,BV161)) ->  | CB161: =IF(CA161="",NA(),COUNTIF(CA161:$CA$303,CA161)) ->  | CG161: =IF(CF161="",NA(),COUNTIF($CF161:CF$303,CF161)) ->  | CI161: =IF(CH161="",NA(),COUNTIF($CH161:CH$303,CH161)) -> 
K162: 48.5 | L162: 40.45478802 | M162: 3.25753237 | N162: 0.8881032212 | O162: -46.74246763 | Q162: -999 | V162: -46.74246763 | X162: 1.388044188 | Y162: 0.005854229782 | AB162: 69.2454875 | AC162: 28.9629875 | AD162: 18.64121433 | AE162: 0.002241388348 | AI162: -999 | AL162: 0.005854229782 | AN162: -999 | BE162: 57 | BF162: 0.4422592819 | BI162: -999 | BJ162: 24.2 | BK162: -999 | BM162: =IF(BL162="",NA(),COUNTIF(BL162:$BL$303,BL162)) ->  | BR162: =IF(BQ162="",NA(),COUNTIF(BQ162:$BQ$303,BQ162)) ->  | BW162: =IF(BV162="",NA(),COUNTIF(BV162:$BV$303,BV162)) ->  | CB162: =IF(CA162="",NA(),COUNTIF(CA162:$CA$303,CA162)) ->  | CG162: =IF(CF162="",NA(),COUNTIF($CF162:CF$303,CF162)) ->  | CI162: =IF(CH162="",NA(),COUNTIF($CH162:CH$303,CH162)) -> 
K163: 49 | L163: 40.19569427 | M163: 2.898818675 | N163: 0.8992028254 | O163: -47.10118133 | Q163: -999 | V163: -47.10118133 | X163: 1.469693846 | Y163: 0.007640942132 | AB163: 69.544075 | AC163: 29.261575 | AD163: 19.02755048 | AE163: 0.001899556307 | AI163: -999 | AL163: 0.007640942132 | AN163: -999 | BE163: 58 | BF163: 0.5681076944 | BI163: -999 | BJ163: 24.2 | BK163: -999 | BM163: =IF(BL163="",NA(),COUNTIF(BL163:$BL$303,BL163)) ->  | BR163: =IF(BQ163="",NA(),COUNTIF(BQ163:$BQ$303,BQ163)) ->  | BW163: =IF(BV163="",NA(),COUNTIF(BV163:$BV$303,BV163)) ->  | CB163: =IF(CA163="",NA(),COUNTIF(CA163:$CA$303,CA163)) ->  | CG163: =IF(CF163="",NA(),COUNTIF($CF163:CF$303,CF163)) ->  | CI163: =IF(CH163="",NA(),COUNTIF($CH163:CH$303,CH163)) -> 
K164: 49.5 | L164: 39.92721824 | M164: 2.562465721 | N164: 0.9092410181 | O164: -47.43753428 | Q164: -999 | V164: -47.43753428 | X164: 1.551343504 | Y164: 0.009866114632 | AB164: 69.8426625 | AC164: 29.5601625 | AD164: 19.41784905 | AE164: 0.001606311292 | AI164: -999 | AL164: 0.009866114632 | AN164: -999 | BE164: 59 | BF164: 0.3292743862 | BI164: -999 | BJ164: 24.2 | BK164: -999 | BM164: =IF(BL164="",NA(),COUNTIF(BL164:$BL$303,BL164)) ->  | BR164: =IF(BQ164="",NA(),COUNTIF(BQ164:$BQ$303,BQ164)) ->  | BW164: =IF(BV164="",NA(),COUNTIF(BV164:$BV$303,BV164)) ->  | CB164: =IF(CA164="",NA(),COUNTIF(CA164:$CA$303,CA164)) ->  | CG164: =IF(CF164="",NA(),COUNTIF($CF164:CF$303,CF164)) ->  | CI164: =IF(CH164="",NA(),COUNTIF($CH164:CH$303,CH164)) -> 
K165: 50 | L165: 39.65014102 | M165: 2.250089441 | N165: 0.9183006567 | O165: -47.74991056 | Q165: -999 | V165: -47.74991056 | X165: 1.632993162 | Y165: 0.0126017119 | AB165: 70.14125 | AC165: 29.85875 | AD165: 19.81211003 | AE165: 0.001355348594 | AI165: -999 | AL165: 0.0126017119 | AN165: -999 | BE165: 60 | BF165: 0.1422422826 | BI165: -999 | BJ165: 24.2 | BK165: -999 | BM165: =IF(BL165="",NA(),COUNTIF(BL165:$BL$303,BL165)) ->  | BR165: =IF(BQ165="",NA(),COUNTIF(BQ165:$BQ$303,BQ165)) ->  | BW165: =IF(BV165="",NA(),COUNTIF(BV165:$BV$303,BV165)) ->  | CB165: =IF(CA165="",NA(),COUNTIF(CA165:$CA$303,CA165)) ->  | CG165: =IF(CF165="",NA(),COUNTIF($CF165:CF$303,CF165)) ->  | CI165: =IF(CH165="",NA(),COUNTIF($CH165:CH$303,CH165)) -> 
K166: 50.5 | L166: 39.36525576 | M166: 1.962665112 | N166: 0.9264629043 | O166: -48.03733489 | Q166: -999 | V166: -48.03733489 | X166: 1.71464282 | Y166: 0.01592202472 | AB166: 70.4398375 | AC166: 30.1573375 | AD166: 20.21033345 | AE166: 0.001141083234 | AI166: -999 | AL166: 0.01592202472 | AN166: -999 | BE166: 61 | BF166: 0.6754398048 | BI166: -999 | BJ166: 24.2 | BK166: -999 | BM166: =IF(BL166="",NA(),COUNTIF(BL166:$BL$303,BL166)) ->  | BR166: =IF(BQ166="",NA(),COUNTIF(BQ166:$BQ$303,BQ166)) ->  | BW166: =IF(BV166="",NA(),COUNTIF(BV166:$BV$303,BV166)) ->  | CB166: =IF(CA166="",NA(),COUNTIF(CA166:$CA$303,CA166)) ->  | CG166: =IF(CF166="",NA(),COUNTIF($CF166:CF$303,CF166)) ->  | CI166: =IF(CH166="",NA(),COUNTIF($CH166:CH$303,CH166)) -> 
K167: 51 | L167: 39.07336391 | M167: 1.700581016 | N167: 0.933805998 | O167: -48.29941898 | Q167: -999 | V167: -48.29941898 | X167: 1.796292478 | Y167: 0.01990160504 | AB167: 70.738425 | AC167: 30.455925 | AD167: 20.61251928 | AE167: 0.0009585833995 | AI167: -999 | AL167: 0.01990160504 | AN167: -999 | BE167: 62 | BF167: 0.828641504 | BI167: -999 | BJ167: 24.2 | BK167: -999 | BM167: =IF(BL167="",NA(),COUNTIF(BL167:$BL$303,BL167)) ->  | BR167: =IF(BQ167="",NA(),COUNTIF(BQ167:$BQ$303,BQ167)) ->  | BW167: =IF(BV167="",NA(),COUNTIF(BV167:$BV$303,BV167)) ->  | CB167: =IF(CA167="",NA(),COUNTIF(CA167:$CA$303,CA167)) ->  | CG167: =IF(CF167="",NA(),COUNTIF($CF167:CF$303,CF167)) ->  | CI167: =IF(CH167="",NA(),COUNTIF($CH167:CH$303,CH167)) -> 
K168: 51.5 | L168: 38.77527149 | M168: 1.463703645 | N168: 0.9404043566 | O168: -48.53629635 | Q168: -999 | V168: -48.53629635 | X168: 1.877942136 | Y168: 0.02461299366 | AB168: 71.0370125 | AC168: 30.7545125 | AD168: 21.01866754 | AE168: 0.0008035075809 | AI168: -999 | AL168: 0.02461299366 | AN168: -999 | BE168: 63 | BF168: 0.8128325641 | BI168: -999 | BJ168: 24.2 | BK168: -999 | BM168: =IF(BL168="",NA(),COUNTIF(BL168:$BL$303,BL168)) ->  | BR168: =IF(BQ168="",NA(),COUNTIF(BQ168:$BQ$303,BQ168)) ->  | BW168: =IF(BV168="",NA(),COUNTIF(BV168:$BV$303,BV168)) ->  | CB168: =IF(CA168="",NA(),COUNTIF(CA168:$CA$303,CA168)) ->  | CG168: =IF(CF168="",NA(),COUNTIF($CF168:CF$303,CF168)) ->  | CI168: =IF(CH168="",NA(),COUNTIF($CH168:CH$303,CH168)) -> 
K169: 52 | L169: 38.47178549 | M169: 1.251450527 | N169: 0.9463279923 | O169: -48.74854947 | Q169: -999 | V169: -48.74854947 | X169: 1.959591794 | Y169: 0.03012436577 | AB169: 71.3356 | AC169: 31.0531 | AD169: 21.42877821 | AE169: 0.0006720456343 | AI169: -999 | AL169: 0.03012436577 | AN169: -999 | BE169: 64 | BF169: 0.2079785764 | BI169: -999 | BJ169: 24.2 | BK169: -999 | BM169: =IF(BL169="",NA(),COUNTIF(BL169:$BL$303,BL169)) ->  | BR169: =IF(BQ169="",NA(),COUNTIF(BQ169:$BQ$303,BQ169)) ->  | BW169: =IF(BV169="",NA(),COUNTIF(BV169:$BV$303,BV169)) ->  | CB169: =IF(CA169="",NA(),COUNTIF(CA169:$CA$303,CA169)) ->  | CG169: =IF(CF169="",NA(),COUNTIF($CF169:CF$303,CF169)) ->  | CI169: =IF(CH169="",NA(),COUNTIF($CH169:CH$303,CH169)) -> 
K170: 52.5 | L170: 38.16371027 | M170: 1.062866993 | N170: 0.9516421564 | O170: -48.93713301 | Q170: -999 | V170: -48.93713301 | X170: 2.041241452 | Y170: 0.03649722811 | AB170: 71.6341875 | AC170: 31.3516875 | AD170: 21.84285131 | AE170: 0.000560863864 | AI170: -999 | AL170: 0.03649722811 | AN170: -999 | BE170: 65 | BF170: 0.4679388702 | BI170: -999 | BJ170: 24.2 | BK170: -999 | BM170: =IF(BL170="",NA(),COUNTIF(BL170:$BL$303,BL170)) ->  | BR170: =IF(BQ170="",NA(),COUNTIF(BQ170:$BQ$303,BQ170)) ->  | BW170: =IF(BV170="",NA(),COUNTIF(BV170:$BV$303,BV170)) ->  | CB170: =IF(CA170="",NA(),COUNTIF(CA170:$CA$303,CA170)) ->  | CG170: =IF(CF170="",NA(),COUNTIF($CF170:CF$303,CF170)) ->  | CI170: =IF(CH170="",NA(),COUNTIF($CH170:CH$303,CH170)) -> 
K171: 53 | L171: 37.85184411 | M171: 0.8967034865 | N171: 0.9564071876 | O171: -49.10329651 | Q171: -999 | V171: -49.10329651 | X171: 2.12289111 | Y171: 0.04378429743 | AB171: 71.932775 | AC171: 31.650275 | AD171: 22.26088684 | AE171: 0.0004670541636 | AI171: -999 | AL171: 0.04378429743 | AN171: -999 | BE171: 66 | BF171: 0.7851210535 | BI171: -999 | BJ171: 24.2 | BK171: -999 | BM171: =IF(BL171="",NA(),COUNTIF(BL171:$BL$303,BL171)) ->  | BR171: =IF(BQ171="",NA(),COUNTIF(BQ171:$BQ$303,BQ171)) ->  | BW171: =IF(BV171="",NA(),COUNTIF(BV171:$BV$303,BV171)) ->  | CB171: =IF(CA171="",NA(),COUNTIF(CA171:$CA$303,CA171)) ->  | CG171: =IF(CF171="",NA(),COUNTIF($CF171:CF$303,CF171)) ->  | CI171: =IF(CH171="",NA(),COUNTIF($CH171:CH$303,CH171)) -> 
K172: 53.5 | L172: 37.5369759 | M172: 0.7514905088 | N172: 0.9606785092 | O172: -49.24850949 | Q172: -999 | V172: -49.24850949 | X172: 2.204540769 | Y172: 0.05202767465 | AB172: 72.2313625 | AC172: 31.9488625 | AD172: 22.68288478 | AE172: 0.0003880871795 | AI172: -999 | AL172: 0.05202767465 | AN172: -999 | BE172: 67 | BF172: =MOD(BF171*10000013,1) -> 0.7411462963 | BG172: =IF(AND($BD$4,$BE171<=$K$14),NORMSINV(BF172),"") ->  | BH172: =IF(BG172="","",$V$9+$R$11*BG172) ->  | BI172: =IF(AND(NOT($BB$12),$BB$4,$BD$2,BH172<>"",$D$4<>""),BH172,-999) -> -999 | BJ172: =$AX$8-$BJ$105 -> 24.2 | BK172: =IF(AND($BB$12,$BD$2,BH172<>"",$D$4<>""),BH172,-999) -> -999 | BM172: =IF(BL172="",NA(),COUNTIF(BL172:$BL$303,BL172)) ->  | BR172: =IF(BQ172="",NA(),COUNTIF(BQ172:$BQ$303,BQ172)) ->  | BW172: =IF(BV172="",NA(),COUNTIF(BV172:$BV$303,BV172)) ->  | CB172: =IF(CA172="",NA(),COUNTIF(CA172:$CA$303,CA172)) ->  | CG172: =IF(CF172="",NA(),COUNTIF($CF172:CF$303,CF172)) ->  | CI172: =IF(CH172="",NA(),COUNTIF($CH172:CH$303,CH172)) -> 
K173: 54 | L173: 37.21988191 | M173: 0.625608794 | N173: 0.9645067413 | O173: -49.37439121 | Q173: -999 | V173: -49.37439121 | X173: 2.286190427 | Y173: 0.06125740506 | AB173: 72.52995 | AC173: 32.24745 | AD173: 23.10884514 | AE173: 0.0003217694101 | AI173: -999 | AL173: 0.06125740506 | AN173: -999 | BE173: 68 | BF173: 0.5975292623 | BI173: -999 | BJ173: 24.2 | BK173: -999 | BM173: =IF(BL173="",NA(),COUNTIF(BL173:$BL$303,BL173)) ->  | BR173: =IF(BQ173="",NA(),COUNTIF(BQ173:$BQ$303,BQ173)) ->  | BW173: =IF(BV173="",NA(),COUNTIF(BV173:$BV$303,BV173)) ->  | CB173: =IF(CA173="",NA(),COUNTIF(CA173:$CA$303,CA173)) ->  | CG173: =IF(CF173="",NA(),COUNTIF($CF173:CF$303,CF173)) ->  | CI173: =IF(CH173="",NA(),COUNTIF($CH173:CH$303,CH173)) -> 
K174: 54.5 | L174: 36.90132278 | M174: 0.5173529065 | N174: 0.9679378932 | O174: -49.48264709 | Q174: -999 | V174: -49.48264709 | X174: 2.367840085 | Y174: 0.07149048499 | AB174: 72.8285375 | AC174: 32.5460375 | AD174: 23.53876793 | AE174: 0.0002662041102 | AI174: -999 | AL174: 0.07149048499 | AN174: -999 | BE174: 69 | BF174: 0.3909234703 | BI174: -999 | BJ174: 24.2 | BK174: -999 | BM174: =IF(BL174="",NA(),COUNTIF(BL174:$BL$303,BL174)) ->  | BR174: =IF(BQ174="",NA(),COUNTIF(BQ174:$BQ$303,BQ174)) ->  | BW174: =IF(BV174="",NA(),COUNTIF(BV174:$BV$303,BV174)) ->  | CB174: =IF(CA174="",NA(),COUNTIF(CA174:$CA$303,CA174)) ->  | CG174: =IF(CF174="",NA(),COUNTIF($CF174:CF$303,CF174)) ->  | CI174: =IF(CH174="",NA(),COUNTIF($CH174:CH$303,CH174)) -> 
K175: 55 | L175: 36.58204069 | M175: 0.4249869996 | N175: 0.9710136133 | O175: -49.575013 | Q175: -999 | V175: -49.575013 | X175: 2.449489743 | Y175: 0.08273034358 | AB175: 73.127125 | AC175: 32.844625 | AD175: 23.97265314 | AE175: 0.0002197558379 | AI175: -999 | AL175: 0.08273034358 | AN175: -999 | BE175: 70 | BF175: 0.784592241 | BI175: -999 | BJ175: 24.2 | BK175: -999 | BM175: =IF(BL175="",NA(),COUNTIF(BL175:$BL$303,BL175)) ->  | BR175: =IF(BQ175="",NA(),COUNTIF(BQ175:$BQ$303,BQ175)) ->  | BW175: =IF(BV175="",NA(),COUNTIF(BV175:$BV$303,BV175)) ->  | CB175: =IF(CA175="",NA(),COUNTIF(CA175:$CA$303,CA175)) ->  | CG175: =IF(CF175="",NA(),COUNTIF($CF175:CF$303,CF175)) ->  | CI175: =IF(CH175="",NA(),COUNTIF($CH175:CH$303,CH175)) -> 
K176: 55.5 | L176: 36.26275663 | M176: 0.3467920241 | N176: 0.973771471 | O176: -49.65320798 | Q176: -999 | V176: -49.65320798 | X176: 2.531139401 | Y176: 0.09496679745 | AB176: 73.4257125 | AC176: 33.1432125 | AD176: 24.41050077 | AE176: 0.0001810184529 | AI176: -999 | AL176: 0.09496679745 | AN176: -999 | BE176: 71 | BF176: 0.6101872623 | BI176: -999 | BJ176: 24.2 | BK176: -999 | BM176: =IF(BL176="",NA(),COUNTIF(BL176:$BL$303,BL176)) ->  | BR176: =IF(BQ176="",NA(),COUNTIF(BQ176:$BQ$303,BQ176)) ->  | BW176: =IF(BV176="",NA(),COUNTIF(BV176:$BV$303,BV176)) ->  | CB176: =IF(CA176="",NA(),COUNTIF(CA176:$CA$303,CA176)) ->  | CG176: =IF(CF176="",NA(),COUNTIF($CF176:CF$303,CF176)) ->  | CI176: =IF(CH176="",NA(),COUNTIF($CH176:CH$303,CH176)) -> 
K177: 56 | L177: 35.94416797 | M177: 0.2811041514 | N177: 0.9762452573 | O177: -49.71889585 | Q177: -999 | V177: -49.71889585 | X177: 2.612789059 | Y177: 0.1081764488 | AB177: 73.7243 | AC177: 33.4418 | AD177: 24.85231083 | AE177: 0.0001487863621 | AI177: -999 | AL177: 0.1081764488 | AN177: -999 | BE177: 72 | BF177: 0.5554011762 | BI177: -999 | BJ177: 24.2 | BK177: -999 | BM177: =IF(BL177="",NA(),COUNTIF(BL177:$BL$303,BL177)) ->  | BR177: =IF(BQ177="",NA(),COUNTIF(BQ177:$BQ$303,BQ177)) ->  | BW177: =IF(BV177="",NA(),COUNTIF(BV177:$BV$303,BV177)) ->  | CB177: =IF(CA177="",NA(),COUNTIF(CA177:$CA$303,CA177)) ->  | CG177: =IF(CF177="",NA(),COUNTIF($CF177:CF$303,CF177)) ->  | CI177: =IF(CH177="",NA(),COUNTIF($CH177:CH$303,CH177)) -> 
K178: 56.5 | L178: 35.62694621 | M178: 0.2263445915 | N178: 0.9784652907 | O178: -49.77365541 | Q178: -999 | V178: -49.77365541 | X178: 2.694438717 | Y178: 0.1223234761 | AB178: 74.0228875 | AC178: 33.7403875 | AD178: 25.2980833 | AE178: 0.0001220287939 | AI178: -999 | AL178: 0.1223234761 | AN178: -999 | BE178: 73 | BF178: 0.9823574722 | BI178: -999 | BJ178: 24.2 | BK178: -999 | BM178: =IF(BL178="",NA(),COUNTIF(BL178:$BL$303,BL178)) ->  | BR178: =IF(BQ178="",NA(),COUNTIF(BQ178:$BQ$303,BQ178)) ->  | BW178: =IF(BV178="",NA(),COUNTIF(BV178:$BV$303,BV178)) ->  | CB178: =IF(CA178="",NA(),COUNTIF(CA178:$CA$303,CA178)) ->  | CG178: =IF(CF178="",NA(),COUNTIF($CF178:CF$303,CF178)) ->  | CI178: =IF(CH178="",NA(),COUNTIF($CH178:CH$303,CH178)) -> 
K179: 57 | L179: 35.31173493 | M179: 0.1810413116 | N179: 0.9804587187 | O179: -49.81895869 | Q179: -999 | V179: -49.81895869 | X179: 2.776088375 | Y179: 0.1373607506 | AB179: 74.321475 | AC179: 34.038975 | AD179: 25.7478182 | AE179: 9.986688008e-05 | AI179: -999 | AL179: 0.1373607506 | AN179: -999 | BE179: 74 | BF179: 0.4924603403 | BI179: -999 | BJ179: 24.2 | BK179: -999 | BM179: =IF(BL179="",NA(),COUNTIF(BL179:$BL$303,BL179)) ->  | BR179: =IF(BQ179="",NA(),COUNTIF(BQ179:$BQ$303,BQ179)) ->  | BW179: =IF(BV179="",NA(),COUNTIF(BV179:$BV$303,BV179)) ->  | CB179: =IF(CA179="",NA(),COUNTIF(CA179:$CA$303,CA179)) ->  | CG179: =IF(CF179="",NA(),COUNTIF($CF179:CF$303,CF179)) ->  | CI179: =IF(CH179="",NA(),COUNTIF($CH179:CH$303,CH179)) -> 
K180: 57.5 | L180: 34.99914795 | M180: 0.1438434055 | N180: 0.9822498094 | O180: -49.85615659 | Q180: -999 | V180: -49.85615659 | X180: 2.857738033 | Y180: 0.1532312039 | AB180: 74.6200625 | AC180: 34.3375625 | AD180: 26.20151552 | AE180: 8.155332135e-05 | AI180: -999 | AL180: 0.1532312039 | AN180: -999 | BE180: 75 | BF180: 0.8045990169 | BI180: -999 | BJ180: 24.2 | BK180: -999 | BM180: =IF(BL180="",NA(),COUNTIF(BL180:$BL$303,BL180)) ->  | BR180: =IF(BQ180="",NA(),COUNTIF(BQ180:$BQ$303,BQ180)) ->  | BW180: =IF(BV180="",NA(),COUNTIF(BV180:$BV$303,BV180)) ->  | CB180: =IF(CA180="",NA(),COUNTIF(CA180:$CA$303,CA180)) ->  | CG180: =IF(CF180="",NA(),COUNTIF($CF180:CF$303,CF180)) ->  | CI180: =IF(CH180="",NA(),COUNTIF($CH180:CH$303,CH180)) -> 
K181: 58 | L181: 34.68976778 | M181: 0.1135290305 | N181: 0.9838602276 | O181: -49.88647097 | Q181: -999 | V181: -49.88647097 | X181: 2.939387691 | Y181: 0.1698693689 | AB181: 74.91865 | AC181: 34.63615 | AD181: 26.65917526 | AE181: 6.645441679e-05 | AI181: -999 | AL181: 0.1698693689 | AN181: -999 | BE181: 76 | BF181: 0.6288355291 | BI181: -999 | BJ181: 24.2 | BK181: -999 | BM181: =IF(BL181="",NA(),COUNTIF(BL181:$BL$303,BL181)) ->  | BR181: =IF(BQ181="",NA(),COUNTIF(BQ181:$BQ$303,BQ181)) ->  | BW181: =IF(BV181="",NA(),COUNTIF(BV181:$BV$303,BV181)) ->  | CB181: =IF(CA181="",NA(),COUNTIF(CA181:$CA$303,CA181)) ->  | CG181: =IF(CF181="",NA(),COUNTIF($CF181:CF$303,CF181)) ->  | CI181: =IF(CH181="",NA(),COUNTIF($CH181:CH$303,CH181)) -> 
K182: 58.5 | L182: 34.38414423 | M182: 0.08900791034 | N182: 0.9853092935 | O182: -49.91099209 | Q182: -999 | V182: -49.91099209 | X182: 3.021037349 | Y182: 0.1872030176 | AB182: 75.2172375 | AC182: 34.9347375 | AD182: 27.12079743 | AE182: 5.403424425e-05 | AI182: -999 | AL182: 0.1872030176 | AN182: -999 | BE182: 77 | BF182: 0.4657516181 | BI182: -999 | BJ182: 24.2 | BK182: -999 | BM182: =IF(BL182="",NA(),COUNTIF(BL182:$BL$303,BL182)) ->  | BR182: =IF(BQ182="",NA(),COUNTIF(BQ182:$BQ$303,BQ182)) ->  | BW182: =IF(BV182="",NA(),COUNTIF(BV182:$BV$303,BV182)) ->  | CB182: =IF(CA182="",NA(),COUNTIF(CA182:$CA$303,CA182)) ->  | CG182: =IF(CF182="",NA(),COUNTIF($CF182:CF$303,CF182)) ->  | CI182: =IF(CH182="",NA(),COUNTIF($CH182:CH$303,CH182)) -> 
K183: 59 | L183: 34.08279329 | M183: 0.06931943028 | N183: 0.9866142229 | O183: -49.93068057 | Q183: -999 | V183: -49.93068057 | X183: 3.102687008 | Y183: 0.2051548283 | AB183: 75.515825 | AC183: 35.233325 | AD183: 27.58638201 | AE183: 4.384078624e-05 | AI183: -999 | AL183: 0.2051548283 | AN183: -999 | BE183: 78 | BF183: 0.2362399995 | BI183: -999 | BJ183: 24.2 | BK183: -999 | BM183: =IF(BL183="",NA(),COUNTIF(BL183:$BL$303,BL183)) ->  | BR183: =IF(BQ183="",NA(),COUNTIF(BQ183:$BQ$303,BQ183)) ->  | BW183: =IF(BV183="",NA(),COUNTIF(BV183:$BV$303,BV183)) ->  | CB183: =IF(CA183="",NA(),COUNTIF(CA183:$CA$303,CA183)) ->  | CG183: =IF(CF183="",NA(),COUNTIF($CF183:CF$303,CF183)) ->  | CI183: =IF(CH183="",NA(),COUNTIF($CH183:CH$303,CH183)) -> 
K184: 59.5 | L184: 33.78619625 | M184: 0.05362731676 | N184: 0.9877903472 | O184: -49.94637268 | Q184: -999 | V184: -49.94637268 | X184: 3.184336666 | Y184: 0.22364402 | AB184: 75.8144125 | AC184: 35.5319125 | AD184: 28.05592902 | AE184: 3.549380694e-05 | AI184: -999 | AL184: 0.22364402 | AN184: -999 | BE184: 79 | BF184: 0.06644698977 | BI184: -999 | BJ184: 24.2 | BK184: -999 | BM184: =IF(BL184="",NA(),COUNTIF(BL184:$BL$303,BL184)) ->  | BR184: =IF(BQ184="",NA(),COUNTIF(BQ184:$BQ$303,BQ184)) ->  | BW184: =IF(BV184="",NA(),COUNTIF(BV184:$BV$303,BV184)) ->  | CB184: =IF(CA184="",NA(),COUNTIF(CA184:$CA$303,CA184)) ->  | CG184: =IF(CF184="",NA(),COUNTIF($CF184:CF$303,CF184)) ->  | CI184: =IF(CH184="",NA(),COUNTIF($CH184:CH$303,CH184)) -> 
K185: 60 | L185: 33.49479896 | M185: 0.04121182567 | N185: 0.9888513145 | O185: -49.95878817 | Q185: -999 | V185: -49.95878817 | X185: 3.265986324 | Y185: 0.2425879069 | AB185: 76.113 | AC185: 35.8305 | AD185: 28.52943845 | AE185: 2.867429743e-05 | AI185: -999 | AL185: 0.2425879069 | AN185: -999 | BE185: 80 | BF185: 0.7615579069 | BI185: -999 | BJ185: 24.2 | BK185: -999 | BM185: =IF(BL185="",NA(),COUNTIF(BL185:$BL$303,BL185)) ->  | BR185: =IF(BQ185="",NA(),COUNTIF(BQ185:$BQ$303,BQ185)) ->  | BW185: =IF(BV185="",NA(),COUNTIF(BV185:$BV$303,BV185)) ->  | CB185: =IF(CA185="",NA(),COUNTIF(CA185:$CA$303,CA185)) ->  | CG185: =IF(CF185="",NA(),COUNTIF($CF185:CF$303,CF185)) ->  | CI185: =IF(CH185="",NA(),COUNTIF($CH185:CH$303,CH185)) -> 
K186: 60.5 | L186: 33.20901145 | M186: 0.03146026264 | N186: 0.9898092714 | O186: -49.96853974 | Q186: -999 | V186: -49.96853974 | X186: 3.347635982 | Y186: 0.261903333 | AB186: 76.4115875 | AC186: 36.1290875 | AD186: 29.0069103 | AE186: 2.311531876e-05 | AI186: -999 | AL186: 0.261903333 | AN186: -999 | BE186: 81 | BF186: 0.9689135253 | BI186: -999 | BJ186: 24.2 | BK186: -999 | BM186: =IF(BL186="",NA(),COUNTIF(BL186:$BL$303,BL186)) ->  | BR186: =IF(BQ186="",NA(),COUNTIF(BQ186:$BQ$303,BQ186)) ->  | BW186: =IF(BV186="",NA(),COUNTIF(BV186:$BV$303,BV186)) ->  | CB186: =IF(CA186="",NA(),COUNTIF(CA186:$CA$303,CA186)) ->  | CG186: =IF(CF186="",NA(),COUNTIF($CF186:CF$303,CF186)) ->  | CI186: =IF(CH186="",NA(),COUNTIF($CH186:CH$303,CH186)) -> 
K187: 61 | L187: 32.92920764 | M187: 0.02385654443 | N187: 0.9906750278 | O187: -49.97614346 | Q187: -999 | V187: -49.97614346 | X187: 3.42928564 | Y187: 0.28150796 | AB187: 76.710175 | AC187: 36.427675 | AD187: 29.48834458 | AE187: 1.859408509e-05 | AI187: -999 | AL187: 0.28150796 | AN187: -999 | BE187: 82 | BF187: 0.8493052423 | BI187: -999 | BJ187: 24.2 | BK187: -999 | BM187: =IF(BL187="",NA(),COUNTIF(BL187:$BL$303,BL187)) ->  | BR187: =IF(BQ187="",NA(),COUNTIF(BQ187:$BQ$303,BQ187)) ->  | BW187: =IF(BV187="",NA(),COUNTIF(BV187:$BV$303,BV187)) ->  | CB187: =IF(CA187="",NA(),COUNTIF(CA187:$CA$303,CA187)) ->  | CG187: =IF(CF187="",NA(),COUNTIF($CF187:CF$303,CF187)) ->  | CI187: =IF(CH187="",NA(),COUNTIF($CH187:CH$303,CH187)) -> 
K188: 61.5 | L188: 32.65572532 | M188: 0.01797038717 | N188: 0.9914582043 | O188: -49.98202961 | Q188: -999 | V188: -49.98202961 | X188: 3.510935298 | Y188: 0.3013213924 | AB188: 77.0087625 | AC188: 36.7262625 | AD188: 29.97374127 | AE188: 1.492514234e-05 | AI188: -999 | AL188: 0.3013213924 | AN188: -999 | BE188: 83 | BF188: 0.4639684856 | BI188: -999 | BJ188: 24.2 | BK188: -999 | BM188: =IF(BL188="",NA(),COUNTIF(BL188:$BL$303,BL188)) ->  | BR188: =IF(BQ188="",NA(),COUNTIF(BQ188:$BQ$303,BQ188)) ->  | BW188: =IF(BV188="",NA(),COUNTIF(BV188:$BV$303,BV188)) ->  | CB188: =IF(CA188="",NA(),COUNTIF(CA188:$CA$303,CA188)) ->  | CG188: =IF(CF188="",NA(),COUNTIF($CF188:CF$303,CF188)) ->  | CI188: =IF(CH188="",NA(),COUNTIF($CH188:CH$303,CH188)) -> 
K189: 62 | L189: 32.3888663 | M189: 0.01344658602 | N189: 0.9921673649 | O189: -49.98655341 | Q189: -999 | V189: -49.98655341 | X189: 3.592584956 | Y189: 0.3212661307 | AB189: 77.30735 | AC189: 37.02485 | AD189: 30.46310039 | AE189: 1.195451024e-05 | AI189: -999 | AL189: 0.3212661307 | AN189: -999 | BE189: 84 | BF189: 0.8875282705 | BI189: -999 | BJ189: 24.2 | BK189: -999 | BM189: =IF(BL189="",NA(),COUNTIF(BL189:$BL$303,BL189)) ->  | BR189: =IF(BQ189="",NA(),COUNTIF(BQ189:$BQ$303,BQ189)) ->  | BW189: =IF(BV189="",NA(),COUNTIF(BV189:$BV$303,BV189)) ->  | CB189: =IF(CA189="",NA(),COUNTIF(CA189:$CA$303,CA189)) ->  | CG189: =IF(CF189="",NA(),COUNTIF($CF189:CF$303,CF189)) ->  | CI189: =IF(CH189="",NA(),COUNTIF($CH189:CH$303,CH189)) -> 
K190: 62.5 | L190: 32.12889679 | M190: 0.00999473625 | N190: 0.9928101351 | O190: -49.99000526 | Q190: -999 | V190: -49.99000526 | X190: 3.674234614 | Y190: 0.3412683521 | AB190: 77.6059375 | AC190: 37.3234375 | AD190: 30.95642193 | AE190: 9.554668401e-06 | AI190: -999 | AL190: 0.3412683521 | AN190: -999 | BE190: 85 | BF190: 0.242697686 | BI190: -999 | BJ190: 24.2 | BK190: -999 | BM190: =IF(BL190="",NA(),COUNTIF(BL190:$BL$303,BL190)) ->  | BR190: =IF(BQ190="",NA(),COUNTIF(BQ190:$BQ$303,BQ190)) ->  | BW190: =IF(BV190="",NA(),COUNTIF(BV190:$BV$303,BV190)) ->  | CB190: =IF(CA190="",NA(),COUNTIF(CA190:$CA$303,CA190)) ->  | CG190: =IF(CF190="",NA(),COUNTIF($CF190:CF$303,CF190)) ->  | CI190: =IF(CH190="",NA(),COUNTIF($CH190:CH$303,CH190)) -> 
K191: 63 | L191: 31.87604787 | M191: 0.007379642872 | N191: 0.9933933072 | O191: -49.99262036 | Q191: -999 | V191: -49.99262036 | X191: 3.755884272 | Y191: 0.3612585254 | AB191: 77.904525 | AC191: 37.622025 | AD191: 31.45370589 | AE191: 7.620278516e-06 | AI191: -999 | AL191: 0.3612585254 | AN191: -999 | BE191: 86 | BF191: 0.014639467 | BI191: -999 | BJ191: 24.2 | BK191: -999 | BM191: =IF(BL191="",NA(),COUNTIF(BL191:$BL$303,BL191)) ->  | BR191: =IF(BQ191="",NA(),COUNTIF(BQ191:$BQ$303,BQ191)) ->  | BW191: =IF(BV191="",NA(),COUNTIF(BV191:$BV$303,BV191)) ->  | CB191: =IF(CA191="",NA(),COUNTIF(CA191:$CA$303,CA191)) ->  | CG191: =IF(CF191="",NA(),COUNTIF($CF191:CF$303,CF191)) ->  | CI191: =IF(CH191="",NA(),COUNTIF($CH191:CH$303,CH191)) -> 
K192: 63.5 | L192: 31.63051625 | M192: 0.005412576602 | N192: =IF(K192>$O$9,1-TDIST((K192-$O$9)/$BB$9,$K$14-1,1),TDIST(($O$9-K192)/$BB$9,$K$14-1,1)) -> 0.9939229344 | O192: -49.99458742 | Q192: -999 | V192: -49.99458742 | X192: 3.83753393 | Y192: =nct(X192,$AW$136,$AW$137) -> 0.381171868 | AB192: 78.2031125 | AC192: 37.9206125 | AD192: 31.95495228 | AE192: 6.064546378e-06 | AI192: -999 | AL192: =Y192 -> 0.381171868 | AN192: -999 | BE192: 87 | BF192: 0.860322684 | BI192: -999 | BJ192: 24.2 | BK192: -999 | BM192: =IF(BL192="",NA(),COUNTIF(BL192:$BL$303,BL192)) ->  | BR192: =IF(BQ192="",NA(),COUNTIF(BQ192:$BQ$303,BQ192)) ->  | BW192: =IF(BV192="",NA(),COUNTIF(BV192:$BV$303,BV192)) ->  | CB192: =IF(CA192="",NA(),COUNTIF(CA192:$CA$303,CA192)) ->  | CG192: =IF(CF192="",NA(),COUNTIF($CF192:CF$303,CF192)) ->  | CI192: =IF(CH192="",NA(),COUNTIF($CH192:CH$303,CH192)) -> 
K193: 64 | L193: =IF(NOT($BB$12),$AX$6+$AX$5*$X$62*NORMDIST(K193,$O$9,$R$11,FALSE),-999) -> 31.39246505 | M193: 0.003943460272 | N193: 0.9944044135 | O193: -49.99605654 | Q193: =IF($BB$12,$AX$6+$AX$5*$X$62*NORMDIST(K193,$O$9,$R$11,FALSE),-999) -> -999 | V193: -49.99605654 | X193: =X192+$AW$140 -> 3.919183588 | Y193: 0.4009486606 | AB193: 78.5017 | AC193: 38.2192 | AD193: 32.46016108 | AE193: 4.816137666e-06 | AI193: =IF(NOT($BB$13),$AX$6+$AX$5*$X$62*NORMDIST(K193,$V$9,$R$11,FALSE),-999) -> -999 | AJ193: =IF(AND(NOT($BB$13),$BD$4,$BD$9),$AX$9+$AM$62*NORMDIST(K193,$V$9,$R$11/SQRT($K$14),FALSE),NA()) ->  | AL193: 0.4009486606 | AM193: =IF(AND(NOT($BB$13),$BD$10,$BD$4,$BD$9,$BB$25),IF($BD$12,$AX$15+$AM$62*NORMDIST(K193,$V$9,$R$11/SQRT($K$14),FALSE),$AX$15+$AM$62*(AL194-AL192)/(2*$BB$1)),NA()) ->  | AN193: =IF(AND($BB$4,$BB$13),$AX$6+$AX$5*$X$62*NORMDIST(K193,$V$9,$R$11,FALSE),-999) -> -999 | AO193: =IF(AND($BB$4,$BD$6,$BB$13,$BD$4,$BD$9),$AX$9+$AM$62*NORMDIST(K193,$V$9,$R$11/SQRT($K$14),FALSE),NA()) ->  | AP193: =IF(AND($BB$4,$BD$10,$BB$13,$BD$4,$BD$9,$BB$25),IF($BD$12,$AX$15+$AM$62*NORMDIST(K193,$V$9,$R$11/SQRT($K$14),FALSE),$AX$15+$AM$62*(AL194-AL192)/(2*$BB$1)),NA()) ->  | BE193: 88 | BF193: 0.02469095588 | BI193: -999 | BJ193: 24.2 | BK193: -999 | BM193: =IF(BL193="",NA(),COUNTIF(BL193:$BL$303,BL193)) ->  | BR193: =IF(BQ193="",NA(),COUNTIF(BQ193:$BQ$303,BQ193)) ->  | BW193: =IF(BV193="",NA(),COUNTIF(BV193:$BV$303,BV193)) ->  | CB193: =IF(CA193="",NA(),COUNTIF(CA193:$CA$303,CA193)) ->  | CG193: =IF(CF193="",NA(),COUNTIF($CF193:CF$303,CF193)) ->  | CI193: =IF(CH193="",NA(),COUNTIF($CH193:CH$303,CH193)) -> 
K194: =K193+$BB$1 -> 64.5 | L194: 31.16202484 | M194: =IF(AND(NOT($BB$12),$BB$6,$BD$3,$BD$9),$AX$9+$O$62*NORMDIST(K194,$O$9,$R$11/SQRT($K$14),FALSE),NA()) -> 0.002854010637 | N194: 0.9948425596 | O194: =IF(AND(NOT($BB$12),$BD$10,$BD$3,$BD$9),IF($BD$12,V194,$AX$15+$O$62*(N195-N193)/(2*$BB$1)),NA()) -> -49.99714599 | Q194: -999 | R194: =IF(AND($BB$12,$BB$6,$BD$3,$BD$9),$AX$9+$O$62*NORMDIST(K194,$O$9,$R$11/SQRT($K$14),FALSE),NA()) ->  | S194: =IF(AND($BB$12,$BD$10,$BD$3,$BD$9),IF($BD$12,$AX$15+$O$62*NORMDIST(K194,$O$9,$R$11/SQRT($K$14),FALSE),$AX$15+$O$62*(N195-N193)/(2*$BB$1)),NA()) ->  | V194: =IF(AND(NOT($BB$12),$BD$3,$BD$9),$AX$15+$O$62*NORMDIST(K194,$O$9,$R$11/SQRT($K$14),FALSE),NA()) -> -49.99714599 | X194: 4.000833247 | Y194: 0.4205344322 | AB194: 78.8002875 | AC194: =AB194-$AA$63 -> 38.5177875 | AD194: =AC194^2/$AA$66 -> 32.96933231 | AE194: =CHIDIST(AD194,$K$16) -> 3.816571356e-06 | AI194: -999 | AK194: =IF($BD$6,AJ194,NA()) ->  | AL194: 0.4205344322 | AN194: -999 | BE194: 89 | BF194: 0.8797554672 | BI194: -999 | BJ194: 24.2 | BK194: -999 | BM194: =IF(BL194="",NA(),COUNTIF(BL194:$BL$303,BL194)) ->  | BR194: =IF(BQ194="",NA(),COUNTIF(BQ194:$BQ$303,BQ194)) ->  | BW194: =IF(BV194="",NA(),COUNTIF(BV194:$BV$303,BV194)) ->  | CB194: =IF(CA194="",NA(),COUNTIF(CA194:$CA$303,CA194)) ->  | CG194: =IF(CF194="",NA(),COUNTIF($CF194:CF$303,CF194)) ->  | CI194: =IF(CH194="",NA(),COUNTIF($CH194:CH$303,CH194)) -> 
K195: 65 | L195: 30.9392947 | M195: 0.002051815982 | N195: 0.995241671 | O195: -49.99794818 | Q195: -999 | V195: -49.99794818 | X195: 4.082482905 | Y195: 0.4398800338 | AB195: =AB194+$AA$65 -> 79.098875 | AC195: 38.816375 | AD195: 33.48246596 | AE195: 3.018023519e-06 | AF195: =IF(AND(IF($BB$5=1,$A$4<>"",$D$4<>""),NOT($BD$12),$BD$5,$BD$4,$BD$9),$AX$12+$AA$67*(AE194-AE196)/(2*$AA$65),NA()) ->  | AG195: =IF(AND(IF($BB$5=1,$A$4<>"",$D$4<>""),$BD$12,$BD$5,$BD$4,$BD$9),$AX$12+$AA$67*(AE194-AE196)/(2*$AA$65),NA()) ->  | AI195: -999 | AL195: 0.4398800338 | AN195: -999 | BE195: 90 | BF195: 0.1085854471 | BI195: -999 | BJ195: 24.2 | BK195: -999 | BM195: =IF(BL195="",NA(),COUNTIF(BL195:$BL$303,BL195)) ->  | BR195: =IF(BQ195="",NA(),COUNTIF(BQ195:$BQ$303,BQ195)) ->  | BW195: =IF(BV195="",NA(),COUNTIF(BV195:$BV$303,BV195)) ->  | CB195: =IF(CA195="",NA(),COUNTIF(CA195:$CA$303,CA195)) ->  | CG195: =IF(CF195="",NA(),COUNTIF($CF195:CF$303,CF195)) ->  | CI195: =IF(CH195="",NA(),COUNTIF($CH195:CH$303,CH195)) -> 
K196: 65.5 | L196: 30.72434346 | M196: 0.001465297919 | N196: 0.9956055877 | O196: -49.9985347 | Q196: -999 | V196: -49.9985347 | X196: 4.164132563 | Y196: 0.4589416159 | AB196: 79.3974625 | AC196: 39.1149625 | AD196: 33.99956203 | AE196: 2.381482504e-06 | AI196: -999 | AL196: 0.4589416159 | AN196: -999 | BE196: 91 | BF196: 0.8823406398 | BI196: -999 | BJ196: 24.2 | BK196: -999 | BL196: =IF(A196="","",ROUND(($O$9+$R$11*A196)/$BA$34,0)) ->  | BM196: =IF(BL196="",NA(),COUNTIF(BL196:$BL$303,BL196)) ->  | BN196: =BL196*$BA$34 ->  | BO196: =IF(AND(NOT($BB$12),$BB$6,$BD$3,$BD$8),$AX$9-$BA$33/2+BM196*$BA$33,NA()) ->  | BP196: =IF(AND($BB$12,$BB$6,$BD$3,$BD$8),$AX$9-$BA$33/2+BM196*$BA$33,NA()) ->  | BQ196: =IF(C196="","",ROUND(($O$9+C196*$BB$9)/$BA$34,0)) ->  | BR196: =IF(BQ196="",NA(),COUNTIF(BQ196:$BQ$303,BQ196)) ->  | BS196: =BQ196*$BA$34 ->  | BV196: =IF(D196="","",ROUND(($V$9+$R$11*D196)/$BA$34,0)) ->  | BW196: =IF(BV196="",NA(),COUNTIF(BV196:$BV$303,BV196)) ->  | BX196: =BV196*$BA$34 ->  | BY196: =IF(AND(NOT($BB$13),$BD$6,$BD$4,$BD$8),$AX$9-$BA$33/2+BW196*$BA$33,NA()) ->  | BZ196: =IF(AND($BB$4,$BD$6,$BB$13,$BD$4,$BD$8),$AX$9-$BA$33/2+BW196*$BA$33,NA()) ->  | CA196: =IF(F196="","",ROUND(($O$9+F196*$BB$9)/$BA$34,0)) ->  | CB196: =IF(CA196="",NA(),COUNTIF(CA196:$CA$303,CA196)) ->  | CC196: =CA196*$BA$34 ->  | CG196: =IF(CF196="",NA(),COUNTIF($CF196:CF$303,CF196)) ->  | CI196: =IF(CH196="",NA(),COUNTIF($CH196:CH$303,CH196)) -> 
C197: =IF(AND(A197<>"",$K$14>1),(($O$9+$R$11*A197)-$O$9)/IF($BD$12,$BB$9,$R$11*B197/SQRT($K$14)),"") ->  | F197: =IF(AND(D197<>"",$K$14>1),(($V$9+$R$11*D197)-$O$9)/IF($BD$12,$BB$9,$R$11*E197/SQRT($K$14)),"") ->  | K197: 66 | L197: 30.51721106 | M197: 0.001039484842 | N197: 0.9959377424 | O197: -49.99896052 | Q197: -999 | V197: -49.99896052 | X197: 4.245782221 | Y197: 0.4776805267 | AB197: 79.69605 | AC197: 39.41355 | AD197: 34.52062052 | AE197: 1.87520392e-06 | AI197: -999 | AL197: 0.4776805267 | AN197: -999 | BE197: 92 | BF197: 0.868724674 | BI197: -999 | BJ197: 24.2 | BK197: -999 | BM197: =IF(BL197="",NA(),COUNTIF(BL197:$BL$303,BL197)) ->  | BR197: =IF(BQ197="",NA(),COUNTIF(BQ197:$BQ$303,BQ197)) ->  | BT197: =IF(AND(NOT($BB$12),$BD$10,$BD$3,$BD$8),$AX$15-$BA$33/2+BR197*$BA$33,NA()) ->  | BU197: =IF(AND($BB$12,$BD$10,$BD$3,$BD$8),$AX$15-$BA$33/2+BR197*$BA$33,NA()) ->  | BW197: =IF(BV197="",NA(),COUNTIF(BV197:$BV$303,BV197)) ->  | CB197: =IF(CA197="",NA(),COUNTIF(CA197:$CA$303,CA197)) ->  | CD197: =IF(AND(NOT($BB$13),$BD$10,$BD$4,$BD$8),$AX$15-$BA$33/2+CB197*$BA$33,NA()) ->  | CE197: =IF(AND($BB$4,$BD$10,$BB$13,$BD$4,$BD$8),$AX$15-$BA$33/2+CB197*$BA$33,NA()) ->  | CF197: =IF(B197="","",ROUND(($R$11*B197)/$BA$37,0)) ->  | CG197: =IF(CF197="",NA(),COUNTIF($CF197:CF$303,CF197)) ->  | CH197: =IF(E197="","",ROUND(($R$11*E197)/$BA$37,0)) ->  | CI197: =IF(CH197="",NA(),COUNTIF($CH197:CH$303,CH197)) ->  | CJ197: =$AX$35+IF($BB$5=1,CF197,CH197)*$BA$37 ->  | CK197: =IF(AND(NOT($BD$12),$BD$5,$BD$4,$BD$8),$AX$12-$BA$36/2+IF($BB$5=1,CG197,CI197)*$BA$36,NA()) ->  | CL197: =IF(AND($BD$12,$BD$5,$BD$4,$BD$8),$AX$12-$BA$36/2+IF($BB$5=1,CG197,CI197)*$BA$36,NA()) -> 
K198: 66.5 | L198: 30.31790988 | M198: 0.0007325125875 | N198: 0.9962412064 | O198: -49.99926749 | Q198: -999 | V198: -49.99926749 | X198: 4.327431879 | Y198: 0.4960631444 | AB198: 79.9946375 | AC198: 39.7121375 | AD198: 35.04564144 | AE198: 1.473420533e-06 | AI198: -999 | AL198: 0.4960631444 | AN198: -999 | BE198: 93 | BF198: 0.03328511119 | BI198: -999 | BJ198: 24.2 | BK198: -999 | BM198: =IF(BL198="",NA(),COUNTIF(BL198:$BL$303,BL198)) ->  | BR198: =IF(BQ198="",NA(),COUNTIF(BQ198:$BQ$303,BQ198)) ->  | BW198: =IF(BV198="",NA(),COUNTIF(BV198:$BV$303,BV198)) ->  | CB198: =IF(CA198="",NA(),COUNTIF(CA198:$CA$303,CA198)) ->  | CG198: =IF(CF198="",NA(),COUNTIF($CF198:CF$303,CF198)) ->  | CI198: =IF(CH198="",NA(),COUNTIF($CH198:CH$303,CH198)) -> 
K199: 67 | L199: 30.12642627 | M199: 0.0005127630555 | N199: 0.9965187295 | O199: -49.99948724 | Q199: -999 | V199: -49.99948724 | X199: 4.409081537 | Y199: 0.5140606603 | AB199: 80.293225 | AC199: 40.010725 | AD199: 35.57462478 | AE199: 1.15526817e-06 | AI199: -999 | AL199: 0.5140606603 | AN199: -999 | BE199: 94 | BF199: 0.544595331 | BI199: -999 | BJ199: 24.2 | BK199: -999 | BM199: =IF(BL199="",NA(),COUNTIF(BL199:$BL$303,BL199)) ->  | BR199: =IF(BQ199="",NA(),COUNTIF(BQ199:$BQ$303,BQ199)) ->  | BW199: =IF(BV199="",NA(),COUNTIF(BV199:$BV$303,BV199)) ->  | CB199: =IF(CA199="",NA(),COUNTIF(CA199:$CA$303,CA199)) ->  | CG199: =IF(CF199="",NA(),COUNTIF($CF199:CF$303,CF199)) ->  | CI199: =IF(CH199="",NA(),COUNTIF($CH199:CH$303,CH199)) -> 
K200: 67.5 | L200: 29.94272208 | M200: 0.0003565521545 | N200: 0.9967727758 | O200: -49.99964345 | Q200: -999 | V200: -49.99964345 | X200: 4.490731195 | Y200: 0.5316488227 | AB200: 80.5918125 | AC200: 40.3093125 | AD200: 36.10757054 | AE200: 9.038940388e-07 | AI200: -999 | AL200: 0.5316488227 | AN200: -999 | BE200: 95 | BF200: 0.3892752826 | BI200: -999 | BJ200: 24.2 | BK200: -999 | BM200: =IF(BL200="",NA(),COUNTIF(BL200:$BL$303,BL200)) ->  | BR200: =IF(BQ200="",NA(),COUNTIF(BQ200:$BQ$303,BQ200)) ->  | BW200: =IF(BV200="",NA(),COUNTIF(BV200:$BV$303,BV200)) ->  | CB200: =IF(CA200="",NA(),COUNTIF(CA200:$CA$303,CA200)) ->  | CG200: =IF(CF200="",NA(),COUNTIF($CF200:CF$303,CF200)) ->  | CI200: =IF(CH200="",NA(),COUNTIF($CH200:CH$303,CH200)) -> 
... 103 more rows

Sheet Noncentral t
C1: Noncentral t | H1: =($F$6+$F$8+$F$17+$AG$22+$AG$23+$AG$13)/1000000 -> 0.00171958 | I1: =$H$1 -> 0.00171958 | J1: 0.00171958 | K1: 0.00171958 | L1: 0.00171958 | M1: 0.00171958 | N1: 0.00171958 | O1: 0.00171958 | P1: 0.00171958 | Q1: 0.00171958 | R1: 0.00171958 | S1: 0.00171958 | T1: 0.00171958 | U1: 0.00171958 | AF1: accurate t | AG1: =IF(AND($AG$30,$F$22>AG9,$F$22<=AH9),0,-999) -> -999 | AH1: -999 | AI1: -999 | AJ1: -999 | AK1: -999 | AL1: -999 | AM1: -999 | AN1: -999 | AO1: -999 | AP1: -999 | AQ1: -999 | AR1: -999 | AS1: -999 | AT1: -999 | AU1: -999 | AV1: -999 | AW1: -999 | AX1: -999 | AY1: -999 | AZ1: -999 | BA1: -999 | BB1: -999 | BC1: -999 | BD1: -999 | BE1: -999 | BF1: -999 | BG1: -999 | BH1: -999 | BI1: -999 | BJ1: -999 | BK1: -999 | BL1: -999 | BM1: =IF(AND($AG$30,$F$22>BM9,$F$22<=BN9),0,-999) -> -999 | BN1: -999 | BO1: -999 | BP1: -999 | BQ1: -999 | BR1: -999 | BS1: -999 | BT1: -999 | BU1: -999 | BV1: -999 | BW1: -999 | BX1: -999 | BY1: -999 | BZ1: -999 | CA1: -999 | CB1: -999 | CC1: -999 | CD1: -999 | CE1: -999 | CF1: -999 | CG1: -999 | CH1: -999 | CI1: -999 | CJ1: -999 | CK1: -999 | CL1: -999 | CM1: -999 | CN1: -999 | CO1: -999 | CP1: -999 | CQ1: -999 | CR1: -999 | CS1: =IF(AND($AG$30,$F$22>CS9,$F$22<=CT9),0,-999) -> -999 | CT1: -999 | CU1: -999 | CV1: -999 | CW1: -999 | CX1: -999 | CY1: -999 | CZ1: -999 | DA1: -999 | DB1: -999 | DC1: -999 | DD1: -999 | DE1: -999 | DF1: -999 | DG1: -999 | DH1: -999 | DI1: -999 | DJ1: -999 | DK1: -999 | DL1: -999 | DM1: -999 | DN1: -999 | DO1: -999 | DP1: -999 | DQ1: -999 | DR1: -999 | DS1: -999 | DT1: -999 | DU1: -999 | DV1: -999 | DW1: -999 | DX1: -999 | DY1: =IF(AND($AG$30,$F$22>DY9,$F$22<=DZ9),0,-999) -> -999 | DZ1: -999 | EA1: -999 | EB1: -999 | EC1: -999 | ED1: -999 | EE1: -999 | EF1: -999 | EG1: -999 | EH1: -999 | EI1: -999 | EJ1: -999 | EK1: -999 | EL1: -999 | EM1: -999 | EN1: -999 | EO1: -999 | EP1: -999 | EQ1: -999 | ER1: -999 | ES1: -999 | ET1: -999 | EU1: -999 | EV1: -999 | EW1: -999 | EX1: -999 | EY1: -999 | EZ1: -999 | FA1: -999 | FB1: -999 | FC1: -999 | FD1: -999 | FE1: =IF(AND($AG$30,$F$22>FE9,$F$22<=FF9),0,-999) -> -999 | FF1: -999 | FG1: -999 | FH1: -999 | FI1: -999 | FJ1: -999 | FK1: -999 | FL1: -999 | FM1: -999 | FN1: -999 | FO1: -999 | FP1: -999 | FQ1: 0 | FR1: -999 | FS1: -999 | FT1: -999 | FU1: -999 | FV1: -999 | FW1: -999 | FX1: -999 | FY1: -999 | FZ1: -999 | GA1: -999 | GB1: -999 | GC1: -999 | GD1: -999 | GE1: -999 | GF1: -999 | GG1: -999 | GH1: -999 | GI1: -999 | GJ1: -999 | GK1: =IF(AND($AG$30,$F$22>GK9,$F$22<=GL9),0,-999) -> -999 | GL1: -999 | GM1: -999 | GN1: -999 | GO1: -999 | GP1: -999 | GQ1: -999 | GR1: -999 | GS1: -999 | GT1: -999 | GU1: -999 | GV1: -999 | GW1: -999 | GX1: -999 | GY1: -999 | GZ1: -999 | HA1: -999 | HB1: -999 | HC1: -999 | HD1: -999 | HE1: -999 | HF1: -999 | HG1: -999 | HH1: -999 | HI1: -999 | HJ1: -999 | HK1: -999 | HL1: -999 | HM1: -999 | HN1: -999 | HO1: -999 | HP1: -999 | HQ1: =IF(AND($AG$30,$F$22>HQ9,$F$22<=HR9),0,-999) -> -999 | HR1: -999 | HS1: -999 | HT1: -999 | HU1: -999 | HV1: -999 | HW1: -999 | HX1: -999
C2: Explore noncentral t distributions | H2: =$H$1 -> 0.00171958 | U2: =$H$1 -> 0.00171958 | AF2: red vertical | AG2: =IF(AND($AG$15,AH9>$F$8,AG9<=$F$8),0,NA()) ->  | BM2: =IF(AND($AG$15,BN9>$F$8,BM9<=$F$8),0,NA()) ->  | CS2: =IF(AND($AG$15,CT9>$F$8,CS9<=$F$8),0,NA()) ->  | DY2: =IF(AND($AG$15,DZ9>$F$8,DY9<=$F$8),0,NA()) ->  | FE2: =IF(AND($AG$15,FF9>$F$8,FE9<=$F$8),0,NA()) ->  | GK2: =IF(AND($AG$15,GL9>$F$8,GK9<=$F$8),0,NA()) ->  | HQ2: =IF(AND($AG$15,HR9>$F$8,HQ9<=$F$8),0,NA()) -> 
H3: 0.00171958 | U3: 0.00171958 | AF3: blue vertical | AG3: =IF(AND($AG$14,$AG$27,AH9>0,AG9<=0),0,NA()) ->  | BM3: =IF(AND($AG$14,$AG$27,BN9>0,BM9<=0),0,NA()) ->  | CS3: =IF(AND($AG$14,$AG$27,CT9>0,CS9<=0),0,NA()) ->  | DY3: =IF(AND($AG$14,$AG$27,DZ9>0,DY9<=0),0,NA()) ->  | FE3: =IF(AND($AG$14,$AG$27,FF9>0,FE9<=0),0,NA()) ->  | GK3: =IF(AND($AG$14,$AG$27,GL9>0,GK9<=0),0,NA()) ->  | HQ3: =IF(AND($AG$14,$AG$27,HR9>0,HQ9<=0),0,NA()) -> 
H4: 0.00171958 | U4: 0.00171958
A5: 1 | B5: Noncentral t distribution | H5: 0.00171958 | U5: 0.00171958 | AF5: tail in front | AG5: =IF($AG$16,AG6,NA()) ->  | BM5: =IF($AG$16,BM6,NA()) ->  | CS5: =IF($AG$16,CS6,NA()) ->  | DY5: =IF($AG$16,DY6,NA()) ->  | FE5: =IF($AG$16,FE6,NA()) ->  | GK5: =IF($AG$16,GK6,NA()) ->  | HQ5: =IF($AG$16,HQ6,NA()) -> 
C6: Degrees of freedom df | F6: 5 | H6: 0.00171958 | U6: 0.00171958 | AF6: t tail | AG6: =IF($AG$17,IF(OR(AND($AG$18,AG3<=$F$17),AND($AG$19,AG3>=(1-$F$17))),AG2,-999999999999),IF(OR(AND($AG$18,AG8<=$F$17),AND($AG$19,AG8>=(1-$F$17))),AG7,-999999999999)) -> -999999999999 | AH6: -999999999999 | AI6: -999999999999 | AJ6: -999999999999 | AK6: -999999999999 | AL6: -999999999999 | AM6: -999999999999 | AN6: -999999999999 | AO6: -999999999999 | AP6: -999999999999 | AQ6: -999999999999 | AR6: -999999999999 | AS6: -999999999999 | AT6: -999999999999 | AU6: -999999999999 | AV6: -999999999999 | AW6: -999999999999 | AX6: -999999999999 | AY6: -999999999999 | AZ6: -999999999999 | BA6: -999999999999 | BB6: -999999999999 | BC6: -999999999999 | BD6: -999999999999 | BE6: -999999999999 | BF6: -999999999999 | BG6: -999999999999 | BH6: -999999999999 | BI6: -999999999999 | BJ6: -999999999999 | BK6: -999999999999 | BL6: -999999999999 | BM6: =IF($AG$17,IF(OR(AND($AG$18,BM3<=$F$17),AND($AG$19,BM3>=(1-$F$17))),BM2,-999999999999),IF(OR(AND($AG$18,BM8<=$F$17),AND($AG$19,BM8>=(1-$F$17))),BM7,-999999999999)) -> -999999999999 | BN6: -999999999999 | BO6: -999999999999 | BP6: -999999999999 | BQ6: -999999999999 | BR6: -999999999999 | BS6: -999999999999 | BT6: -999999999999 | BU6: -999999999999 | BV6: -999999999999 | BW6: -999999999999 | BX6: -999999999999 | BY6: -999999999999 | BZ6: -999999999999 | CA6: -999999999999 | CB6: -999999999999 | CC6: -999999999999 | CD6: -999999999999 | CE6: -999999999999 | CF6: -999999999999 | CG6: -999999999999 | CH6: -999999999999 | CI6: -999999999999 | CJ6: -999999999999 | CK6: -999999999999 | CL6: -999999999999 | CM6: -999999999999 | CN6: -999999999999 | CO6: -999999999999 | CP6: -999999999999 | CQ6: -999999999999 | CR6: -999999999999 | CS6: =IF($AG$17,IF(OR(AND($AG$18,CS3<=$F$17),AND($AG$19,CS3>=(1-$F$17))),CS2,-999999999999),IF(OR(AND($AG$18,CS8<=$F$17),AND($AG$19,CS8>=(1-$F$17))),CS7,-999999999999)) -> -999999999999 | CT6: -999999999999 | CU6: -999999999999 | CV6: -999999999999 | CW6: -999999999999 | CX6: -999999999999 | CY6: -999999999999 | CZ6: -999999999999 | DA6: -999999999999 | DB6: -999999999999 | DC6: -999999999999 | DD6: -999999999999 | DE6: -999999999999 | DF6: -999999999999 | DG6: -999999999999 | DH6: -999999999999 | DI6: -999999999999 | DJ6: -999999999999 | DK6: -999999999999 | DL6: -999999999999 | DM6: -999999999999 | DN6: -999999999999 | DO6: -999999999999 | DP6: -999999999999 | DQ6: -999999999999 | DR6: -999999999999 | DS6: -999999999999 | DT6: -999999999999 | DU6: -999999999999 | DV6: -999999999999 | DW6: -999999999999 | DX6: -999999999999 | DY6: =IF($AG$17,IF(OR(AND($AG$18,DY3<=$F$17),AND($AG$19,DY3>=(1-$F$17))),DY2,-999999999999),IF(OR(AND($AG$18,DY8<=$F$17),AND($AG$19,DY8>=(1-$F$17))),DY7,-999999999999)) -> -999999999999 | DZ6: -999999999999 | EA6: -999999999999 | EB6: -999999999999 | EC6: -999999999999 | ED6: -999999999999 | EE6: -999999999999 | EF6: -999999999999 | EG6: -999999999999 | EH6: -999999999999 | EI6: -999999999999 | EJ6: -999999999999 | EK6: -999999999999 | EL6: -999999999999 | EM6: -999999999999 | EN6: -999999999999 | EO6: -999999999999 | EP6: -999999999999 | EQ6: -999999999999 | ER6: -999999999999 | ES6: -999999999999 | ET6: -999999999999 | EU6: -999999999999 | EV6: -999999999999 | EW6: -999999999999 | EX6: -999999999999 | EY6: -999999999999 | EZ6: -999999999999 | FA6: -999999999999 | FB6: -999999999999 | FC6: -999999999999 | FD6: -999999999999 | FE6: =IF($AG$17,IF(OR(AND($AG$18,FE3<=$F$17),AND($AG$19,FE3>=(1-$F$17))),FE2,-999999999999),IF(OR(AND($AG$18,FE8<=$F$17),AND($AG$19,FE8>=(1-$F$17))),FE7,-999999999999)) -> -999999999999 | FF6: -999999999999 | FG6: -999999999999 | FH6: -999999999999 | FI6: -999999999999 | FJ6: -999999999999 | FK6: -999999999999 | FL6: -999999999999 | FM6: -999999999999 | FN6: -999999999999 | FO6: -999999999999 | FP6: -999999999999 | FQ6: -999999999999 | FR6: -999999999999 | FS6: -999999999999 | FT6: -999999999999 | FU6: -999999999999 | FV6: -999999999999 | FW6: -999999999999 | FX6: -999999999999 | FY6: -999999999999 | FZ6: -999999999999 | GA6: -999999999999 | GB6: -999999999999 | GC6: -999999999999 | GD6: -999999999999 | GE6: -999999999999 | GF6: -999999999999 | GG6: -999999999999 | GH6: -999999999999 | GI6: -999999999999 | GJ6: -999999999999 | GK6: =IF($AG$17,IF(OR(AND($AG$18,GK3<=$F$17),AND($AG$19,GK3>=(1-$F$17))),GK2,-999999999999),IF(OR(AND($AG$18,GK8<=$F$17),AND($AG$19,GK8>=(1-$F$17))),GK7,-999999999999)) -> -999999999999 | GL6: -999999999999 | GM6: -999999999999 | GN6: -999999999999 | GO6: -999999999999 | GP6: -999999999999 | GQ6: -999999999999 | GR6: -999999999999 | GS6: -999999999999 | GT6: -999999999999 | GU6: -999999999999 | GV6: -999999999999 | GW6: -999999999999 | GX6: -999999999999 | GY6: -999999999999 | GZ6: -999999999999 | HA6: -999999999999 | HB6: -999999999999 | HC6: -999999999999 | HD6: -999999999999 | HE6: -999999999999 | HF6: -999999999999 | HG6: -999999999999 | HH6: -999999999999 | HI6: -999999999999 | HJ6: -999999999999 | HK6: -999999999999 | HL6: -999999999999 | HM6: -999999999999 | HN6: -999999999999 | HO6: -999999999999 | HP6: -999999999999 | HQ6: =IF($AG$17,IF(OR(AND($AG$18,HQ3<=$F$17),AND($AG$19,HQ3>=(1-$F$17))),HQ2,-999999999999),IF(OR(AND($AG$18,HQ8<=$F$17),AND($AG$19,HQ8>=(1-$F$17))),HQ7,-999999999999)) -> -999999999999 | HR6: -999999999999 | HS6: -999999999999 | HT6: -999999999999 | HU6: -999999999999 | HV6: -999999999999 | HW6: -999999999999 | HX6: -999999999999
C7: Noncentrality parameter | H7: 0.00171958 | U7: 0.00171958 | AF7: Central t | AG7: =IF($AG$27,(AH8-AG8)/$AG$26,NA()) -> 0.01786143465 | AH7: 0.01905312905 | AI7: 0.02033022807 | AJ7: 0.02169896373 | AK7: 0.0231659908 | AL7: 0.02473840694 | AM7: 0.02642377201 | AN7: 0.02823012605 | AO7: 0.03016600548 | AP7: 0.03224045679 | AQ7: 0.03446304708 | AR7: 0.03684387046 | AS7: 0.03939354939 | AT7: 0.04212322979 | AU7: 0.04504456858 | AV7: 0.0481697209 | AW7: 0.05151126921 | AX7: 0.05508225019 | AY7: 0.05889602975 | AZ7: 0.06296625863 | BA7: 0.06730677258 | BB7: 0.07193147726 | BC7: 0.07685420974 | BD7: 0.0820885741 | BE7: 0.08764774899 | BF7: 0.09354429718 | BG7: 0.09978977071 | BH7: 0.1063946744 | BI7: 0.1133679155 | BJ7: 0.120716553 | BK7: 0.1284454319 | BL7: 0.1365565882 | BM7: =IF($AG$27,(BN8-BM8)/$AG$26,NA()) -> 0.1450491167 | BN7: 0.1539184255 | BO7: 0.1631558878 | BP7: 0.1727483419 | BQ7: 0.1826775975 | BR7: 0.192920042 | BS7: 0.2034461742 | BT7: 0.2142202914 | BU7: 0.2252002131 | BV7: 0.2363371136 | BW7: 0.2475754758 | BX7: 0.2588531897 | BY7: 0.2701018115 | BZ7: 0.2812470025 | CA7: 0.2922091579 | CB7: 0.3029042327 | CC7: 0.3132447636 | CD7: 0.3231410789 | CE7: 0.3325026777 | CF7: 0.3412397541 | CG7: 0.3492648286 | CH7: 0.3564944456 | CI7: 0.3628508848 | CJ7: 0.3682638325 | CK7: 0.372671955 | CL7: 0.3760243165 | CM7: 0.3782815881 | CN7: 0.3794170003 | CO7: 0.3794170003 | CP7: 0.3782815881 | CQ7: 0.3760243165 | CR7: 0.372671955 | CS7: =IF($AG$27,(CT8-CS8)/$AG$26,NA()) -> 0.3682638325 | CT7: 0.3628508848 | CU7: 0.3564944456 | CV7: 0.3492648286 | CW7: 0.3412397541 | CX7: 0.3325026777 | CY7: 0.3231410789 | CZ7: 0.3132447636 | DA7: 0.3029042327 | DB7: 0.2922091579 | DC7: 0.2812470025 | DD7: 0.2701018115 | DE7: 0.2588531897 | DF7: 0.2475754758 | DG7: 0.2363371136 | DH7: 0.2252002131 | DI7: 0.2142202914 | DJ7: 0.2034461742 | DK7: 0.192920042 | DL7: 0.1826775975 | DM7: 0.1727483419 | DN7: 0.1631558878 | DO7: 0.1539184255 | DP7: 0.1450491167 | DQ7: 0.1365565882 | DR7: 0.1284454319 | DS7: 0.120716553 | DT7: 0.1133679155 | DU7: 0.1063946744 | DV7: 0.09978977071 | DW7: 0.09354429718 | DX7: 0.08764774899 | DY7: =IF($AG$27,(DZ8-DY8)/$AG$26,NA()) -> 0.0820885741 | DZ7: 0.07685420974 | EA7: 0.07193147726 | EB7: 0.06730677258 | EC7: 0.06296625863 | ED7: 0.05889602975 | EE7: 0.05508225019 | EF7: 0.05151126921 | EG7: 0.0481697209 | EH7: 0.04504456858 | EI7: 0.04212322979 | EJ7: 0.03939354939 | EK7: 0.03684387046 | EL7: 0.03446304708 | EM7: 0.03224045679 | EN7: 0.03016600548 | EO7: 0.02823012605 | EP7: 0.02642377201 | EQ7: 0.02473840694 | ER7: 0.0231659908 | ES7: 0.02169896373 | ET7: 0.02033022807 | EU7: 0.01905312905 | EV7: 0.01786143465 | EW7: 0.01674931507 | EX7: 0.01571132199 | EY7: 0.01474236791 | EZ7: 0.01383770595 | FA7: 0.0129929105 | FB7: 0.01220385498 | FC7: 0.0114666997 | FD7: 0.01077786727 | FE7: =IF($AG$27,(FF8-FE8)/$AG$26,NA()) -> 0.01013402915 | FF7: 0.009532088724 | FG7: 0.008969165899 | FH7: 0.008442582581 | FI7: 0.007949848954 | FJ7: 0.007488650557 | FK7: 0.007056836151 | FL7: 0.006652406339 | FM7: 0.006273502901 | FN7: 0.005918398834 | FO7: 0.005585489038 | FP7: 0.005273281637 | FQ7: 0.004980389884 | FR7: 0.004705524624 | FS7: 0.004447487288 | FT7: 0.004205163372 | FU7: 0.003977516381 | FV7: 0.003763582202 | FW7: 0.003562463886 | FX7: 0.003373326802 | FY7: 0.003195394141 | FZ7: 0.003027942751 | GA7: 0.002870299272 | GB7: 0.002721836557 | GC7: 0.002581970349 | GD7: 0.002450156212 | GE7: 0.002325886674 | GF7: 0.002208688593 | GG7: 0.00209812071 | GH7: 0.00199377138 | GI7: 0.001895256475 | GJ7: 0.001802217437 | GK7: =IF($AG$27,(GL8-GK8)/$AG$26,NA()) -> 0.001714319478 | GL7: 0.001631249906 | GM7: 0.001552716579 | GN7: 0.001478446471 | GO7: 0.001408184339 | GP7: 0.00134169149 | GQ7: 0.001278744641 | GR7: 0.001219134853 | GS7: 0.001162666548 | GT7: 0.0011091566 | GU7: 0.001058433481 | GV7: 0.001010336482 | GW7: 0.0009647149747 | GX7: 0.0009214277385 | GY7: 0.0008803423288 | GZ7: 0.0008413344919 | HA7: 0.0008042876205 | HB7: 0.0007690922484 | HC7: 0.0007356455799 | HD7: 0.0007038510525 | HE7: 0.0006736179302 | HF7: 0.0006448609245 | HG7: 0.0006174998418 | HH7: 0.0005914592557 | HI7: 0.0005666682042 | HJ7: 0.0005430598871 | HK7: 0.0005205714377 | HL7: 0.0004991436371 | HM7: 0.0004787207033 | HN7: 0.0004592500717 | HO7: 0.0004406821946 | HP7: 0.0004229703534 | HQ7: =IF($AG$27,(HR8-HQ8)/$AG$26,NA()) -> 0.0004060704843 | HR7: 0.0003899410142 | HS7: 0.0003745427087 | HT7: 0.0003598385292 | HU7: 0.0003457934998 | HV7: 0.0003323745825 | HW7: 0.0003195505608 | HX7: 0.0003072919309
E8: D | F8: =(AG28-1300)/100 -> 2.5 | H8: 0.00171958 | U8: 0.00171958 | AF8: cdf(t) | AG8: =IF(AG9<0,TDIST(ABS(AG9),$F$6,1),1-TDIST(AG9,$F$6,1)) -> 0.01504962395 | AH8: 0.01594269568 | AI8: 0.01689535213 | AJ8: 0.01791186353 | AK8: 0.01899681172 | AL8: 0.02015511126 | AM8: 0.02139203161 | AN8: 0.02271322021 | AO8: 0.02412472651 | AP8: 0.02563302679 | AQ8: 0.02724504962 | AR8: 0.02896820198 | AS8: 0.0308103955 | AT8: 0.03278007297 | AU8: 0.03488623446 | AV8: 0.03713846289 | AW8: 0.03954694894 | AX8: 0.0421225124 | AY8: 0.04487662491 | AZ8: 0.04782142639 | BA8: 0.05096973932 | BB8: 0.05433507795 | BC8: 0.05793165182 | BD8: 0.0617743623 | BE8: 0.06587879101 | BF8: 0.07026117846 | BG8: 0.07493839332 | BH8: 0.07992788185 | BI8: 0.08524761557 | BJ8: 0.09091601135 | BK8: 0.096951839 | BL8: 0.1033741106 | BM8: 0.11020194 | BN8: 0.1174543958 | BO8: 0.1251503171 | BP8: 0.1333081115 | BQ8: 0.1419455286 | BR8: 0.1510794085 | BS8: 0.1607254106 | BT8: 0.1708977193 | BU8: 0.1816087339 | BV8: 0.1928687445 | BW8: 0.2046856002 | BX8: 0.217064374 | BY8: 0.2300070335 | BZ8: 0.2435121241 | CA8: 0.2575744742 | CB8: 0.2721849321 | CC8: 0.2873301437 | CD8: 0.3029923819 | CE8: 0.3191494358 | CF8: 0.3357745697 | CG8: 0.3528365574 | CH8: 0.3702997989 | CI8: 0.3881245211 | CJ8: 0.4062670654 | CK8: 0.424680257 | CL8: 0.4433138548 | CM8: 0.4621150706 | CN8: 0.48102915 | CO8: 0.5 | CP8: 0.51897085 | CQ8: 0.5378849294 | CR8: 0.5566861452 | CS8: =IF(CS9<0,TDIST(ABS(CS9),$F$6,1),1-TDIST(CS9,$F$6,1)) -> 0.575319743 | CT8: 0.5937329346 | CU8: 0.6118754789 | CV8: 0.6297002011 | CW8: 0.6471634426 | CX8: 0.6642254303 | CY8: 0.6808505642 | CZ8: 0.6970076181 | DA8: 0.7126698563 | DB8: 0.7278150679 | DC8: 0.7424255258 | DD8: 0.7564878759 | DE8: 0.7699929665 | DF8: 0.782935626 | DG8: 0.7953143998 | DH8: 0.8071312555 | DI8: 0.8183912661 | DJ8: 0.8291022807 | DK8: 0.8392745894 | DL8: 0.8489205915 | DM8: 0.8580544714 | DN8: 0.8666918885 | DO8: 0.8748496829 | DP8: 0.8825456042 | DQ8: 0.88979806 | DR8: 0.8966258894 | DS8: 0.903048161 | DT8: 0.9090839886 | DU8: 0.9147523844 | DV8: 0.9200721181 | DW8: 0.9250616067 | DX8: 0.9297388215 | DY8: 0.934121209 | DZ8: 0.9382256377 | EA8: 0.9420683482 | EB8: 0.945664922 | EC8: 0.9490302607 | ED8: 0.9521785736 | EE8: 0.9551233751 | EF8: 0.9578774876 | EG8: 0.9604530511 | EH8: 0.9628615371 | EI8: 0.9651137655 | EJ8: 0.967219927 | EK8: 0.9691896045 | EL8: 0.971031798 | EM8: 0.9727549504 | EN8: 0.9743669732 | EO8: 0.9758752735 | EP8: 0.9772867798 | EQ8: 0.9786079684 | ER8: 0.9798448887 | ES8: 0.9810031883 | ET8: 0.9820881365 | EU8: 0.9831046479 | EV8: 0.9840573043 | EW8: 0.9849503761 | EX8: 0.9857878418 | EY8: 0.9865734079 | EZ8: 0.9873105263 | FA8: 0.9880024116 | FB8: 0.9886520571 | FC8: 0.9892622499 | FD8: 0.9898355849 | FE8: =IF(FE9<0,TDIST(ABS(FE9),$F$6,1),1-TDIST(FE9,$F$6,1)) -> 0.9903744782 | FF8: 0.9908811797 | FG8: 0.9913577841 | FH8: 0.9918062424 | FI8: 0.9922283715 | FJ8: 0.992625864 | FK8: 0.9930002965 | FL8: 0.9933531383 | FM8: 0.9936857586 | FN8: 0.9939994338 | FO8: 0.9942953537 | FP8: 0.9945746282 | FQ8: 0.9948382923 | FR8: 0.9950873118 | FS8: 0.995322588 | FT8: 0.9955449624 | FU8: 0.9957552205 | FV8: 0.9959540963 | FW8: 0.9961422754 | FX8: 0.9963203986 | FY8: 0.996489065 | FZ8: 0.9966488347 | GA8: 0.9968002318 | GB8: 0.9969437468 | GC8: 0.9970798386 | GD8: 0.9972089371 | GE8: 0.9973314449 | GF8: 0.9974477393 | GG8: 0.9975581737 | GH8: 0.9976630797 | GI8: 0.9977627683 | GJ8: 0.9978575311 | GK8: 0.997947642 | GL8: 0.998033358 | GM8: 0.9981149205 | GN8: 0.9981925563 | GO8: 0.9982664786 | GP8: 0.9983368878 | GQ8: 0.9984039724 | GR8: 0.9984679097 | GS8: 0.9985288664 | GT8: 0.9985869997 | GU8: 0.9986424576 | GV8: 0.9986953792 | GW8: 0.9987458961 | GX8: 0.9987941318 | GY8: 0.9988402032 | GZ8: 0.9988842203 | HA8: 0.998926287 | HB8: 0.9989665014 | HC8: 0.999004956 | HD8: 0.9990417383 | HE8: 0.9990769309 | HF8: 0.9991106118 | HG8: 0.9991428548 | HH8: 0.9991737298 | HI8: 0.9992033028 | HJ8: 0.9992316362 | HK8: 0.9992587892 | HL8: 0.9992848177 | HM8: 0.9993097749 | HN8: 0.9993337109 | HO8: 0.9993566734 | HP8: 0.9993787076 | HQ8: =IF(HQ9<0,TDIST(ABS(HQ9),$F$6,1),1-TDIST(HQ9,$F$6,1)) -> 0.9993998561 | HR8: 0.9994201596 | HS8: 0.9994396567 | HT8: 0.9994583838 | HU8: 0.9994763757 | HV8: 0.9994936654 | HW8: 0.9995102841 | HX8: 0.9995262616 | HY8: 0.9995416262
H9: 0.00171958 | U9: 0.00171958 | AF9: x | AG9: =AG24 -> -3 | AH9: =AG9+$AG$26 -> -2.95 | AI9: -2.9 | AJ9: -2.85 | AK9: -2.8 | AL9: -2.75 | AM9: -2.7 | AN9: -2.65 | AO9: -2.6 | AP9: -2.55 | AQ9: -2.5 | AR9: -2.45 | AS9: -2.4 | AT9: -2.35 | AU9: -2.3 | AV9: -2.25 | AW9: -2.2 | AX9: -2.15 | AY9: -2.1 | AZ9: -2.05 | BA9: -2 | BB9: -1.95 | BC9: -1.9 | BD9: -1.85 | BE9: -1.8 | BF9: -1.75 | BG9: -1.7 | BH9: -1.65 | BI9: -1.6 | BJ9: -1.55 | BK9: -1.5 | BL9: -1.45 | BM9: -1.4 | BN9: =BM9+$AG$26 -> -1.35 | BO9: -1.3 | BP9: -1.25 | BQ9: -1.2 | BR9: -1.15 | BS9: -1.1 | BT9: -1.05 | BU9: -1 | BV9: -0.95 | BW9: -0.9 | BX9: -0.85 | BY9: -0.8 | BZ9: -0.75 | CA9: -0.7 | CB9: -0.65 | CC9: -0.6 | CD9: -0.55 | CE9: -0.5 | CF9: -0.45 | CG9: -0.4 | CH9: -0.35 | CI9: -0.3 | CJ9: -0.25 | CK9: -0.2 | CL9: -0.15 | CM9: -0.1 | CN9: -0.05 | CO9: -2.289834988e-15 | CP9: 0.05 | CQ9: 0.1 | CR9: 0.15 | CS9: 0.2 | CT9: =CS9+$AG$26 -> 0.25 | CU9: 0.3 | CV9: 0.35 | CW9: 0.4 | CX9: 0.45 | CY9: 0.5 | CZ9: 0.55 | DA9: 0.6 | DB9: 0.65 | DC9: 0.7 | DD9: 0.75 | DE9: 0.8 | DF9: 0.85 | DG9: 0.9 | DH9: 0.95 | DI9: 1 | DJ9: 1.05 | DK9: 1.1 | DL9: 1.15 | DM9: 1.2 | DN9: 1.25 | DO9: 1.3 | DP9: 1.35 | DQ9: 1.4 | DR9: 1.45 | DS9: 1.5 | DT9: 1.55 | DU9: 1.6 | DV9: 1.65 | DW9: 1.7 | DX9: 1.75 | DY9: 1.8 | DZ9: =DY9+$AG$26 -> 1.85 | EA9: 1.9 | EB9: 1.95 | EC9: 2 | ED9: 2.05 | EE9: 2.1 | EF9: 2.15 | EG9: 2.2 | EH9: 2.25 | EI9: 2.3 | EJ9: 2.35 | EK9: 2.4 | EL9: 2.45 | EM9: 2.5 | EN9: 2.55 | EO9: 2.6 | EP9: 2.65 | EQ9: 2.7 | ER9: 2.75 | ES9: 2.8 | ET9: 2.85 | EU9: 2.9 | EV9: 2.95 | EW9: 3 | EX9: 3.05 | EY9: 3.1 | EZ9: 3.15 | FA9: 3.2 | FB9: 3.25 | FC9: 3.3 | FD9: 3.35 | FE9: 3.4 | FF9: =FE9+$AG$26 -> 3.45 | FG9: 3.5 | FH9: 3.55 | FI9: 3.6 | FJ9: 3.65 | FK9: 3.7 | FL9: 3.75 | FM9: 3.8 | FN9: 3.85 | FO9: 3.9 | FP9: 3.95 | FQ9: 4 | FR9: 4.05 | FS9: 4.1 | FT9: 4.15 | FU9: 4.2 | FV9: 4.25 | FW9: 4.3 | FX9: 4.35 | FY9: 4.4 | FZ9: 4.45 | GA9: 4.5 | GB9: 4.55 | GC9: 4.6 | GD9: 4.65 | GE9: 4.7 | GF9: 4.75 | GG9: 4.8 | GH9: 4.85 | GI9: 4.9 | GJ9: 4.95 | GK9: 5 | GL9: =GK9+$AG$26 -> 5.05 | GM9: 5.1 | GN9: 5.15 | GO9: 5.2 | GP9: 5.25 | GQ9: 5.3 | GR9: 5.35 | GS9: 5.4 | GT9: 5.45 | GU9: 5.5 | GV9: 5.55 | GW9: 5.6 | GX9: 5.65 | GY9: 5.7 | GZ9: 5.75 | HA9: 5.8 | HB9: 5.85 | HC9: 5.9 | HD9: 5.95 | HE9: 6 | HF9: 6.05 | HG9: 6.1 | HH9: 6.15 | HI9: 6.2 | HJ9: 6.25 | HK9: 6.3 | HL9: 6.35 | HM9: 6.4 | HN9: 6.45 | HO9: 6.5 | HP9: 6.55 | HQ9: 6.6 | HR9: =HQ9+$AG$26 -> 6.65 | HS9: 6.7 | HT9: 6.75 | HU9: 6.8 | HV9: 6.85 | HW9: 6.9 | HX9: 6.95 | HY9: 7
H10: 0.00171958 | U10: 0.00171958 | AF10: nct tail | AG10: =IF(OR(AND($AG$18,AG12<=$F$17),AND($AG$19,AG12>=(1-$F$17))),AG11,-999999999999) -> -999999999999 | AH10: -999999999999 | AI10: -999999999999 | AJ10: -999999999999 | AK10: -999999999999 | AL10: -999999999999 | AM10: -999999999999 | AN10: -999999999999 | AO10: -999999999999 | AP10: -999999999999 | AQ10: -999999999999 | AR10: -999999999999 | AS10: -999999999999 | AT10: -999999999999 | AU10: -999999999999 | AV10: -999999999999 | AW10: -999999999999 | AX10: -999999999999 | AY10: -999999999999 | AZ10: -999999999999 | BA10: -999999999999 | BB10: -999999999999 | BC10: -999999999999 | BD10: -999999999999 | BE10: -999999999999 | BF10: -999999999999 | BG10: -999999999999 | BH10: -999999999999 | BI10: -999999999999 | BJ10: -999999999999 | BK10: -999999999999 | BL10: -999999999999 | BM10: =IF(OR(AND($AG$18,BM12<=$F$17),AND($AG$19,BM12>=(1-$F$17))),BM11,-999999999999) -> -999999999999 | BN10: -999999999999 | BO10: -999999999999 | BP10: -999999999999 | BQ10: -999999999999 | BR10: -999999999999 | BS10: -999999999999 | BT10: -999999999999 | BU10: -999999999999 | BV10: -999999999999 | BW10: -999999999999 | BX10: -999999999999 | BY10: -999999999999 | BZ10: -999999999999 | CA10: -999999999999 | CB10: -999999999999 | CC10: -999999999999 | CD10: -999999999999 | CE10: -999999999999 | CF10: -999999999999 | CG10: -999999999999 | CH10: -999999999999 | CI10: -999999999999 | CJ10: -999999999999 | CK10: -999999999999 | CL10: -999999999999 | CM10: -999999999999 | CN10: -999999999999 | CO10: -999999999999 | CP10: -999999999999 | CQ10: -999999999999 | CR10: -999999999999 | CS10: =IF(OR(AND($AG$18,CS12<=$F$17),AND($AG$19,CS12>=(1-$F$17))),CS11,-999999999999) -> -999999999999 | CT10: -999999999999 | CU10: -999999999999 | CV10: -999999999999 | CW10: -999999999999 | CX10: -999999999999 | CY10: -999999999999 | CZ10: -999999999999 | DA10: -999999999999 | DB10: -999999999999 | DC10: -999999999999 | DD10: -999999999999 | DE10: -999999999999 | DF10: -999999999999 | DG10: -999999999999 | DH10: -999999999999 | DI10: -999999999999 | DJ10: -999999999999 | DK10: -999999999999 | DL10: -999999999999 | DM10: -999999999999 | DN10: -999999999999 | DO10: -999999999999 | DP10: -999999999999 | DQ10: -999999999999 | DR10: -999999999999 | DS10: -999999999999 | DT10: -999999999999 | DU10: -999999999999 | DV10: -999999999999 | DW10: -999999999999 | DX10: -999999999999 | DY10: =IF(OR(AND($AG$18,DY12<=$F$17),AND($AG$19,DY12>=(1-$F$17))),DY11,-999999999999) -> -999999999999 | DZ10: -999999999999 | EA10: -999999999999 | EB10: -999999999999 | EC10: -999999999999 | ED10: -999999999999 | EE10: -999999999999 | EF10: -999999999999 | EG10: -999999999999 | EH10: -999999999999 | EI10: -999999999999 | EJ10: -999999999999 | EK10: -999999999999 | EL10: -999999999999 | EM10: -999999999999 | EN10: -999999999999 | EO10: -999999999999 | EP10: -999999999999 | EQ10: -999999999999 | ER10: -999999999999 | ES10: -999999999999 | ET10: -999999999999 | EU10: -999999999999 | EV10: -999999999999 | EW10: -999999999999 | EX10: -999999999999 | EY10: -999999999999 | EZ10: -999999999999 | FA10: -999999999999 | FB10: -999999999999 | FC10: -999999999999 | FD10: -999999999999 | FE10: =IF(OR(AND($AG$18,FE12<=$F$17),AND($AG$19,FE12>=(1-$F$17))),FE11,-999999999999) -> -999999999999 | FF10: -999999999999 | FG10: -999999999999 | FH10: -999999999999 | FI10: -999999999999 | FJ10: -999999999999 | FK10: -999999999999 | FL10: -999999999999 | FM10: -999999999999 | FN10: -999999999999 | FO10: -999999999999 | FP10: -999999999999 | FQ10: -999999999999 | FR10: -999999999999 | FS10: -999999999999 | FT10: -999999999999 | FU10: -999999999999 | FV10: -999999999999 | FW10: -999999999999 | FX10: -999999999999 | FY10: -999999999999 | FZ10: -999999999999 | GA10: -999999999999 | GB10: -999999999999 | GC10: -999999999999 | GD10: -999999999999 | GE10: -999999999999 | GF10: -999999999999 | GG10: -999999999999 | GH10: -999999999999 | GI10: -999999999999 | GJ10: -999999999999 | GK10: =IF(OR(AND($AG$18,GK12<=$F$17),AND($AG$19,GK12>=(1-$F$17))),GK11,-999999999999) -> -999999999999 | GL10: -999999999999 | GM10: -999999999999 | GN10: -999999999999 | GO10: -999999999999 | GP10: -999999999999 | GQ10: -999999999999 | GR10: -999999999999 | GS10: -999999999999 | GT10: -999999999999 | GU10: -999999999999 | GV10: -999999999999 | GW10: -999999999999 | GX10: -999999999999 | GY10: -999999999999 | GZ10: -999999999999 | HA10: -999999999999 | HB10: -999999999999 | HC10: -999999999999 | HD10: -999999999999 | HE10: -999999999999 | HF10: -999999999999 | HG10: -999999999999 | HH10: -999999999999 | HI10: -999999999999 | HJ10: -999999999999 | HK10: -999999999999 | HL10: -999999999999 | HM10: -999999999999 | HN10: -999999999999 | HO10: -999999999999 | HP10: -999999999999 | HQ10: =IF(OR(AND($AG$18,HQ12<=$F$17),AND($AG$19,HQ12>=(1-$F$17))),HQ11,-999999999999) -> -999999999999 | HR10: -999999999999 | HS10: -999999999999 | HT10: -999999999999 | HU10: -999999999999 | HV10: -999999999999 | HW10: -999999999999 | HX10: -999999999999
A11: 2 | B11: Central t distribution | H11: 0.00171958 | U11: 0.00171958 | AF11: NonCentral t | AG11: =(AH12-AG12)/$AG$26 -> 1.628455468e-05 | AH11: 1.771533268e-05 | AI11: 1.929076634e-05 | AJ11: 2.102731452e-05 | AK11: 2.294350896e-05 | AL11: 2.50602356e-05 | AM11: 2.740106236e-05 | AN11: 2.999260861e-05 | AO11: 3.286497936e-05 | AP11: 3.605225787e-05 | AQ11: 3.959307753e-05 | AR11: 4.353127455e-05 | AS11: 4.791664684e-05 | AT11: 5.280583374e-05 | AU11: 5.826332139e-05 | AV11: 6.436261482e-05 | AW11: 7.118759203e-05 | AX11: 7.883407582e-05 | AY11: 8.741164849e-05 | AZ11: 9.704576401e-05 | BA11: 0.0001078801971 | BB11: 0.0001200798823 | BC11: 0.0001338342249 | BD11: 0.0001493609285 | BE11: 0.0001669104592 | BF11: 0.0001867712282 | BG11: 0.0002092756116 | BH11: 0.0002348069505 | BI11: 0.0002638076788 | BJ11: 0.0002967887585 | BK11: 0.0003343406277 | BL11: 0.0003771458916 | BM11: =(BN12-BM12)/$AG$26 -> 0.0004259940125 | BN11: 0.0004817982984 | BO11: 0.000545615511 | BP11: 0.0006186684576 | BQ11: 0.0007023719555 | BR11: 0.0007983625988 | BS11: 0.0009085327729 | BT11: 0.001035069386 | BU11: 0.00118049779 | BV11: 0.001347731347 | BW11: 0.001540127064 | BX11: 0.001761547643 | BY11: 0.002016430195 | BZ11: 0.002309861681 | CA11: 0.002647660948 | CB11: 0.003036466898 | CC11: 0.003483831979 | CD11: 0.003998319685 | CE11: 0.004589604184 | CF11: 0.005268569534 | CG11: 0.006047405148 | CH11: 0.006939693344 | CI11: 0.007960483898 | CJ11: 0.009126349607 | CK11: 0.010455416 | CL11: 0.01196735758 | CM11: 0.0136833524 | CN11: 0.01562598653 | CO11: 0.0178191002 | CP11: 0.02028756789 | CQ11: 0.02305700595 | CR11: 0.02615340343 | CS11: =(CT12-CS12)/$AG$26 -> 0.02960267392 | CT11: 0.03343013007 | CU11: 0.03765988563 | CV11: 0.04231419469 | CW11: 0.0474127419 | CX11: 0.05297190207 | CY11: 0.05900399149 | CZ11: 0.06551653689 | DA11: 0.07251159009 | DB11: 0.07998511764 | DC11: 0.08792649434 | DD11: 0.09631812726 | DE11: 0.1051352336 | DF11: 0.11434579 | DG11: 0.123910666 | DH11: 0.1337839443 | DI11: 0.1439134261 | DJ11: 0.1542413103 | DK11: 0.1647050273 | DL11: 0.175238204 | DM11: 0.1857717303 | DN11: 0.1962348932 | DO11: 0.2065565443 | DP11: 0.2166662652 | DQ11: 0.2264954967 | DR11: 0.2359786012 | DS11: 0.2450538313 | DT11: 0.2536641823 | DU11: 0.2617581115 | DV11: 0.2692901145 | DW11: 0.2762211516 | DX11: 0.2825189252 | DY11: =(DZ12-DY12)/$AG$26 -> 0.2881580118 | DZ11: 0.2931198576 | EA11: 0.2973926502 | EB11: 0.3009710783 | EC11: 0.3038559983 | ED11: 0.3060540222 | EE11: 0.3075770446 | EF11: 0.3084417252 | EG11: 0.3086689426 | EH11: 0.3082832336 | EI11: 0.3073122306 | EJ11: 0.305786109 | EK11: 0.3037370534 | EL11: 0.3011987501 | EM11: 0.2982059133 | EN11: 0.2947938474 | EO11: 0.2909980498 | EP11: 0.286853855 | EQ11: 0.2823961215 | ER11: 0.2776589595 | ES11: 0.2726755 | ET11: 0.2674777022 | EU11: 0.2620961969 | EV11: 0.2565601648 | EW11: 0.250897244 | EX11: 0.2451334673 | EY11: 0.239293223 | EZ11: 0.2333992386 | FA11: 0.2274725827 | FB11: 0.2215326847 | FC11: 0.2155973667 | FD11: 0.2096828881 | FE11: =(FF12-FE12)/$AG$26 -> 0.2038039989 | FF11: 0.1979740007 | FG11: 0.1922048125 | FH11: 0.1865070418 | FI11: 0.1808900568 | FJ11: 0.1753620612 | FK11: 0.1699301689 | FL11: 0.1646004785 | FM11: 0.1593781462 | FN11: 0.1542674575 | FO11: 0.1492718965 | FP11: 0.1443942124 | FQ11: 0.1396364832 | FR11: 0.1350001769 | FS11: 0.1304862084 | FT11: 0.1260949942 | FU11: 0.1218265031 | FV11: 0.1176803043 | FW11: 0.1136556111 | FX11: 0.109751323 | FY11: 0.1059660632 | FZ11: 0.1022982146 | GA11: 0.09874595143 | GB11: 0.09530726968 | GC11: 0.09198001392 | GD11: 0.08876190225 | GE11: 0.08565054879 | GF11: 0.08264348407 | GG11: 0.07973817354 | GH11: 0.07693203407 | GI11: 0.07422244891 | GJ11: 0.07160678091 | GK11: =(GL12-GK12)/$AG$26 -> 0.06908238445 | GL11: 0.06664661587 | GM11: 0.06429684272 | GN11: 0.06203045197 | GO11: 0.05984485701 | GP11: 0.05773750387 | GQ11: 0.05570587649 | GR11: 0.05374750126 | GS11: 0.05185995081 | GT11: 0.05004084721 | GU11: 0.04828786457 | GV11: 0.04659873115 | GW11: 0.04497123097 | GX11: 0.04340320508 | GY11: 0.04189255235 | GZ11: 0.04043723006 | HA11: 0.03903525413 | HB11: 0.03768469907 | HC11: 0.03638369785 | HD11: 0.03513044135 | HE11: 0.03392317787 | HF11: 0.03276021234 | HG11: 0.0316399055 | HH11: 0.03056067289 | HI11: 0.02952098383 | HJ11: 0.02851936027 | HK11: 0.02755437563 | HL11: 0.02662465358 | HM11: 0.0257288667 | HN11: 0.02486573528 | HO11: 0.02403402594 | HP11: 0.02323255033 | HQ11: =(HR12-HQ12)/$AG$26 -> 0.02246016381 | HR11: 0.02171576409 | HS11: 0.02099828996 | HT11: 0.02030671995 | HU11: 0.01964007103 | HV11: 0.01899739736 | HW11: 0.01837778902 | HX11: 0.01778037078
H12: 0.00171958 | U12: 0.00171958 | AF12: nct function | AG12: =nct(AG9,$F$8,$F$6) -> 1.098065842e-05 | AH12: =nct(AH9,$F$8,$F$6) -> 1.179488616e-05 | AI12: 1.268065279e-05 | AJ12: 1.364519111e-05 | AK12: 1.469655683e-05 | AL12: 1.584373228e-05 | AM12: 1.709674406e-05 | AN12: 1.846679718e-05 | AO12: 1.996642761e-05 | AP12: 2.160967658e-05 | AQ12: 2.341228947e-05 | AR12: 2.539194335e-05 | AS12: 2.756850707e-05 | AT12: 2.996433942e-05 | AU12: 3.26046311e-05 | AV12: 3.551779717e-05 | AW12: 3.873592791e-05 | AX12: 4.229530752e-05 | AY12: 4.623701131e-05 | AZ12: 5.060759373e-05 | BA12: 5.545988193e-05 | BB12: 6.085389179e-05 | BC12: 6.68578859e-05 | BD12: 7.354959715e-05 | BE12: 8.101764357e-05 | BF12: 8.936316653e-05 | BG12: 9.870172795e-05 | BH12: 0.0001091655085 | BI12: 0.000120905856 | BJ12: 0.00013409624 | BK12: 0.0001489356779 | BL12: 0.0001656527093 | BM12: 0.0001845100039 | BN12: 0.0002058097045 | BO12: 0.0002298996194 | BP12: 0.000257180395 | BQ12: 0.0002881138179 | BR12: 0.0003232324156 | BS12: 0.0003631505456 | BT12: 0.0004085771842 | BU12: 0.0004603306535 | BV12: 0.000519355543 | BW12: 0.0005867421104 | BX12: 0.0006637484636 | BY12: 0.0007518258457 | BZ12: 0.0008526473555 | CA12: 0.0009681404396 | CB12: 0.001100523487 | CC12: 0.001252346832 | CD12: 0.001426538431 | CE12: 0.001626454415 | CF12: 0.001855934624 | CG12: 0.002119363101 | CH12: 0.002421733358 | CI12: 0.002768718026 | CJ12: 0.00316674222 | CK12: 0.003623059701 | CL12: 0.004145830501 | CM12: 0.00474419838 | CN12: 0.005428366 | CO12: 0.006209665326 | CP12: 0.007100620336 | CQ12: 0.008114998731 | CR12: 0.009267849028 | CS12: 0.0105755192 | CT12: =nct(CT9,$F$8,$F$6) -> 0.0120556529 | CU12: 0.0137271594 | CV12: 0.01561015368 | CW12: 0.01772586342 | CX12: 0.02009650051 | CY12: 0.02274509561 | CZ12: 0.02569529519 | DA12: 0.02897112203 | DB12: 0.03259670154 | DC12: 0.03659595742 | DD12: 0.04099228214 | DE12: 0.0458081885 | DF12: 0.05106495018 | DG12: 0.05678223968 | DH12: 0.06297777298 | DI12: 0.06966697019 | DJ12: 0.0768626415 | DK12: 0.08457470702 | DL12: 0.09280995838 | DM12: 0.1015718686 | DN12: 0.1108604551 | DO12: 0.1206721998 | DP12: 0.131000027 | DQ12: 0.1418333402 | DR12: 0.1531581151 | DS12: 0.1649570451 | DT12: 0.1772097367 | DU12: 0.1898929458 | DV12: 0.2029808514 | DW12: 0.2164453571 | DX12: 0.2302564147 | DY12: 0.2443823609 | DZ12: 0.2587902615 | EA12: 0.2734462544 | EB12: 0.2883158869 | EC12: 0.3033644408 | ED12: 0.3185572408 | EE12: 0.3338599419 | EF12: 0.3492387941 | EG12: 0.3646608804 | EH12: 0.3800943275 | EI12: 0.3955084892 | EJ12: 0.4108741007 | EK12: 0.4261634062 | EL12: 0.4413502588 | EM12: 0.4564101963 | EN12: 0.471320492 | EO12: 0.4860601844 | EP12: 0.5006100868 | EQ12: 0.5149527796 | ER12: 0.5290725857 | ES12: 0.5429555336 | ET12: 0.5565893086 | EU12: 0.5699631938 | EV12: 0.5830680036 | EW12: 0.5958960118 | EX12: 0.608440874 | EY12: 0.6206975474 | EZ12: 0.6326622085 | FA12: 0.6443321705 | FB12: 0.6557057996 | FC12: 0.6667824339 | FD12: 0.6775623022 | FE12: 0.6880464466 | FF12: =nct(FF9,$F$8,$F$6) -> 0.6982366465 | FG12: 0.7081353466 | FH12: 0.7177455872 | FI12: 0.7270709393 | FJ12: 0.7361154421 | FK12: 0.7448835452 | FL12: 0.7533800536 | FM12: 0.7616100776 | FN12: 0.7695789849 | FO12: 0.7772923577 | FP12: 0.7847559526 | FQ12: 0.7919756632 | FR12: 0.7989574873 | FS12: 0.8057074962 | FT12: 0.8122318066 | FU12: 0.8185365563 | FV12: 0.8246278815 | FW12: 0.8305118967 | FX12: 0.8361946772 | FY12: 0.8416822434 | FZ12: 0.8469805466 | GA12: 0.8520954573 | GB12: 0.8570327549 | GC12: 0.8617981183 | GD12: 0.866397119 | GE12: 0.8708352141 | GF12: 0.8751177416 | GG12: 0.8792499158 | GH12: 0.8832368245 | GI12: 0.8870834262 | GJ12: 0.8907945486 | GK12: 0.8943748877 | GL12: 0.8978290069 | GM12: 0.9011613377 | GN12: 0.9043761798 | GO12: 0.9074777024 | GP12: 0.9104699453 | GQ12: 0.9133568205 | GR12: 0.9161421143 | GS12: 0.9188294893 | GT12: 0.9214224869 | GU12: 0.9239245292 | GV12: 0.9263389225 | GW12: 0.928668859 | GX12: 0.9309174206 | GY12: 0.9330875808 | GZ12: 0.9351822085 | HA12: 0.93720407 | HB12: 0.9391558327 | HC12: 0.9410400676 | HD12: 0.9428592525 | HE12: 0.9446157746 | HF12: 0.9463119335 | HG12: 0.9479499441 | HH12: 0.9495319394 | HI12: 0.951059973 | HJ12: 0.9525360222 | HK12: 0.9539619902 | HL12: 0.955339709 | HM12: 0.9566709417 | HN12: 0.957957385 | HO12: 0.9592006718 | HP12: 0.9604023731 | HQ12: 0.9615640006 | HR12: =nct(HR9,$F$8,$F$6) -> 0.9626870088 | HS12: 0.963772797 | HT12: 0.9648227115 | HU12: 0.9658380475 | HV12: 0.966820051 | HW12: 0.9677699209 | HX12: 0.9686888103 | HY12: 0.9695778289
H13: 0.00171958 | U13: 0.00171958 | AF13: for t | AG13: 1700
H14: 0.00171958 | U14: 0.00171958 | AF14: Show blue vertical | AG14: FALSE
A15: 3 | H15: 0.00171958 | U15: 0.00171958 | AF15: Show red vertical | AG15: FALSE
E16: Size of tail | H16: 0.00171958 | U16: 0.00171958 | AF16: Central t tail in front | AG16: FALSE
E17: p | F17: =AG29/100 -> 0.08 | H17: 0.00171958 | U17: =$H$1 -> 0.00171958 | AF17: Show displaced t | AG17: FALSE
H18: 0.00171958 | U18: 0.00171958 | AF18: Show L tail | AG18: FALSE
H19: 0.00171958 | U19: 0.00171958 | AF19: Show R tail | AG19: FALSE
A20: 5 | H20: 0.00171958 | U20: 0.00171958 | AF20: for Centre of X axis | AG20: 70
H21: 0.00171958 | U21: 0.00171958 | AF21: for Length of X axis | AG21: 20
E22: =IF(AG30,"t","") -> t | F22: =IF(AG30,(AG13-1300)/100,"") -> 4 | H22: 0.00171958 | U22: 0.00171958 | AF22: Centre of X axis | AG22: =(AG20-50)/10 -> 2
H23: 0.00171958 | U23: 0.00171958 | AF23: Length of X axis | AG23: =AG21/2 -> 10
D24: =IF(AG30,"Left","") -> Left | F24: =IF(AG30,"Right","") -> Right | H24: 0.00171958 | U24: 0.00171958 | AF24: LH end | AG24: =AG22-AG23/2 -> -3
C25: =IF(AG30,"NonCentral t probabilities","") -> NonCentral t probabilities | D25: =IF(AG30,nct(F22,F8,F6),"") -> 0.7919756632 | F25: =IF(AG30,1-D25,"") -> 0.2080243368 | H25: 0.00171958 | U25: 0.00171958 | AF25: N(t steps) | AG25: 200
H26: 0.00171958 | U26: 0.00171958 | AF26: t step size | AG26: =AG23/AG25 -> 0.05
A27: 4 | B27: << Shift t axis >> | D27: In Zoom t axis Out | H27: 0.00171958 | U27: 0.00171958 | AF27: Show cent t | AG27: TRUE
H28: 0.00171958 | U28: 0.00171958 | AF28: for NCP | AG28: 1550
H29: 0.00171958 | U29: 0.00171958 | AF29: forTailSize | AG29: 8
H30: 0.00171958 | U30: 0.00171958 | AF30: AccCalc | AG30: TRUE
H31: 0.00171958 | U31: 0.00171958

Sheet d picture
C1: d picture | H1: =($F$6+$F$8+$F$11+$F$13+$F$27+dlend+drend)/1000000000 ->  | I1: =$H$1 ->  | AD1: For cursor | AE1: =F27 ->  | AF1: =IF(AE8,0,NA()) -> 
C2: See population distributions for a chosen d | H2: =$H$1 ->  | U2: =$H$1 -> 
AD4: For d label | AE4: TRUE
A5: 1 | B5: Means | AD5: Disp shade? | AE5: FALSE | AF5: X axis L end | AG5: =MIN(H32,U32) -> 50 | AH5: =F6 -> 100 | AI5: 0
A6: C | C6: 1000 | E6: MC | F6: =C6/10 -> 100 | AD6: High E shade? | AE6: TRUE | AF6: X axis R end | AG6: =MAX(H32,U32) -> 150 | AH6: =F8 -> 107.5 | AI6: 0
AD7: Low C shade? | AE7: FALSE | AF7: x inc | AG7: =(AG6-AG5)/300 -> 0.3333333333 | AH7: =AVERAGE(AH5:AH6) -> 103.75 | AI7: =MAX(AF10:AG310)*1.1 -> 0.02925576723 | AJ7: =IF(AE4,AH7,NA()) -> 103.75 | AK7: =AI7 -> 0.02925576723
A8: E | C8: 1075 | E8: ME | F8: =C8/10 -> 107.5 | AD8: Disp cursor? | AE8: FALSE | AF8: y max + | AG8: =MAX(AF10:AG310)*1.07 -> 0.02845788267 | AJ8: =IF(NOT(AE4),AH7,NA()) ->  | AK8: =AI7 -> 0.02925576723
AD9: index | AE9: x | AF9: y Control | AG9: y Experimental | AH9: o'lap shading | AI9: low C shade | AJ9: high E shade
A10: 2 | B10: Standard deviations | AD10: 1 | AE10: =AG5 -> 50 | AF10: =NORMDIST(AE10,$F$6,$F$11,FALSE) -> 0.0001028185998 | AG10: =NORMDIST(AE10,$F$8,$F$13,FALSE) -> 1.713802367e-05 | AH10: =IF($AE$5,MIN(AF10:AG10),NA()) ->  | AI10: =IF(AND($AE$7,$F$8>AE10),AF10,NA()) ->  | AJ10: =IF(AND($AE$6,$F$6<AE10),AG10,NA()) -> 
A11: C | C11: 150 | E11: sC | F11: =C11/10 -> 15 | AD11: 2 | AE11: =AE10+$AG$7 -> 50.33333333 | AF11: 0.0001106966335 | AG11: 1.865730714e-05
AD12: 3 | AE12: 50.66666667 | AF12: 0.0001191194489 | AG12: 2.03012471e-05
A13: E | C13: 150 | E13: sE | F13: =C13/10 -> 15 | AD13: 4 | AE13: 51 | AF13: 0.0001281198646 | AG13: 2.207913257e-05
AD14: 5 | AE14: 51.33333333 | AF14: 0.0001377323001 | AG14: 2.400086148e-05
A15: 3 | B15: Cohen's d | AD15: 6 | AE15: 51.66666667 | AF15: 0.0001479928259 | AG15: 2.607697361e-05
E16: d | F16: =(F8-F6)/F11 -> 0.5 | AD16: 7 | AE16: 52 | AF16: 0.0001589392134 | AG16: 2.83186847e-05
D17: Label as d in figure | U17: =$H$1 ->  | AD17: 8 | AE17: 52.33333333 | AF17: 0.0001706109846 | AG17: 3.073792187e-05
G18: Shade? | AD18: 9 | AE18: 52.66666667 | AF18: 0.0001830494604 | AG18: 3.334736017e-05
E19: % of E above mean of C | F19: =100*(1-NORMSDIST((F6-F8)/F13)) -> 69.14624613 | AD19: 10 | AE19: 53 | AF19: 0.000196297808 | AG19: 3.616046041e-05
AD20: 11 | AE20: 53.33333333 | AF20: 0.0002104010878 | AG20: 3.919150818e-05
E21: % of C below mean of E | F21: =100*(NORMSDIST((F8-F6)/F11)) -> 69.14624613 | AD21: 12 | AE21: 53.66666667 | AF21: 0.0002254062973 | AG21: 4.245565397e-05
AD22: 13 | AE22: 54 | AF22: 0.0002413624152 | AG22: 4.596895458e-05
E23: Probability that E > C | F23: =NORMSDIST((F8-F6)/SQRT(F13^2+F11^2)) -> 0.6381631951 | H23: =$H$1 ->  | AD23: 14 | AE23: 54.33333333 | AF23: 0.0002583204416 | AG23: 4.97484155e-05
H24: =$H$1 ->  | AD24: 15 | AE24: 54.66666667 | AF24: 0.0002763334375 | AG24: 5.381203453e-05
A25: 4 | B25: Cursor | AD25: 16 | AE25: 55 | AF25: 0.0002954565608 | AG25: 5.817884634e-05
AD26: 17 | AE26: 55.33333333 | AF26: 0.0003157471 | AG26: 6.286896803e-05
C27: 1290 | E27: X | F27: =IF(AE8,C27/10,"") ->  | AD27: 18 | AE27: 55.66666667 | AF27: 0.0003372645046 | AG27: 6.790364567e-05
F28: Area to right | AD28: 19 | AE28: 56 | AF28: 0.0003600704121 | AG28: 7.330530168e-05
E29: Under C | F29: =IF(AE8,1-NORMSDIST((F27-F6)/F11),"") ->  | AD29: 20 | AE29: 56.33333333 | AF29: 0.0003842286711 | AG29: 7.909758296e-05
E30: Under E | F30: =IF(AE8,1-NORMSDIST((F27-F8)/F13),"") ->  | AD30: 21 | AE30: 56.66666667 | AF30: 0.0004098053609 | AG30: 8.530540977e-05
AD31: 22 | AE31: 57 | AF31: 0.0004368688059 | AG31: 9.195502524e-05
G32: 5 | H32: 50 | T32: 6 | U32: 150 | AD32: 23 | AE32: 57.33333333 | AF32: 0.000465489586 | AG32: 9.907404528e-05
AD33: 24 | AE33: 57.66666667 | AF33: 0.0004957405414 | AG33: 0.000106691509
AD34: 25 | AE34: 58 | AF34: 0.0005276967722 | AG34: 0.0001148379293
AD35: 26 | AE35: 58.33333333 | AF35: 0.0005614356323 | AG35: 0.0001235453436
AD36: 27 | AE36: 58.66666667 | AF36: 0.0005970367169 | AG36: 0.0001328473648
AD37: 28 | AE37: 59 | AF37: 0.0006345818437 | AG37: 0.0001427792315
AD38: 29 | AE38: 59.33333333 | AF38: 0.0006741550273 | AG38: 0.0001533778584
AD39: 30 | AE39: 59.66666667 | AF39: 0.000715842446 | AG39: 0.0001646818862
AD40: 31 | AE40: 60 | AF40: 0.0007597324016 | AG40: 0.0001767317303
AD41: 32 | AE41: 60.33333333 | AF41: 0.0008059152707 | AG41: 0.0001895696288
AD42: 33 | AE42: 60.66666667 | AF42: 0.0008544834483 | AG42: 0.00020323969
AD43: 34 | AE43: 61 | AF43: 0.0009055312822 | AG43: 0.0002177879371
AD44: 35 | AE44: 61.33333333 | AF44: 0.0009591549994 | AG44: 0.0002332623531
AD45: 36 | AE45: 61.66666667 | AF45: 0.001015452622 | AG45: 0.0002497129223
AD46: 37 | AE46: 62 | AF46: 0.001074523874 | AG46: 0.0002671916706
AD47: 38 | AE47: 62.33333333 | AF47: 0.001136470081 | AG47: 0.000285752703
AD48: 39 | AE48: 62.66666667 | AF48: 0.001201394054 | AG48: 0.0003054522388
AD49: 40 | AE49: 63 | AF49: 0.001269399968 | AG49: 0.0003263486434
AD50: 41 | AE50: 63.33333333 | AF50: 0.001340593228 | AG50: 0.000348502457
AD51: 42 | AE51: 63.66666667 | AF51: 0.001415080327 | AG51: 0.0003719764202
AD52: 43 | AE52: 64 | AF52: 0.001492968686 | AG52: 0.0003968354947
AD53: 44 | AE53: 64.33333333 | AF53: 0.001574366493 | AG53: 0.0004231468807
AD54: 45 | AE54: 64.66666667 | AF54: 0.00165938252 | AG54: 0.0004509800296
AD55: 46 | AE55: 65 | AF55: 0.00174812594 | AG55: 0.000480406651
AD56: 47 | AE56: 65.33333333 | AF56: 0.001840706123 | AG56: 0.0005115007155
AD57: 48 | AE57: 65.66666667 | AF57: 0.00193723243 | AG57: 0.0005443384512
AD58: 49 | AE58: 66 | AF58: 0.002037813982 | AG58: 0.0005789983347
AD59: 50 | AE59: 66.33333333 | AF59: 0.002142559436 | AG59: 0.0006155610752
AD60: 51 | AE60: 66.66666667 | AF60: 0.002251576736 | AG60: 0.0006541095925
AD61: 52 | AE61: 67 | AF61: 0.002364972856 | AG61: 0.0006947289876
AD62: 53 | AE62: 67.33333333 | AF62: 0.002482853541 | AG62: 0.0007375065062
AD63: 54 | AE63: 67.66666667 | AF63: 0.002605323022 | AG63: 0.0007825314939
AD64: 55 | AE64: 68 | AF64: 0.002732483736 | AG64: 0.0008298953441
AD65: 56 | AE65: 68.33333333 | AF65: 0.002864436031 | AG65: 0.0008796914371
AD66: 57 | AE66: 68.66666667 | AF66: 0.003001277855 | AG66: 0.0009320150701
AD67: 58 | AE67: 69 | AF67: 0.003143104448 | AG67: 0.0009869633784
AD68: 59 | AE68: 69.33333333 | AF68: 0.003290008017 | AG68: 0.001044635248
AD69: 60 | AE69: 69.66666667 | AF69: 0.003442077408 | AG69: 0.001105131216
AD70: 61 | AE70: 70 | AF70: 0.003599397768 | AG70: 0.001168553366
AD71: 62 | AE71: 70.33333333 | AF71: 0.003762050203 | AG71: 0.001235005207
AD72: 63 | AE72: 70.66666667 | AF72: 0.00393011143 | AG72: 0.001304591548
AD73: 64 | AE73: 71 | AF73: 0.004103653423 | AG73: 0.001377418354
AD74: 65 | AE74: 71.33333333 | AF74: =NORMDIST(AE74,$F$6,$F$11,FALSE) -> 0.004282743056 | AG74: =NORMDIST(AE74,$F$8,$F$13,FALSE) -> 0.001453592603 | AH74: =IF($AE$5,MIN(AF74:AG74),NA()) ->  | AI74: =IF(AND($AE$7,$F$8>AE74),AF74,NA()) ->  | AJ74: =IF(AND($AE$6,$F$6<AE74),AG74,NA()) -> 
AD75: 66 | AE75: =AE74+$AG$7 -> 71.66666667 | AF75: 0.004467441741 | AG75: 0.001533222122
AD76: 67 | AE76: 72 | AF76: 0.004657805071 | AG76: 0.001616415412
AD77: 68 | AE77: 72.33333333 | AF77: 0.004853882452 | AG77: 0.001703281472
AD78: 69 | AE78: 72.66666667 | AF78: 0.005055716742 | AG78: 0.001793929598
AD79: 70 | AE79: 73 | AF79: 0.005263343887 | AG79: 0.001888469183
AD80: 71 | AE80: 73.33333333 | AF80: 0.005476792564 | AG80: 0.001987009495
AD81: 72 | AE81: 73.66666667 | AF81: 0.005696083824 | AG81: 0.002089659455
AD82: 73 | AE82: 74 | AF82: 0.005921230739 | AG82: 0.002196527393
AD83: 74 | AE83: 74.33333333 | AF83: 0.006152238057 | AG83: 0.002307720802
AD84: 75 | AE84: 74.66666667 | AF84: 0.006389101864 | AG84: 0.002423346075
AD85: 76 | AE85: 75 | AF85: 0.006631809253 | AG85: 0.002543508234
AD86: 77 | AE86: 75.33333333 | AF86: 0.006880338004 | AG86: 0.002668310651
AD87: 78 | AE87: 75.66666667 | AF87: 0.007134656277 | AG87: 0.002797854755
AD88: 79 | AE88: 76 | AF88: 0.007394722312 | AG88: 0.002932239732
AD89: 80 | AE89: 76.33333333 | AF89: 0.007660484149 | AG89: 0.003071562217
AD90: 81 | AE90: 76.66666667 | AF90: 0.007931879362 | AG90: 0.003215915975
AD91: 82 | AE91: 77 | AF91: 0.008208834802 | AG91: 0.003365391572
AD92: 83 | AE92: 77.33333333 | AF92: 0.008491266372 | AG92: 0.003520076048
AD93: 84 | AE93: 77.66666667 | AF93: 0.008779078809 | AG93: 0.003680052574
AD94: 85 | AE94: 78 | AF94: 0.009072165494 | AG94: 0.003845400104
AD95: 86 | AE95: 78.33333333 | AF95: 0.009370408277 | AG95: 0.004016193028
AD96: 87 | AE96: 78.66666667 | AF96: 0.009673677335 | AG96: 0.004192500814
AD97: 88 | AE97: 79 | AF97: 0.009981831042 | AG97: 0.004374387652
AD98: 89 | AE98: 79.33333333 | AF98: 0.01029471588 | AG98: 0.004561912089
AD99: 90 | AE99: 79.66666667 | AF99: 0.01061216636 | AG99: 0.004755126669
AD100: 91 | AE100: 80 | AF100: 0.01093400498 | AG100: 0.004954077571
AD101: 92 | AE101: 80.33333333 | AF101: 0.01126004222 | AG101: 0.00515880424
AD102: 93 | AE102: 80.66666667 | AF102: 0.01159007653 | AG102: 0.005369339035
AD103: 94 | AE103: 81 | AF103: 0.01192389443 | AG103: 0.005585706863
AD104: 95 | AE104: 81.33333333 | AF104: 0.01226127053 | AG104: 0.005807924829
AD105: 96 | AE105: 81.66666667 | AF105: 0.01260196765 | AG105: 0.006036001886
AD106: 97 | AE106: 82 | AF106: 0.012945737 | AG106: 0.006269938492
AD107: 98 | AE107: 82.33333333 | AF107: 0.01329231831 | AG107: 0.006509726278
AD108: 99 | AE108: 82.66666667 | AF108: 0.01364144007 | AG108: 0.006755347719
AD109: 100 | AE109: 83 | AF109: 0.01399281974 | AG109: 0.007006775824
AD110: 101 | AE110: 83.33333333 | AF110: 0.01434616407 | AG110: 0.007263973829
AD111: 102 | AE111: 83.66666667 | AF111: 0.01470116935 | AG111: 0.007526894909
AD112: 103 | AE112: 84 | AF112: 0.01505752183 | AG112: 0.007795481901
AD113: 104 | AE113: 84.33333333 | AF113: 0.01541489802 | AG113: 0.00806966705
AD114: 105 | AE114: 84.66666667 | AF114: 0.01577296516 | AG114: 0.00834937176
AD115: 106 | AE115: 85 | AF115: 0.01613138163 | AG115: 0.008634506378
AD116: 107 | AE116: 85.33333333 | AF116: 0.01648979745 | AG116: 0.008924969983
AD117: 108 | AE117: 85.66666667 | AF117: 0.01684785476 | AG117: 0.009220650212
AD118: 109 | AE118: 86 | AF118: 0.01720518839 | AG118: 0.009521423096
AD119: 110 | AE119: 86.33333333 | AF119: 0.01756142642 | AG119: 0.009827152923
AD120: 111 | AE120: 86.66666667 | AF120: 0.01791619077 | AG120: 0.01013769213
AD121: 112 | AE121: 87 | AF121: 0.01826909783 | AG121: 0.01045288123
AD122: 113 | AE122: 87.33333333 | AF122: 0.01861975911 | AG122: 0.01077254871
AD123: 114 | AE123: 87.66666667 | AF123: 0.01896778196 | AG123: 0.01109651108
AD124: 115 | AE124: 88 | AF124: 0.01931277018 | AG124: 0.0114245728
AD125: 116 | AE125: 88.33333333 | AF125: 0.01965432486 | AG125: 0.01175652634
AD126: 117 | AE126: 88.66666667 | AF126: 0.01999204503 | AG126: 0.01209215225
AD127: 118 | AE127: 89 | AF127: 0.02032552846 | AG127: 0.01243121924
AD128: 119 | AE128: 89.33333333 | AF128: 0.02065437246 | AG128: 0.0127734843
AD129: 120 | AE129: 89.66666667 | AF129: 0.02097817463 | AG129: 0.01311869287
AD130: 121 | AE130: 90 | AF130: 0.0212965337 | AG130: 0.01346657904
AD131: 122 | AE131: 90.33333333 | AF131: 0.02160905033 | AG131: 0.01381686575
AD132: 123 | AE132: 90.66666667 | AF132: 0.02191532794 | AG132: 0.01416926506
AD133: 124 | AE133: 91 | AF133: 0.02221497353 | AG133: 0.01452347847
AD134: 125 | AE134: 91.33333333 | AF134: 0.02250759853 | AG134: 0.01487919719
AD135: 126 | AE135: 91.66666667 | AF135: 0.02279281961 | AG135: 0.01523610255
AD136: 127 | AE136: 92 | AF136: 0.02307025955 | AG136: 0.01559386637
AD137: 128 | AE137: 92.33333333 | AF137: 0.023339548 | AG137: 0.01595215142
AD138: 129 | AE138: 92.66666667 | AF138: =NORMDIST(AE138,$F$6,$F$11,FALSE) -> 0.02360032237 | AG138: =NORMDIST(AE138,$F$8,$F$13,FALSE) -> 0.01631061181 | AH138: =IF($AE$5,MIN(AF138:AG138),NA()) ->  | AI138: =IF(AND($AE$7,$F$8>AE138),AF138,NA()) ->  | AJ138: =IF(AND($AE$6,$F$6<AE138),AG138,NA()) -> 
AD139: 130 | AE139: =AE138+$AG$7 -> 93 | AF139: 0.02385222861 | AG139: 0.01666889358
AD140: 131 | AE140: 93.33333333 | AF140: 0.02409492199 | AG140: 0.01702663513
AD141: 132 | AE141: 93.66666667 | AF141: 0.02432806792 | AG141: 0.01738346785
AD142: 133 | AE142: 94 | AF142: 0.02455134269 | AG142: 0.01773901666
AD143: 134 | AE143: 94.33333333 | AF143: 0.02476443422 | AG143: 0.01809290063
AD144: 135 | AE144: 94.66666667 | AF144: 0.02496704282 | AG144: 0.01844473364
AD145: 136 | AE145: 95 | AF145: 0.02515888185 | AG145: 0.01879412503
AD146: 137 | AE146: 95.33333333 | AF146: 0.02533967839 | AG146: 0.01914068027
AD147: 138 | AE147: 95.66666667 | AF147: 0.02550917393 | AG147: 0.01948400174
AD148: 139 | AE148: 96 | AF148: 0.02566712497 | AG148: 0.01982368938
AD149: 140 | AE149: 96.33333333 | AF149: 0.02581330357 | AG149: 0.02015934151
AD150: 141 | AE150: 96.66666667 | AF150: 0.02594749794 | AG150: 0.02049055556
AD151: 142 | AE151: 97 | AF151: 0.02606951293 | AG151: 0.02081692889
AD152: 143 | AE152: 97.33333333 | AF152: 0.0261791705 | AG152: 0.02113805957
AD153: 144 | AE153: 97.66666667 | AF153: 0.02627631017 | AG153: 0.02145354718
AD154: 145 | AE154: 98 | AF154: 0.02636078939 | AG154: 0.02176299367
AD155: 146 | AE155: 98.33333333 | AF155: 0.02643248392 | AG155: 0.02206600413
AD156: 147 | AE156: 98.66666667 | AF156: 0.02649128808 | AG156: 0.02236218769
AD157: 148 | AE157: 99 | AF157: 0.02653711509 | AG157: 0.02265115829
AD158: 149 | AE158: 99.33333333 | AF158: 0.02656989719 | AG158: 0.02293253554
AD159: 150 | AE159: 99.66666667 | AF159: 0.02658958589 | AG159: 0.02320594556
AD160: 151 | AE160: 100 | AF160: 0.02659615203 | AG160: 0.02347102178
AD161: 152 | AE161: 100.3333333 | AF161: 0.02658958589 | AG161: 0.02372740578 | AJ161: 0.02372740578
AD162: 153 | AE162: 100.6666667 | AF162: 0.02656989719 | AG162: 0.02397474807 | AJ162: 0.02397474807
AD163: 154 | AE163: 101 | AF163: 0.02653711509 | AG163: 0.02421270888 | AJ163: 0.02421270888
AD164: 155 | AE164: 101.3333333 | AF164: 0.02649128808 | AG164: 0.02444095898 | AJ164: 0.02444095898
AD165: 156 | AE165: 101.6666667 | AF165: 0.02643248392 | AG165: 0.02465918039 | AJ165: 0.02465918039
AD166: 157 | AE166: 102 | AF166: 0.02636078939 | AG166: 0.02486706712 | AJ166: 0.02486706712
AD167: 158 | AE167: 102.3333333 | AF167: 0.02627631017 | AG167: 0.02506432592 | AJ167: 0.02506432592
AD168: 159 | AE168: 102.6666667 | AF168: 0.0261791705 | AG168: 0.02525067693 | AJ168: 0.02525067693
AD169: 160 | AE169: 103 | AF169: 0.02606951293 | AG169: 0.02542585436 | AJ169: 0.02542585436
AD170: 161 | AE170: 103.3333333 | AF170: 0.02594749794 | AG170: 0.02558960713 | AJ170: 0.02558960713
AD171: 162 | AE171: 103.6666667 | AF171: 0.02581330357 | AG171: 0.02574169945 | AJ171: 0.02574169945
AD172: 163 | AE172: 104 | AF172: 0.02566712497 | AG172: 0.02588191138 | AJ172: 0.02588191138
AD173: 164 | AE173: 104.3333333 | AF173: 0.02550917393 | AG173: 0.02601003939 | AJ173: 0.02601003939
AD174: 165 | AE174: 104.6666667 | AF174: 0.02533967839 | AG174: 0.02612589684 | AJ174: 0.02612589684
AD175: 166 | AE175: 105 | AF175: 0.02515888185 | AG175: 0.02622931441 | AJ175: 0.02622931441
AD176: 167 | AE176: 105.3333333 | AF176: 0.02496704282 | AG176: 0.02632014053 | AJ176: 0.02632014053
AD177: 168 | AE177: 105.6666667 | AF177: 0.02476443422 | AG177: 0.02639824178 | AJ177: 0.02639824178
AD178: 169 | AE178: 106 | AF178: 0.02455134269 | AG178: 0.02646350317 | AJ178: 0.02646350317
AD179: 170 | AE179: 106.3333333 | AF179: 0.02432806792 | AG179: 0.02651582841 | AJ179: 0.02651582841
AD180: 171 | AE180: 106.6666667 | AF180: 0.02409492199 | AG180: 0.02655514024 | AJ180: 0.02655514024
AD181: 172 | AE181: 107 | AF181: 0.02385222861 | AG181: 0.02658138049 | AJ181: 0.02658138049
AD182: 173 | AE182: 107.3333333 | AF182: 0.02360032237 | AG182: 0.02659451034 | AJ182: 0.02659451034
AD183: 174 | AE183: 107.6666667 | AF183: 0.023339548 | AG183: 0.02659451034 | AJ183: 0.02659451034
AD184: 175 | AE184: 108 | AF184: 0.02307025955 | AG184: 0.02658138049 | AJ184: 0.02658138049
AD185: 176 | AE185: 108.3333333 | AF185: 0.02279281961 | AG185: 0.02655514024 | AJ185: 0.02655514024
AD186: 177 | AE186: 108.6666667 | AF186: 0.02250759853 | AG186: 0.02651582841 | AJ186: 0.02651582841
AD187: 178 | AE187: 109 | AF187: 0.02221497353 | AG187: 0.02646350317 | AJ187: 0.02646350317
AD188: 179 | AE188: 109.3333333 | AF188: 0.02191532794 | AG188: 0.02639824178 | AJ188: 0.02639824178
AD189: 180 | AE189: 109.6666667 | AF189: 0.02160905033 | AG189: 0.02632014053 | AJ189: 0.02632014053
AD190: 181 | AE190: 110 | AF190: 0.0212965337 | AG190: 0.02622931441 | AJ190: 0.02622931441
AD191: 182 | AE191: 110.3333333 | AF191: 0.02097817463 | AG191: 0.02612589684 | AJ191: 0.02612589684
AD192: 183 | AE192: 110.6666667 | AF192: 0.02065437246 | AG192: 0.02601003939 | AJ192: 0.02601003939
AD193: 184 | AE193: 111 | AF193: 0.02032552846 | AG193: 0.02588191138 | AJ193: 0.02588191138
AD194: 185 | AE194: 111.3333333 | AF194: 0.01999204503 | AG194: 0.02574169945 | AJ194: 0.02574169945
AD195: 186 | AE195: 111.6666667 | AF195: 0.01965432486 | AG195: 0.02558960713 | AJ195: 0.02558960713
AD196: 187 | AE196: 112 | AF196: 0.01931277018 | AG196: 0.02542585436 | AJ196: 0.02542585436
AD197: 188 | AE197: 112.3333333 | AF197: 0.01896778196 | AG197: 0.02525067693 | AJ197: 0.02525067693
AD198: 189 | AE198: 112.6666667 | AF198: 0.01861975911 | AG198: 0.02506432592 | AJ198: 0.02506432592
AD199: 190 | AE199: 113 | AF199: 0.01826909783 | AG199: 0.02486706712 | AJ199: 0.02486706712
AD200: 191 | AE200: 113.3333333 | AF200: 0.01791619077 | AG200: 0.02465918039 | AJ200: 0.02465918039
AD201: 192 | AE201: 113.6666667 | AF201: 0.01756142642 | AG201: 0.02444095898 | AJ201: 0.02444095898
... 109 more rows

Sheet d heap
I1: Distribution of d | R1: =($L$8+$O$12+$H$15+$O$10+$BC$23+$BC$24+$BC$27+$BC$28)/1000000 -> 0.000254421 | S1: =$R$1 -> 0.000254421 | T1: 0.000254421 | U1: 0.000254421 | V1: 0.000254421 | W1: 0.000254421 | X1: 0.000254421 | Y1: 0.000254421 | Z1: 0.000254421 | AA1: 0.000254421 | AB1: 0.000254421 | AC1: 0.000254421 | AD1: 0.000254421 | AE1: 0.000254421 | AX1: low | AY1: high | AZ1: majXunit | BC1: DispRubberRuler | BD1: TRUE | BF1: H1 sample | BU1: =BU4 -> 139.927 | BV1: =IF(AND($BD$5,$BD$4),$AX$12-$BC$27/2+BT4*$BC$27,NA()) -> -14.34925
A2: means | B2: SDs | C2: d or dz | D2: calcswitch | E2: FALSE | I2: Take samples, see distribution of means, and of d | R2: =$R$1 -> 0.000254421 | AE2: =$R$1 -> 0.000254421 | AW2: Y axis | AX2: =AX15-AX16 -> -52 | AY2: =AX6+AX5+AX4 -> 45 | BA2: Max no samps | BB2: 300 | BC2: Show data pts | BD2: TRUE | BE2: 1 | BF2: rand no. | BG2: data point z | BH2: data point | BJ2: New Sample, for display | BK2: Display mean heap 1 | BM2: =BM4 -> 125.517 | BN2: =IF(AND(NOT($BB$13),$BD$6,$BD$4,$BD$2),$AX$9-$BC$23/2+BL4*$BC$23,NA()) -> 8.08125 | BO2: Display t-z heap 1 | BQ2: =BQ4 -> 126.49 | BR2: =IF(AND(NOT($BB$13),$BD$7,$BD$4,$BD$2,$BD$10),$AX$15-$BC$23/2+BP4*$BC$23,NA()) -> -42.99625 | BS2: Display s pile | BU2: =BU4 -> 139.927 | BV2: =IF(AND(NOT($BD$12),$BD$5,$BD$4,$BD$2),$AX$12-$BC$27/2+BT4*$BC$27,NA()) -> -14.34925
A3: =BB38 -> -0.3169006292 | B3: =BC38 -> 0.9473239665 | I3: See the s pile, the distribution of sample standard deviations | R3: 0.000254421 | AE3: 0.000254421 | AW3: X axis | AX3: 70 | AY3: 170 | AZ3: 10 | BA3: d=1, s=2 | BB3: 1 | BC3: Don'tClearDisp | BD3: =($D$11=$E$11) -> TRUE | BE3: 2 | BF3: =$D$12 -> 0.5566874788 | BG3: =IF(AND($BD$4,$BE2<=$H$15),NORMSINV(BF3),"") -> 0.1425760135 | BH3: =IF(BG3="","",$O$10+$O$12*BG3) -> 132.1386402 | BI3: =AX8 -> 25 | BJ3: =IF(AND($BB$12,$BD$2,BH3<>"",$A$4<>""),BH3,-999) -> 132.1386402 | BK3: xticks | BL3: yticks | BM3: x for display | BN3: y for display | BO3: xticks | BP3: yticks | BQ3: x for display | BR3: y for display | BS3: xticks | BT3: yticks | BU3: x for display | BV3: y for display | BW3: y grey
A4: -0.3169006292 | B4: 0.9473239665 | C4: =IF(AND(A4<>"",$H$15>1),(($O$10+$O$12*A4)-$L$8)/IF($BD$12,$BB$9,$O$12*B4),"") -> 1.776688261 | I4: See the rubber ruler, and calculate d using s or s | R4: 0.000254421 | AE4: 0.000254421 | AW4: top gap | AX4: 0 | AZ4: minXunit | BA4: Show m1 | BB4: TRUE | BC4: Don'tClearDisp1 | BD4: =($D$11=$E$11) -> TRUE | BE4: 3 | BF4: =MOD(BF3*10000013,1) -> 0.02508950979 | BG4: -1.958434758 | BH4: 100.6234786 | BI4: =BI3 -> 25 | BJ4: 100.6234786 | BK4: =IF(A4="","",ROUND(($O$10+$O$12*A4)/$BC$24,0)) -> 129 | BL4: =IF(BK4="",NA(),COUNTIF(BK4:$BK$303,BK4)) -> 8 | BM4: =BK4*$BC$24 -> 125.517 | BN4: =IF(AND(NOT($BB$13),$BD$6,$BD$4,$BD$8),$AX$9-$BC$23/2+BL4*$BC$23,NA()) -> 8.08125 | BO4: =IF(C4="","",ROUND(($L$8+C4*$BB$9)/$BC$24,0)) -> 130 | BP4: =IF(BO4="",NA(),COUNTIF(BO4:$BO$303,BO4)) -> 7 | BQ4: =BO4*$BC$24 -> 126.49 | BR4: =IF(AND(NOT($BB$13),$BD$7,$BD$4,$BD$8,$BD$10),$AX$15-$BC$23/2+BP4*$BC$23,NA()) -> -42.99625 | BS4: =IF(B4="","",ROUND(($O$12*B4)/$BC$28,0)) -> 22 | BT4: =IF(BS4="",NA(),COUNTIF(BS4:$BS$303,BS4)) -> 7 | BU4: =$AX$35+BS4*$BC$28 -> 139.927 | BV4: =IF(AND(NOT($BD$12),$BD$5,$BD$4,$BD$8),$AX$12-$BC$27/2+BT4*$BC$27,NA()) -> -14.34925 | BW4: =IF(AND($BD$12,$BD$5,$BD$4,$BD$8),$AX$12-$BC$27/2+BT4*$BC$27,NA()) -> 
A5: -0.08795646997 | B5: 1.136267668 | C5: 1.682740417 | R5: =$R$1 -> 0.000254421 | AE5: 0.000254421 | AW5: panel 1 height | AX5: 18 | AZ5: 2 | BA5: m1 true | BB5: 2 | BC5: Disp s pile | BD5: TRUE | BE5: 4 | BF5: 0.4240153804 | BG5: -0.1916316346 | BH5: 127.1255255 | BI5: =BI4 -> 25 | BJ5: 127.1255255 | BK5: 132 | BL5: =IF(BK5="",NA(),COUNTIF(BK5:$BK$303,BK5)) -> 4 | BM5: 128.436 | BN5: 3.77125 | BO5: 129 | BP5: =IF(BO5="",NA(),COUNTIF(BO5:$BO$303,BO5)) -> 10 | BQ5: 125.517 | BR5: -39.76375 | BS5: =IF(B5="","",ROUND(($O$12*B5)/$BC$28,0)) -> 26 | BT5: =IF(BS5="",NA(),COUNTIF(BS5:$BS$303,BS5)) -> 6 | BU5: =$AX$35+BS5*$BC$28 -> 142.547 | BV5: -15.06475
A6: 0.1563010369 | B6: 1.196605344 | C6: 1.802015216 | D6: Copy here | E6: Copy from | G6: 1 | H6: Set up sampling | R6: 0.000254421 | AE6: 0.000254421 | AW6: panel 1 bottom | AX6: =AX9+AX8+AX7 -> 27 | AZ6: stepXsize | BA6: Disp H0 Middle | BB6: TRUE | BC6: Disp H1 Middle | BD6: TRUE | BE6: 5 | BF6: 0.3166213706 | BG6: -0.4771676554 | BH6: 122.8424852 | BI6: 25 | BJ6: 122.8424852 | BK6: 136 | BL6: =IF(BK6="",NA(),COUNTIF(BK6:$BK$303,BK6)) -> 9 | BM6: 132.328 | BN6: 9.15875 | BO6: 131 | BP6: =IF(BO6="",NA(),COUNTIF(BO6:$BO$303,BO6)) -> 3 | BQ6: 127.463 | BR6: -47.30625 | BS6: 27 | BT6: =IF(BS6="",NA(),COUNTIF(BS6:$BS$303,BS6)) -> 5 | BU6: 143.202 | BV6: -15.78025
A7: 0.01589299483 | B7: 1.012937215 | C7: 1.990146047 | D7: from right | E7: red 2, 3 | L7: Reference value | R7: 0.000254421 | AE7: 0.000254421 | AW7: 1 to 2 gap | AX7: 2 | AZ7: 0.5 | BA7: Disp H0 Lower | BB7: TRUE | BC7: Disp H1 Lower | BD7: TRUE | BE7: 6 | BF7: 0.8222135678 | BG7: 0.9238337806 | BH7: 143.8575067 | BI7: 25 | BJ7: 143.8575067 | BK7: 134 | BL7: =IF(BK7="",NA(),COUNTIF(BK7:$BK$303,BK7)) -> 10 | BM7: 130.382 | BN7: 10.23625 | BO7: 133 | BP7: =IF(BO7="",NA(),COUNTIF(BO7:$BO$303,BO7)) -> 7 | BQ7: 129.409 | BR7: -42.99625 | BS7: 23 | BT7: =IF(BS7="",NA(),COUNTIF(BS7:$BS$303,BS7)) -> 12 | BU7: 140.582 | BV7: -10.77175
A8: -0.1655248128 | B8: 0.8156633675 | C8: 2.249059183 | D8: 40 | E8: =L8 -> 100 | K8: m0 | L8: 100 | R8: 0.000254421 | AE8: 0.000254421 | AW8: panel 2 height | AX8: 25 | BC8: DispMeanHeap | BD8: TRUE | BE8: 7 | BF8: 0.3667100742 | BG8: -0.3405795211 | BH8: 124.8913072 | BI8: 25 | BJ8: 124.8913072 | BK8: 131 | BL8: =IF(BK8="",NA(),COUNTIF(BK8:$BK$303,BK8)) -> 11 | BM8: 127.463 | BN8: 11.31375 | BO8: 137 | BP8: =IF(BO8="",NA(),COUNTIF(BO8:$BO$303,BO8)) -> 7 | BQ8: 133.301 | BR8: -42.99625 | BS8: 19 | BT8: =IF(BS8="",NA(),COUNTIF(BS8:$BS$303,BS8)) -> 7 | BU8: 137.962 | BV8: -14.34925
A9: -0.2662926748 | B9: 0.9709898909 | C9: 1.785505021 | D9: 0.2489759819 | E9: =RAND() -> 0.2666964759 | R9: 0.000254421 | AE9: 0.000254421 | AO9: Mean heap & d heap | AW9: panel 2 bottom | AX9: 0 | BA9: Population SD | BB9: =$O$12 -> 15 | BC9: DispSampDist | BD9: TRUE | BE9: 8 | BF9: 0.5096902624 | BI9: 25 | BJ9: -999 | BK9: 130 | BL9: =IF(BK9="",NA(),COUNTIF(BK9:$BK$303,BK9)) -> 12 | BM9: 126.49 | BN9: 12.39125 | BO9: 130 | BP9: =IF(BO9="",NA(),COUNTIF(BO9:$BO$303,BO9)) -> 6 | BQ9: 126.49 | BR9: -44.07375 | BS9: 22 | BT9: =IF(BS9="",NA(),COUNTIF(BS9:$BS$303,BS9)) -> 6 | BU9: 139.927 | BV9: -15.06475
A10: 0.07619177522 | B10: 0.840541205 | C10: 2.470065433 | D10: 15 | E10: =O12 -> 15 | I10: Population mean | N10: m | O10: 130 | R10: 0.000254421 | AE10: 0.000254421 | AO10: appearance | AW10: 2 to 3 gap | AX10: 2 | BA10: SD of t distribution | BB10: =BB9*SQRT(H15/(H15-2)) -> 18.37117307 | BC10: Disp d panel | BD10: TRUE | BE10: 9 | BF10: 0.2497460321 | BI10: 25 | BJ10: -999 | BK10: 135 | BL10: =IF(BK10="",NA(),COUNTIF(BK10:$BK$303,BK10)) -> 9 | BM10: 131.355 | BN10: 9.15875 | BO10: 141 | BP10: =IF(BO10="",NA(),COUNTIF(BO10:$BO$303,BO10)) -> 6 | BQ10: 137.193 | BR10: -44.07375 | BS10: 19 | BT10: =IF(BS10="",NA(),COUNTIF(BS10:$BS$303,BS10)) -> 6 | BU10: 137.962 | BV10: -15.06475
A11: -0.7207979641 | B11: 1.517946032 | C11: 0.8427190486 | D11: 6 | E11: =H15 -> 6 | Q11: Effect size | R11: 0.000254421 | AE11: 0.000254421 | AO11: y | AW11: panel 3 height | AX11: 17 | BA11: SD of nct dist | BB11: =SQRT(($H$15-1)*(1+$T$63*$T$63)/(($H$15-1)-2)-BD11*BD11) -> 2.777339039 | BC11: mean of nct dist | BD11: =SQRT(($H$15-1)/2)*(EXP(GAMMALN(($H$15-1)/2-0.5))/EXP(GAMMALN(($H$15-1)/2)))*$T$63 -> 5.826924963 | BE11: 10 | BF11: 0.5672903433 | BI11: 25 | BJ11: -999 | BK11: 122 | BL11: =IF(BK11="",NA(),COUNTIF(BK11:$BK$303,BK11)) -> 1 | BM11: 118.706 | BN11: 0.53875 | BO11: 116 | BP11: =IF(BO11="",NA(),COUNTIF(BO11:$BO$303,BO11)) -> 4 | BQ11: 112.868 | BR11: -46.22875 | BS11: 35 | BT11: =IF(BS11="",NA(),COUNTIF(BS11:$BS$303,BS11)) -> 1 | BU11: 148.442 | BV11: -18.64225
A12: 0.2139176786 | B12: 0.9034568049 | C12: 2.450496434 | D12: 0.5566874788 | E12: =RAND() -> 0.2843648069 | I12: Population SD | N12: s | O12: 15 | P12: d | Q12: =(O10-L8)/O12 -> 2 | R12: 0.000254421 | AE12: 0.000254421 | AO12: 2155 | AW12: panel 3 bottom | AX12: =AX9-AX10-AX11 -> -19 | BA12: m0 grey | BB12: =AND(BB5=2) -> TRUE | BC12: Assume s known | BD12: =(BB3=2) -> FALSE | BE12: 11 | BF12: 0.8082165793 | BI12: 25 | BJ12: -999 | BK12: 137 | BL12: =IF(BK12="",NA(),COUNTIF(BK12:$BK$303,BK12)) -> 3 | BM12: 133.301 | BN12: 2.69375 | BO12: 141 | BP12: =IF(BO12="",NA(),COUNTIF(BO12:$BO$303,BO12)) -> 5 | BQ12: 137.193 | BR12: -45.15125 | BS12: 21 | BT12: =IF(BS12="",NA(),COUNTIF(BS12:$BS$303,BS12)) -> 8 | BU12: 139.272 | BV12: -13.63375
A13: -0.8017013454 | B13: 0.7964451396 | C13: 1.504558939 | D13: 130 | E13: =O10 -> 130 | R13: 0.000254421 | AE13: 0.000254421 | AW13: 3 to 4 gap | AX13: 7 | BA13: m1 grey | BB13: =AND(BB5=1) -> FALSE | BE13: 12 | BF13: 0.2993999496 | BI13: 25 | BJ13: -999 | BK13: 121 | BL13: =IF(BK13="",NA(),COUNTIF(BK13:$BK$303,BK13)) -> 5 | BM13: 117.733 | BN13: 4.84875 | BO13: 126 | BP13: =IF(BO13="",NA(),COUNTIF(BO13:$BO$303,BO13)) -> 5 | BQ13: 122.598 | BR13: -45.15125 | BS13: 18 | BT13: =IF(BS13="",NA(),COUNTIF(BS13:$BS$303,BS13)) -> 6 | BU13: 137.307 | BV13: -15.06475
A14: 0.3781799702 | B14: 0.3614810056 | C14: 6.578990137 | E14: In order | G14: 2 | J14: 3 | R14: 0.000254421 | AE14: 0.000254421 | AO14: x | AW14: panel 4 height | AX14: 24 | BA14: For top m0 line | BB14: =IF(NOT(BB12),L8,NA()) ->  | BC14: 0 | BD14: =IF($BB$12,L8,NA()) -> 100 | BE14: 13 | BF14: 0.388301678 | BI14: 25 | BJ14: -999 | BK14: 139 | BL14: =IF(BK14="",NA(),COUNTIF(BK14:$BK$303,BK14)) -> 7 | BM14: 135.247 | BN14: 7.00375 | BO14: 204 | BP14: =IF(BO14="",NA(),COUNTIF(BO14:$BO$303,BO14)) -> 1 | BQ14: 198.492 | BR14: -49.46125 | BS14: 8 | BT14: =IF(BS14="",NA(),COUNTIF(BS14:$BS$303,BS14)) -> 1 | BU14: 130.757 | BV14: -18.64225
A15: -0.1610792276 | B15: 1.591126224 | C15: 1.155735318 | E15: from top | G15: N | H15: 6 | R15: 0.000254421 | AE15: 0.000254421 | AO15: 1946 | AW15: panel 4 bottom | AX15: =AX12-AX13-AX14 -> -50 | BA15: Middle m0 line | BB15: 26 | BC15: =IF(AND($BB$6,NOT($BB$12)),$L$8,NA()) ->  | BD15: =IF(AND($BB$6,$BB$12),$L$8,NA()) -> 100 | BE15: 14 | BF15: 0.8279406205 | BI15: 25 | BJ15: -999 | BK15: 131 | BL15: =IF(BK15="",NA(),COUNTIF(BK15:$BK$303,BK15)) -> 10 | BM15: 127.463 | BN15: 10.23625 | BO15: 121 | BP15: =IF(BO15="",NA(),COUNTIF(BO15:$BO$303,BO15)) -> 2 | BQ15: 117.733 | BR15: -48.38375 | BS15: 36 | BT15: =IF(BS15="",NA(),COUNTIF(BS15:$BS$303,BS15)) -> 2 | BU15: 149.097 | BV15: -17.92675
A16: 0.4442287054 | B16: 1.092595464 | C16: 2.2370848 | E16: H0 m0 | R16: 0.000254421 | AE16: 0.000254421 | AW16: bottom gap | AX16: 2 | BA16: Lower m0 line | BB16: 26 | BC16: =IF(AND($BB$7,NOT($BB$12)),$L$8,NA()) ->  | BD16: =IF(AND($BB$7,$BB$12),$L$8,NA()) -> 100 | BE16: 15 | BF16: 0.9680477455 | BI16: 25 | BJ16: -999 | BK16: 140 | BL16: =IF(BK16="",NA(),COUNTIF(BK16:$BK$303,BK16)) -> 3 | BM16: 136.22 | BN16: 2.69375 | BO16: 137 | BP16: =IF(BO16="",NA(),COUNTIF(BO16:$BO$303,BO16)) -> 6 | BQ16: 133.301 | BR16: -44.07375 | BS16: 25 | BT16: =IF(BS16="",NA(),COUNTIF(BS16:$BS$303,BS16)) -> 11 | BU16: 141.892 | BV16: -11.48725
A17: 0.09401759808 | B17: 1.107693289 | C17: 1.890430879 | E17: rand H0 | G17: df | H17: =H15-1 -> 5 | R17: 0.000254421 | AE17: 0.000254421 | AV17: Panel 1 | AW17: X axis label | AX17: =AX3+5 -> 75 | AY17: =AX6-2 -> 25 | BA17: m0, m1 line bar | BD17: 30 | BE17: 16 | BF17: 0.03987906128 | BI17: 25 | BJ17: -999 | BK17: 135 | BL17: =IF(BK17="",NA(),COUNTIF(BK17:$BK$303,BK17)) -> 8 | BM17: 131.355 | BN17: 8.08125 | BO17: 132 | BP17: =IF(BO17="",NA(),COUNTIF(BO17:$BO$303,BO17)) -> 8 | BQ17: 128.436 | BR17: -41.91875 | BS17: 25 | BT17: =IF(BS17="",NA(),COUNTIF(BS17:$BS$303,BS17)) -> 10 | BU17: 141.892 | BV17: -12.20275
A18: -0.1833481826 | B18: 0.7545901483 | C18: 2.407468241 | E18: sigma | M18: Number of samples | N18: =IF($BD$4,COUNT(A4:A303),0) -> 137 | R18: 0.000254421 | AE18: 0.000254421 | AO18: s pile | AW18: Label population | AX18: =AX3 -> 70 | AY18: =AX6+AX5-5 -> 40 | BA18: For top m1 line | BB18: =IF(NOT(BB13),O10,NA()) -> 130 | BC18: 0 | BD18: =IF(AND($BB$4,$BB$13),O10,NA()) ->  | BE18: 17 | BF18: 0.1312446073 | BI18: 25 | BJ18: -999 | BK18: 131 | BL18: =IF(BK18="",NA(),COUNTIF(BK18:$BK$303,BK18)) -> 9 | BM18: 127.463 | BN18: 9.15875 | BO18: 140 | BP18: =IF(BO18="",NA(),COUNTIF(BO18:$BO$303,BO18)) -> 2 | BQ18: 136.22 | BR18: -48.38375 | BS18: 17 | BT18: =IF(BS18="",NA(),COUNTIF(BS18:$BS$303,BS18)) -> 11 | BU18: 136.652 | BV18: -11.48725
A19: -0.04711010073 | B19: 0.7888494634 | C19: 2.47561796 | E19: N | R19: 0.000254421 | AE19: 0.000254421 | AO19: appearance | AW19: L end X axis | AX19: =AX3 -> 70 | AY19: =AX6 -> 27 | BD19: =IF(AND($BD$6,$BB$4,$BB$13),$O$10,NA()) ->  | BE19: 18 | BF19: 0.778877534 | BI19: 25 | BJ19: -999 | BK19: 133 | BL19: =IF(BK19="",NA(),COUNTIF(BK19:$BK$303,BK19)) -> 9 | BM19: 129.409 | BN19: 9.15875 | BO19: 141 | BP19: =IF(BO19="",NA(),COUNTIF(BO19:$BO$303,BO19)) -> 4 | BQ19: 137.193 | BR19: -46.22875 | BS19: 18 | BT19: =IF(BS19="",NA(),COUNTIF(BS19:$BS$303,BS19)) -> 5 | BU19: 137.307 | BV19: -15.78025
A20: -0.3126042414 | B20: 0.2642112171 | C20: 6.386540954 | E20: rand H1 | G20: 4 | H20: Latest sample | R20: 0.000254421 | AE20: 0.000254421 | AO20: y | AW20: for Y axis line | AX20: =AX3 -> 70 | AY20: =AX6 -> 27 | BA20: Lower m1 line | BB20: 26 | BC20: =IF(AND($BD$7,NOT($BB$13)),$O$10,NA()) -> 130 | BD20: =IF(AND($BD$7,$BB$4,$BB$13),$O$10,NA()) ->  | BE20: 19 | BF20: 0.465130575 | BI20: 25 | BJ20: -999 | BK20: 129 | BL20: =IF(BK20="",NA(),COUNTIF(BK20:$BK$303,BK20)) -> 7 | BM20: 125.517 | BN20: 7.00375 | BO20: 201 | BP20: =IF(BO20="",NA(),COUNTIF(BO20:$BO$303,BO20)) -> 1 | BQ20: 195.573 | BR20: -49.46125 | BS20: 6 | BT20: =IF(BS20="",NA(),COUNTIF(BS20:$BS$303,BS20)) -> 1 | BU20: 129.447 | BV20: -18.64225
A21: 0.2772884283 | B21: 1.168918217 | C21: 1.948201675 | E21: H1 m1 | N21: Display data points | R21: 0.000254421 | AE21: 0.000254421 | AO21: 1431 | AW21: label val mu0 | AX21: =L8 -> 100 | AY21: =AX6+8 -> 35 | BA21: Disp nct curve? | BB21: =OR(AND(H17>5,T63<=20),AND(H17>2,T63<=14),T63<=10) -> TRUE | BE21: 20 | BF21: 0.7967098728 | BI21: 25 | BJ21: -999 | BK21: 138 | BL21: =IF(BK21="",NA(),COUNTIF(BK21:$BK$303,BK21)) -> 10 | BM21: 134.274 | BN21: 10.23625 | BO21: 133 | BP21: =IF(BO21="",NA(),COUNTIF(BO21:$BO$303,BO21)) -> 6 | BQ21: 129.409 | BR21: -44.07375 | BS21: 27 | BT21: =IF(BS21="",NA(),COUNTIF(BS21:$BS$303,BS21)) -> 4 | BU21: 143.202 | BV21: -16.49575
A22: -0.2028109768 | B22: 0.42044998 | C22: 4.274441928 | J22: Mean, M | K22: =IF(AND(BD4,BB5=2,nsampso>0),O10+O12*BB38,"") -> 125.2464906 | O22: Display heaps | R22: 0.000254421 | AE22: 0.000254421 | AW22: mu0 line | AX22: =L8 -> 100 | AY22: =AX6 -> 27 | AZ22: =AX5 -> 18 | BA22: X axis | BC22: increments, means & d | BE22: 21 | BF22: 0.08505064994 | BI22: 25 | BJ22: -999 | BK22: 130 | BL22: =IF(BK22="",NA(),COUNTIF(BK22:$BK$303,BK22)) -> 11 | BM22: 126.49 | BN22: 11.31375 | BO22: 169 | BP22: =IF(BO22="",NA(),COUNTIF(BO22:$BO$303,BO22)) -> 1 | BQ22: 164.437 | BR22: -49.46125 | BS22: 10 | BT22: =IF(BS22="",NA(),COUNTIF(BS22:$BS$303,BS22)) -> 2 | BU22: 132.067 | BV22: -17.92675
A23: -0.2496097626 | B23: 1.228523713 | C23: 1.424791576 | J23: SD, s | K23: =IF(AND(BD4,BB5=2,$H$15>1,nsampso>0),O12*BC38,"") -> 14.2098595 | N23: Display distributions | R23: 0.000254421 | AE23: 0.000254421 | AO23: x | AW23: label val mu1 | AX23: =O10-1.4 -> 128.6 | AY23: =AX6+12 -> 39 | BA23: L end | BB23: 70 | BC23: =AO12/2000 -> 1.0775 | BD23: y | BE23: 22 | BF23: 0.6050681248 | BI23: 25 | BJ23: -999 | BK23: 130 | BL23: =IF(BK23="",NA(),COUNTIF(BK23:$BK$303,BK23)) -> 10 | BM23: 126.49 | BN23: 10.23625 | BO23: 125 | BP23: =IF(BO23="",NA(),COUNTIF(BO23:$BO$303,BO23)) -> 4 | BQ23: 121.625 | BR23: -46.22875 | BS23: 28 | BT23: =IF(BS23="",NA(),COUNTIF(BS23:$BS$303,BS23)) -> 4 | BU23: 143.857 | BV23: -16.49575
A24: -0.177790535 | B24: 0.8042075304 | C24: 2.265844818 | R24: =$R$1 -> 0.000254421 | AE24: 0.000254421 | AO24: 1310 | AW24: mu1 line | AX24: =O10 -> 130 | AY24: =AX6 -> 27 | AZ24: 6 | BA24: R end | BB24: =BB23+100 -> 170 | BC24: =AO15/2000 -> 0.973 | BD24: x | BE24: 23 | BF24: 0.1141928509 | BI24: 25 | BJ24: -999 | BK24: 131 | BL24: =IF(BK24="",NA(),COUNTIF(BK24:$BK$303,BK24)) -> 8 | BM24: 127.463 | BN24: 8.08125 | BO24: 138 | BP24: =IF(BO24="",NA(),COUNTIF(BO24:$BO$303,BO24)) -> 2 | BQ24: 134.274 | BR24: -48.38375 | BS24: 18 | BT24: =IF(BS24="",NA(),COUNTIF(BS24:$BS$303,BS24)) -> 4 | BU24: 137.307 | BV24: -16.49575
A25: 0.4415768442 | B25: 1.669111935 | C25: 1.462799943 | O25: Display s pile | R25: =$R$1 -> 0.000254421 | AE25: 0.000254421 | AW25: Panel 2 | BE25: 24 | BF25: 0.9933848158 | BI25: 25 | BJ25: -999 | BK25: 140 | BL25: =IF(BK25="",NA(),COUNTIF(BK25:$BK$303,BK25)) -> 2 | BM25: 136.22 | BN25: 1.61625 | BO25: 125 | BP25: =IF(BO25="",NA(),COUNTIF(BO25:$BO$303,BO25)) -> 3 | BQ25: 121.625 | BR25: -47.30625 | BS25: 38 | BT25: =IF(BS25="",NA(),COUNTIF(BS25:$BS$303,BS25)) -> 2 | BU25: 150.407 | BV25: -17.92675
A26: -0.2050707498 | B26: 0.1345887707 | C26: 13.33639679 | R26: =$R$1 -> 0.000254421 | AE26: 0.000254421 | AW26: Lbl Samp Means | AX26: =AX3 -> 70 | AY26: 15 | AZ26: =AX5 -> 18 | BC26: increments, s pile | BE26: 25 | BF26: 0.07152766734 | BI26: 25 | BJ26: -999 | BK26: 130 | BL26: =IF(BK26="",NA(),COUNTIF(BK26:$BK$303,BK26)) -> 9 | BM26: 126.49 | BN26: 9.15875 | BO26: 308 | BP26: =IF(BO26="",NA(),COUNTIF(BO26:$BO$303,BO26)) -> 1 | BQ26: 299.684 | BR26: -49.46125 | BS26: 3 | BT26: =IF(BS26="",NA(),COUNTIF(BS26:$BS$303,BS26)) -> 1 | BU26: 127.482 | BV26: -18.64225
A27: -0.6683776778 | B27: 0.7997726371 | C27: 1.665001102 | G27: 5 | H27: Calculation of d | R27: 0.000254421 | AE27: 0.000254421 | AW27: for Y axis line | AX27: =AX3 -> 70 | AY27: =AX9 -> 0 | BC27: =AO21/2000 -> 0.7155 | BD27: y | BE27: 26 | BF27: 0.6032958403 | BI27: 25 | BJ27: -999 | BK27: 123 | BL27: =IF(BK27="",NA(),COUNTIF(BK27:$BK$303,BK27)) -> 3 | BM27: 119.679 | BN27: 2.69375 | BO27: 128 | BP27: =IF(BO27="",NA(),COUNTIF(BO27:$BO$303,BO27)) -> 10 | BQ27: 124.544 | BR27: -39.76375 | BS27: 18 | BT27: =IF(BS27="",NA(),COUNTIF(BS27:$BS$303,BS27)) -> 3 | BU27: 137.307 | BV27: -17.21125
A28: -0.6117245262 | B28: 0.661995518 | C28: 2.097107059 | I28: Display rubber ruler | O28: Noncentrality parameter D. | P28: =IF(AND(BD10,NOT(BD12)),T63,"") -> 4.898979486 | R28: 0.000254421 | AE28: 0.000254421 | AW28: label val mu0 | AX28: =L8 -> 100 | AY28: 10 | AZ28: =AX8 -> 25 | BC28: =AO24/2000 -> 0.655 | BD28: x | BE28: 27 | BF28: 0.2460756376 | BI28: 25 | BJ28: -999 | BK28: 124 | BL28: =IF(BK28="",NA(),COUNTIF(BK28:$BK$303,BK28)) -> 4 | BM28: 120.652 | BN28: 3.77125 | BO28: 135 | BP28: =IF(BO28="",NA(),COUNTIF(BO28:$BO$303,BO28)) -> 3 | BQ28: 131.355 | BR28: -47.30625 | BS28: 15 | BT28: =IF(BS28="",NA(),COUNTIF(BS28:$BS$303,BS28)) -> 5 | BU28: 135.342 | BV28: -15.78025
A29: 0.1847875634 | B29: 1.040897108 | C29: 2.098946713 | J29: Display d heap | P29: Display noncentral t curve? | Q29: =IF(BD10,IF(OR(NOT(BD7),BD12),"",IF(BB21,"Yes","No")),"") -> Yes | R29: 0.000254421 | AE29: 0.000254421 | AW29: mu0 line | AX29: =L8 -> 100 | AY29: =AX9 -> 0 | BE29: 28 | BF29: 0.5753689781 | BI29: 25 | BJ29: -999 | BK29: 136 | BL29: =IF(BK29="",NA(),COUNTIF(BK29:$BK$303,BK29)) -> 8 | BM29: 132.328 | BN29: 8.08125 | BO29: 135 | BP29: =IF(BO29="",NA(),COUNTIF(BO29:$BO$303,BO29)) -> 2 | BQ29: 131.355 | BR29: -48.38375 | BS29: 24 | BT29: =IF(BS29="",NA(),COUNTIF(BS29:$BS$303,BS29)) -> 7 | BU29: 141.237 | BV29: -14.34925
A30: 0.4644057227 | B30: 0.8361313877 | C30: 2.947390517 | R30: 0.000254421 | AE30: 0.000254421 | AW30: mu1 line | AX30: =O10 -> 130 | AY30: =AX9 -> 0 | AZ30: 8 | BE30: 29 | BF30: 0.2606280521 | BI30: 25 | BJ30: -999 | BK30: 141 | BL30: =IF(BK30="",NA(),COUNTIF(BK30:$BK$303,BK30)) -> 7 | BM30: 137.193 | BN30: 7.00375 | BO30: 148 | BP30: =IF(BO30="",NA(),COUNTIF(BO30:$BO$303,BO30)) -> 1 | BQ30: 144.004 | BR30: -49.46125 | BS30: 19 | BT30: =IF(BS30="",NA(),COUNTIF(BS30:$BS$303,BS30)) -> 5 | BU30: 137.962 | BV30: -15.78025
A31: 0.2192901452 | B31: 0.7973125762 | C31: 2.783463113 | K31: Use s | O31: Mean of d | P31: =IF(AND(BD10,BD9),IF(BD12,Q12,IF(H15>2,BD11/SQRT(H15),"")),"") -> 2.378832155 | R31: =$R$1 -> 0.000254421 | AE31: 0.000254421 | AW31: highlighted point | AX31: =AX62 -> 125.517 | AY31: =AX9-BC23/2 -> -0.53875 | AZ31: =AX8-1 -> 24 | BE31: 30 | BF31: 0.908723034 | BI31: 25 | BJ31: -999 | BK31: 137 | BL31: =IF(BK31="",NA(),COUNTIF(BK31:$BK$303,BK31)) -> 2 | BM31: 133.301 | BN31: 1.61625 | BO31: 146 | BP31: =IF(BO31="",NA(),COUNTIF(BO31:$BO$303,BO31)) -> 1 | BQ31: 142.058 | BR31: -49.46125 | BS31: 18 | BT31: =IF(BS31="",NA(),COUNTIF(BS31:$BS$303,BS31)) -> 2 | BU31: 137.307 | BV31: -17.92675
A32: 0.2949109976 | B32: 0.6659975461 | C32: 3.445825005 | H32: Choose for d | L32: d | M32: =IF(nsampso>0,(K22-L8)/IF(BD12,O12,K23),"") -> 1.776688261 | O32: SD of d | P32: =IF(AND(BD10,BD9),IF(BD12,1/SQRT(H15),IF(H15>3,BB11/SQRT(H15),"")),"") -> 1.133843915 | R32: =$R$1 -> 0.000254421 | AE32: 0.000254421 | AW32: X axis label | AX32: =AX3+17 -> 87 | AY32: -4 | BE32: 31 | BF32: 0.153045781 | BI32: 25 | BJ32: -999 | BK32: 138 | BL32: =IF(BK32="",NA(),COUNTIF(BK32:$BK$303,BK32)) -> 9 | BM32: 134.274 | BN32: 9.15875 | BO32: 156 | BP32: =IF(BO32="",NA(),COUNTIF(BO32:$BO$303,BO32)) -> 3 | BQ32: 151.788 | BR32: -47.30625 | BS32: 15 | BT32: =IF(BS32="",NA(),COUNTIF(BS32:$BS$303,BS32)) -> 4 | BU32: 135.342 | BV32: -16.49575
A33: -0.1917959951 | B33: 0.9685119521 | C33: 1.866991936 | K33: Use s | R33: =$R$1 -> 0.000254421 | AE33: 0.000254421 | AW33: Panel 3 | BE33: 32 | BF33: 0.7991626039 | BI33: 25 | BJ33: -999 | BK33: 131 | BL33: =IF(BK33="",NA(),COUNTIF(BK33:$BK$303,BK33)) -> 7 | BM33: 127.463 | BN33: 7.00375 | BO33: 132 | BP33: =IF(BO33="",NA(),COUNTIF(BO33:$BO$303,BO33)) -> 7 | BQ33: 128.436 | BR33: -42.99625 | BS33: 22 | BT33: =IF(BS33="",NA(),COUNTIF(BS33:$BS$303,BS33)) -> 5 | BU33: 139.927 | BV33: -15.78025
A34: 0.3607851795 | B34: 0.6047561757 | C34: 3.903697514 | R34: 0.000254421 | AE34: 0.000254421 | AW34: Lbl Samp SDs | AX34: =IF(BD5,AX3,NA()) -> 70 | AY34: =AX12+8 -> -11 | BB34: format | BC34: popSE | BD34: sampSE | BE34: 33 | BF34: 0.4282612279 | BI34: 25 | BJ34: -999 | BK34: 139 | BL34: =IF(BK34="",NA(),COUNTIF(BK34:$BK$303,BK34)) -> 6 | BM34: 135.247 | BN34: 5.92625 | BO34: 163 | BP34: =IF(BO34="",NA(),COUNTIF(BO34:$BO$303,BO34)) -> 2 | BQ34: 158.599 | BR34: -48.38375 | BS34: 14 | BT34: =IF(BS34="",NA(),COUNTIF(BS34:$BS$303,BS34)) -> 2 | BU34: 134.687 | BV34: -17.92675
A35: 0.1400266651 | B35: 1.105912911 | C35: 1.935077025 | G35: 6 | H35: Unbiased d | R35: 0.000254421 | AE35: =$R$1 -> 0.000254421 | AW35: L end X axis | AX35: =IF(OR(NOT(BD5),A4=""),NA(),ROUND(($O$10+$O$12*A4)/$BC$24,0)*$BC$24) -> 125.517 | AY35: =AX12 -> -19 | AZ35: =AX11-3 -> 14 | BB35: red | BC35: =IF(AND(nsampso>0,BD12),-1,99) -> 99 | BD35: =IF(AND(NOT(BD12)),99,-1) -> 99 | BE35: 34 | BF35: 0.8464534655 | BG35: =IF(AND($BD$4,$BE34<=$H$15),NORMSINV(BF35),"") ->  | BH35: =IF(BG35="","",$O$10+$O$12*BG35) ->  | BI35: 25 | BJ35: =IF(AND($BB$12,$BD$2,BH35<>"",$A$4<>""),BH35,-999) -> -999 | BK35: 136 | BL35: =IF(BK35="",NA(),COUNTIF(BK35:$BK$303,BK35)) -> 7 | BM35: 132.328 | BN35: 7.00375 | BO35: 133 | BP35: =IF(BO35="",NA(),COUNTIF(BO35:$BO$303,BO35)) -> 5 | BQ35: 129.409 | BR35: -45.15125 | BS35: 25 | BT35: =IF(BS35="",NA(),COUNTIF(BS35:$BS$303,BS35)) -> 9 | BU35: 141.892 | BV35: -12.91825
A36: 0.01273864773 | B36: 0.4307273348 | C36: 4.672883481 | L36: dunb | M36: =IF(AND(NOT(BD12),H17>1,M32<>""),M32*W62,"") -> 1.493748315 | R36: 0.000254421 | AE36: =$R$1 -> 0.000254421 | AW36: L end X axis | AX36: =IF(BD5,AX35,NA()) -> 125.517 | AY36: =AY35 -> -19 | AZ36: 101 | BB36: Samp means | BC36: SD | BD36: SE | BE36: 35 | BF36: =MOD(BF35*10000013,1) -> 0.6591084078 | BI36: 25 | BJ36: -999 | BK36: 134 | BL36: =IF(BK36="",NA(),COUNTIF(BK36:$BK$303,BK36)) -> 9 | BM36: 130.382 | BN36: 9.15875 | BO36: 175 | BP36: =IF(BO36="",NA(),COUNTIF(BO36:$BO$303,BO36)) -> 1 | BQ36: 170.275 | BR36: -49.46125 | BS36: 10 | BT36: =IF(BS36="",NA(),COUNTIF(BS36:$BS$303,BS36)) -> 1 | BU36: 132.067 | BV36: -18.64225
A37: 0.2043952309 | B37: 1.251247105 | C37: 1.761758506 | R37: 0.000254421 | AE37: =$R$1 -> 0.000254421 | AW37: for Y axis line | AX37: =IF(BD10,AX3,NA()) -> 70 | AY37: =AX12-5 -> -24 | AZ37: 18 | BE37: 36 | BF37: 0.6463635936 | BI37: 25 | BJ37: -999 | BK37: 137 | BL37: =IF(BK37="",NA(),COUNTIF(BK37:$BK$303,BK37)) -> 1 | BM37: 133.301 | BN37: 0.53875 | BO37: 130 | BP37: =IF(BO37="",NA(),COUNTIF(BO37:$BO$303,BO37)) -> 5 | BQ37: 126.49 | BR37: -45.15125 | BS37: 29 | BT37: =IF(BS37="",NA(),COUNTIF(BS37:$BS$303,BS37)) -> 5 | BU37: 144.512 | BV37: -15.78025
A38: 0.02444191076 | B38: 1.291921849 | C38: 1.567000289 | R38: 0.000254421 | AE38: =$R$1 -> 0.000254421 | AW38: X axis values | AX38: =AX35 -> 125.517 | AY38: =AY35+0.5 -> -18.5 | BB38: =IF($BD$4,AVERAGE(BG3:BG102),-999) -> -0.3169006292 | BC38: =IF(AND($BD$4,$H$15>1),STDEV(BG3:BG102),-999) -> 0.9473239665 | BD38: =IF(AND($BD$4,$H$15>1,BC38>-999),BC38/SQRT($H$15),"") -> 0.3867433898 | BE38: 37 | BF38: 0.33910615 | BI38: 25 | BJ38: -999 | BK38: 134 | BL38: =IF(BK38="",NA(),COUNTIF(BK38:$BK$303,BK38)) -> 8 | BM38: 130.382 | BN38: 8.08125 | BO38: 127 | BP38: =IF(BO38="",NA(),COUNTIF(BO38:$BO$303,BO38)) -> 3 | BQ38: 123.571 | BR38: -47.30625 | BS38: 30 | BT38: =IF(BS38="",NA(),COUNTIF(BS38:$BS$303,BS38)) -> 5 | BU38: 145.167 | BV38: -15.78025
A39: -0.497950826 | B39: 0.6741928246 | C39: 2.227922219 | AW39: X axis values | AX39: =AX35+O12 -> 140.517 | AY39: =AY38+1 -> -17.5 | AZ39: 1.3 | BE39: 38 | BF39: 0.908094801 | BI39: 25 | BJ39: -999 | BK39: 126 | BL39: =IF(BK39="",NA(),COUNTIF(BK39:$BK$303,BK39)) -> 6 | BM39: 122.598 | BN39: 5.92625 | BO39: 137 | BP39: =IF(BO39="",NA(),COUNTIF(BO39:$BO$303,BO39)) -> 5 | BQ39: 133.301 | BR39: -45.15125 | BS39: 15 | BT39: =IF(BS39="",NA(),COUNTIF(BS39:$BS$303,BS39)) -> 3 | BU39: 135.342 | BV39: -17.21125
A40: 0.6798880201 | B40: 0.4884308082 | C40: 5.486730107 | AW40: X axis values | AX40: =AX39 -> 140.517 | AY40: =AY35 -> -19 | AZ40: =AX11-2 -> 15 | BE40: 39 | BF40: 0.8153194264 | BI40: 25 | BJ40: -999 | BK40: 144 | BL40: =IF(BK40="",NA(),COUNTIF(BK40:$BK$303,BK40)) -> 2 | BM40: 140.112 | BN40: 1.61625 | BO40: 187 | BP40: =IF(BO40="",NA(),COUNTIF(BO40:$BO$303,BO40)) -> 1 | BQ40: 181.951 | BR40: -49.46125 | BS40: 11 | BT40: =IF(BS40="",NA(),COUNTIF(BS40:$BS$303,BS40)) -> 2 | BU40: 132.722 | BV40: -17.92675
A41: -0.8465732349 | B41: 1.305449344 | C41: 0.8835476999 | AX41: =BU1 -> 139.927 | AY41: =BV1 -> -14.34925 | BE41: 40 | BF41: 0.8627300039 | BI41: 25 | BJ41: -999 | BK41: 121 | BL41: =IF(BK41="",NA(),COUNTIF(BK41:$BK$303,BK41)) -> 4 | BM41: 117.733 | BN41: 3.77125 | BO41: 116 | BP41: =IF(BO41="",NA(),COUNTIF(BO41:$BO$303,BO41)) -> 3 | BQ41: 112.868 | BR41: -47.30625 | BS41: 30 | BT41: =IF(BS41="",NA(),COUNTIF(BS41:$BS$303,BS41)) -> 4 | BU41: 145.167 | BV41: -16.49575
A42: 0.4935394479 | B42: 1.628202219 | C42: 1.531467909 | AW42: grey highlight point | AX42: =IF(ISNA(AX41),NA(),IF(AND(BD2,$BD$12),AX41,NA())) ->  | AY42: =IF(ISNA(AY41),NA(),IF($BD$12,AY41,NA())) ->  | BE42: 41 | BF42: 0.2544238046 | BI42: 25 | BJ42: -999 | BK42: 141 | BL42: =IF(BK42="",NA(),COUNTIF(BK42:$BK$303,BK42)) -> 6 | BM42: 137.193 | BN42: 5.92625 | BO42: 126 | BP42: =IF(BO42="",NA(),COUNTIF(BO42:$BO$303,BO42)) -> 4 | BQ42: 122.598 | BR42: -46.22875 | BS42: 37 | BT42: =IF(BS42="",NA(),COUNTIF(BS42:$BS$303,BS42)) -> 1 | BU42: 149.752 | BV42: -18.64225
A43: 0.1585784468 | B43: 0.8869728832 | C43: 2.433646493 | AW43: s extent line | AX43: =IF(BD12,NA(),AX35) -> 125.517 | AY43: =IF(ISNA(AY41),NA(),IF(BD12,NA(),AY41+AZ43)) -> -12.84925 | AZ43: 1.5 | BE43: 42 | BF43: 0.3533211127 | BI43: 25 | BJ43: -999 | BK43: 136 | BL43: =IF(BK43="",NA(),COUNTIF(BK43:$BK$303,BK43)) -> 6 | BM43: 132.328 | BN43: 5.92625 | BO43: 140 | BP43: =IF(BO43="",NA(),COUNTIF(BO43:$BO$303,BO43)) -> 1 | BQ43: 136.22 | BR43: -49.46125 | BS43: 20 | BT43: =IF(BS43="",NA(),COUNTIF(BS43:$BS$303,BS43)) -> 4 | BU43: 138.617 | BV43: -16.49575
A44: -0.282367999 | B44: 0.8645169343 | C44: 1.986811285 | AX44: =BU2 -> 139.927 | AY44: =BV2+AZ43 -> -12.84925 | AZ44: 1 | BE44: 43 | BF44: 0.7200980261 | BI44: 25 | BJ44: -999 | BK44: 129 | BL44: =IF(BK44="",NA(),COUNTIF(BK44:$BK$303,BK44)) -> 6 | BM44: 125.517 | BN44: 5.92625 | BO44: 133 | BP44: =IF(BO44="",NA(),COUNTIF(BO44:$BO$303,BO44)) -> 4 | BQ44: 129.409 | BR44: -46.22875 | BS44: 20 | BT44: =IF(BS44="",NA(),COUNTIF(BS44:$BS$303,BS44)) -> 3 | BU44: 138.617 | BV44: -17.21125
A45: -0.4465908774 | B45: 0.9057705876 | C45: 1.715013872 | AW45: s label | AX45: =IF(OR(NOT(BD2),BD12),NA(),AX35+3) -> 128.517 | AY45: =IF(BD12,NA(),AY41+1.6+AZ43) -> -11.24925 | BE45: 44 | BF45: 0.6222425476 | BI45: 25 | BJ45: -999 | BK45: 127 | BL45: =IF(BK45="",NA(),COUNTIF(BK45:$BK$303,BK45)) -> 2 | BM45: 123.571 | BN45: 1.61625 | BO45: 129 | BP45: =IF(BO45="",NA(),COUNTIF(BO45:$BO$303,BO45)) -> 9 | BQ45: 125.517 | BR45: -40.84125 | BS45: 21 | BT45: =IF(BS45="",NA(),COUNTIF(BS45:$BS$303,BS45)) -> 7 | BU45: 139.272 | BV45: -14.34925
A46: 0.09867074173 | B46: 1.140824128 | C46: 1.839609358 | AW46: s extent line | AX46: =IF(BD12,AX35,NA()) ->  | AY46: =IF(ISNA(AY35),NA(),IF(BD12,AY35-0.7,NA())) ->  | BE46: 45 | BF46: 0.5648697093 | BI46: 25 | BJ46: -999 | BK46: 135 | BL46: =IF(BK46="",NA(),COUNTIF(BK46:$BK$303,BK46)) -> 7 | BM46: 131.355 | BN46: 7.00375 | BO46: 131 | BP46: =IF(BO46="",NA(),COUNTIF(BO46:$BO$303,BO46)) -> 2 | BQ46: 127.463 | BR46: -48.38375 | BS46: 26 | BT46: =IF(BS46="",NA(),COUNTIF(BS46:$BS$303,BS46)) -> 5 | BU46: 142.547 | BV46: -15.78025
A47: -0.4994673831 | B47: 1.416426155 | C47: 1.059379348 | AX47: =IF(ISNA(AX46),NA(),AX46+O12) ->  | AY47: =AY46 ->  | BE47: 46 | BF47: 0.4364353791 | BI47: 25 | BJ47: -999 | BK47: 126 | BL47: =IF(BK47="",NA(),COUNTIF(BK47:$BK$303,BK47)) -> 5 | BM47: 122.598 | BN47: 4.84875 | BO47: 119 | BP47: =IF(BO47="",NA(),COUNTIF(BO47:$BO$303,BO47)) -> 1 | BQ47: 115.787 | BR47: -49.46125 | BS47: 32 | BT47: =IF(BS47="",NA(),COUNTIF(BS47:$BS$303,BS47)) -> 4 | BU47: 146.477 | BV47: -16.49575
A48: 0.09700898819 | B48: 0.6161544196 | C48: 3.403382207 | AX48: =IF(BD12,AX40,NA()) ->  | AY48: =IF(BD12,AY39,NA()) ->  | BE48: 47 | BF48: 0.4645391777 | BI48: 25 | BJ48: -999 | BK48: 135 | BL48: =IF(BK48="",NA(),COUNTIF(BK48:$BK$303,BK48)) -> 6 | BM48: 131.355 | BN48: 5.92625 | BO48: 155 | BP48: =IF(BO48="",NA(),COUNTIF(BO48:$BO$303,BO48)) -> 1 | BQ48: 150.815 | BR48: -49.46125 | BS48: 14 | BT48: =IF(BS48="",NA(),COUNTIF(BS48:$BS$303,BS48)) -> 1 | BU48: 134.687 | BV48: -18.64225
A49: 0.09615170093 | B49: 1.018762752 | C49: 2.057546467 | AW49: s label | AX49: =AX35+3 -> 128.517 | AY49: =IF(BD12,AY39+0.2,NA()) ->  | BE49: 48 | BF49: 0.8161670938 | BI49: 25 | BJ49: -999 | BK49: 135 | BL49: =IF(BK49="",NA(),COUNTIF(BK49:$BK$303,BK49)) -> 5 | BM49: 131.355 | BN49: 4.84875 | BO49: 134 | BP49: =IF(BO49="",NA(),COUNTIF(BO49:$BO$303,BO49)) -> 5 | BQ49: 130.382 | BR49: -45.15125 | BS49: 23 | BT49: =IF(BS49="",NA(),COUNTIF(BS49:$BS$303,BS49)) -> 11 | BU49: 140.582 | BV49: -11.48725
A50: -0.4778833694 | B50: 1.332478779 | C50: 1.142319603 | AW50: dotted vertical | AX50: =AX35 -> 125.517 | AY50: =BN2 -> 8.08125 | BE50: 49 | BF50: 0.548306413 | BI50: 25 | BJ50: -999 | BK50: 126 | BL50: =IF(BK50="",NA(),COUNTIF(BK50:$BK$303,BK50)) -> 4 | BM50: 122.598 | BN50: 3.77125 | BO50: 120 | BP50: =IF(BO50="",NA(),COUNTIF(BO50:$BO$303,BO50)) -> 2 | BQ50: 116.76 | BR50: -48.38375 | BS50: 31 | BT50: =IF(BS50="",NA(),COUNTIF(BS50:$BS$303,BS50)) -> 5 | BU50: 145.822 | BV50: -15.78025
A51: 0.2791675667 | B51: 0.9613250788 | C51: 2.370860406 | AW51: to latest mean | AX51: =AX50 -> 125.517 | AY51: =AY35 -> -19 | BE51: 50 | BF51: 0.257931985 | BI51: 25 | BJ51: -999 | BK51: 138 | BL51: =IF(BK51="",NA(),COUNTIF(BK51:$BK$303,BK51)) -> 8 | BM51: 134.274 | BN51: 8.08125 | BO51: 139 | BP51: =IF(BO51="",NA(),COUNTIF(BO51:$BO$303,BO51)) -> 4 | BQ51: 135.247 | BR51: -46.22875 | BS51: 22 | BT51: =IF(BS51="",NA(),COUNTIF(BS51:$BS$303,BS51)) -> 4 | BU51: 139.927 | BV51: -16.49575
A52: -0.3954381951 | B52: 0.7360905143 | C52: 2.179843068 | AW52: Panel 4 | BE52: 51 | BF52: 0.2027261332 | BI52: 25 | BJ52: -999 | BK52: 128 | BL52: =IF(BK52="",NA(),COUNTIF(BK52:$BK$303,BK52)) -> 3 | BM52: 124.544 | BN52: 2.69375 | BO52: 136 | BP52: =IF(BO52="",NA(),COUNTIF(BO52:$BO$303,BO52)) -> 8 | BQ52: 132.328 | BR52: -41.91875 | BS52: 17 | BT52: =IF(BS52="",NA(),COUNTIF(BS52:$BS$303,BS52)) -> 10 | BU52: 136.652 | BV52: -12.20275
A53: -0.3549176312 | B53: 0.7536593805 | C53: 2.182792932 | AW53: Label d | AX53: =IF(BD10,AX3,NA()) -> 70 | AY53: =AX15+14 -> -36 | BE53: 52 | BF53: 0.967117168 | BI53: 25 | BJ53: -999 | BK53: 128 | BL53: =IF(BK53="",NA(),COUNTIF(BK53:$BK$303,BK53)) -> 2 | BM53: 124.544 | BN53: 1.61625 | BO53: 136 | BP53: =IF(BO53="",NA(),COUNTIF(BO53:$BO$303,BO53)) -> 7 | BQ53: 132.328 | BR53: -42.99625 | BS53: 17 | BT53: =IF(BS53="",NA(),COUNTIF(BS53:$BS$303,BS53)) -> 9 | BU53: 136.652 | BV53: -12.91825
A54: -0.2111556257 | B54: 0.538732821 | C54: 3.320466667 | AW54: Label values | AX54: =IF(BD10,AX3,NA()) -> 70 | AY54: =AY53+AZ54 -> -35.9 | AZ54: 0.1 | BE54: 53 | BF54: 0.2526159957 | BI54: 25 | BJ54: -999 | BK54: 130 | BL54: =IF(BK54="",NA(),COUNTIF(BK54:$BK$303,BK54)) -> 8 | BM54: 126.49 | BN54: 8.08125 | BO54: 154 | BP54: =IF(BO54="",NA(),COUNTIF(BO54:$BO$303,BO54)) -> 1 | BQ54: 149.842 | BR54: -49.46125 | BS54: 12 | BT54: =IF(BS54="",NA(),COUNTIF(BS54:$BS$303,BS54)) -> 5 | BU54: 133.377 | BV54: -15.78025
A55: -0.2530776096 | B55: 0.9840191067 | C55: 1.775293161 | AW55: for Y axis line | AX55: =IF(BD10,AX3,NA()) -> 70 | AY55: =AX15 -> -50 | AZ55: =AX14-2 -> 22 | BE55: 54 | BF55: 0.2410592213 | BI55: 25 | BJ55: -999 | BK55: 130 | BL55: =IF(BK55="",NA(),COUNTIF(BK55:$BK$303,BK55)) -> 7 | BM55: 126.49 | BN55: 7.00375 | BO55: 130 | BP55: =IF(BO55="",NA(),COUNTIF(BO55:$BO$303,BO55)) -> 4 | BQ55: 126.49 | BR55: -46.22875 | BS55: 23 | BT55: =IF(BS55="",NA(),COUNTIF(BS55:$BS$303,BS55)) -> 10 | BU55: 140.582 | BV55: -12.20275
A56: 0.258155831 | B56: 0.9097929379 | C56: 2.482054693 | AW56: for d axis line | AX56: =IF(BD10,AX3,NA()) -> 70 | AY56: =AX15 -> -50 | AZ56: 100 | BE56: 55 | BF56: 0.3470429257 | BI56: 25 | BJ56: -999 | BK56: 138 | BL56: =IF(BK56="",NA(),COUNTIF(BK56:$BK$303,BK56)) -> 7 | BM56: 134.274 | BN56: 7.00375 | BO56: 141 | BP56: =IF(BO56="",NA(),COUNTIF(BO56:$BO$303,BO56)) -> 3 | BQ56: 137.193 | BR56: -47.30625 | BS56: 21 | BT56: =IF(BS56="",NA(),COUNTIF(BS56:$BS$303,BS56)) -> 6 | BU56: 139.272 | BV56: -15.06475
A57: -0.06441662282 | B57: 0.8192331688 | C57: 2.362677014 | AW57: label val mu0 | AX57: =IF(BD10,L8,NA()) -> 100 | AY57: =AX15+10 -> -40 | BE57: 56 | BF57: 0.7681164518 | BI57: 25 | BJ57: -999 | BK57: 133 | BL57: =IF(BK57="",NA(),COUNTIF(BK57:$BK$303,BK57)) -> 8 | BM57: 129.409 | BN57: 8.08125 | BO57: 139 | BP57: =IF(BO57="",NA(),COUNTIF(BO57:$BO$303,BO57)) -> 3 | BQ57: 135.247 | BR57: -47.30625 | BS57: 19 | BT57: =IF(BS57="",NA(),COUNTIF(BS57:$BS$303,BS57)) -> 4 | BU57: 137.962 | BV57: -16.49575
A58: 0.07060324375 | B58: 1.289828788 | C58: 1.605331857 | AW58: mu0 line | AX58: =IF(BD10,L8,NA()) -> 100 | AY58: =AX15 -> -50 | AZ58: 8 | BE58: 57 | BF58: 0.5035125688 | BI58: 25 | BJ58: -999 | BK58: 135 | BL58: =IF(BK58="",NA(),COUNTIF(BK58:$BK$303,BK58)) -> 4 | BM58: 131.355 | BN58: 3.77125 | BO58: 128 | BP58: =IF(BO58="",NA(),COUNTIF(BO58:$BO$303,BO58)) -> 9 | BQ58: 124.544 | BR58: -40.84125 | BS58: 30 | BT58: =IF(BS58="",NA(),COUNTIF(BS58:$BS$303,BS58)) -> 3 | BU58: 145.167 | BV58: -17.21125
A59: -0.2311284315 | B59: 1.230005182 | C59: 1.438100907 | AW59: mu1 line | AX59: =IF(BD10,O10,NA()) -> 130 | AY59: =AX15 -> -50 | AZ59: =AX14-1 -> 23 | BE59: 58 | BF59: 0.2333817855 | BI59: 25 | BJ59: -999 | BK59: 130 | BL59: =IF(BK59="",NA(),COUNTIF(BK59:$BK$303,BK59)) -> 6 | BM59: 126.49 | BN59: 5.92625 | BO59: 125 | BP59: =IF(BO59="",NA(),COUNTIF(BO59:$BO$303,BO59)) -> 2 | BQ59: 121.625 | BR59: -48.38375 | BS59: 28 | BT59: =IF(BS59="",NA(),COUNTIF(BS59:$BS$303,BS59)) -> 3 | BU59: 143.857 | BV59: -17.21125
A60: 0.500564218 | B60: 0.7248934712 | C60: 3.44956096 | AW60: d axis label | AX60: =IF(BD10,AX3+18,NA()) -> 88 | AY60: =AX15-AX16 -> -52 | BE60: 59 | BF60: 0.8884868696 | BI60: 25 | BJ60: -999 | BK60: 141 | BL60: =IF(BK60="",NA(),COUNTIF(BK60:$BK$303,BK60)) -> 5 | BM60: 137.193 | BN60: 4.84875 | BO60: 156 | BP60: =IF(BO60="",NA(),COUNTIF(BO60:$BO$303,BO60)) -> 2 | BQ60: 151.788 | BR60: -48.38375 | BS60: 17 | BT60: =IF(BS60="",NA(),COUNTIF(BS60:$BS$303,BS60)) -> 8 | BU60: 136.652 | BV60: -13.63375
A61: -0.4624515259 | B61: 1.027900883 | C61: 1.495813944 | AW61: highlighted point | AX61: =IF(AND(NOT($BB$13),$BD$4,$BD$2,AK72,BD10),BQ2,NA()) -> 126.49 | AY61: =AX15-BC23/2 -> -50.53875 | BE61: 60 | BF61: 0.2466612831 | BI61: 25 | BJ61: -999 | BK61: 126 | BL61: =IF(BK61="",NA(),COUNTIF(BK61:$BK$303,BK61)) -> 3 | BM61: 122.598 | BN61: 2.69375 | BO61: 126 | BP61: =IF(BO61="",NA(),COUNTIF(BO61:$BO$303,BO61)) -> 3 | BQ61: 122.598 | BR61: -47.30625 | BS61: 24 | BT61: =IF(BS61="",NA(),COUNTIF(BS61:$BS$303,BS61)) -> 6 | BU61: 141.237 | BV61: -15.06475
A62: 0.5041242393 | B62: 0.9971002902 | C62: 2.511406589 | K62: For s pile curve | V62: To debias | W62: =EXP(GAMMALN(H17/2))/(SQRT(H17/2)*EXP(GAMMALN(H17/2-0.5))) -> 0.8407486824 | Z62: Panel 1 scale | AA62: 33 | AC62: SampDistMult | AD62: =COUNT(A4:A303)*$BC$23*$BC$24 -> 143.6318275 | AI62: 1.4 | AJ62: Label rubber ruler | AL62: 0.2 | AO62: For slants | AW62: mean on r ruler | AX62: =IF(AND(NOT($BB$13),$BD$4,$BD$2,AK72),BM2,NA()) -> 125.517 | AY62: =AX15+AX14+1 -> -25 | BE62: 61 | BF62: 0.03735477477 | BI62: 25 | BJ62: -999 | BK62: 141 | BL62: =IF(BK62="",NA(),COUNTIF(BK62:$BK$303,BK62)) -> 4 | BM62: 137.193 | BN62: 3.77125 | BO62: 141 | BP62: =IF(BO62="",NA(),COUNTIF(BO62:$BO$303,BO62)) -> 2 | BQ62: 137.193 | BR62: -48.38375 | BS62: 23 | BT62: =IF(BS62="",NA(),COUNTIF(BS62:$BS$303,BS62)) -> 9 | BU62: 140.582 | BV62: -12.91825
A63: -0.1619821636 | B63: 0.8428065305 | C63: 2.180830084 | H63: L end | I63: =ROUND(($O$10+$O$12*A4)/$BC$24,0)*$BC$24 -> 125.517 | K63: X | L63: s | M63: s2/( ) | N63: Rcum | O63: ord | P63: grey | S63: NCP | T63: =(O10-L8)/(BB9/SQRT(H15)) -> 4.898979486 | V63: x | W63: t | X63: nct | Z63: H1Pop | AA63: SampDist | AB63: SampDist | AC63: cum t | AD63: t or z | AF63: Label s pile X axis | AJ63: Unit | AK63: =IF(AND(AK72),AX3+AM63,NA()) -> 75.5 | AL63: =AX15+AX14-$AM$64 -> -26.7 | AM63: 5.5 | AO63: 12 | AP63: =AL74 ->  | AQ63: =$AM$74 -> -26 | AW63: for vert dotted line | AX63: =BM2 -> 125.517 | AY63: =BN2 -> 8.08125 | BE63: 62 | BF63: 0.2333432809 | BI63: 25 | BJ63: -999 | BK63: 131 | BL63: =IF(BK63="",NA(),COUNTIF(BK63:$BK$303,BK63)) -> 6 | BM63: 127.463 | BN63: 5.92625 | BO63: 136 | BP63: =IF(BO63="",NA(),COUNTIF(BO63:$BO$303,BO63)) -> 6 | BQ63: 132.328 | BR63: -44.07375 | BS63: 19 | BT63: =IF(BS63="",NA(),COUNTIF(BS63:$BS$303,BS63)) -> 3 | BU63: 137.962 | BV63: -17.21125
